Workbook

Sheet Eingabe
C1: =UPPER(Translation!A3) -> PERFORMANCE DATA HEAT PUMP
B7: =Translation!A4 -> Input values
B9: =Translation!A5 -> Heat source | P9: =IF(Berechnung!F142=TRUE,Translation!A44,IF(LEFT(Berechnung!L6,1)="i",Translation!A37&" "&Berechnung!N6&" °C",Translation!A18)) -> max 35 °C | T9: =IF(Berechnung!F142=TRUE,Translation!A46&" "&Berechnung!N6&" °C",IF(LEFT(Berechnung!L6,1)="i","",Translation!A19&" "&Berechnung!N6&" °C")) ->  | X9: =IF(Berechnung!F142=TRUE,Translation!A45,IF(LEFT(Berechnung!L6,1)="i",Translation!A38&" "&Berechnung!N6&" °C"," "&Translation!A20)) -> min 35 °C
B11: =Translation!A61&" | "&Translation!A62 -> Quantity | Type heat pump | M11: =Berechnung!F147 -> Power consumption [kW]
B13: =Translation!A47 -> Function
B15: =IF(Berechnung!F142=TRUE,Translation!A43,Translation!A7) -> Forward flow
B17: =IF(Berechnung!F142=TRUE,Translation!A7,Translation!A8) -> source temperature
B19: =Translation!A36 -> Rotational speed in percent
B22: =Translation!A9 -> Results
B24: =IF(Berechnung!F142=TRUE,Translation!A40,Translation!A10) -> Heating output | E24: =IF(ISERROR(Berechnung!F127)=TRUE,Translation!A39,FIXED(Berechnung!F127,2)& " kW") -> 4,10 kW
B26: =Translation!A11 -> COP | E26: =IF(ISERROR(FIXED(Berechnung!F128,2)),"---",IF(E24=Translation!A39,"---",FIXED(Berechnung!F128,2))) -> 2,19
B28: =Translation!A12 -> Power consumption | E28: =IF(ISERROR(Berechnung!F129)=TRUE,"---",IF(Berechnung!F129="---","---",FIXED(Berechnung!F129,2)&" kW")) -> 1,81 kW | M28: =IF(Berechnung!Y6=Berechnung!Y9,Translation!A29,Translation!A51) -> Source temperature [°C]
X30: IMT v1.12

Sheet Berechnung (hidden)
E1: Comoboxen Wärmepumpe
G2: Wärmepumpe Typ | U2: Sprache | W2: Drehzahl | Y2: Heizen / Kühlen | Z2: Design Charts
E3: Wärmequelle | F3: Anzahl | M3: Vorlauftemperatur | O3: Wärmequellentemperatur
G5: WPL 15 A/ IK-2 /I2 | L5: Index | N5: Index
E6: Air | F6: 1 x | L6: =IF(E6=E9,VLOOKUP(G5,G9:H61,2,FALSE),IF(E6=E10,VLOOKUP(G5,I9:J62,2,FALSE),VLOOKUP(G5,K9:L62,2,FALSE))) -> i15 | M6: Underfloor heating (35°C) | N6: =VLOOKUP(M6,M9:N59,2,FALSE)*1 -> 35 | O6: -20 °C | P6: =IF(E6=E9,VLOOKUP(O6,O9:P59,2,FALSE),IF(E6=E10,VLOOKUP(O6,Q9:R59,2,FALSE),VLOOKUP(O6,S9:T59,2,FALSE)))*1 -> -20 | U6: 2 | V6: =VLOOKUP(U6,U8:V21,2,FALSE) -> English | W6: 75% | X6: =VLOOKUP(W6,W9:X22,2,FALSE) -> 0.6153846154 | Y6: Heating | Z6: =VLOOKUP(U6,U8:Z61,6,FALSE) -> Positionsliste ste 01-14 EN.pdf
F7: =LEFT(F6,1)*1 -> 1 | O7: Außenluft | P7: Zahl L | Q7: Erdreich | R7: Zahl E | S7: Wasser | T7: Zahl W
F8: Anzahl | G8: Außenluft | H8: Index L | I8: Erdreich | J8: Index E | K8: Wasser | L8: Index W | U8: 1 | V8: Deutsch | Z8: Positionsliste ste 0614 DE.pdf
E9: =Translation!A15 -> Air | F9: 1 x | G9: =MatrixLuft!F55 -> WPL 10 AC | H9: 1 | I9: =MatrixErdreich!F2 -> WPC 04 /WPC 04 cool | J9: 1 | K9: =MatrixWasser!F2 -> WPW 06 Set | L9: 1 | M9: =Translation!A21&" (35°C)" -> Underfloor heating (35°C) | N9: 35 | O9: -20 °C | P9: -20 | Q9: =Translation!A24&" (2°C)" -> Standard probe (2°C) | R9: 2 | S9: =Translation!A26&" (10°C)" -> Default values (10°C) | T9: 10 | U9: 2 | V9: English | W9: 100% | X9: 1 | Y9: =Translation!A48 -> Heating | Z9: Positionsliste ste 01-14 EN.pdf
E10: =Translation!A16 -> Brine | F10: 2 x | G10: =MatrixLuft!F108 -> WPL 10 A/I/IK | H10: 2 | I10: =MatrixErdreich!F31 -> WPC 05 /WPC 05 cool | J10: 2 | K10: =MatrixWasser!F31 -> WPW 07 Set | L10: 2 | M10: =Translation!A22&" (55°C)" -> Radiators (55°C) | N10: 55 | O10: -19 °C | P10: -19 | Q10: =Translation!A25&" (0°C)" -> Standard collector (0°C) | R10: 0 | S10: -5 °C | T10: -5 | U10: 3 | V10: Suomi | W10: 95% | X10: =X9-1/13 -> 0.9230769231 | Y10: =Translation!A49 -> Cooling capacity | Z10: Positionsliste ste 01-14 FI.pdf
E11: =Translation!A17 -> Water | F11: 3 x | G11: =MatrixLuft!F1115 -> WPL 15 A/ IK-2 /I2 | H11: i15 | I11: =MatrixErdreich!F60 -> WPC 07 / WPC 07 cool | J11: 3 | K11: =MatrixWasser!F60 -> WPW 10 Set | L11: 3 | M11: =Translation!A23&" (55°C)" -> Domestic hot water (55°C) | N11: 55 | O11: -18 °C | P11: -18 | Q11: -5 °C | R11: -5 | S11: -4 °C | T11: -4 | U11: 4 | V11: Greek | W11: 90% | X11: =X10-1/13 -> 0.8461538462
F12: 4 x | G12: =MatrixLuft!F1168 -> WPL 25 A/ IK-2 /I2 | H12: i25 | I12: =MatrixErdreich!F89 -> WPC 10 / WPC 10 cool | J12: 4 | K12: =MatrixWasser!F89 -> WPW 13 Set | L12: 4 | M12: 30 °C | N12: 30 | O12: -17 °C | P12: -17 | Q12: -4 °C | R12: -4 | S12: -3 °C | T12: -3 | W12: 85% | X12: 0.7692307692
F13: 5 x | G13: =MatrixLuft!F161 -> WPL 13 E | H13: 3 | I13: =MatrixErdreich!F118 -> WPC 13 / WPC 13 cool | J13: 5 | K13: =MatrixWasser!F118 -> WPW 18 Set | L13: 5 | M13: 31 °C | N13: 31 | O13: -16 °C | P13: -16 | Q13: -3 °C | R13: -3 | S13: -2 °C | T13: -2 | W13: 80% | X13: 0.6923076923
F14: 6 x | G14: =MatrixLuft!F214 -> WPL 18 E | H14: 4 | I14: =MatrixErdreich!F147 -> WPF 04 /WPF 04 cool | J14: 6 | K14: =MatrixWasser!F147 -> WPW 22 Set | L14: 6 | M14: 32 °C | N14: 32 | O14: -15 °C | P14: -15 | Q14: -2 °C | R14: -2 | S14: -1 °C | T14: -1 | W14: 75% | X14: 0.6153846154
G15: =MatrixLuft!F267 -> WPL 23 E | H15: 5 | I15: =MatrixErdreich!F176 -> WPF 05 /WPF 05 cool | J15: 7 | K15: =MatrixWasser!F176 -> WPW 07 basic Set | L15: 7 | M15: 33 °C | N15: 33 | O15: -14 °C | P15: -14 | Q15: -1 °C | R15: -1 | S15: 0 °C | T15: 0 | W15: 70% | X15: 0.5384615385
G16: =MatrixLuft!F320 -> WPL 13 cool | H16: 6 | I16: =MatrixErdreich!F205 -> WPF 07 / WPF 07 cool | J16: 8 | K16: =MatrixWasser!F205 -> WPW 10 basic Set | L16: 8 | M16: 34 °C | N16: 34 | O16: -13 °C | P16: -13 | Q16: 0 °C | R16: 0 | S16: 1 °C | T16: 1 | W16: 65% | X16: 0.4615384615
G17: =MatrixLuft!F373 -> WPL 18 cool | H17: 7 | I17: =MatrixErdreich!F234 -> WPF 10 / WPF 10 cool | J17: 9 | K17: =MatrixWasser!F234 -> WPW 13 basic Set | L17: 9 | M17: 35 °C | N17: 35 | O17: -12 °C | P17: -12 | Q17: 1 °C | R17: 1 | S17: 2 °C | T17: 2 | W17: 60% | X17: 0.3846153846
G18: =MatrixLuft!F426 -> WPL 23 cool | H18: 8 | I18: =MatrixErdreich!F263 -> WPF 13 / WPF 13 cool | J18: 10 | K18: =MatrixWasser!F263 -> WPW 18 basic Set | L18: 10 | M18: 36 °C | N18: 36 | O18: -11 °C | P18: -11 | Q18: 2 °C | R18: 2 | S18: 3 °C | T18: 3 | W18: 55% | X18: 0.3076923077
G19: =MatrixLuft!F532 -> WPL 13 A basic | H19: 10 | I19: =MatrixErdreich!F292 -> WPF 16 / WPF 16 cool | J19: 11 | K19: =MatrixWasser!F292 -> WPW 22 basic Set | L19: 11 | M19: 37 °C | N19: 37 | O19: -10 °C | P19: -10 | Q19: 3 °C | R19: 3 | S19: 4 °C | T19: 4 | W19: 50% | X19: 0.2307692308
G20: =MatrixLuft!F585 -> WPL 20 A basic | H20: 11 | I20: =MatrixErdreich!F321 -> WPF 5 basic | J20: 12 | K20: =MatrixWasser!F321 -> WPF 10 M | L20: 12 | M20: 38 °C | N20: 38 | O20: -9 °C | P20: -9 | Q20: 4 °C | R20: 4 | S20: 5 °C | T20: 5 | W20: 45% | X20: 0.1538461538
G21: =MatrixLuft!A638 -> WPL 33 HT | H21: i33 | I21: =MatrixErdreich!F350 -> WPF 7 basic | J21: 13 | K21: =MatrixWasser!F350 -> WPF 13 M | L21: 13 | M21: 39 °C | N21: 39 | O21: -8 °C | P21: -8 | Q21: 5 °C | R21: 5 | S21: 6 °C | T21: 6 | W21: 40% | X21: 0.07692307692
G22: =MatrixLuft!F691 -> WPL 34 | H22: 12 | I22: =MatrixErdreich!F379 -> WPF 10 basic | J22: 14 | K22: =MatrixWasser!F379 -> WPF 16 M | L22: 14 | M22: 40 °C | N22: 40 | O22: -7 °C | P22: -7 | Q22: 6 °C | R22: 6 | S22: 7 °C | T22: 7 | W22: 35% | X22: 0
G23: =MatrixLuft!F744 -> WPL 47 | H23: 13 | I23: =MatrixErdreich!F408 -> WPF 13 basic | J23: 15 | K23: =MatrixWasser!F408 -> WPF 20 | L23: 15 | M23: 41 °C | N23: 41 | O23: -6 °C | P23: -6 | Q23: 7 °C | R23: 7 | S23: 8 °C | T23: 8
G24: =MatrixLuft!F797 -> WPL 57 | H24: 14 | I24: =MatrixErdreich!F437 -> WPF 16 basic | J24: 16 | K24: =MatrixWasser!F437 -> WPF 27 | L24: 16 | M24: 42 °C | N24: 42 | O24: -5 °C | P24: -5 | Q24: 8 °C | R24: 8 | S24: 9 °C | T24: 9
I25: =MatrixErdreich!F466 -> WPF 10 M | J25: 17 | K25: =MatrixWasser!F466 -> WPF 27 HT | L25: 17 | M25: 43 °C | N25: 43 | O25: -4 °C | P25: -4 | Q25: 9 °C | R25: 9 | S25: 10 °C | T25: 10
I26: =MatrixErdreich!F495 -> WPF 13 M | J26: 18 | K26: =MatrixWasser!F495 -> WPF 35 | L26: 18 | M26: 44 °C | N26: 44 | O26: -3 °C | P26: -3 | Q26: 10 °C | R26: 10 | S26: 11 °C | T26: 11
I27: =MatrixErdreich!F524 -> WPF 16 M | J27: 19 | K27: =MatrixWasser!F524 -> WPF 40 | L27: 19 | M27: 45 °C | N27: 45 | O27: -2 °C | P27: -2 | Q27: 11 °C | R27: 11 | S27: 12 °C | T27: 12
I28: =MatrixErdreich!F553 -> WPF 20 | J28: 20 | K28: =MatrixWasser!F553 -> WPF 52 | L28: 20 | M28: 46 °C | N28: 46 | O28: -1 °C | P28: -1 | Q28: 12 °C | R28: 12 | S28: 13 °C | T28: 13
I29: =MatrixErdreich!F582 -> WPF 27 | J29: 21 | K29: =MatrixWasser!F582 -> WPF 66 | L29: 21 | M29: 47 °C | N29: 47 | O29: 0 °C | P29: -0 | Q29: 13 °C | R29: 13 | S29: 14 °C | T29: 14
I30: =MatrixErdreich!F611 -> WPF 27 HT | J30: 22 | K30: =MatrixWasser!F611 -> WPF 20 SET | L30: 22 | M30: 48 °C | N30: 48 | O30: 1 °C | P30: 1 | Q30: 14 °C | R30: 14 | S30: 15 °C | T30: 15
I31: =MatrixErdreich!F640 -> WPF 35 | J31: 23 | K31: =MatrixWasser!F640 -> WPF 23 SET | L31: 23 | M31: 49 °C | N31: 49 | O31: 2 °C | P31: 2 | Q31: 15 °C | R31: 15 | S31: 16 °C | T31: 16
I32: =MatrixErdreich!F669 -> WPF 40 | J32: 24 | K32: =MatrixWasser!F669 -> WPF 26 SET | L32: 24 | M32: 50 °C | N32: 50 | O32: 3 °C | P32: 3 | Q32: 16 °C | R32: 16 | S32: 17 °C | T32: 17
I33: =MatrixErdreich!F698 -> WPF 52 | J33: 25 | K33: =MatrixWasser!F698 -> WPF 29 SET | L33: 25 | M33: 51 °C | N33: 51 | O33: 4 °C | P33: 4 | Q33: 17 °C | R33: 17 | S33: 18 °C | T33: 18
I34: =MatrixErdreich!F727 -> WPF 66 | J34: 26 | K34: =MatrixWasser!F727 -> WPF 32 SET | L34: 26 | M34: 52 °C | N34: 52 | O34: 5 °C | P34: 5 | Q34: 18 °C | R34: 18 | S34: 19 °C | T34: 19
I35: =MatrixErdreich!F756 -> WPF 20 SET | J35: 27 | K35: =MatrixWasser!F756 -> WPF 80 SET | L35: 27 | M35: 53 °C | N35: 53 | O35: 6 °C | P35: 6 | Q35: 19 °C | R35: 19 | S35: 20 °C | T35: 20
I36: =MatrixErdreich!F785 -> WPF 23 SET | J36: 28 | K36: =MatrixWasser!F785 -> WPF 92 SET | L36: 28 | M36: 54 °C | N36: 54 | O36: 7 °C | P36: 7 | Q36: 20 °C | R36: 20
I37: =MatrixErdreich!F814 -> WPF 26 SET | J37: 29 | K37: =MatrixWasser!F814 -> WPF 104 SET | L37: 29 | M37: 55 °C | N37: 55 | O37: 8 °C | P37: 8
I38: =MatrixErdreich!F843 -> WPF 29 SET | J38: 30 | K38: =MatrixWasser!F843 -> WPF 118 SET | L38: 30 | M38: 56 °C | N38: 56 | O38: 9 °C | P38: 9
I39: =MatrixErdreich!F872 -> WPF 32 SET | J39: 31 | K39: =MatrixWasser!F872 -> WPF 132 SET | L39: 31 | M39: 57 °C | N39: 57 | O39: 10 °C | P39: 10
I40: =MatrixErdreich!F901 -> WPF 80 SET | J40: 32 | L40: 32 | M40: 58 °C | N40: 58 | O40: 11 °C | P40: 11
I41: =MatrixErdreich!F930 -> WPF 92 SET | J41: 33 | L41: 33 | M41: 59 °C | N41: 59 | O41: 12 °C | P41: 12
I42: =MatrixErdreich!F959 -> WPF 104 SET | J42: 34 | L42: 34 | M42: 60 °C | N42: 60 | O42: 13 °C | P42: 13
I43: =MatrixErdreich!F988 -> WPF 118 SET | J43: 35 | L43: 35 | M43: 61 °C | N43: 61 | O43: 14 °C | P43: 14
I44: =MatrixErdreich!F1017 -> WPF 132 SET | J44: 36 | L44: 36 | M44: 62 °C | N44: 62 | O44: 15 °C | P44: 15
I45: =MatrixErdreich!F1046 -> WPF 7 MS | J45: 37 | M45: 63 °C | N45: 63 | O45: 16 °C | P45: 16
I46: =MatrixErdreich!F1075 -> WPF 14 Set | J46: 38 | M46: 64 °C | N46: 64 | O46: 17 °C | P46: 17
I47: =MatrixErdreich!F1104 -> WPF 17 Set | J47: 39 | M47: 65 °C | N47: 65 | O47: 18 °C | P47: 18
M48: 66 °C | N48: 66 | O48: 19 °C | P48: 19
M49: 67 °C | N49: 67 | O49: 20 °C | P49: 20
M50: 68 °C | N50: 68 | O50: 21 °C | P50: 21
M51: 69 °C | N51: 69 | O51: 22 °C | P51: 22
M52: 70 °C | N52: 70 | O52: 23 °C | P52: 23
M53: 71 °C | N53: 71 | O53: 24 °C | P53: 24
M54: 72 °C | N54: 72 | O54: 25 °C | P54: 25
M55: 73 °C | N55: 73 | O55: 26 °C | P55: 26
M56: 74 °C | N56: 74 | O56: 27 °C | P56: 27
M57: 75 °C | N57: 75 | O57: 28 °C | P57: 28
O58: 29 °C | P58: 29
O59: 30 °C | P59: 30
E86: Berechnung
E87: Invertergeregelte Pumpen:
E88: WP | F88: Leistung 35% | G88: Leistung 100% | H88: Leistung bei gewählter Drehzahl | I88: Leistungszahl 35% | J88: Leistungszahl 100% | K88: Leistung bei gewählter Drehzahl | L88: Leistungsaufnahme 35% | M88: Leistungsaufnahme 100% | N88: Leistung bei gewählter Drehzahl
E89: =G11 -> WPL 15 A/ IK-2 /I2 | F89: =VLOOKUP(Berechnung!$P$6,MatrixLuft!A1117:Q1167,9,FALSE) -> 1.7 | G89: =VLOOKUP(Berechnung!$P$6,MatrixLuft!A1117:Q1167,17,FALSE) -> 5.6 | H89: =F89+(G89-F89)*$X$6 -> 4.1 | I89: =VLOOKUP(Berechnung!$P$6,MatrixLuft!AQ1117:AY1167,9,FALSE) -> 1.972222222 | J89: =VLOOKUP(Berechnung!$P$6,MatrixLuft!AQ1117:BG1167,17,FALSE) -> 2.331111111 | K89: =I89+(J89-I89)*$X$6 -> 2.193076923 | L89: =VLOOKUP(Berechnung!$P$6,MatrixLuft!CF1117:CN1167,9,FALSE) -> 0.861971831 | M89: =VLOOKUP(Berechnung!$P$6,MatrixLuft!CF1117:CV1167,17,FALSE) -> 2.402287893 | N89: =L89+(M89-L89)*$X$6 -> 1.809858639
E90: =G12 -> WPL 25 A/ IK-2 /I2 | F90: =VLOOKUP(Berechnung!$P$6,MatrixLuft!A1170:Q1220,9,FALSE) -> 3.6 | G90: =VLOOKUP(Berechnung!$P$6,MatrixLuft!A1170:Q1220,17,FALSE) -> 10.5 | H90: =F90+(G90-F90)*$X$6 -> 7.846153846 | I90: =VLOOKUP(Berechnung!$P$6,MatrixLuft!AQ1170:AY1220,9,FALSE) -> 1.997777778 | J90: =VLOOKUP(Berechnung!$P$6,MatrixLuft!AQ1170:BG1220,17,FALSE) -> 2.307777778 | K90: =I90+(J90-I90)*$X$6 -> 2.188547009 | L90: =VLOOKUP(Berechnung!$P$6,MatrixLuft!CF1170:CN1220,9,FALSE) -> 1.802002225 | M90: =VLOOKUP(Berechnung!$P$6,MatrixLuft!CF1170:CV1220,17,FALSE) -> 4.549831488 | N90: =L90+(M90-L90)*$X$6 -> 3.492974079
E91: =G21 -> WPL 33 HT | F91: =VLOOKUP(Berechnung!$P$6,MatrixLuft!$A$640:$I$690,5,FALSE) -> 3 | G91: =VLOOKUP(Berechnung!$P$6,MatrixLuft!$A$640:$I$690,9,FALSE) -> 11.6 | H91: =F91+(G91-F91)*$X$6 -> 8.292307692 | I91: --- | J91: --- | K91: --- | L91: --- | M91: --- | N91: ---
E103: Aktuelle Punktauswahl in der Graphik
E105: Heizleistung Luft | J105: Heizleistung Sole | O105: Inverteregeregelte Wärmepumpen Heizleistung
E106: Vertikal | G106: Horizontal | J106: Vertikal | L106: Horizontal | O106: Vertikal | Q106: Horizontal | S106: Angezeigte Zusatzlinien | T106: 35 | U106: °C Vorlauftemperatur
E107: Temp | F107: Leistung | G107: Temp | H107: Leistung | J107: Temp | K107: Leistung | L107: Temp | M107: Leistung | O107: Temp | P107: Leistung | Q107: Temp | R107: Leistung | S107: Angezeigte Zusatzlinien | T107: 55 | U107: °C Vorlauftemperatur
E108: =IF(ISERROR(K108)=TRUE,#N/A,-20) -> -20 | F108: =F127 -> 4.1 | G108: =E109 -> -20 | H108: 0 | J108: =IF(ISERROR(K108)=TRUE,#N/A,-5) -> -5 | K108: =F127 -> 4.1 | L108: =IF(ISERROR(K108)=TRUE,#N/A,Berechnung!P6) -> -20 | M108: 0 | O108: =IF(ISERROR(P108)=TRUE,#N/A,-20) -> -20 | P108: =VLOOKUP(G5,E89:H101,4,FALSE) -> 4.1 | Q108: =E109 -> -20 | R108: =VLOOKUP(G5,E89:H101,2,FALSE) -> 1.7
E109: =IF(ISERROR(F108)=TRUE,#N/A,Berechnung!P6) -> -20 | F109: =F127 -> 4.1 | G109: =E109 -> -20 | H109: =F127 -> 4.1 | J109: =IF(ISERROR(K108)=TRUE,#N/A,Berechnung!P6) -> -20 | K109: =F127 -> 4.1 | L109: =IF(ISERROR(K108)=TRUE,#N/A,Berechnung!P6) -> -20 | M109: =F127 -> 4.1 | O109: =IF(ISERROR(P108)=TRUE,#N/A,Berechnung!P6) -> -20 | P109: =P108 -> 4.1 | Q109: =E109 -> -20 | R109: =VLOOKUP(G5,E89:H101,3,FALSE) -> 5.6
E112: COP Luft | J112: COP Sole
E113: Vertikal | G113: Horizontal | J113: Vertikal | L113: Horizontal | O113: Vertikal | Q113: Horizontal
E114: Temp | F114: COP | G114: Temp | H114: Cop | J114: Temp | K114: Leistung | L114: Temp | M114: Leistung | O114: Temp | P114: Leistung | Q114: Temp | R114: Leistung
E115: =IF(ISERROR(K108)=TRUE,#N/A,-20) -> -20 | F115: =F128 -> 2.193076923 | G115: =E116 -> -20 | H115: 0 | J115: =IF(ISERROR(K108)=TRUE,#N/A,-5) -> -5 | K115: =F128 -> 2.193076923 | L115: =IF(ISERROR(K108)=TRUE,#N/A,Berechnung!P6) -> -20 | M115: 0 | O115: =IF(ISERROR(P108)=TRUE,#N/A,-20) -> -20 | P115: =VLOOKUP(G5,E89:N102,7,FALSE) -> 2.193076923 | Q115: =E116 -> -20 | R115: 0
E116: =E109 -> -20 | F116: =F128 -> 2.193076923 | G116: =E116 -> -20 | H116: =F128 -> 2.193076923 | J116: =IF(ISERROR(K108)=TRUE,#N/A,Berechnung!P6) -> -20 | K116: =F128 -> 2.193076923 | L116: =IF(ISERROR(K108)=TRUE,#N/A,Berechnung!P6) -> -20 | M116: =F128 -> 2.193076923 | O116: =IF(ISERROR(P108)=TRUE,#N/A,Berechnung!P6) -> -20 | P116: =P115 -> 2.193076923 | Q116: =E116 -> -20 | R116: =VLOOKUP(G5,E89:N101,6,FALSE) -> 2.331111111
E119: Leistungsaufnahme Luft | J119: Leistungsaufnahme Sole
E120: Vertikal | G120: Horizontal | J120: Vertikal | L120: Horizontal | O120: Vertikal | Q120: Horizontal
E121: Temp | F121: Leistungsaufnahme | G121: Temp | H121: Leistungsaufnahme | J121: Temp | K121: Leistung | L121: Temp | M121: Leistung | O121: Temp | P121: Leistung | Q121: Temp | R121: Leistung
E122: =IF(ISERROR(K108)=TRUE,#N/A,-20) -> -20 | F122: =F129 -> 1.809858639 | G122: =E123 -> -20 | H122: 0 | J122: =IF(ISERROR(K122)=TRUE,#N/A,-5) -> -5 | K122: =F129 -> 1.809858639 | L122: =IF(ISERROR(K108)=TRUE,#N/A,Berechnung!P6) -> -20 | M122: 0 | O122: =IF(ISERROR(P108)=TRUE,#N/A,-20) -> -20 | P122: =VLOOKUP(G5,E89:P102,10,FALSE) -> 1.809858639 | Q122: =E123 -> -20 | R122: =VLOOKUP(G5,E89:N98,8,FALSE) -> 0.861971831
E123: =E116 -> -20 | F123: =F129 -> 1.809858639 | G123: =E123 -> -20 | H123: =F129 -> 1.809858639 | J123: =IF(ISERROR(K108)=TRUE,#N/A,Berechnung!P6) -> -20 | K123: =F129 -> 1.809858639 | L123: =IF(ISERROR(K108)=TRUE,#N/A,Berechnung!P6) -> -20 | M123: =F129 -> 1.809858639 | O123: =IF(ISERROR(P108)=TRUE,#N/A,Berechnung!P6) -> -20 | P123: =P122 -> 1.809858639 | Q123: =E123 -> -20 | R123: =VLOOKUP(G5,E89:P102,9,FALSE) -> 2.402287893
E126: Ausgabe Ergebnisse | H126: Kühlen
E127: Heizleistung | F127: =IF(F142=TRUE,H127,IF(LEFT(L6,1)="i",VLOOKUP(Berechnung!G5,E89:H99,4,FALSE),IF(E6=E9,VLOOKUP(Berechnung!P6,DatenDiagramme!A6:D56,4,FALSE),VLOOKUP(Berechnung!P6,DatenDiagramme!F6:I31,4,FALSE)))) -> 4.1 | H127: =INDEX(MatrixKühlleistungLuft!B5:G23,Berechnung!P6-6,Berechnung!N6-29) -> 
E128: Cop | F128: =IF(F142=TRUE,H128,IF(LEFT(L6,1)="i",VLOOKUP(Berechnung!G5,E89:K98,7,FALSE),IF(E6=E9,VLOOKUP(Berechnung!P6,DatenDiagramme!A63:D113,4,FALSE),VLOOKUP(Berechnung!P6,DatenDiagramme!F63:I88,4,FALSE)))) -> 2.193076923 | H128: =INDEX(MatrixKühlleistungLuft!R5:W23,Berechnung!P6-6,Berechnung!N6-29) -> 
E129: Leistungsaufnahme | F129: =IF(F142=TRUE,H129,IF(LEFT(L6,1)="i",VLOOKUP(Berechnung!G5,E89:P99,10,FALSE),IF(E6=E9,VLOOKUP(Berechnung!P6,DatenDiagramme!A120:D170,4,FALSE),VLOOKUP(Berechnung!P6,DatenDiagramme!F120:I145,4,FALSE)))) -> 1.809858639 | H129: =INDEX(MatrixKühlleistungLuft!J5:O23,Berechnung!P6-6,Berechnung!N6-29) -> 
E131: e-mail | F131: =Translation!A27 -> This is important to say:
E133: Info Button | F133: =Translation!A32 -> The values for heating performance, COP and power consumption are gathered from the assembly instructions of the respective heat pumps.
F135: =Translation!A34 -> Information database
E138: Buttons | F138: =" | "&Translation!A13 -> | Printout results
F139: =Translation!A14 -> Notes ?
E142: Anzeigen Kühlen? | F142: FALSE
E143: Anzeige Diagramm | F143: 3 | G143: *1=Heizleistung | 2=Leisutngszahl | 3=Leistungsaufnahem
E147: y,Achse | F147: =IF(AND(Y6=Y9,F143=1),Translation!$A$28,IF(AND(Y6=Y9,F143=2),Translation!$A$30,IF(AND(Y6=Y9,F143=3),Translation!$A$31,IF(AND(Y6=Y10,F143=1),Translation!$A$50,IF(AND(Y6=Y10,F143=2),Translation!$A$52,IF(AND(Y6=Y10,F143=3),Translation!$A$53)))))) -> Power consumption [kW]
E148: x-Achse | F148: =IF(Berechnung!Y6=Berechnung!Y9,Translation!A29,Translation!A51) -> Source temperature [°C]
E150: Fehlende Daten 1 | F150: =Translation!A58 -> Unfortunately, currently there is no data for this machine.
E151: Fehlende Daten 2 | F151: =Translation!A59 -> Please contact the product management of Stiebel Eltron.

Sheet MatrixLuft (hidden)
A1: Luft-Wasser-Wärmepumpen | D1: Wärmeleistung | AQ1: Luft-Wasser-Wärmepumpen | AS1: COP
A2: =F2 -> WPL 5 N Plus | B2: Index | C2: Temp gewählt | F2: WPL 5 N Plus | AQ2: =AU2 -> WPL 5 N Plus | AU2: WPL 5 N Plus
A3: Außentemp | C3: =Berechnung!$N$6 -> 35 | D3: =Berechnung!$T$106 -> 35 | E3: =Berechnung!$T$107 -> 55 | F3: 30 | G3: 31 | H3: 32 | I3: 33 | J3: 34 | K3: 35 | L3: 36 | M3: 37 | N3: 38 | O3: 39 | P3: 40 | Q3: 41 | R3: 42 | S3: 43 | T3: 44 | U3: 45 | V3: 46 | W3: 47 | X3: 48 | Y3: 49 | Z3: 50 | AA3: 51 | AB3: 52 | AC3: 53 | AD3: 54 | AE3: 55 | AF3: 56 | AG3: 57 | AH3: 58 | AI3: 59 | AJ3: 60 | AK3: 61 | AL3: 62 | AM3: 63 | AN3: 64 | AO3: 65 | AQ3: Außentemp | AR3: =Berechnung!N6 -> 35 | AS3: =Berechnung!T106 -> 35 | AT3: =Berechnung!T107 -> 55 | AU3: 30 | AV3: 31 | AW3: 32 | AX3: 33 | AY3: 34 | AZ3: 35 | BA3: 36 | BB3: 37 | BC3: 38 | BD3: 39 | BE3: 40 | BF3: 41 | BG3: 42 | BH3: 43 | BI3: 44 | BJ3: 45 | BK3: 46 | BL3: 47 | BM3: 48 | BN3: 49 | BO3: 50 | BP3: 51 | BQ3: 52 | BR3: 53 | BS3: 54 | BT3: 55 | BU3: 56 | BV3: 57 | BW3: 58 | BX3: 59 | BY3: 60 | BZ3: 61 | CA3: 62 | CB3: 63 | CC3: 64 | CD3: 65
A4: -20 | B4: =VLOOKUP(F2,Berechnung!$G$9:$H$62,2,FALSE)&"01" ->  | C4: =IF(Berechnung!$E$6=Berechnung!$E$9,Berechnung!$F$7*HLOOKUP(Berechnung!$N$6,MatrixLuft!$F$3:$AO$1114,FIXED(ROW(A4)-2,0),FALSE),"0") -> 5.2569 | D4: =IF(Berechnung!$E$6=Berechnung!$E$9,Berechnung!$F$7*HLOOKUP($D$3,MatrixLuft!$F$3:$AO$1114,FIXED(ROW(A4)-2,0),FALSE),"0") -> 5.2569 | E4: =IF(Berechnung!$E$6=Berechnung!$E$9,Berechnung!$F$7*HLOOKUP($E$3,MatrixLuft!$F$3:$AO$1114,FIXED(ROW(A4)-2,0),FALSE),"0") -> 3.06313 | F4: 5.777005 | G4: =IF($F4>$K4,$F4-((ABS($F4-$K4)/5)*(COLUMN(G3)-COLUMN($F3))),$F4+((ABS($F4-$K4)/5)*(COLUMN(G3)-COLUMN($F3)))) -> 5.672984 | H4: 5.568963 | I4: 5.464942 | J4: 5.360921 | K4: 5.2569 | L4: =IF($K4>$P4,$K4-((ABS($K4-$P4)/5)*(COLUMN(L3)-COLUMN($K3))),$K4+((ABS($K4-$P4)/5)*(COLUMN(L3)-COLUMN($K3)))) -> 5.152879 | M4: 5.048858 | N4: 4.944837 | O4: 4.840816 | P4: 4.736795 | Q4: =IF($P4>$U4,$P4-((ABS($P4-$U4)/5)*(COLUMN(Q3)-COLUMN($P3))),$P4+((ABS($P4-$U4)/5)*(COLUMN(Q3)-COLUMN($P3)))) -> 4.632774 | R4: =IF($P4>$U4,$P4-((ABS($P4-$U4)/5)*(COLUMN(R3)-COLUMN($P3))),$P4+((ABS($P4-$U4)/5)*(COLUMN(R3)-COLUMN($P3)))) -> 4.528753 | S4: =IF($P4>$U4,$P4-((ABS($P4-$U4)/5)*(COLUMN(S3)-COLUMN($P3))),$P4+((ABS($P4-$U4)/5)*(COLUMN(S3)-COLUMN($P3)))) -> 4.424732 | T4: =IF($P4>$U4,$P4-((ABS($P4-$U4)/5)*(COLUMN(T3)-COLUMN($P3))),$P4+((ABS($P4-$U4)/5)*(COLUMN(T3)-COLUMN($P3)))) -> 4.320711 | U4: 4.21669 | V4: =IF($U4>$Z4,$U4-((ABS($U4-$Z4)/5)*(COLUMN(V3)-COLUMN($U3))),$U4+((ABS($U4-$Z4)/5)*(COLUMN(V3)-COLUMN($U3)))) -> 4.101334 | W4: =IF($U4>$Z4,$U4-((ABS($U4-$Z4)/5)*(COLUMN(W3)-COLUMN($U3))),$U4+((ABS($U4-$Z4)/5)*(COLUMN(W3)-COLUMN($U3)))) -> 3.985978 | X4: =IF($U4>$Z4,$U4-((ABS($U4-$Z4)/5)*(COLUMN(X3)-COLUMN($U3))),$U4+((ABS($U4-$Z4)/5)*(COLUMN(X3)-COLUMN($U3)))) -> 3.870622 | Y4: =IF($U4>$Z4,$U4-((ABS($U4-$Z4)/5)*(COLUMN(Y3)-COLUMN($U3))),$U4+((ABS($U4-$Z4)/5)*(COLUMN(Y3)-COLUMN($U3)))) -> 3.755266 | Z4: 3.63991 | AA4: =IF($Z4>$AE4,$Z4-((ABS($Z4-$AE4)/5)*(COLUMN(AA3)-COLUMN($Z3))),$Z4+((ABS($Z4-$AE4)/5)*(COLUMN(AA3)-COLUMN($Z3)))) -> 3.524554 | AB4: =IF($Z4>$AE4,$Z4-((ABS($Z4-$AE4)/5)*(COLUMN(AB3)-COLUMN($Z3))),$Z4+((ABS($Z4-$AE4)/5)*(COLUMN(AB3)-COLUMN($Z3)))) -> 3.409198 | AC4: =IF($Z4>$AE4,$Z4-((ABS($Z4-$AE4)/5)*(COLUMN(AC3)-COLUMN($Z3))),$Z4+((ABS($Z4-$AE4)/5)*(COLUMN(AC3)-COLUMN($Z3)))) -> 3.293842 | AD4: =IF($Z4>$AE4,$Z4-((ABS($Z4-$AE4)/5)*(COLUMN(AD3)-COLUMN($Z3))),$Z4+((ABS($Z4-$AE4)/5)*(COLUMN(AD3)-COLUMN($Z3)))) -> 3.178486 | AE4: 3.06313 | AQ4: -20 | AR4: =IF(Berechnung!$E$6=Berechnung!$E$9,HLOOKUP(Berechnung!$N$6,MatrixLuft!$AU$3:$CD$1114,FIXED(ROW(AQ4)-2,0),FALSE),"0") -> 0 | AS4: =IF(Berechnung!$E$6=Berechnung!$E$9,HLOOKUP($D$3,MatrixLuft!$AU$3:$CD$1114,FIXED(ROW(AQ4)-2,0),FALSE),"0") -> 0 | AT4: =IF(Berechnung!$E$6=Berechnung!$E$9,HLOOKUP($E$3,MatrixLuft!$AU$3:$CD$1114,FIXED(ROW(AQ4)-2,0),FALSE),"0") -> 0
A5: -19 | B5: =VLOOKUP(F2,Berechnung!$G$9:$H$62,2,FALSE)&"02" ->  | C5: =IF(Berechnung!$E$6=Berechnung!$E$9,Berechnung!$F$7*HLOOKUP(Berechnung!$N$6,MatrixLuft!$F$3:$AO$1114,FIXED(ROW(A5)-2,0),FALSE),"0") -> 5.21152 | D5: =IF(Berechnung!$E$6=Berechnung!$E$9,Berechnung!$F$7*HLOOKUP($D$3,MatrixLuft!$F$3:$AO$1114,FIXED(ROW(A5)-2,0),FALSE),"0") -> 5.21152 | E5: =IF(Berechnung!$E$6=Berechnung!$E$9,Berechnung!$F$7*HLOOKUP($E$3,MatrixLuft!$F$3:$AO$1114,FIXED(ROW(A5)-2,0),FALSE),"0") -> 3.128504 | F5: =IF($F$4>$F$9,$F$4+(ABS($F$9-$F$4))/5*($A$4-A5),$F$4-(ABS($F$9-$F$4))/5*($A$4-A5)) -> 5.715604 | G5: 5.6147872 | H5: 5.5139704 | I5: 5.4131536 | J5: 5.3123368 | K5: =IF(K$4>K$9,K$4+(ABS(K$9-K$4))/5*(A$4-A5),K$4-(ABS(K$9-K$4))/5*(A$4-A5)) -> 5.21152 | L5: 5.1107032 | M5: 5.0098864 | N5: 4.9090696 | O5: 4.8082528 | P5: =IF(P$4>P$9,P$4+(ABS(P$9-P$4))/5*(ROW(A$4)-ROW(A5)),P$4-(ABS(P$9-P$4))/5*(ROW(A$4)-ROW(A5))) -> 4.707436 | Q5: =IF($P5>$U5,$P5-((ABS($P5-$U5)/5)*(COLUMN(Q4)-COLUMN($P4))),$P5+((ABS($P5-$U5)/5)*(COLUMN(Q4)-COLUMN($P4)))) -> 4.6066192 | R5: =IF($P5>$U5,$P5-((ABS($P5-$U5)/5)*(COLUMN(R4)-COLUMN($P4))),$P5+((ABS($P5-$U5)/5)*(COLUMN(R4)-COLUMN($P4)))) -> 4.5058024 | S5: =IF($P5>$U5,$P5-((ABS($P5-$U5)/5)*(COLUMN(S4)-COLUMN($P4))),$P5+((ABS($P5-$U5)/5)*(COLUMN(S4)-COLUMN($P4)))) -> 4.4049856 | T5: =IF($P5>$U5,$P5-((ABS($P5-$U5)/5)*(COLUMN(T4)-COLUMN($P4))),$P5+((ABS($P5-$U5)/5)*(COLUMN(T4)-COLUMN($P4)))) -> 4.3041688 | U5: =IF(U$4>U$9,U$4+(ABS(U$9-U$4))/5*(ROW(J$4)-ROW(J5)),U$4-(ABS(U$9-U$4))/5*(ROW(J$4)-ROW(J5))) -> 4.203352 | V5: =IF($U5>$Z5,$U5-((ABS($U5-$Z5)/5)*(COLUMN(V4)-COLUMN($U4))),$U5+((ABS($U5-$Z5)/5)*(COLUMN(V4)-COLUMN($U4)))) -> 4.0958672 | W5: =IF($U5>$Z5,$U5-((ABS($U5-$Z5)/5)*(COLUMN(W4)-COLUMN($U4))),$U5+((ABS($U5-$Z5)/5)*(COLUMN(W4)-COLUMN($U4)))) -> 3.9883824 | X5: =IF($U5>$Z5,$U5-((ABS($U5-$Z5)/5)*(COLUMN(X4)-COLUMN($U4))),$U5+((ABS($U5-$Z5)/5)*(COLUMN(X4)-COLUMN($U4)))) -> 3.8808976 | Y5: =IF($U5>$Z5,$U5-((ABS($U5-$Z5)/5)*(COLUMN(Y4)-COLUMN($U4))),$U5+((ABS($U5-$Z5)/5)*(COLUMN(Y4)-COLUMN($U4)))) -> 3.7734128 | Z5: =IF(Z$4>Z$9,Z$4+(ABS(Z$9-Z$4))/5*(ROW(O$4)-ROW(O5)),Z$4-(ABS(Z$9-Z$4))/5*(ROW(O$4)-ROW(O5))) -> 3.665928 | AA5: =IF($Z5>$AE5,$Z5-((ABS($Z5-$AE5)/5)*(COLUMN(AA4)-COLUMN($Z4))),$Z5+((ABS($Z5-$AE5)/5)*(COLUMN(AA4)-COLUMN($Z4)))) -> 3.5584432 | AB5: =IF($Z5>$AE5,$Z5-((ABS($Z5-$AE5)/5)*(COLUMN(AB4)-COLUMN($Z4))),$Z5+((ABS($Z5-$AE5)/5)*(COLUMN(AB4)-COLUMN($Z4)))) -> 3.4509584 | AC5: =IF($Z5>$AE5,$Z5-((ABS($Z5-$AE5)/5)*(COLUMN(AC4)-COLUMN($Z4))),$Z5+((ABS($Z5-$AE5)/5)*(COLUMN(AC4)-COLUMN($Z4)))) -> 3.3434736 | AD5: =IF($Z5>$AE5,$Z5-((ABS($Z5-$AE5)/5)*(COLUMN(AD4)-COLUMN($Z4))),$Z5+((ABS($Z5-$AE5)/5)*(COLUMN(AD4)-COLUMN($Z4)))) -> 3.2359888 | AE5: =IF(AE$4>AE$9,AE$4+(ABS(AE$9-AE$4))/5*(ROW(T$4)-ROW(T5)),AE$4-(ABS(AE$9-AE$4))/5*(ROW(T$4)-ROW(T5))) -> 3.128504 | AQ5: -19 | AR5: =IF(Berechnung!$E$6=Berechnung!$E$9,HLOOKUP(Berechnung!$N$6,MatrixLuft!$AU$3:$CD$1114,FIXED(ROW(AQ5)-2,0),FALSE),"0") -> 0 | AS5: =IF(Berechnung!$E$6=Berechnung!$E$9,HLOOKUP($D$3,MatrixLuft!$AU$3:$CD$1114,FIXED(ROW(AQ5)-2,0),FALSE),"0") -> 0 | AT5: =IF(Berechnung!$E$6=Berechnung!$E$9,HLOOKUP($E$3,MatrixLuft!$AU$3:$CD$1114,FIXED(ROW(AQ5)-2,0),FALSE),"0") -> 0
A6: -18 | B6: =VLOOKUP(F2,Berechnung!$G$9:$H$62,2,FALSE)&"03" ->  | C6: =IF(Berechnung!$E$6=Berechnung!$E$9,Berechnung!$F$7*HLOOKUP(Berechnung!$N$6,MatrixLuft!$F$3:$AO$1114,FIXED(ROW(A6)-2,0),FALSE),"0") -> 5.16614 | D6: =IF(Berechnung!$E$6=Berechnung!$E$9,Berechnung!$F$7*HLOOKUP($D$3,MatrixLuft!$F$3:$AO$1114,FIXED(ROW(A6)-2,0),FALSE),"0") -> 5.16614 | E6: =IF(Berechnung!$E$6=Berechnung!$E$9,Berechnung!$F$7*HLOOKUP($E$3,MatrixLuft!$F$3:$AO$1114,FIXED(ROW(A6)-2,0),FALSE),"0") -> 3.193878 | F6: =IF($F$4>$F$9,$F$4+(ABS($F$9-$F$4))/5*($A$4-A6),$F$4-(ABS($F$9-$F$4))/5*($A$4-A6)) -> 5.654203 | G6: =IF($F6>$K6,$F6-((ABS($F6-$K6)/5)*(COLUMN(G5)-COLUMN($F5))),$F6+((ABS($F6-$K6)/5)*(COLUMN(G5)-COLUMN($F5)))) -> 5.5565904 | H6: =IF($F6>$K6,$F6-((ABS($F6-$K6)/5)*(COLUMN(H5)-COLUMN($F5))),$F6+((ABS($F6-$K6)/5)*(COLUMN(H5)-COLUMN($F5)))) -> 5.4589778 | I6: =IF($F6>$K6,$F6-((ABS($F6-$K6)/5)*(COLUMN(I5)-COLUMN($F5))),$F6+((ABS($F6-$K6)/5)*(COLUMN(I5)-COLUMN($F5)))) -> 5.3613652 | J6: =IF($F6>$K6,$F6-((ABS($F6-$K6)/5)*(COLUMN(J5)-COLUMN($F5))),$F6+((ABS($F6-$K6)/5)*(COLUMN(J5)-COLUMN($F5)))) -> 5.2637526 | K6: =IF($K$4>$K$9,$K$4+(ABS($K$9-$K$4))/5*($A$4-$A6),$K$4-(ABS($K$9-$K$4))/5*($A$4-$A6)) -> 5.16614 | L6: =IF($K6>$P6,$K6-((ABS($K6-$P6)/5)*(COLUMN(L5)-COLUMN($K5))),$K6+((ABS($K6-$P6)/5)*(COLUMN(L5)-COLUMN($K5)))) -> 5.0685274 | M6: =IF($K6>$P6,$K6-((ABS($K6-$P6)/5)*(COLUMN(M5)-COLUMN($K5))),$K6+((ABS($K6-$P6)/5)*(COLUMN(M5)-COLUMN($K5)))) -> 4.9709148 | N6: =IF($K6>$P6,$K6-((ABS($K6-$P6)/5)*(COLUMN(N5)-COLUMN($K5))),$K6+((ABS($K6-$P6)/5)*(COLUMN(N5)-COLUMN($K5)))) -> 4.8733022 | O6: =IF($K6>$P6,$K6-((ABS($K6-$P6)/5)*(COLUMN(O5)-COLUMN($K5))),$K6+((ABS($K6-$P6)/5)*(COLUMN(O5)-COLUMN($K5)))) -> 4.7756896 | P6: =IF(P$4>P$9,P$4+(ABS(P$9-P$4))/5*(ROW(A$4)-ROW(A6)),P$4-(ABS(P$9-P$4))/5*(ROW(A$4)-ROW(A6))) -> 4.678077 | Q6: 4.5804644 | R6: 4.4828518 | S6: 4.3852392 | T6: 4.2876266 | U6: =IF(U$4>U$9,U$4+(ABS(U$9-U$4))/5*(ROW(J$4)-ROW(J6)),U$4-(ABS(U$9-U$4))/5*(ROW(J$4)-ROW(J6))) -> 4.190014 | V6: 4.0904004 | W6: 3.9907868 | X6: 3.8911732 | Y6: 3.7915596 | Z6: =IF(Z$4>Z$9,Z$4+(ABS(Z$9-Z$4))/5*(ROW(O$4)-ROW(O6)),Z$4-(ABS(Z$9-Z$4))/5*(ROW(O$4)-ROW(O6))) -> 3.691946 | AA6: 3.5923324 | AB6: 3.4927188 | AC6: 3.3931052 | AD6: 3.2934916 | AE6: =IF(AE$4>AE$9,AE$4+(ABS(AE$9-AE$4))/5*(ROW(T$4)-ROW(T6)),AE$4-(ABS(AE$9-AE$4))/5*(ROW(T$4)-ROW(T6))) -> 3.193878 | AQ6: -18 | AR6: =IF(Berechnung!$E$6=Berechnung!$E$9,HLOOKUP(Berechnung!$N$6,MatrixLuft!$AU$3:$CD$1114,FIXED(ROW(AQ6)-2,0),FALSE),"0") -> 0 | AS6: =IF(Berechnung!$E$6=Berechnung!$E$9,HLOOKUP($D$3,MatrixLuft!$AU$3:$CD$1114,FIXED(ROW(AQ6)-2,0),FALSE),"0") -> 0 | AT6: =IF(Berechnung!$E$6=Berechnung!$E$9,HLOOKUP($E$3,MatrixLuft!$AU$3:$CD$1114,FIXED(ROW(AQ6)-2,0),FALSE),"0") -> 0
A7: -17 | B7: =VLOOKUP(F2,Berechnung!$G$9:$H$62,2,FALSE)&"04" ->  | C7: =IF(Berechnung!$E$6=Berechnung!$E$9,Berechnung!$F$7*HLOOKUP(Berechnung!$N$6,MatrixLuft!$F$3:$AO$1114,FIXED(ROW(A7)-2,0),FALSE),"0") -> 5.12076 | D7: =IF(Berechnung!$E$6=Berechnung!$E$9,Berechnung!$F$7*HLOOKUP($D$3,MatrixLuft!$F$3:$AO$1114,FIXED(ROW(A7)-2,0),FALSE),"0") -> 5.12076 | E7: =IF(Berechnung!$E$6=Berechnung!$E$9,Berechnung!$F$7*HLOOKUP($E$3,MatrixLuft!$F$3:$AO$1114,FIXED(ROW(A7)-2,0),FALSE),"0") -> 3.259252 | F7: =IF($F$4>$F$9,$F$4+(ABS($F$9-$F$4))/5*($A$4-A7),$F$4-(ABS($F$9-$F$4))/5*($A$4-A7)) -> 5.592802 | G7: 5.4983936 | H7: 5.4039852 | I7: 5.3095768 | J7: 5.2151684 | K7: =IF($K$4>$K$9,$K$4+(ABS($K$9-$K$4))/5*($A$4-$A7),$K$4-(ABS($K$9-$K$4))/5*($A$4-$A7)) -> 5.12076 | L7: 5.0263516 | M7: 4.9319432 | N7: 4.8375348 | O7: 4.7431264 | P7: =IF(P$4>P$9,P$4+(ABS(P$9-P$4))/5*(ROW(A$4)-ROW(A7)),P$4-(ABS(P$9-P$4))/5*(ROW(A$4)-ROW(A7))) -> 4.648718 | Q7: 4.5543096 | R7: 4.4599012 | S7: 4.3654928 | T7: 4.2710844 | U7: =IF(U$4>U$9,U$4+(ABS(U$9-U$4))/5*(ROW(J$4)-ROW(J7)),U$4-(ABS(U$9-U$4))/5*(ROW(J$4)-ROW(J7))) -> 4.176676 | V7: 4.0849336 | W7: 3.9931912 | X7: 3.9014488 | Y7: 3.8097064 | Z7: =IF(Z$4>Z$9,Z$4+(ABS(Z$9-Z$4))/5*(ROW(O$4)-ROW(O7)),Z$4-(ABS(Z$9-Z$4))/5*(ROW(O$4)-ROW(O7))) -> 3.717964 | AA7: 3.6262216 | AB7: 3.5344792 | AC7: 3.4427368 | AD7: 3.3509944 | AE7: =IF(AE$4>AE$9,AE$4+(ABS(AE$9-AE$4))/5*(ROW(T$4)-ROW(T7)),AE$4-(ABS(AE$9-AE$4))/5*(ROW(T$4)-ROW(T7))) -> 3.259252 | AQ7: -17 | AR7: =IF(Berechnung!$E$6=Berechnung!$E$9,HLOOKUP(Berechnung!$N$6,MatrixLuft!$AU$3:$CD$1114,FIXED(ROW(AQ7)-2,0),FALSE),"0") -> 0 | AS7: =IF(Berechnung!$E$6=Berechnung!$E$9,HLOOKUP($D$3,MatrixLuft!$AU$3:$CD$1114,FIXED(ROW(AQ7)-2,0),FALSE),"0") -> 0 | AT7: =IF(Berechnung!$E$6=Berechnung!$E$9,HLOOKUP($E$3,MatrixLuft!$AU$3:$CD$1114,FIXED(ROW(AQ7)-2,0),FALSE),"0") -> 0
A8: -16 | B8: =VLOOKUP(F2,Berechnung!$G$9:$H$62,2,FALSE)&"05" ->  | C8: =IF(Berechnung!$E$6=Berechnung!$E$9,Berechnung!$F$7*HLOOKUP(Berechnung!$N$6,MatrixLuft!$F$3:$AO$1114,FIXED(ROW(A8)-2,0),FALSE),"0") -> 5.07538 | D8: =IF(Berechnung!$E$6=Berechnung!$E$9,Berechnung!$F$7*HLOOKUP($D$3,MatrixLuft!$F$3:$AO$1114,FIXED(ROW(A8)-2,0),FALSE),"0") -> 5.07538 | E8: =IF(Berechnung!$E$6=Berechnung!$E$9,Berechnung!$F$7*HLOOKUP($E$3,MatrixLuft!$F$3:$AO$1114,FIXED(ROW(A8)-2,0),FALSE),"0") -> 3.324626 | F8: =IF($F$4>$F$9,$F$4+(ABS($F$9-$F$4))/5*($A$4-A8),$F$4-(ABS($F$9-$F$4))/5*($A$4-A8)) -> 5.531401 | G8: 5.4401968 | H8: 5.3489926 | I8: 5.2577884 | J8: 5.1665842 | K8: =IF($K$4>$K$9,$K$4+(ABS($K$9-$K$4))/5*($A$4-$A8),$K$4-(ABS($K$9-$K$4))/5*($A$4-$A8)) -> 5.07538 | L8: 4.9841758 | M8: 4.8929716 | N8: 4.8017674 | O8: 4.7105632 | P8: =IF(P$4>P$9,P$4+(ABS(P$9-P$4))/5*(ROW(A$4)-ROW(A8)),P$4-(ABS(P$9-P$4))/5*(ROW(A$4)-ROW(A8))) -> 4.619359 | Q8: 4.5281548 | R8: 4.4369506 | S8: 4.3457464 | T8: 4.2545422 | U8: =IF(U$4>U$9,U$4+(ABS(U$9-U$4))/5*(ROW(J$4)-ROW(J8)),U$4-(ABS(U$9-U$4))/5*(ROW(J$4)-ROW(J8))) -> 4.163338 | V8: 4.0794668 | W8: 3.9955956 | X8: 3.9117244 | Y8: 3.8278532 | Z8: =IF(Z$4>Z$9,Z$4+(ABS(Z$9-Z$4))/5*(ROW(O$4)-ROW(O8)),Z$4-(ABS(Z$9-Z$4))/5*(ROW(O$4)-ROW(O8))) -> 3.743982 | AA8: 3.6601108 | AB8: 3.5762396 | AC8: 3.4923684 | AD8: 3.4084972 | AE8: =IF(AE$4>AE$9,AE$4+(ABS(AE$9-AE$4))/5*(ROW(T$4)-ROW(T8)),AE$4-(ABS(AE$9-AE$4))/5*(ROW(T$4)-ROW(T8))) -> 3.324626 | AQ8: -16 | AR8: =IF(Berechnung!$E$6=Berechnung!$E$9,HLOOKUP(Berechnung!$N$6,MatrixLuft!$AU$3:$CD$1114,FIXED(ROW(AQ8)-2,0),FALSE),"0") -> 0 | AS8: =IF(Berechnung!$E$6=Berechnung!$E$9,HLOOKUP($D$3,MatrixLuft!$AU$3:$CD$1114,FIXED(ROW(AQ8)-2,0),FALSE),"0") -> 0 | AT8: =IF(Berechnung!$E$6=Berechnung!$E$9,HLOOKUP($E$3,MatrixLuft!$AU$3:$CD$1114,FIXED(ROW(AQ8)-2,0),FALSE),"0") -> 0
A9: -15 | B9: =VLOOKUP(F2,Berechnung!$G$9:$H$62,2,FALSE)&"06" ->  | C9: =IF(Berechnung!$E$6=Berechnung!$E$9,Berechnung!$F$7*HLOOKUP(Berechnung!$N$6,MatrixLuft!$F$3:$AO$1114,FIXED(ROW(A9)-2,0),FALSE),"0") -> 5.03 | D9: =IF(Berechnung!$E$6=Berechnung!$E$9,Berechnung!$F$7*HLOOKUP($D$3,MatrixLuft!$F$3:$AO$1114,FIXED(ROW(A9)-2,0),FALSE),"0") -> 5.03 | E9: =IF(Berechnung!$E$6=Berechnung!$E$9,Berechnung!$F$7*HLOOKUP($E$3,MatrixLuft!$F$3:$AO$1114,FIXED(ROW(A9)-2,0),FALSE),"0") -> 3.39 | F9: 5.47 | G9: 5.382 | H9: 5.294 | I9: 5.206 | J9: 5.118 | K9: 5.03 | L9: 4.942 | M9: 4.854 | N9: 4.766 | O9: 4.678 | P9: 4.59 | Q9: 4.502 | R9: 4.414 | S9: 4.326 | T9: 4.238 | U9: 4.15 | V9: 4.074 | W9: 3.998 | X9: 3.922 | Y9: 3.846 | Z9: 3.77 | AA9: 3.694 | AB9: 3.618 | AC9: 3.542 | AD9: 3.466 | AE9: 3.39 | AQ9: -15 | AR9: =IF(Berechnung!$E$6=Berechnung!$E$9,HLOOKUP(Berechnung!$N$6,MatrixLuft!$AU$3:$CD$1114,FIXED(ROW(AQ9)-2,0),FALSE),"0") -> 0 | AS9: =IF(Berechnung!$E$6=Berechnung!$E$9,HLOOKUP($D$3,MatrixLuft!$AU$3:$CD$1114,FIXED(ROW(AQ9)-2,0),FALSE),"0") -> 0 | AT9: =IF(Berechnung!$E$6=Berechnung!$E$9,HLOOKUP($E$3,MatrixLuft!$AU$3:$CD$1114,FIXED(ROW(AQ9)-2,0),FALSE),"0") -> 0
A10: -14 | B10: =VLOOKUP(F2,Berechnung!$G$9:$H$62,2,FALSE)&"07" ->  | C10: =IF(Berechnung!$E$6=Berechnung!$E$9,Berechnung!$F$7*HLOOKUP(Berechnung!$N$6,MatrixLuft!$F$3:$AO$1114,FIXED(ROW(A10)-2,0),FALSE),"0") -> 4.9846 | D10: =IF(Berechnung!$E$6=Berechnung!$E$9,Berechnung!$F$7*HLOOKUP($D$3,MatrixLuft!$F$3:$AO$1114,FIXED(ROW(A10)-2,0),FALSE),"0") -> 4.9846 | E10: =IF(Berechnung!$E$6=Berechnung!$E$9,Berechnung!$F$7*HLOOKUP($E$3,MatrixLuft!$F$3:$AO$1114,FIXED(ROW(A10)-2,0),FALSE),"0") -> 3.45534 | F10: =IF($F$9>$F$14,$F$9+(ABS($F$14-$F$9))/5*($A$9-$A10),$F$9-(ABS($F$14-$F$9))/5*($A$9-$A10)) -> 5.40857 | G10: 5.323776 | H10: 5.238982 | I10: 5.154188 | J10: 5.069394 | K10: =IF($K$9>$K$14,$K$9+(ABS($K$14-$K$9))/5*($A$9-A10),$K$9-(ABS($K$14-$K$9))/5*($A$9-A10)) -> 4.9846 | L10: 4.899806 | M10: 4.815012 | N10: 4.730218 | O10: 4.645424 | P10: =IF(P$9>P$14,P$9+(ABS(P$14-P$9))/5*(ROW(A$9)-ROW(A10)),P$9-(ABS(P$14-P$9))/5*(ROW(A$9)-ROW(A10))) -> 4.56063 | Q10: 4.475836 | R10: 4.391042 | S10: 4.306248 | T10: 4.221454 | U10: =IF(U$9>U$14,U$9+(ABS(U$14-U$9))/5*(ROW(J$9)-ROW(J10)),U$9-(ABS(U$14-U$9))/5*(ROW(J$9)-ROW(J10))) -> 4.13666 | V10: 4.068528 | W10: 4.000396 | X10: 3.932264 | Y10: 3.864132 | Z10: =IF(Z$9>Z$14,Z$9+(ABS(Z$14-Z$9))/5*(ROW(O$9)-ROW(O10)),Z$9-(ABS(Z$14-Z$9))/5*(ROW(O$9)-ROW(O10))) -> 3.796 | AA10: 3.727868 | AB10: 3.659736 | AC10: 3.591604 | AD10: 3.523472 | AE10: =IF(AE$9>AE$14,AE$9+(ABS(AE$14-AE$9))/5*(ROW(T$9)-ROW(T10)),AE$9-(ABS(AE$14-AE$9))/5*(ROW(T$9)-ROW(T10))) -> 3.45534 | AQ10: -14 | AR10: =IF(Berechnung!$E$6=Berechnung!$E$9,HLOOKUP(Berechnung!$N$6,MatrixLuft!$AU$3:$CD$1114,FIXED(ROW(AQ10)-2,0),FALSE),"0") -> 0 | AS10: =IF(Berechnung!$E$6=Berechnung!$E$9,HLOOKUP($D$3,MatrixLuft!$AU$3:$CD$1114,FIXED(ROW(AQ10)-2,0),FALSE),"0") -> 0 | AT10: =IF(Berechnung!$E$6=Berechnung!$E$9,HLOOKUP($E$3,MatrixLuft!$AU$3:$CD$1114,FIXED(ROW(AQ10)-2,0),FALSE),"0") -> 0
A11: -13 | B11: =VLOOKUP(F2,Berechnung!$G$9:$H$62,2,FALSE)&"08" ->  | C11: =IF(Berechnung!$E$6=Berechnung!$E$9,Berechnung!$F$7*HLOOKUP(Berechnung!$N$6,MatrixLuft!$F$3:$AO$1114,FIXED(ROW(A11)-2,0),FALSE),"0") -> 4.9392 | D11: =IF(Berechnung!$E$6=Berechnung!$E$9,Berechnung!$F$7*HLOOKUP($D$3,MatrixLuft!$F$3:$AO$1114,FIXED(ROW(A11)-2,0),FALSE),"0") -> 4.9392 | E11: =IF(Berechnung!$E$6=Berechnung!$E$9,Berechnung!$F$7*HLOOKUP($E$3,MatrixLuft!$F$3:$AO$1114,FIXED(ROW(A11)-2,0),FALSE),"0") -> 3.52068 | F11: =IF($F$9>$F$14,$F$9+(ABS($F$14-$F$9))/5*($A$9-A11),$F$9-(ABS($F$14-$F$9))/5*($A$9-A11)) -> 5.34714 | G11: 5.265552 | H11: 5.183964 | I11: 5.102376 | J11: 5.020788 | K11: =IF($K$9>$K$14,$K$9+(ABS($K$14-$K$9))/5*($A$9-A11),$K$9-(ABS($K$14-$K$9))/5*($A$9-A11)) -> 4.9392 | L11: 4.857612 | M11: 4.776024 | N11: 4.694436 | O11: 4.612848 | P11: =IF(P$9>P$14,P$9+(ABS(P$14-P$9))/5*(ROW(A$9)-ROW(A11)),P$9-(ABS(P$14-P$9))/5*(ROW(A$9)-ROW(A11))) -> 4.53126 | Q11: 4.449672 | R11: 4.368084 | S11: 4.286496 | T11: 4.204908 | U11: =IF(U$9>U$14,U$9+(ABS(U$14-U$9))/5*(ROW(J$9)-ROW(J11)),U$9-(ABS(U$14-U$9))/5*(ROW(J$9)-ROW(J11))) -> 4.12332 | V11: 4.063056 | W11: 4.002792 | X11: 3.942528 | Y11: 3.882264 | Z11: =IF(Z$9>Z$14,Z$9+(ABS(Z$14-Z$9))/5*(ROW(O$9)-ROW(O11)),Z$9-(ABS(Z$14-Z$9))/5*(ROW(O$9)-ROW(O11))) -> 3.822 | AA11: 3.761736 | AB11: 3.701472 | AC11: 3.641208 | AD11: 3.580944 | AE11: =IF(AE$9>AE$14,AE$9+(ABS(AE$14-AE$9))/5*(ROW(T$9)-ROW(T11)),AE$9-(ABS(AE$14-AE$9))/5*(ROW(T$9)-ROW(T11))) -> 3.52068 | AQ11: -13 | AR11: =IF(Berechnung!$E$6=Berechnung!$E$9,HLOOKUP(Berechnung!$N$6,MatrixLuft!$AU$3:$CD$1114,FIXED(ROW(AQ11)-2,0),FALSE),"0") -> 0 | AS11: =IF(Berechnung!$E$6=Berechnung!$E$9,HLOOKUP($D$3,MatrixLuft!$AU$3:$CD$1114,FIXED(ROW(AQ11)-2,0),FALSE),"0") -> 0 | AT11: =IF(Berechnung!$E$6=Berechnung!$E$9,HLOOKUP($E$3,MatrixLuft!$AU$3:$CD$1114,FIXED(ROW(AQ11)-2,0),FALSE),"0") -> 0
A12: -12 | B12: =VLOOKUP(F2,Berechnung!$G$9:$H$62,2,FALSE)&"09" ->  | C12: =IF(Berechnung!$E$6=Berechnung!$E$9,Berechnung!$F$7*HLOOKUP(Berechnung!$N$6,MatrixLuft!$F$3:$AO$1114,FIXED(ROW(A12)-2,0),FALSE),"0") -> 4.8938 | D12: =IF(Berechnung!$E$6=Berechnung!$E$9,Berechnung!$F$7*HLOOKUP($D$3,MatrixLuft!$F$3:$AO$1114,FIXED(ROW(A12)-2,0),FALSE),"0") -> 4.8938 | E12: =IF(Berechnung!$E$6=Berechnung!$E$9,Berechnung!$F$7*HLOOKUP($E$3,MatrixLuft!$F$3:$AO$1114,FIXED(ROW(A12)-2,0),FALSE),"0") -> 3.58602 | F12: =IF($F$9>$F$14,$F$9+(ABS($F$14-$F$9))/5*($A$9-A12),$F$9-(ABS($F$14-$F$9))/5*($A$9-A12)) -> 5.28571 | G12: 5.207328 | H12: 5.128946 | I12: 5.050564 | J12: 4.972182 | K12: =IF($K$9>$K$14,$K$9+(ABS($K$14-$K$9))/5*($A$9-A12),$K$9-(ABS($K$14-$K$9))/5*($A$9-A12)) -> 4.8938 | L12: 4.815418 | M12: 4.737036 | N12: 4.658654 | O12: 4.580272 | P12: =IF(P$9>P$14,P$9+(ABS(P$14-P$9))/5*(ROW(A$9)-ROW(A12)),P$9-(ABS(P$14-P$9))/5*(ROW(A$9)-ROW(A12))) -> 4.50189 | Q12: 4.423508 | R12: 4.345126 | S12: 4.266744 | T12: 4.188362 | U12: =IF(U$9>U$14,U$9+(ABS(U$14-U$9))/5*(ROW(J$9)-ROW(J12)),U$9-(ABS(U$14-U$9))/5*(ROW(J$9)-ROW(J12))) -> 4.10998 | V12: 4.057584 | W12: 4.005188 | X12: 3.952792 | Y12: 3.900396 | Z12: =IF(Z$9>Z$14,Z$9+(ABS(Z$14-Z$9))/5*(ROW(O$9)-ROW(O12)),Z$9-(ABS(Z$14-Z$9))/5*(ROW(O$9)-ROW(O12))) -> 3.848 | AA12: 3.795604 | AB12: 3.743208 | AC12: 3.690812 | AD12: 3.638416 | AE12: =IF(AE$9>AE$14,AE$9+(ABS(AE$14-AE$9))/5*(ROW(T$9)-ROW(T12)),AE$9-(ABS(AE$14-AE$9))/5*(ROW(T$9)-ROW(T12))) -> 3.58602 | AQ12: -12 | AR12: =IF(Berechnung!$E$6=Berechnung!$E$9,HLOOKUP(Berechnung!$N$6,MatrixLuft!$AU$3:$CD$1114,FIXED(ROW(AQ12)-2,0),FALSE),"0") -> 0 | AS12: =IF(Berechnung!$E$6=Berechnung!$E$9,HLOOKUP($D$3,MatrixLuft!$AU$3:$CD$1114,FIXED(ROW(AQ12)-2,0),FALSE),"0") -> 0 | AT12: =IF(Berechnung!$E$6=Berechnung!$E$9,HLOOKUP($E$3,MatrixLuft!$AU$3:$CD$1114,FIXED(ROW(AQ12)-2,0),FALSE),"0") -> 0
A13: -11 | B13: =VLOOKUP(F2,Berechnung!$G$9:$H$62,2,FALSE)&"10" ->  | C13: =IF(Berechnung!$E$6=Berechnung!$E$9,Berechnung!$F$7*HLOOKUP(Berechnung!$N$6,MatrixLuft!$F$3:$AO$1114,FIXED(ROW(A13)-2,0),FALSE),"0") -> 4.8484 | D13: =IF(Berechnung!$E$6=Berechnung!$E$9,Berechnung!$F$7*HLOOKUP($D$3,MatrixLuft!$F$3:$AO$1114,FIXED(ROW(A13)-2,0),FALSE),"0") -> 4.8484 | E13: =IF(Berechnung!$E$6=Berechnung!$E$9,Berechnung!$F$7*HLOOKUP($E$3,MatrixLuft!$F$3:$AO$1114,FIXED(ROW(A13)-2,0),FALSE),"0") -> 3.65136 | F13: =IF($F$9>$F$14,$F$9+(ABS($F$14-$F$9))/5*($A$9-A13),$F$9-(ABS($F$14-$F$9))/5*($A$9-A13)) -> 5.22428 | G13: 5.149104 | H13: 5.073928 | I13: 4.998752 | J13: 4.923576 | K13: =IF($K$9>$K$14,$K$9+(ABS($K$14-$K$9))/5*($A$9-A13),$K$9-(ABS($K$14-$K$9))/5*($A$9-A13)) -> 4.8484 | L13: 4.773224 | M13: 4.698048 | N13: 4.622872 | O13: 4.547696 | P13: =IF(P$9>P$14,P$9+(ABS(P$14-P$9))/5*(ROW(A$9)-ROW(A13)),P$9-(ABS(P$14-P$9))/5*(ROW(A$9)-ROW(A13))) -> 4.47252 | Q13: 4.397344 | R13: 4.322168 | S13: 4.246992 | T13: 4.171816 | U13: =IF(U$9>U$14,U$9+(ABS(U$14-U$9))/5*(ROW(J$9)-ROW(J13)),U$9-(ABS(U$14-U$9))/5*(ROW(J$9)-ROW(J13))) -> 4.09664 | V13: 4.052112 | W13: 4.007584 | X13: 3.963056 | Y13: 3.918528 | Z13: =IF(Z$9>Z$14,Z$9+(ABS(Z$14-Z$9))/5*(ROW(O$9)-ROW(O13)),Z$9-(ABS(Z$14-Z$9))/5*(ROW(O$9)-ROW(O13))) -> 3.874 | AA13: 3.829472 | AB13: 3.784944 | AC13: 3.740416 | AD13: 3.695888 | AE13: =IF(AE$9>AE$14,AE$9+(ABS(AE$14-AE$9))/5*(ROW(T$9)-ROW(T13)),AE$9-(ABS(AE$14-AE$9))/5*(ROW(T$9)-ROW(T13))) -> 3.65136 | AQ13: -11 | AR13: =IF(Berechnung!$E$6=Berechnung!$E$9,HLOOKUP(Berechnung!$N$6,MatrixLuft!$AU$3:$CD$1114,FIXED(ROW(AQ13)-2,0),FALSE),"0") -> 0 | AS13: =IF(Berechnung!$E$6=Berechnung!$E$9,HLOOKUP($D$3,MatrixLuft!$AU$3:$CD$1114,FIXED(ROW(AQ13)-2,0),FALSE),"0") -> 0 | AT13: =IF(Berechnung!$E$6=Berechnung!$E$9,HLOOKUP($E$3,MatrixLuft!$AU$3:$CD$1114,FIXED(ROW(AQ13)-2,0),FALSE),"0") -> 0
A14: -10 | B14: =VLOOKUP(F2,Berechnung!$G$9:$H$62,2,FALSE)&"11" ->  | C14: =IF(Berechnung!$E$6=Berechnung!$E$9,Berechnung!$F$7*HLOOKUP(Berechnung!$N$6,MatrixLuft!$F$3:$AO$1114,FIXED(ROW(A14)-2,0),FALSE),"0") -> 4.803 | D14: =IF(Berechnung!$E$6=Berechnung!$E$9,Berechnung!$F$7*HLOOKUP($D$3,MatrixLuft!$F$3:$AO$1114,FIXED(ROW(A14)-2,0),FALSE),"0") -> 4.803 | E14: =IF(Berechnung!$E$6=Berechnung!$E$9,Berechnung!$F$7*HLOOKUP($E$3,MatrixLuft!$F$3:$AO$1114,FIXED(ROW(A14)-2,0),FALSE),"0") -> 3.7167 | F14: 5.16285 | G14: 5.09088 | H14: 5.01891 | I14: 4.94694 | J14: 4.87497 | K14: 4.803 | L14: 4.73103 | M14: 4.65906 | N14: 4.58709 | O14: 4.51512 | P14: 4.44315 | Q14: 4.37118 | R14: 4.29921 | S14: 4.22724 | T14: 4.15527 | U14: 4.0833 | V14: 4.04664 | W14: 4.00998 | X14: 3.97332 | Y14: 3.93666 | Z14: 3.9 | AA14: 3.86334 | AB14: 3.82668 | AC14: 3.79002 | AD14: 3.75336 | AE14: 3.7167 | AQ14: -10 | AR14: =IF(Berechnung!$E$6=Berechnung!$E$9,HLOOKUP(Berechnung!$N$6,MatrixLuft!$AU$3:$CD$1114,FIXED(ROW(AQ14)-2,0),FALSE),"0") -> 0 | AS14: =IF(Berechnung!$E$6=Berechnung!$E$9,HLOOKUP($D$3,MatrixLuft!$AU$3:$CD$1114,FIXED(ROW(AQ14)-2,0),FALSE),"0") -> 0 | AT14: =IF(Berechnung!$E$6=Berechnung!$E$9,HLOOKUP($E$3,MatrixLuft!$AU$3:$CD$1114,FIXED(ROW(AQ14)-2,0),FALSE),"0") -> 0
A15: -9 | B15: =VLOOKUP(F2,Berechnung!$G$9:$H$62,2,FALSE)&"12" ->  | C15: =IF(Berechnung!$E$6=Berechnung!$E$9,Berechnung!$F$7*HLOOKUP(Berechnung!$N$6,MatrixLuft!$F$3:$AO$1114,FIXED(ROW(A15)-2,0),FALSE),"0") -> 4.7494 | D15: =IF(Berechnung!$E$6=Berechnung!$E$9,Berechnung!$F$7*HLOOKUP($D$3,MatrixLuft!$F$3:$AO$1114,FIXED(ROW(A15)-2,0),FALSE),"0") -> 4.7494 | E15: =IF(Berechnung!$E$6=Berechnung!$E$9,Berechnung!$F$7*HLOOKUP($E$3,MatrixLuft!$F$3:$AO$1114,FIXED(ROW(A15)-2,0),FALSE),"0") -> 3.72836 | F15: =IF($F$14>$F$19,$F$14+(ABS($F$19-$F$14))/5*($A$14-$A15),$F$14-(ABS($F$19-$F$14))/5*($A$14-$A15)) -> 5.09448 | G15: 5.025464 | H15: 4.956448 | I15: 4.887432 | J15: 4.818416 | K15: =IF($K$14>$K$19,$K$14+(ABS($K$19-$K$14))/5*($A$14-A15),$K$14-(ABS($K$19-$K$14))/5*($A$14-A15)) -> 4.7494 | L15: 4.680384 | M15: 4.611368 | N15: 4.542352 | O15: 4.473336 | P15: =IF(P$14>P$19,P$14+(ABS(P$19-P$14))/5*(ROW(A$14)-ROW(A15)),P$14-(ABS(P$19-P$14))/5*(ROW(A$14)-ROW(A15))) -> 4.40432 | Q15: 4.335304 | R15: 4.266288 | S15: 4.197272 | T15: 4.128256 | U15: =IF(U$14>U$19,U$14+(ABS(U$19-U$14))/5*(ROW(J$14)-ROW(J15)),U$14-(ABS(U$19-U$14))/5*(ROW(J$14)-ROW(J15))) -> 4.05924 | V15: 4.026152 | W15: 3.993064 | X15: 3.959976 | Y15: 3.926888 | Z15: =IF(Z$14>Z$19,Z$14+(ABS(Z$19-Z$14))/5*(ROW(O$14)-ROW(O15)),Z$14-(ABS(Z$19-Z$14))/5*(ROW(O$14)-ROW(O15))) -> 3.8938 | AA15: 3.860712 | AB15: 3.827624 | AC15: 3.794536 | AD15: 3.761448 | AE15: =IF(AE$14>AE$19,AE$14+(ABS(AE$19-AE$14))/5*(ROW(T$14)-ROW(T15)),AE$14-(ABS(AE$19-AE$14))/5*(ROW(T$14)-ROW(T15))) -> 3.72836 | AQ15: -9 | AR15: =IF(Berechnung!$E$6=Berechnung!$E$9,HLOOKUP(Berechnung!$N$6,MatrixLuft!$AU$3:$CD$1114,FIXED(ROW(AQ15)-2,0),FALSE),"0") -> 0 | AS15: =IF(Berechnung!$E$6=Berechnung!$E$9,HLOOKUP($D$3,MatrixLuft!$AU$3:$CD$1114,FIXED(ROW(AQ15)-2,0),FALSE),"0") -> 0 | AT15: =IF(Berechnung!$E$6=Berechnung!$E$9,HLOOKUP($E$3,MatrixLuft!$AU$3:$CD$1114,FIXED(ROW(AQ15)-2,0),FALSE),"0") -> 0
A16: -8 | B16: =VLOOKUP(F2,Berechnung!$G$9:$H$62,2,FALSE)&"13" ->  | C16: =IF(Berechnung!$E$6=Berechnung!$E$9,Berechnung!$F$7*HLOOKUP(Berechnung!$N$6,MatrixLuft!$F$3:$AO$1114,FIXED(ROW(A16)-2,0),FALSE),"0") -> 4.6958 | D16: =IF(Berechnung!$E$6=Berechnung!$E$9,Berechnung!$F$7*HLOOKUP($D$3,MatrixLuft!$F$3:$AO$1114,FIXED(ROW(A16)-2,0),FALSE),"0") -> 4.6958 | E16: =IF(Berechnung!$E$6=Berechnung!$E$9,Berechnung!$F$7*HLOOKUP($E$3,MatrixLuft!$F$3:$AO$1114,FIXED(ROW(A16)-2,0),FALSE),"0") -> 3.74002 | F16: =IF($F$14>$F$19,$F$14+(ABS($F$19-$F$14))/5*($A$14-A16),$F$14-(ABS($F$19-$F$14))/5*($A$14-A16)) -> 5.02611 | G16: 4.960048 | H16: 4.893986 | I16: 4.827924 | J16: 4.761862 | K16: =IF($K$14>$K$19,$K$14+(ABS($K$19-$K$14))/5*($A$14-A16),$K$14-(ABS($K$19-$K$14))/5*($A$14-A16)) -> 4.6958 | L16: 4.629738 | M16: 4.563676 | N16: 4.497614 | O16: 4.431552 | P16: =IF(P$14>P$19,P$14+(ABS(P$19-P$14))/5*(ROW(A$14)-ROW(A16)),P$14-(ABS(P$19-P$14))/5*(ROW(A$14)-ROW(A16))) -> 4.36549 | Q16: 4.299428 | R16: 4.233366 | S16: 4.167304 | T16: 4.101242 | U16: =IF(U$14>U$19,U$14+(ABS(U$19-U$14))/5*(ROW(J$14)-ROW(J16)),U$14-(ABS(U$19-U$14))/5*(ROW(J$14)-ROW(J16))) -> 4.03518 | V16: 4.005664 | W16: 3.976148 | X16: 3.946632 | Y16: 3.917116 | Z16: =IF(Z$14>Z$19,Z$14+(ABS(Z$19-Z$14))/5*(ROW(O$14)-ROW(O16)),Z$14-(ABS(Z$19-Z$14))/5*(ROW(O$14)-ROW(O16))) -> 3.8876 | AA16: 3.858084 | AB16: 3.828568 | AC16: 3.799052 | AD16: 3.769536 | AE16: =IF(AE$14>AE$19,AE$14+(ABS(AE$19-AE$14))/5*(ROW(T$14)-ROW(T16)),AE$14-(ABS(AE$19-AE$14))/5*(ROW(T$14)-ROW(T16))) -> 3.74002 | AQ16: -8 | AR16: =IF(Berechnung!$E$6=Berechnung!$E$9,HLOOKUP(Berechnung!$N$6,MatrixLuft!$AU$3:$CD$1114,FIXED(ROW(AQ16)-2,0),FALSE),"0") -> 0 | AS16: =IF(Berechnung!$E$6=Berechnung!$E$9,HLOOKUP($D$3,MatrixLuft!$AU$3:$CD$1114,FIXED(ROW(AQ16)-2,0),FALSE),"0") -> 0 | AT16: =IF(Berechnung!$E$6=Berechnung!$E$9,HLOOKUP($E$3,MatrixLuft!$AU$3:$CD$1114,FIXED(ROW(AQ16)-2,0),FALSE),"0") -> 0
A17: -7 | B17: =VLOOKUP(F2,Berechnung!$G$9:$H$62,2,FALSE)&"14" ->  | C17: =IF(Berechnung!$E$6=Berechnung!$E$9,Berechnung!$F$7*HLOOKUP(Berechnung!$N$6,MatrixLuft!$F$3:$AO$1114,FIXED(ROW(A17)-2,0),FALSE),"0") -> 4.6422 | D17: =IF(Berechnung!$E$6=Berechnung!$E$9,Berechnung!$F$7*HLOOKUP($D$3,MatrixLuft!$F$3:$AO$1114,FIXED(ROW(A17)-2,0),FALSE),"0") -> 4.6422 | E17: =IF(Berechnung!$E$6=Berechnung!$E$9,Berechnung!$F$7*HLOOKUP($E$3,MatrixLuft!$F$3:$AO$1114,FIXED(ROW(A17)-2,0),FALSE),"0") -> 3.75168 | F17: =IF($F$14>$F$19,$F$14+(ABS($F$19-$F$14))/5*($A$14-A17),$F$14-(ABS($F$19-$F$14))/5*($A$14-A17)) -> 4.95774 | G17: 4.894632 | H17: 4.831524 | I17: 4.768416 | J17: 4.705308 | K17: =IF($K$14>$K$19,$K$14+(ABS($K$19-$K$14))/5*($A$14-A17),$K$14-(ABS($K$19-$K$14))/5*($A$14-A17)) -> 4.6422 | L17: 4.579092 | M17: 4.515984 | N17: 4.452876 | O17: 4.389768 | P17: =IF(P$14>P$19,P$14+(ABS(P$19-P$14))/5*(ROW(A$14)-ROW(A17)),P$14-(ABS(P$19-P$14))/5*(ROW(A$14)-ROW(A17))) -> 4.32666 | Q17: 4.263552 | R17: 4.200444 | S17: 4.137336 | T17: 4.074228 | U17: =IF(U$14>U$19,U$14+(ABS(U$19-U$14))/5*(ROW(J$14)-ROW(J17)),U$14-(ABS(U$19-U$14))/5*(ROW(J$14)-ROW(J17))) -> 4.01112 | V17: 3.985176 | W17: 3.959232 | X17: 3.933288 | Y17: 3.907344 | Z17: =IF(Z$14>Z$19,Z$14+(ABS(Z$19-Z$14))/5*(ROW(O$14)-ROW(O17)),Z$14-(ABS(Z$19-Z$14))/5*(ROW(O$14)-ROW(O17))) -> 3.8814 | AA17: 3.855456 | AB17: 3.829512 | AC17: 3.803568 | AD17: 3.777624 | AE17: =IF(AE$14>AE$19,AE$14+(ABS(AE$19-AE$14))/5*(ROW(T$14)-ROW(T17)),AE$14-(ABS(AE$19-AE$14))/5*(ROW(T$14)-ROW(T17))) -> 3.75168 | AQ17: -7 | AR17: =IF(Berechnung!$E$6=Berechnung!$E$9,HLOOKUP(Berechnung!$N$6,MatrixLuft!$AU$3:$CD$1114,FIXED(ROW(AQ17)-2,0),FALSE),"0") -> 2.16 | AS17: =IF(Berechnung!$E$6=Berechnung!$E$9,HLOOKUP($D$3,MatrixLuft!$AU$3:$CD$1114,FIXED(ROW(AQ17)-2,0),FALSE),"0") -> 2.16 | AT17: =IF(Berechnung!$E$6=Berechnung!$E$9,HLOOKUP($E$3,MatrixLuft!$AU$3:$CD$1114,FIXED(ROW(AQ17)-2,0),FALSE),"0") -> 0 | AZ17: 2.16
A18: -6 | B18: =VLOOKUP(F2,Berechnung!$G$9:$H$62,2,FALSE)&"15" ->  | C18: =IF(Berechnung!$E$6=Berechnung!$E$9,Berechnung!$F$7*HLOOKUP(Berechnung!$N$6,MatrixLuft!$F$3:$AO$1114,FIXED(ROW(A18)-2,0),FALSE),"0") -> 4.5886 | D18: =IF(Berechnung!$E$6=Berechnung!$E$9,Berechnung!$F$7*HLOOKUP($D$3,MatrixLuft!$F$3:$AO$1114,FIXED(ROW(A18)-2,0),FALSE),"0") -> 4.5886 | E18: =IF(Berechnung!$E$6=Berechnung!$E$9,Berechnung!$F$7*HLOOKUP($E$3,MatrixLuft!$F$3:$AO$1114,FIXED(ROW(A18)-2,0),FALSE),"0") -> 3.76334 | F18: =IF($F$14>$F$19,$F$14+(ABS($F$19-$F$14))/5*($A$14-A18),$F$14-(ABS($F$19-$F$14))/5*($A$14-A18)) -> 4.88937 | G18: 4.829216 | H18: 4.769062 | I18: 4.708908 | J18: 4.648754 | K18: =IF($K$14>$K$19,$K$14+(ABS($K$19-$K$14))/5*($A$14-A18),$K$14-(ABS($K$19-$K$14))/5*($A$14-A18)) -> 4.5886 | L18: 4.528446 | M18: 4.468292 | N18: 4.408138 | O18: 4.347984 | P18: =IF(P$14>P$19,P$14+(ABS(P$19-P$14))/5*(ROW(A$14)-ROW(A18)),P$14-(ABS(P$19-P$14))/5*(ROW(A$14)-ROW(A18))) -> 4.28783 | Q18: 4.227676 | R18: 4.167522 | S18: 4.107368 | T18: 4.047214 | U18: =IF(U$14>U$19,U$14+(ABS(U$19-U$14))/5*(ROW(J$14)-ROW(J18)),U$14-(ABS(U$19-U$14))/5*(ROW(J$14)-ROW(J18))) -> 3.98706 | V18: 3.964688 | W18: 3.942316 | X18: 3.919944 | Y18: 3.897572 | Z18: =IF(Z$14>Z$19,Z$14+(ABS(Z$19-Z$14))/5*(ROW(O$14)-ROW(O18)),Z$14-(ABS(Z$19-Z$14))/5*(ROW(O$14)-ROW(O18))) -> 3.8752 | AA18: 3.852828 | AB18: 3.830456 | AC18: 3.808084 | AD18: 3.785712 | AE18: =IF(AE$14>AE$19,AE$14+(ABS(AE$19-AE$14))/5*(ROW(T$14)-ROW(T18)),AE$14-(ABS(AE$19-AE$14))/5*(ROW(T$14)-ROW(T18))) -> 3.76334 | AQ18: -6 | AR18: =IF(Berechnung!$E$6=Berechnung!$E$9,HLOOKUP(Berechnung!$N$6,MatrixLuft!$AU$3:$CD$1114,FIXED(ROW(AQ18)-2,0),FALSE),"0") -> 0 | AS18: =IF(Berechnung!$E$6=Berechnung!$E$9,HLOOKUP($D$3,MatrixLuft!$AU$3:$CD$1114,FIXED(ROW(AQ18)-2,0),FALSE),"0") -> 0 | AT18: =IF(Berechnung!$E$6=Berechnung!$E$9,HLOOKUP($E$3,MatrixLuft!$AU$3:$CD$1114,FIXED(ROW(AQ18)-2,0),FALSE),"0") -> 0
A19: -5 | B19: =VLOOKUP(F2,Berechnung!$G$9:$H$62,2,FALSE)&"16" ->  | C19: =IF(Berechnung!$E$6=Berechnung!$E$9,Berechnung!$F$7*HLOOKUP(Berechnung!$N$6,MatrixLuft!$F$3:$AO$1114,FIXED(ROW(A19)-2,0),FALSE),"0") -> 4.535 | D19: =IF(Berechnung!$E$6=Berechnung!$E$9,Berechnung!$F$7*HLOOKUP($D$3,MatrixLuft!$F$3:$AO$1114,FIXED(ROW(A19)-2,0),FALSE),"0") -> 4.535 | E19: =IF(Berechnung!$E$6=Berechnung!$E$9,Berechnung!$F$7*HLOOKUP($E$3,MatrixLuft!$F$3:$AO$1114,FIXED(ROW(A19)-2,0),FALSE),"0") -> 3.775 | F19: 4.821 | G19: 4.7638 | H19: 4.7066 | I19: 4.6494 | J19: 4.5922 | K19: 4.535 | L19: 4.4778 | M19: 4.4206 | N19: 4.3634 | O19: 4.3062 | P19: 4.249 | Q19: 4.1918 | R19: 4.1346 | S19: 4.0774 | T19: 4.0202 | U19: 3.963 | V19: 3.9442 | W19: 3.9254 | X19: 3.9066 | Y19: 3.8878 | Z19: 3.869 | AA19: 3.8502 | AB19: 3.8314 | AC19: 3.8126 | AD19: 3.7938 | AE19: 3.775 | AQ19: -5 | AR19: =IF(Berechnung!$E$6=Berechnung!$E$9,HLOOKUP(Berechnung!$N$6,MatrixLuft!$AU$3:$CD$1114,FIXED(ROW(AQ19)-2,0),FALSE),"0") -> 0 | AS19: =IF(Berechnung!$E$6=Berechnung!$E$9,HLOOKUP($D$3,MatrixLuft!$AU$3:$CD$1114,FIXED(ROW(AQ19)-2,0),FALSE),"0") -> 0 | AT19: =IF(Berechnung!$E$6=Berechnung!$E$9,HLOOKUP($E$3,MatrixLuft!$AU$3:$CD$1114,FIXED(ROW(AQ19)-2,0),FALSE),"0") -> 0
A20: -4 | B20: =VLOOKUP(F2,Berechnung!$G$9:$H$62,2,FALSE)&"17" ->  | C20: =IF(Berechnung!$E$6=Berechnung!$E$9,Berechnung!$F$7*HLOOKUP(Berechnung!$N$6,MatrixLuft!$F$3:$AO$1114,FIXED(ROW(A20)-2,0),FALSE),"0") -> 4.473 | D20: =IF(Berechnung!$E$6=Berechnung!$E$9,Berechnung!$F$7*HLOOKUP($D$3,MatrixLuft!$F$3:$AO$1114,FIXED(ROW(A20)-2,0),FALSE),"0") -> 4.473 | E20: =IF(Berechnung!$E$6=Berechnung!$E$9,Berechnung!$F$7*HLOOKUP($E$3,MatrixLuft!$F$3:$AO$1114,FIXED(ROW(A20)-2,0),FALSE),"0") -> 3.733 | F20: =IF($F$19>$F$24,$F$19+(ABS($F$24-$F$19))/5*($A$19-A20),$F$19-(ABS($F$24-$F$19))/5*($A$19-$A20)) -> 4.74555 | G20: 4.69104 | H20: 4.63653 | I20: 4.58202 | J20: 4.52751 | K20: =IF($K$19>$K$24,$K$19+(ABS($K$24-$K$19))/5*($A$19-$A20),$K$19-(ABS($K$24-$K$19))/5*($A$19-$A20)) -> 4.473 | L20: 4.41849 | M20: 4.36398 | N20: 4.30947 | O20: 4.25496 | P20: =IF(P$19>P$24,P$19+(ABS(P$24-P$19))/5*(ROW(A$19)-ROW(A20)),P$19-(ABS(P$24-P$19))/5*(ROW(A$19)-ROW(A20))) -> 4.20045 | Q20: 4.14594 | R20: 4.09143 | S20: 4.03692 | T20: 3.98241 | U20: =IF(U$19>U$24,U$19+(ABS(U$24-U$19))/5*(ROW(J$19)-ROW(J20)),U$19-(ABS(U$24-U$19))/5*(ROW(J$19)-ROW(J20))) -> 3.9279 | V20: 3.90841 | W20: 3.88892 | X20: 3.86943 | Y20: 3.84994 | Z20: =IF(Z$19>Z$24,Z$19+(ABS(Z$24-Z$19))/5*(ROW(O$19)-ROW(O20)),Z$19-(ABS(Z$24-Z$19))/5*(ROW(O$19)-ROW(O20))) -> 3.83045 | AA20: 3.81096 | AB20: 3.79147 | AC20: 3.77198 | AD20: 3.75249 | AE20: =IF(AE$19>AE$24,AE$19+(ABS(AE$24-AE$19))/5*(ROW(T$19)-ROW(T20)),AE$19-(ABS(AE$24-AE$19))/5*(ROW(T$19)-ROW(T20))) -> 3.733 | AQ20: -4 | AR20: =IF(Berechnung!$E$6=Berechnung!$E$9,HLOOKUP(Berechnung!$N$6,MatrixLuft!$AU$3:$CD$1114,FIXED(ROW(AQ20)-2,0),FALSE),"0") -> 0 | AS20: =IF(Berechnung!$E$6=Berechnung!$E$9,HLOOKUP($D$3,MatrixLuft!$AU$3:$CD$1114,FIXED(ROW(AQ20)-2,0),FALSE),"0") -> 0 | AT20: =IF(Berechnung!$E$6=Berechnung!$E$9,HLOOKUP($E$3,MatrixLuft!$AU$3:$CD$1114,FIXED(ROW(AQ20)-2,0),FALSE),"0") -> 0
A21: -3 | B21: =VLOOKUP(F2,Berechnung!$G$9:$H$62,2,FALSE)&"18" ->  | C21: =IF(Berechnung!$E$6=Berechnung!$E$9,Berechnung!$F$7*HLOOKUP(Berechnung!$N$6,MatrixLuft!$F$3:$AO$1114,FIXED(ROW(A21)-2,0),FALSE),"0") -> 4.411 | D21: =IF(Berechnung!$E$6=Berechnung!$E$9,Berechnung!$F$7*HLOOKUP($D$3,MatrixLuft!$F$3:$AO$1114,FIXED(ROW(A21)-2,0),FALSE),"0") -> 4.411 | E21: =IF(Berechnung!$E$6=Berechnung!$E$9,Berechnung!$F$7*HLOOKUP($E$3,MatrixLuft!$F$3:$AO$1114,FIXED(ROW(A21)-2,0),FALSE),"0") -> 3.691 | F21: =IF($F$19>$F$24,$F$19+(ABS($F$24-$F$19))/5*($A$19-A21),$F$19-(ABS($F$24-$F$19))/5*($A$19-A21)) -> 4.6701 | G21: 4.61828 | H21: 4.56646 | I21: 4.51464 | J21: 4.46282 | K21: =IF($K$19>$K$24,$K$19+(ABS($K$24-$K$19))/5*($A$19-$A21),$K$19-(ABS($K$24-$K$19))/5*($A$19-$A21)) -> 4.411 | L21: 4.35918 | M21: 4.30736 | N21: 4.25554 | O21: 4.20372 | P21: =IF(P$19>P$24,P$19+(ABS(P$24-P$19))/5*(ROW(A$19)-ROW(A21)),P$19-(ABS(P$24-P$19))/5*(ROW(A$19)-ROW(A21))) -> 4.1519 | Q21: 4.10008 | R21: 4.04826 | S21: 3.99644 | T21: 3.94462 | U21: =IF(U$19>U$24,U$19+(ABS(U$24-U$19))/5*(ROW(J$19)-ROW(J21)),U$19-(ABS(U$24-U$19))/5*(ROW(J$19)-ROW(J21))) -> 3.8928 | V21: 3.87262 | W21: 3.85244 | X21: 3.83226 | Y21: 3.81208 | Z21: =IF(Z$19>Z$24,Z$19+(ABS(Z$24-Z$19))/5*(ROW(O$19)-ROW(O21)),Z$19-(ABS(Z$24-Z$19))/5*(ROW(O$19)-ROW(O21))) -> 3.7919 | AA21: 3.77172 | AB21: 3.75154 | AC21: 3.73136 | AD21: 3.71118 | AE21: =IF(AE$19>AE$24,AE$19+(ABS(AE$24-AE$19))/5*(ROW(T$19)-ROW(T21)),AE$19-(ABS(AE$24-AE$19))/5*(ROW(T$19)-ROW(T21))) -> 3.691 | AQ21: -3 | AR21: =IF(Berechnung!$E$6=Berechnung!$E$9,HLOOKUP(Berechnung!$N$6,MatrixLuft!$AU$3:$CD$1114,FIXED(ROW(AQ21)-2,0),FALSE),"0") -> 0 | AS21: =IF(Berechnung!$E$6=Berechnung!$E$9,HLOOKUP($D$3,MatrixLuft!$AU$3:$CD$1114,FIXED(ROW(AQ21)-2,0),FALSE),"0") -> 0 | AT21: =IF(Berechnung!$E$6=Berechnung!$E$9,HLOOKUP($E$3,MatrixLuft!$AU$3:$CD$1114,FIXED(ROW(AQ21)-2,0),FALSE),"0") -> 0
A22: -2 | B22: =VLOOKUP(F2,Berechnung!$G$9:$H$62,2,FALSE)&"19" ->  | C22: =IF(Berechnung!$E$6=Berechnung!$E$9,Berechnung!$F$7*HLOOKUP(Berechnung!$N$6,MatrixLuft!$F$3:$AO$1114,FIXED(ROW(A22)-2,0),FALSE),"0") -> 4.349 | D22: =IF(Berechnung!$E$6=Berechnung!$E$9,Berechnung!$F$7*HLOOKUP($D$3,MatrixLuft!$F$3:$AO$1114,FIXED(ROW(A22)-2,0),FALSE),"0") -> 4.349 | E22: =IF(Berechnung!$E$6=Berechnung!$E$9,Berechnung!$F$7*HLOOKUP($E$3,MatrixLuft!$F$3:$AO$1114,FIXED(ROW(A22)-2,0),FALSE),"0") -> 3.649 | F22: =IF($F$19>$F$24,$F$19+(ABS($F$24-$F$19))/5*($A$19-A22),$F$19-(ABS($F$24-$F$19))/5*($A$19-A22)) -> 4.59465 | G22: 4.54552 | H22: 4.49639 | I22: 4.44726 | J22: 4.39813 | K22: =IF($K$19>$K$24,$K$19+(ABS($K$24-$K$19))/5*($A$19-$A22),$K$19-(ABS($K$24-$K$19))/5*($A$19-$A22)) -> 4.349 | L22: 4.29987 | M22: 4.25074 | N22: 4.20161 | O22: 4.15248 | P22: =IF(P$19>P$24,P$19+(ABS(P$24-P$19))/5*(ROW(A$19)-ROW(A22)),P$19-(ABS(P$24-P$19))/5*(ROW(A$19)-ROW(A22))) -> 4.10335 | Q22: 4.05422 | R22: 4.00509 | S22: 3.95596 | T22: 3.90683 | U22: =IF(U$19>U$24,U$19+(ABS(U$24-U$19))/5*(ROW(J$19)-ROW(J22)),U$19-(ABS(U$24-U$19))/5*(ROW(J$19)-ROW(J22))) -> 3.8577 | V22: 3.83683 | W22: 3.81596 | X22: 3.79509 | Y22: 3.77422 | Z22: =IF(Z$19>Z$24,Z$19+(ABS(Z$24-Z$19))/5*(ROW(O$19)-ROW(O22)),Z$19-(ABS(Z$24-Z$19))/5*(ROW(O$19)-ROW(O22))) -> 3.75335 | AA22: 3.73248 | AB22: 3.71161 | AC22: 3.69074 | AD22: 3.66987 | AE22: =IF(AE$19>AE$24,AE$19+(ABS(AE$24-AE$19))/5*(ROW(T$19)-ROW(T22)),AE$19-(ABS(AE$24-AE$19))/5*(ROW(T$19)-ROW(T22))) -> 3.649 | AQ22: -2 | AR22: =IF(Berechnung!$E$6=Berechnung!$E$9,HLOOKUP(Berechnung!$N$6,MatrixLuft!$AU$3:$CD$1114,FIXED(ROW(AQ22)-2,0),FALSE),"0") -> 0 | AS22: =IF(Berechnung!$E$6=Berechnung!$E$9,HLOOKUP($D$3,MatrixLuft!$AU$3:$CD$1114,FIXED(ROW(AQ22)-2,0),FALSE),"0") -> 0 | AT22: =IF(Berechnung!$E$6=Berechnung!$E$9,HLOOKUP($E$3,MatrixLuft!$AU$3:$CD$1114,FIXED(ROW(AQ22)-2,0),FALSE),"0") -> 0
A23: -1 | B23: =VLOOKUP(F2,Berechnung!$G$9:$H$62,2,FALSE)&"20" ->  | C23: =IF(Berechnung!$E$6=Berechnung!$E$9,Berechnung!$F$7*HLOOKUP(Berechnung!$N$6,MatrixLuft!$F$3:$AO$1114,FIXED(ROW(A23)-2,0),FALSE),"0") -> 4.287 | D23: =IF(Berechnung!$E$6=Berechnung!$E$9,Berechnung!$F$7*HLOOKUP($D$3,MatrixLuft!$F$3:$AO$1114,FIXED(ROW(A23)-2,0),FALSE),"0") -> 4.287 | E23: =IF(Berechnung!$E$6=Berechnung!$E$9,Berechnung!$F$7*HLOOKUP($E$3,MatrixLuft!$F$3:$AO$1114,FIXED(ROW(A23)-2,0),FALSE),"0") -> 3.607 | F23: =IF($F$19>$F$24,$F$19+(ABS($F$24-$F$19))/5*($A$19-A23),$F$19-(ABS($F$24-$F$19))/5*($A$19-A23)) -> 4.5192 | G23: 4.47276 | H23: 4.42632 | I23: 4.37988 | J23: 4.33344 | K23: =IF($K$19>$K$24,$K$19+(ABS($K$24-$K$19))/5*($A$19-$A23),$K$19-(ABS($K$24-$K$19))/5*($A$19-$A23)) -> 4.287 | L23: 4.24056 | M23: 4.19412 | N23: 4.14768 | O23: 4.10124 | P23: =IF(P$19>P$24,P$19+(ABS(P$24-P$19))/5*(ROW(A$19)-ROW(A23)),P$19-(ABS(P$24-P$19))/5*(ROW(A$19)-ROW(A23))) -> 4.0548 | Q23: 4.00836 | R23: 3.96192 | S23: 3.91548 | T23: 3.86904 | U23: =IF(U$19>U$24,U$19+(ABS(U$24-U$19))/5*(ROW(J$19)-ROW(J23)),U$19-(ABS(U$24-U$19))/5*(ROW(J$19)-ROW(J23))) -> 3.8226 | V23: 3.80104 | W23: 3.77948 | X23: 3.75792 | Y23: 3.73636 | Z23: =IF(Z$19>Z$24,Z$19+(ABS(Z$24-Z$19))/5*(ROW(O$19)-ROW(O23)),Z$19-(ABS(Z$24-Z$19))/5*(ROW(O$19)-ROW(O23))) -> 3.7148 | AA23: 3.69324 | AB23: 3.67168 | AC23: 3.65012 | AD23: 3.62856 | AE23: =IF(AE$19>AE$24,AE$19+(ABS(AE$24-AE$19))/5*(ROW(T$19)-ROW(T23)),AE$19-(ABS(AE$24-AE$19))/5*(ROW(T$19)-ROW(T23))) -> 3.607 | AQ23: -1 | AR23: =IF(Berechnung!$E$6=Berechnung!$E$9,HLOOKUP(Berechnung!$N$6,MatrixLuft!$AU$3:$CD$1114,FIXED(ROW(AQ23)-2,0),FALSE),"0") -> 0 | AS23: =IF(Berechnung!$E$6=Berechnung!$E$9,HLOOKUP($D$3,MatrixLuft!$AU$3:$CD$1114,FIXED(ROW(AQ23)-2,0),FALSE),"0") -> 0 | AT23: =IF(Berechnung!$E$6=Berechnung!$E$9,HLOOKUP($E$3,MatrixLuft!$AU$3:$CD$1114,FIXED(ROW(AQ23)-2,0),FALSE),"0") -> 0
A24: 0 | B24: =VLOOKUP(F2,Berechnung!$G$9:$H$62,2,FALSE)&"21" ->  | C24: =IF(Berechnung!$E$6=Berechnung!$E$9,Berechnung!$F$7*HLOOKUP(Berechnung!$N$6,MatrixLuft!$F$3:$AO$1114,FIXED(ROW(A24)-2,0),FALSE),"0") -> 4.225 | D24: =IF(Berechnung!$E$6=Berechnung!$E$9,Berechnung!$F$7*HLOOKUP($D$3,MatrixLuft!$F$3:$AO$1114,FIXED(ROW(A24)-2,0),FALSE),"0") -> 4.225 | E24: =IF(Berechnung!$E$6=Berechnung!$E$9,Berechnung!$F$7*HLOOKUP($E$3,MatrixLuft!$F$3:$AO$1114,FIXED(ROW(A24)-2,0),FALSE),"0") -> 3.565 | F24: 4.44375 | G24: 4.4 | H24: 4.35625 | I24: 4.3125 | J24: 4.26875 | K24: 4.225 | L24: 4.18125 | M24: 4.1375 | N24: 4.09375 | O24: 4.05 | P24: 4.00625 | Q24: 3.9625 | R24: 3.91875 | S24: 3.875 | T24: 3.83125 | U24: 3.7875 | V24: 3.76525 | W24: 3.743 | X24: 3.72075 | Y24: 3.6985 | Z24: 3.67625 | AA24: 3.654 | AB24: 3.63175 | AC24: 3.6095 | AD24: 3.58725 | AE24: 3.565 | AQ24: 0 | AR24: =IF(Berechnung!$E$6=Berechnung!$E$9,HLOOKUP(Berechnung!$N$6,MatrixLuft!$AU$3:$CD$1114,FIXED(ROW(AQ24)-2,0),FALSE),"0") -> 0 | AS24: =IF(Berechnung!$E$6=Berechnung!$E$9,HLOOKUP($D$3,MatrixLuft!$AU$3:$CD$1114,FIXED(ROW(AQ24)-2,0),FALSE),"0") -> 0 | AT24: =IF(Berechnung!$E$6=Berechnung!$E$9,HLOOKUP($E$3,MatrixLuft!$AU$3:$CD$1114,FIXED(ROW(AQ24)-2,0),FALSE),"0") -> 0
A25: 1 | B25: =VLOOKUP(F2,Berechnung!$G$9:$H$62,2,FALSE)&"22" ->  | C25: =IF(Berechnung!$E$6=Berechnung!$E$9,Berechnung!$F$7*HLOOKUP(Berechnung!$N$6,MatrixLuft!$F$3:$AO$1114,FIXED(ROW(A25)-2,0),FALSE),"0") -> 4.188 | D25: =IF(Berechnung!$E$6=Berechnung!$E$9,Berechnung!$F$7*HLOOKUP($D$3,MatrixLuft!$F$3:$AO$1114,FIXED(ROW(A25)-2,0),FALSE),"0") -> 4.188 | E25: =IF(Berechnung!$E$6=Berechnung!$E$9,Berechnung!$F$7*HLOOKUP($E$3,MatrixLuft!$F$3:$AO$1114,FIXED(ROW(A25)-2,0),FALSE),"0") -> 3.536 | F25: =IF($F$24>$F$29,$F$24+(ABS($F$29-$F$24))/5*($A$24-$A25),$F$24-(ABS($F$29-$F$24))/5*($A$24-$A25)) -> 4.369 | G25: 4.3328 | H25: 4.2966 | I25: 4.2604 | J25: 4.2242 | K25: =IF(K$24>K$29,K$24+(ABS(K$29-K$24))/5*(ROW(A$24)-ROW(A25)),K$24-(ABS(K$29-K$24))/5*(ROW(A$24)-ROW(A25))) -> 4.188 | L25: 4.1518 | M25: 4.1156 | N25: 4.0794 | O25: 4.0432 | P25: =IF(P$24>P$29,P$24+(ABS(P$29-P$24))/5*(ROW(J$24)-ROW(J25)),P$24-(ABS(P$29-P$24))/5*(ROW(J$24)-ROW(J25))) -> 4.007 | Q25: 3.9708 | R25: 3.9346 | S25: 3.8984 | T25: 3.8622 | U25: =IF(U$24>U$29,U$24+(ABS(U$29-U$24))/5*(ROW(O$24)-ROW(O25)),U$24-(ABS(U$29-U$24))/5*(ROW(O$24)-ROW(O25))) -> 3.826 | V25: 3.797 | W25: 3.768 | X25: 3.739 | Y25: 3.71 | Z25: =IF(Z$24>Z$29,Z$24+(ABS(Z$29-Z$24))/5*(ROW(T$24)-ROW(T25)),Z$24-(ABS(Z$29-Z$24))/5*(ROW(T$24)-ROW(T25))) -> 3.681 | AA25: 3.652 | AB25: 3.623 | AC25: 3.594 | AD25: 3.565 | AE25: =IF(AE$24>AE$29,AE$24+(ABS(AE$29-AE$24))/5*(ROW(Y$24)-ROW(Y25)),AE$24-(ABS(AE$29-AE$24))/5*(ROW(Y$24)-ROW(Y25))) -> 3.536 | AQ25: 1 | AR25: =IF(Berechnung!$E$6=Berechnung!$E$9,HLOOKUP(Berechnung!$N$6,MatrixLuft!$AU$3:$CD$1114,FIXED(ROW(AQ25)-2,0),FALSE),"0") -> 0 | AS25: =IF(Berechnung!$E$6=Berechnung!$E$9,HLOOKUP($D$3,MatrixLuft!$AU$3:$CD$1114,FIXED(ROW(AQ25)-2,0),FALSE),"0") -> 0 | AT25: =IF(Berechnung!$E$6=Berechnung!$E$9,HLOOKUP($E$3,MatrixLuft!$AU$3:$CD$1114,FIXED(ROW(AQ25)-2,0),FALSE),"0") -> 0
A26: 2 | B26: =VLOOKUP(F2,Berechnung!$G$9:$H$62,2,FALSE)&"23" ->  | C26: =IF(Berechnung!$E$6=Berechnung!$E$9,Berechnung!$F$7*HLOOKUP(Berechnung!$N$6,MatrixLuft!$F$3:$AO$1114,FIXED(ROW(A26)-2,0),FALSE),"0") -> 4.151 | D26: =IF(Berechnung!$E$6=Berechnung!$E$9,Berechnung!$F$7*HLOOKUP($D$3,MatrixLuft!$F$3:$AO$1114,FIXED(ROW(A26)-2,0),FALSE),"0") -> 4.151 | E26: =IF(Berechnung!$E$6=Berechnung!$E$9,Berechnung!$F$7*HLOOKUP($E$3,MatrixLuft!$F$3:$AO$1114,FIXED(ROW(A26)-2,0),FALSE),"0") -> 3.507 | F26: =IF($F$24>$F$29,$F$24+(ABS($F$29-$F$24))/5*($A$24-A26),$F$24-(ABS($F$29-$F$24))/5*($A$24-A26)) -> 4.29425 | G26: 4.2656 | H26: 4.23695 | I26: 4.2083 | J26: 4.17965 | K26: =IF(K$24>K$29,K$24+(ABS(K$29-K$24))/5*(ROW(A$24)-ROW(A26)),K$24-(ABS(K$29-K$24))/5*(ROW(A$24)-ROW(A26))) -> 4.151 | L26: 4.12235 | M26: 4.0937 | N26: 4.06505 | O26: 4.0364 | P26: =IF(P$24>P$29,P$24+(ABS(P$29-P$24))/5*(ROW(J$24)-ROW(J26)),P$24-(ABS(P$29-P$24))/5*(ROW(J$24)-ROW(J26))) -> 4.00775 | Q26: 3.9791 | R26: 3.95045 | S26: 3.9218 | T26: 3.89315 | U26: =IF(U$24>U$29,U$24+(ABS(U$29-U$24))/5*(ROW(O$24)-ROW(O26)),U$24-(ABS(U$29-U$24))/5*(ROW(O$24)-ROW(O26))) -> 3.8645 | V26: 3.82875 | W26: 3.793 | X26: 3.75725 | Y26: 3.7215 | Z26: =IF(Z$24>Z$29,Z$24+(ABS(Z$29-Z$24))/5*(ROW(T$24)-ROW(T26)),Z$24-(ABS(Z$29-Z$24))/5*(ROW(T$24)-ROW(T26))) -> 3.68575 | AA26: 3.65 | AB26: 3.61425 | AC26: 3.5785 | AD26: 3.54275 | AE26: =IF(AE$24>AE$29,AE$24+(ABS(AE$29-AE$24))/5*(ROW(Y$24)-ROW(Y26)),AE$24-(ABS(AE$29-AE$24))/5*(ROW(Y$24)-ROW(Y26))) -> 3.507 | AQ26: 2 | AR26: =IF(Berechnung!$E$6=Berechnung!$E$9,HLOOKUP(Berechnung!$N$6,MatrixLuft!$AU$3:$CD$1114,FIXED(ROW(AQ26)-2,0),FALSE),"0") -> 2.86 | AS26: =IF(Berechnung!$E$6=Berechnung!$E$9,HLOOKUP($D$3,MatrixLuft!$AU$3:$CD$1114,FIXED(ROW(AQ26)-2,0),FALSE),"0") -> 2.86 | AT26: =IF(Berechnung!$E$6=Berechnung!$E$9,HLOOKUP($E$3,MatrixLuft!$AU$3:$CD$1114,FIXED(ROW(AQ26)-2,0),FALSE),"0") -> 0 | AZ26: 2.86
A27: 3 | B27: =VLOOKUP(F2,Berechnung!$G$9:$H$62,2,FALSE)&"24" ->  | C27: =IF(Berechnung!$E$6=Berechnung!$E$9,Berechnung!$F$7*HLOOKUP(Berechnung!$N$6,MatrixLuft!$F$3:$AO$1114,FIXED(ROW(A27)-2,0),FALSE),"0") -> 4.114 | D27: =IF(Berechnung!$E$6=Berechnung!$E$9,Berechnung!$F$7*HLOOKUP($D$3,MatrixLuft!$F$3:$AO$1114,FIXED(ROW(A27)-2,0),FALSE),"0") -> 4.114 | E27: =IF(Berechnung!$E$6=Berechnung!$E$9,Berechnung!$F$7*HLOOKUP($E$3,MatrixLuft!$F$3:$AO$1114,FIXED(ROW(A27)-2,0),FALSE),"0") -> 3.478 | F27: =IF($F$24>$F$29,$F$24+(ABS($F$29-$F$24))/5*($A$24-A27),$F$24-(ABS($F$29-$F$24))/5*($A$24-A27)) -> 4.2195 | G27: 4.1984 | H27: 4.1773 | I27: 4.1562 | J27: 4.1351 | K27: =IF(K$24>K$29,K$24+(ABS(K$29-K$24))/5*(ROW(A$24)-ROW(A27)),K$24-(ABS(K$29-K$24))/5*(ROW(A$24)-ROW(A27))) -> 4.114 | L27: 4.0929 | M27: 4.0718 | N27: 4.0507 | O27: 4.0296 | P27: =IF(P$24>P$29,P$24+(ABS(P$29-P$24))/5*(ROW(J$24)-ROW(J27)),P$24-(ABS(P$29-P$24))/5*(ROW(J$24)-ROW(J27))) -> 4.0085 | Q27: 3.9874 | R27: 3.9663 | S27: 3.9452 | T27: 3.9241 | U27: =IF(U$24>U$29,U$24+(ABS(U$29-U$24))/5*(ROW(O$24)-ROW(O27)),U$24-(ABS(U$29-U$24))/5*(ROW(O$24)-ROW(O27))) -> 3.903 | V27: 3.8605 | W27: 3.818 | X27: 3.7755 | Y27: 3.733 | Z27: =IF(Z$24>Z$29,Z$24+(ABS(Z$29-Z$24))/5*(ROW(T$24)-ROW(T27)),Z$24-(ABS(Z$29-Z$24))/5*(ROW(T$24)-ROW(T27))) -> 3.6905 | AA27: 3.648 | AB27: 3.6055 | AC27: 3.563 | AD27: 3.5205 | AE27: =IF(AE$24>AE$29,AE$24+(ABS(AE$29-AE$24))/5*(ROW(Y$24)-ROW(Y27)),AE$24-(ABS(AE$29-AE$24))/5*(ROW(Y$24)-ROW(Y27))) -> 3.478 | AQ27: 3 | AR27: =IF(Berechnung!$E$6=Berechnung!$E$9,HLOOKUP(Berechnung!$N$6,MatrixLuft!$AU$3:$CD$1114,FIXED(ROW(AQ27)-2,0),FALSE),"0") -> 0 | AS27: =IF(Berechnung!$E$6=Berechnung!$E$9,HLOOKUP($D$3,MatrixLuft!$AU$3:$CD$1114,FIXED(ROW(AQ27)-2,0),FALSE),"0") -> 0 | AT27: =IF(Berechnung!$E$6=Berechnung!$E$9,HLOOKUP($E$3,MatrixLuft!$AU$3:$CD$1114,FIXED(ROW(AQ27)-2,0),FALSE),"0") -> 0
A28: 4 | B28: =VLOOKUP(F2,Berechnung!$G$9:$H$62,2,FALSE)&"25" ->  | C28: =IF(Berechnung!$E$6=Berechnung!$E$9,Berechnung!$F$7*HLOOKUP(Berechnung!$N$6,MatrixLuft!$F$3:$AO$1114,FIXED(ROW(A28)-2,0),FALSE),"0") -> 4.077 | D28: =IF(Berechnung!$E$6=Berechnung!$E$9,Berechnung!$F$7*HLOOKUP($D$3,MatrixLuft!$F$3:$AO$1114,FIXED(ROW(A28)-2,0),FALSE),"0") -> 4.077 | E28: =IF(Berechnung!$E$6=Berechnung!$E$9,Berechnung!$F$7*HLOOKUP($E$3,MatrixLuft!$F$3:$AO$1114,FIXED(ROW(A28)-2,0),FALSE),"0") -> 3.449 | F28: =IF($F$24>$F$29,$F$24+(ABS($F$29-$F$24))/5*($A$24-A28),$F$24-(ABS($F$29-$F$24))/5*($A$24-A28)) -> 4.14475 | G28: 4.1312 | H28: 4.11765 | I28: 4.1041 | J28: 4.09055 | K28: =IF(K$24>K$29,K$24+(ABS(K$29-K$24))/5*(ROW(A$24)-ROW(A28)),K$24-(ABS(K$29-K$24))/5*(ROW(A$24)-ROW(A28))) -> 4.077 | L28: 4.06345 | M28: 4.0499 | N28: 4.03635 | O28: 4.0228 | P28: =IF(P$24>P$29,P$24+(ABS(P$29-P$24))/5*(ROW(J$24)-ROW(J28)),P$24-(ABS(P$29-P$24))/5*(ROW(J$24)-ROW(J28))) -> 4.00925 | Q28: 3.9957 | R28: 3.98215 | S28: 3.9686 | T28: 3.95505 | U28: =IF(U$24>U$29,U$24+(ABS(U$29-U$24))/5*(ROW(O$24)-ROW(O28)),U$24-(ABS(U$29-U$24))/5*(ROW(O$24)-ROW(O28))) -> 3.9415 | V28: 3.89225 | W28: 3.843 | X28: 3.79375 | Y28: 3.7445 | Z28: =IF(Z$24>Z$29,Z$24+(ABS(Z$29-Z$24))/5*(ROW(T$24)-ROW(T28)),Z$24-(ABS(Z$29-Z$24))/5*(ROW(T$24)-ROW(T28))) -> 3.69525 | AA28: 3.646 | AB28: 3.59675 | AC28: 3.5475 | AD28: 3.49825 | AE28: =IF(AE$24>AE$29,AE$24+(ABS(AE$29-AE$24))/5*(ROW(Y$24)-ROW(Y28)),AE$24-(ABS(AE$29-AE$24))/5*(ROW(Y$24)-ROW(Y28))) -> 3.449 | AQ28: 4 | AR28: =IF(Berechnung!$E$6=Berechnung!$E$9,HLOOKUP(Berechnung!$N$6,MatrixLuft!$AU$3:$CD$1114,FIXED(ROW(AQ28)-2,0),FALSE),"0") -> 0 | AS28: =IF(Berechnung!$E$6=Berechnung!$E$9,HLOOKUP($D$3,MatrixLuft!$AU$3:$CD$1114,FIXED(ROW(AQ28)-2,0),FALSE),"0") -> 0 | AT28: =IF(Berechnung!$E$6=Berechnung!$E$9,HLOOKUP($E$3,MatrixLuft!$AU$3:$CD$1114,FIXED(ROW(AQ28)-2,0),FALSE),"0") -> 0
A29: 5 | B29: =VLOOKUP(F2,Berechnung!$G$9:$H$62,2,FALSE)&"26" ->  | C29: =IF(Berechnung!$E$6=Berechnung!$E$9,Berechnung!$F$7*HLOOKUP(Berechnung!$N$6,MatrixLuft!$F$3:$AO$1114,FIXED(ROW(A29)-2,0),FALSE),"0") -> 4.04 | D29: =IF(Berechnung!$E$6=Berechnung!$E$9,Berechnung!$F$7*HLOOKUP($D$3,MatrixLuft!$F$3:$AO$1114,FIXED(ROW(A29)-2,0),FALSE),"0") -> 4.04 | E29: =IF(Berechnung!$E$6=Berechnung!$E$9,Berechnung!$F$7*HLOOKUP($E$3,MatrixLuft!$F$3:$AO$1114,FIXED(ROW(A29)-2,0),FALSE),"0") -> 3.42 | F29: 4.07 | G29: 4.064 | H29: 4.058 | I29: 4.052 | J29: 4.046 | K29: 4.04 | L29: 4.034 | M29: 4.028 | N29: 4.022 | O29: 4.016 | P29: 4.01 | Q29: 4.004 | R29: 3.998 | S29: 3.992 | T29: 3.986 | U29: 3.98 | V29: 3.924 | W29: 3.868 | X29: 3.812 | Y29: 3.756 | Z29: 3.7 | AA29: 3.644 | AB29: 3.588 | AC29: 3.532 | AD29: 3.476 | AE29: 3.42 | AQ29: 5 | AR29: =IF(Berechnung!$E$6=Berechnung!$E$9,HLOOKUP(Berechnung!$N$6,MatrixLuft!$AU$3:$CD$1114,FIXED(ROW(AQ29)-2,0),FALSE),"0") -> 0 | AS29: =IF(Berechnung!$E$6=Berechnung!$E$9,HLOOKUP($D$3,MatrixLuft!$AU$3:$CD$1114,FIXED(ROW(AQ29)-2,0),FALSE),"0") -> 0 | AT29: =IF(Berechnung!$E$6=Berechnung!$E$9,HLOOKUP($E$3,MatrixLuft!$AU$3:$CD$1114,FIXED(ROW(AQ29)-2,0),FALSE),"0") -> 0
A30: 6 | B30: =VLOOKUP(F2,Berechnung!$G$9:$H$62,2,FALSE)&"27" ->  | C30: =IF(Berechnung!$E$6=Berechnung!$E$9,Berechnung!$F$7*HLOOKUP(Berechnung!$N$6,MatrixLuft!$F$3:$AO$1114,FIXED(ROW(A30)-2,0),FALSE),"0") -> 4.226 | D30: =IF(Berechnung!$E$6=Berechnung!$E$9,Berechnung!$F$7*HLOOKUP($D$3,MatrixLuft!$F$3:$AO$1114,FIXED(ROW(A30)-2,0),FALSE),"0") -> 4.226 | E30: =IF(Berechnung!$E$6=Berechnung!$E$9,Berechnung!$F$7*HLOOKUP($E$3,MatrixLuft!$F$3:$AO$1114,FIXED(ROW(A30)-2,0),FALSE),"0") -> 3.292 | F30: =IF($F$29>$F$34,$F$29+(ABS($F$34-$F$29))/5*($A$29-$A30),$F$29-(ABS($F$34-$F$29))/5*($A$29-$A30)) -> 4.347 | G30: 4.3228 | H30: 4.2986 | I30: 4.2744 | J30: 4.2502 | K30: =IF(K$29>K$34,K$29+(ABS(K$34-K$29))/5*(ROW(A$29)-ROW(A30)),K$29-(ABS(K$34-K$29))/5*(ROW(A$29)-ROW(A30))) -> 4.226 | L30: 4.2018 | M30: 4.1776 | N30: 4.1534 | O30: 4.1292 | P30: =IF(P$29>P$34,P$29+(ABS(P$34-P$29))/5*(ROW(J$29)-ROW(J30)),P$29-(ABS(P$34-P$29))/5*(ROW(J$29)-ROW(J30))) -> 4.105 | Q30: 4.0808 | R30: 4.0566 | S30: 4.0324 | T30: 4.0082 | U30: =IF(U$29>U$34,U$29+(ABS(U$34-U$29))/5*(ROW(O$29)-ROW(O30)),U$29-(ABS(U$34-U$29))/5*(ROW(O$29)-ROW(O30))) -> 3.984 | V30: 3.9148 | W30: 3.8456 | X30: 3.7764 | Y30: 3.7072 | Z30: =IF(Z$29>Z$34,Z$29+(ABS(Z$34-Z$29))/5*(ROW(T$29)-ROW(T30)),Z$29-(ABS(Z$34-Z$29))/5*(ROW(T$29)-ROW(T30))) -> 3.638 | AA30: 3.5688 | AB30: 3.4996 | AC30: 3.4304 | AD30: 3.3612 | AE30: =IF(AE$29>AE$34,AE$29+(ABS(AE$34-AE$29))/5*(ROW(Y$29)-ROW(Y30)),AE$29-(ABS(AE$34-AE$29))/5*(ROW(Y$29)-ROW(Y30))) -> 3.292 | AQ30: 6 | AR30: =IF(Berechnung!$E$6=Berechnung!$E$9,HLOOKUP(Berechnung!$N$6,MatrixLuft!$AU$3:$CD$1114,FIXED(ROW(AQ30)-2,0),FALSE),"0") -> 0 | AS30: =IF(Berechnung!$E$6=Berechnung!$E$9,HLOOKUP($D$3,MatrixLuft!$AU$3:$CD$1114,FIXED(ROW(AQ30)-2,0),FALSE),"0") -> 0 | AT30: =IF(Berechnung!$E$6=Berechnung!$E$9,HLOOKUP($E$3,MatrixLuft!$AU$3:$CD$1114,FIXED(ROW(AQ30)-2,0),FALSE),"0") -> 0
A31: 7 | B31: =VLOOKUP(F2,Berechnung!$G$9:$H$62,2,FALSE)&"28" ->  | C31: =IF(Berechnung!$E$6=Berechnung!$E$9,Berechnung!$F$7*HLOOKUP(Berechnung!$N$6,MatrixLuft!$F$3:$AO$1114,FIXED(ROW(A31)-2,0),FALSE),"0") -> 4.412 | D31: =IF(Berechnung!$E$6=Berechnung!$E$9,Berechnung!$F$7*HLOOKUP($D$3,MatrixLuft!$F$3:$AO$1114,FIXED(ROW(A31)-2,0),FALSE),"0") -> 4.412 | E31: =IF(Berechnung!$E$6=Berechnung!$E$9,Berechnung!$F$7*HLOOKUP($E$3,MatrixLuft!$F$3:$AO$1114,FIXED(ROW(A31)-2,0),FALSE),"0") -> 3.164 | F31: =IF($F$29>$F$34,$F$29+(ABS($F$34-$F$29))/5*($A$29-A31),$F$29-(ABS($F$34-$F$29))/5*($A$29-A31)) -> 4.624 | G31: 4.5816 | H31: 4.5392 | I31: 4.4968 | J31: 4.4544 | K31: =IF(K$29>K$34,K$29+(ABS(K$34-K$29))/5*(ROW(A$29)-ROW(A31)),K$29-(ABS(K$34-K$29))/5*(ROW(A$29)-ROW(A31))) -> 4.412 | L31: 4.3696 | M31: 4.3272 | N31: 4.2848 | O31: 4.2424 | P31: =IF(P$29>P$34,P$29+(ABS(P$34-P$29))/5*(ROW(J$29)-ROW(J31)),P$29-(ABS(P$34-P$29))/5*(ROW(J$29)-ROW(J31))) -> 4.2 | Q31: 4.1576 | R31: 4.1152 | S31: 4.0728 | T31: 4.0304 | U31: =IF(U$29>U$34,U$29+(ABS(U$34-U$29))/5*(ROW(O$29)-ROW(O31)),U$29-(ABS(U$34-U$29))/5*(ROW(O$29)-ROW(O31))) -> 3.988 | V31: 3.9056 | W31: 3.8232 | X31: 3.7408 | Y31: 3.6584 | Z31: =IF(Z$29>Z$34,Z$29+(ABS(Z$34-Z$29))/5*(ROW(T$29)-ROW(T31)),Z$29-(ABS(Z$34-Z$29))/5*(ROW(T$29)-ROW(T31))) -> 3.576 | AA31: 3.4936 | AB31: 3.4112 | AC31: 3.3288 | AD31: 3.2464 | AE31: =IF(AE$29>AE$34,AE$29+(ABS(AE$34-AE$29))/5*(ROW(Y$29)-ROW(Y31)),AE$29-(ABS(AE$34-AE$29))/5*(ROW(Y$29)-ROW(Y31))) -> 3.164 | AQ31: 7 | AR31: =IF(Berechnung!$E$6=Berechnung!$E$9,HLOOKUP(Berechnung!$N$6,MatrixLuft!$AU$3:$CD$1114,FIXED(ROW(AQ31)-2,0),FALSE),"0") -> 0 | AS31: =IF(Berechnung!$E$6=Berechnung!$E$9,HLOOKUP($D$3,MatrixLuft!$AU$3:$CD$1114,FIXED(ROW(AQ31)-2,0),FALSE),"0") -> 0 | AT31: =IF(Berechnung!$E$6=Berechnung!$E$9,HLOOKUP($E$3,MatrixLuft!$AU$3:$CD$1114,FIXED(ROW(AQ31)-2,0),FALSE),"0") -> 0
A32: 8 | B32: =VLOOKUP(F2,Berechnung!$G$9:$H$62,2,FALSE)&"29" ->  | C32: =IF(Berechnung!$E$6=Berechnung!$E$9,Berechnung!$F$7*HLOOKUP(Berechnung!$N$6,MatrixLuft!$F$3:$AO$1114,FIXED(ROW(A32)-2,0),FALSE),"0") -> 4.598 | D32: =IF(Berechnung!$E$6=Berechnung!$E$9,Berechnung!$F$7*HLOOKUP($D$3,MatrixLuft!$F$3:$AO$1114,FIXED(ROW(A32)-2,0),FALSE),"0") -> 4.598 | E32: =IF(Berechnung!$E$6=Berechnung!$E$9,Berechnung!$F$7*HLOOKUP($E$3,MatrixLuft!$F$3:$AO$1114,FIXED(ROW(A32)-2,0),FALSE),"0") -> 3.036 | F32: =IF($F$29>$F$34,$F$29+(ABS($F$34-$F$29))/5*($A$29-A32),$F$29-(ABS($F$34-$F$29))/5*($A$29-A32)) -> 4.901 | G32: 4.8404 | H32: 4.7798 | I32: 4.7192 | J32: 4.6586 | K32: =IF(K$29>K$34,K$29+(ABS(K$34-K$29))/5*(ROW(A$29)-ROW(A32)),K$29-(ABS(K$34-K$29))/5*(ROW(A$29)-ROW(A32))) -> 4.598 | L32: 4.5374 | M32: 4.4768 | N32: 4.4162 | O32: 4.3556 | P32: =IF(P$29>P$34,P$29+(ABS(P$34-P$29))/5*(ROW(J$29)-ROW(J32)),P$29-(ABS(P$34-P$29))/5*(ROW(J$29)-ROW(J32))) -> 4.295 | Q32: 4.2344 | R32: 4.1738 | S32: 4.1132 | T32: 4.0526 | U32: =IF(U$29>U$34,U$29+(ABS(U$34-U$29))/5*(ROW(O$29)-ROW(O32)),U$29-(ABS(U$34-U$29))/5*(ROW(O$29)-ROW(O32))) -> 3.992 | V32: 3.8964 | W32: 3.8008 | X32: 3.7052 | Y32: 3.6096 | Z32: =IF(Z$29>Z$34,Z$29+(ABS(Z$34-Z$29))/5*(ROW(T$29)-ROW(T32)),Z$29-(ABS(Z$34-Z$29))/5*(ROW(T$29)-ROW(T32))) -> 3.514 | AA32: 3.4184 | AB32: 3.3228 | AC32: 3.2272 | AD32: 3.1316 | AE32: =IF(AE$29>AE$34,AE$29+(ABS(AE$34-AE$29))/5*(ROW(Y$29)-ROW(Y32)),AE$29-(ABS(AE$34-AE$29))/5*(ROW(Y$29)-ROW(Y32))) -> 3.036 | AQ32: 8 | AR32: =IF(Berechnung!$E$6=Berechnung!$E$9,HLOOKUP(Berechnung!$N$6,MatrixLuft!$AU$3:$CD$1114,FIXED(ROW(AQ32)-2,0),FALSE),"0") -> 0 | AS32: =IF(Berechnung!$E$6=Berechnung!$E$9,HLOOKUP($D$3,MatrixLuft!$AU$3:$CD$1114,FIXED(ROW(AQ32)-2,0),FALSE),"0") -> 0 | AT32: =IF(Berechnung!$E$6=Berechnung!$E$9,HLOOKUP($E$3,MatrixLuft!$AU$3:$CD$1114,FIXED(ROW(AQ32)-2,0),FALSE),"0") -> 0
A33: 9 | B33: =VLOOKUP(F2,Berechnung!$G$9:$H$62,2,FALSE)&"30" ->  | C33: =IF(Berechnung!$E$6=Berechnung!$E$9,Berechnung!$F$7*HLOOKUP(Berechnung!$N$6,MatrixLuft!$F$3:$AO$1114,FIXED(ROW(A33)-2,0),FALSE),"0") -> 4.784 | D33: =IF(Berechnung!$E$6=Berechnung!$E$9,Berechnung!$F$7*HLOOKUP($D$3,MatrixLuft!$F$3:$AO$1114,FIXED(ROW(A33)-2,0),FALSE),"0") -> 4.784 | E33: =IF(Berechnung!$E$6=Berechnung!$E$9,Berechnung!$F$7*HLOOKUP($E$3,MatrixLuft!$F$3:$AO$1114,FIXED(ROW(A33)-2,0),FALSE),"0") -> 2.908 | F33: =IF($F$29>$F$34,$F$29+(ABS($F$34-$F$29))/5*($A$29-A33),$F$29-(ABS($F$34-$F$29))/5*($A$29-A33)) -> 5.178 | G33: 5.0992 | H33: 5.0204 | I33: 4.9416 | J33: 4.8628 | K33: =IF(K$29>K$34,K$29+(ABS(K$34-K$29))/5*(ROW(A$29)-ROW(A33)),K$29-(ABS(K$34-K$29))/5*(ROW(A$29)-ROW(A33))) -> 4.784 | L33: 4.7052 | M33: 4.6264 | N33: 4.5476 | O33: 4.4688 | P33: =IF(P$29>P$34,P$29+(ABS(P$34-P$29))/5*(ROW(J$29)-ROW(J33)),P$29-(ABS(P$34-P$29))/5*(ROW(J$29)-ROW(J33))) -> 4.39 | Q33: 4.3112 | R33: 4.2324 | S33: 4.1536 | T33: 4.0748 | U33: =IF(U$29>U$34,U$29+(ABS(U$34-U$29))/5*(ROW(O$29)-ROW(O33)),U$29-(ABS(U$34-U$29))/5*(ROW(O$29)-ROW(O33))) -> 3.996 | V33: 3.8872 | W33: 3.7784 | X33: 3.6696 | Y33: 3.5608 | Z33: =IF(Z$29>Z$34,Z$29+(ABS(Z$34-Z$29))/5*(ROW(T$29)-ROW(T33)),Z$29-(ABS(Z$34-Z$29))/5*(ROW(T$29)-ROW(T33))) -> 3.452 | AA33: 3.3432 | AB33: 3.2344 | AC33: 3.1256 | AD33: 3.0168 | AE33: =IF(AE$29>AE$34,AE$29+(ABS(AE$34-AE$29))/5*(ROW(Y$29)-ROW(Y33)),AE$29-(ABS(AE$34-AE$29))/5*(ROW(Y$29)-ROW(Y33))) -> 2.908 | AQ33: 9 | AR33: =IF(Berechnung!$E$6=Berechnung!$E$9,HLOOKUP(Berechnung!$N$6,MatrixLuft!$AU$3:$CD$1114,FIXED(ROW(AQ33)-2,0),FALSE),"0") -> 0 | AS33: =IF(Berechnung!$E$6=Berechnung!$E$9,HLOOKUP($D$3,MatrixLuft!$AU$3:$CD$1114,FIXED(ROW(AQ33)-2,0),FALSE),"0") -> 0 | AT33: =IF(Berechnung!$E$6=Berechnung!$E$9,HLOOKUP($E$3,MatrixLuft!$AU$3:$CD$1114,FIXED(ROW(AQ33)-2,0),FALSE),"0") -> 0
A34: 10 | B34: =VLOOKUP(F2,Berechnung!$G$9:$H$62,2,FALSE)&"31" ->  | C34: =IF(Berechnung!$E$6=Berechnung!$E$9,Berechnung!$F$7*HLOOKUP(Berechnung!$N$6,MatrixLuft!$F$3:$AO$1114,FIXED(ROW(A34)-2,0),FALSE),"0") -> 4.97 | D34: =IF(Berechnung!$E$6=Berechnung!$E$9,Berechnung!$F$7*HLOOKUP($D$3,MatrixLuft!$F$3:$AO$1114,FIXED(ROW(A34)-2,0),FALSE),"0") -> 4.97 | E34: =IF(Berechnung!$E$6=Berechnung!$E$9,Berechnung!$F$7*HLOOKUP($E$3,MatrixLuft!$F$3:$AO$1114,FIXED(ROW(A34)-2,0),FALSE),"0") -> 2.78 | F34: 5.455 | G34: 5.358 | H34: 5.261 | I34: 5.164 | J34: 5.067 | K34: 4.97 | L34: 4.873 | M34: 4.776 | N34: 4.679 | O34: 4.582 | P34: 4.485 | Q34: 4.388 | R34: 4.291 | S34: 4.194 | T34: 4.097 | U34: 4 | V34: 3.878 | W34: 3.756 | X34: 3.634 | Y34: 3.512 | Z34: 3.39 | AA34: 3.268 | AB34: 3.146 | AC34: 3.024 | AD34: 2.902 | AE34: 2.78 | AQ34: 10 | AR34: =IF(Berechnung!$E$6=Berechnung!$E$9,HLOOKUP(Berechnung!$N$6,MatrixLuft!$AU$3:$CD$1114,FIXED(ROW(AQ34)-2,0),FALSE),"0") -> 4.3 | AS34: =IF(Berechnung!$E$6=Berechnung!$E$9,HLOOKUP($D$3,MatrixLuft!$AU$3:$CD$1114,FIXED(ROW(AQ34)-2,0),FALSE),"0") -> 4.3 | AT34: =IF(Berechnung!$E$6=Berechnung!$E$9,HLOOKUP($E$3,MatrixLuft!$AU$3:$CD$1114,FIXED(ROW(AQ34)-2,0),FALSE),"0") -> 0 | AZ34: 4.3
A35: 11 | B35: =VLOOKUP(F2,Berechnung!$G$9:$H$62,2,FALSE)&"32" ->  | C35: =IF(Berechnung!$E$6=Berechnung!$E$9,Berechnung!$F$7*HLOOKUP(Berechnung!$N$6,MatrixLuft!$F$3:$AO$1114,FIXED(ROW(A35)-2,0),FALSE),"0") -> 5.017 | D35: =IF(Berechnung!$E$6=Berechnung!$E$9,Berechnung!$F$7*HLOOKUP($D$3,MatrixLuft!$F$3:$AO$1114,FIXED(ROW(A35)-2,0),FALSE),"0") -> 5.017 | E35: =IF(Berechnung!$E$6=Berechnung!$E$9,Berechnung!$F$7*HLOOKUP($E$3,MatrixLuft!$F$3:$AO$1114,FIXED(ROW(A35)-2,0),FALSE),"0") -> 2.822 | F35: =IF($F$34>$F$39,$F$34+(ABS($F$39-$F$34))/5*($A$34-$A35),$F$34-(ABS($F$39-$F$34))/5*($A$34-$A35)) -> 5.5185 | G35: 5.4182 | H35: 5.3179 | J35: 5.1173 | K35: =IF(K$34>K$39,K$34+(ABS(K$39-K$34))/5*(ROW(A$34)-ROW(A35)),K$34-(ABS(K$39-K$34))/5*(ROW(A$34)-ROW(A35))) -> 5.017 | L35: 4.9167 | M35: 4.8164 | N35: 4.7161 | O35: 4.6158 | P35: =IF(P$34>P$39,P$34+(ABS(P$39-P$34))/5*(ROW(J$34)-ROW(J35)),P$34-(ABS(P$39-P$34))/5*(ROW(J$34)-ROW(J35))) -> 4.5155 | Q35: 4.4152 | R35: 4.3149 | S35: 4.2146 | T35: 4.1143 | U35: =IF(U$34>U$39,U$34+(ABS(U$39-U$34))/5*(ROW(O$34)-ROW(O35)),U$34-(ABS(U$39-U$34))/5*(ROW(O$34)-ROW(O35))) -> 4.014 | V35: 3.8948 | W35: 3.7756 | X35: 3.6564 | Y35: 3.5372 | Z35: =IF(Z$34>Z$39,Z$34+(ABS(Z$39-Z$34))/5*(ROW(T$34)-ROW(T35)),Z$34-(ABS(Z$39-Z$34))/5*(ROW(T$34)-ROW(T35))) -> 3.418 | AA35: 3.2988 | AB35: 3.1796 | AC35: 3.0604 | AD35: 2.9412 | AE35: =IF(AE$34>AE$39,AE$34+(ABS(AE$39-AE$34))/5*(ROW(Y$34)-ROW(Y35)),AE$34-(ABS(AE$39-AE$34))/5*(ROW(Y$34)-ROW(Y35))) -> 2.822 | AQ35: 11 | AR35: =IF(Berechnung!$E$6=Berechnung!$E$9,HLOOKUP(Berechnung!$N$6,MatrixLuft!$AU$3:$CD$1114,FIXED(ROW(AQ35)-2,0),FALSE),"0") -> 0 | AS35: =IF(Berechnung!$E$6=Berechnung!$E$9,HLOOKUP($D$3,MatrixLuft!$AU$3:$CD$1114,FIXED(ROW(AQ35)-2,0),FALSE),"0") -> 0 | AT35: =IF(Berechnung!$E$6=Berechnung!$E$9,HLOOKUP($E$3,MatrixLuft!$AU$3:$CD$1114,FIXED(ROW(AQ35)-2,0),FALSE),"0") -> 0
A36: 12 | B36: =VLOOKUP(F2,Berechnung!$G$9:$H$62,2,FALSE)&"33" ->  | C36: =IF(Berechnung!$E$6=Berechnung!$E$9,Berechnung!$F$7*HLOOKUP(Berechnung!$N$6,MatrixLuft!$F$3:$AO$1114,FIXED(ROW(A36)-2,0),FALSE),"0") -> 5.064 | D36: =IF(Berechnung!$E$6=Berechnung!$E$9,Berechnung!$F$7*HLOOKUP($D$3,MatrixLuft!$F$3:$AO$1114,FIXED(ROW(A36)-2,0),FALSE),"0") -> 5.064 | E36: =IF(Berechnung!$E$6=Berechnung!$E$9,Berechnung!$F$7*HLOOKUP($E$3,MatrixLuft!$F$3:$AO$1114,FIXED(ROW(A36)-2,0),FALSE),"0") -> 2.864 | F36: =IF($F$34>$F$39,$F$34+(ABS($F$39-$F$34))/5*($A$34-A36),$F$34-(ABS($F$39-$F$34))/5*($A$34-A36)) -> 5.582 | G36: 5.4784 | H36: 5.3748 | I36: 5.2712 | J36: 5.1676 | K36: =IF(K$34>K$39,K$34+(ABS(K$39-K$34))/5*(ROW(A$34)-ROW(A36)),K$34-(ABS(K$39-K$34))/5*(ROW(A$34)-ROW(A36))) -> 5.064 | L36: 4.9604 | M36: 4.8568 | N36: 4.7532 | O36: 4.6496 | P36: =IF(P$34>P$39,P$34+(ABS(P$39-P$34))/5*(ROW(J$34)-ROW(J36)),P$34-(ABS(P$39-P$34))/5*(ROW(J$34)-ROW(J36))) -> 4.546 | Q36: 4.4424 | R36: 4.3388 | S36: 4.2352 | T36: 4.1316 | U36: =IF(U$34>U$39,U$34+(ABS(U$39-U$34))/5*(ROW(O$34)-ROW(O36)),U$34-(ABS(U$39-U$34))/5*(ROW(O$34)-ROW(O36))) -> 4.028 | V36: 3.9116 | W36: 3.7952 | X36: 3.6788 | Y36: 3.5624 | Z36: =IF(Z$34>Z$39,Z$34+(ABS(Z$39-Z$34))/5*(ROW(T$34)-ROW(T36)),Z$34-(ABS(Z$39-Z$34))/5*(ROW(T$34)-ROW(T36))) -> 3.446 | AA36: 3.3296 | AB36: 3.2132 | AC36: 3.0968 | AD36: 2.9804 | AE36: =IF(AE$34>AE$39,AE$34+(ABS(AE$39-AE$34))/5*(ROW(Y$34)-ROW(Y36)),AE$34-(ABS(AE$39-AE$34))/5*(ROW(Y$34)-ROW(Y36))) -> 2.864 | AQ36: 12 | AR36: =IF(Berechnung!$E$6=Berechnung!$E$9,HLOOKUP(Berechnung!$N$6,MatrixLuft!$AU$3:$CD$1114,FIXED(ROW(AQ36)-2,0),FALSE),"0") -> 0 | AS36: =IF(Berechnung!$E$6=Berechnung!$E$9,HLOOKUP($D$3,MatrixLuft!$AU$3:$CD$1114,FIXED(ROW(AQ36)-2,0),FALSE),"0") -> 0 | AT36: =IF(Berechnung!$E$6=Berechnung!$E$9,HLOOKUP($E$3,MatrixLuft!$AU$3:$CD$1114,FIXED(ROW(AQ36)-2,0),FALSE),"0") -> 0
A37: 13 | B37: =VLOOKUP(F2,Berechnung!$G$9:$H$62,2,FALSE)&"34" ->  | C37: =IF(Berechnung!$E$6=Berechnung!$E$9,Berechnung!$F$7*HLOOKUP(Berechnung!$N$6,MatrixLuft!$F$3:$AO$1114,FIXED(ROW(A37)-2,0),FALSE),"0") -> 5.111 | D37: =IF(Berechnung!$E$6=Berechnung!$E$9,Berechnung!$F$7*HLOOKUP($D$3,MatrixLuft!$F$3:$AO$1114,FIXED(ROW(A37)-2,0),FALSE),"0") -> 5.111 | E37: =IF(Berechnung!$E$6=Berechnung!$E$9,Berechnung!$F$7*HLOOKUP($E$3,MatrixLuft!$F$3:$AO$1114,FIXED(ROW(A37)-2,0),FALSE),"0") -> 2.906 | F37: =IF($F$34>$F$39,$F$34+(ABS($F$39-$F$34))/5*($A$34-A37),$F$34-(ABS($F$39-$F$34))/5*($A$34-A37)) -> 5.6455 | G37: 5.5386 | H37: 5.4317 | I37: 5.3248 | J37: 5.2179 | K37: =IF(K$34>K$39,K$34+(ABS(K$39-K$34))/5*(ROW(A$34)-ROW(A37)),K$34-(ABS(K$39-K$34))/5*(ROW(A$34)-ROW(A37))) -> 5.111 | L37: 5.0041 | M37: 4.8972 | N37: 4.7903 | O37: 4.6834 | P37: =IF(P$34>P$39,P$34+(ABS(P$39-P$34))/5*(ROW(J$34)-ROW(J37)),P$34-(ABS(P$39-P$34))/5*(ROW(J$34)-ROW(J37))) -> 4.5765 | Q37: 4.4696 | R37: 4.3627 | S37: 4.2558 | T37: 4.1489 | U37: =IF(U$34>U$39,U$34+(ABS(U$39-U$34))/5*(ROW(O$34)-ROW(O37)),U$34-(ABS(U$39-U$34))/5*(ROW(O$34)-ROW(O37))) -> 4.042 | V37: 3.9284 | W37: 3.8148 | X37: 3.7012 | Y37: 3.5876 | Z37: =IF(Z$34>Z$39,Z$34+(ABS(Z$39-Z$34))/5*(ROW(T$34)-ROW(T37)),Z$34-(ABS(Z$39-Z$34))/5*(ROW(T$34)-ROW(T37))) -> 3.474 | AA37: 3.3604 | AB37: 3.2468 | AC37: 3.1332 | AD37: 3.0196 | AE37: =IF(AE$34>AE$39,AE$34+(ABS(AE$39-AE$34))/5*(ROW(Y$34)-ROW(Y37)),AE$34-(ABS(AE$39-AE$34))/5*(ROW(Y$34)-ROW(Y37))) -> 2.906 | AQ37: 13 | AR37: =IF(Berechnung!$E$6=Berechnung!$E$9,HLOOKUP(Berechnung!$N$6,MatrixLuft!$AU$3:$CD$1114,FIXED(ROW(AQ37)-2,0),FALSE),"0") -> 0 | AS37: =IF(Berechnung!$E$6=Berechnung!$E$9,HLOOKUP($D$3,MatrixLuft!$AU$3:$CD$1114,FIXED(ROW(AQ37)-2,0),FALSE),"0") -> 0 | AT37: =IF(Berechnung!$E$6=Berechnung!$E$9,HLOOKUP($E$3,MatrixLuft!$AU$3:$CD$1114,FIXED(ROW(AQ37)-2,0),FALSE),"0") -> 0
A38: 14 | B38: =VLOOKUP(F2,Berechnung!$G$9:$H$62,2,FALSE)&"35" ->  | C38: =IF(Berechnung!$E$6=Berechnung!$E$9,Berechnung!$F$7*HLOOKUP(Berechnung!$N$6,MatrixLuft!$F$3:$AO$1114,FIXED(ROW(A38)-2,0),FALSE),"0") -> 5.158 | D38: =IF(Berechnung!$E$6=Berechnung!$E$9,Berechnung!$F$7*HLOOKUP($D$3,MatrixLuft!$F$3:$AO$1114,FIXED(ROW(A38)-2,0),FALSE),"0") -> 5.158 | E38: =IF(Berechnung!$E$6=Berechnung!$E$9,Berechnung!$F$7*HLOOKUP($E$3,MatrixLuft!$F$3:$AO$1114,FIXED(ROW(A38)-2,0),FALSE),"0") -> 2.948 | F38: =IF($F$34>$F$39,$F$34+(ABS($F$39-$F$34))/5*($A$34-A38),$F$34-(ABS($F$39-$F$34))/5*($A$34-A38)) -> 5.709 | G38: 5.5988 | H38: 5.4886 | I38: 5.3784 | J38: 5.2682 | K38: =IF(K$34>K$39,K$34+(ABS(K$39-K$34))/5*(ROW(A$34)-ROW(A38)),K$34-(ABS(K$39-K$34))/5*(ROW(A$34)-ROW(A38))) -> 5.158 | L38: 5.0478 | M38: 4.9376 | N38: 4.8274 | O38: 4.7172 | P38: =IF(P$34>P$39,P$34+(ABS(P$39-P$34))/5*(ROW(J$34)-ROW(J38)),P$34-(ABS(P$39-P$34))/5*(ROW(J$34)-ROW(J38))) -> 4.607 | Q38: 4.4968 | R38: 4.3866 | S38: 4.2764 | T38: 4.1662 | U38: =IF(U$34>U$39,U$34+(ABS(U$39-U$34))/5*(ROW(O$34)-ROW(O38)),U$34-(ABS(U$39-U$34))/5*(ROW(O$34)-ROW(O38))) -> 4.056 | V38: 3.9452 | W38: 3.8344 | X38: 3.7236 | Y38: 3.6128 | Z38: =IF(Z$34>Z$39,Z$34+(ABS(Z$39-Z$34))/5*(ROW(T$34)-ROW(T38)),Z$34-(ABS(Z$39-Z$34))/5*(ROW(T$34)-ROW(T38))) -> 3.502 | AA38: 3.3912 | AB38: 3.2804 | AC38: 3.1696 | AD38: 3.0588 | AE38: =IF(AE$34>AE$39,AE$34+(ABS(AE$39-AE$34))/5*(ROW(Y$34)-ROW(Y38)),AE$34-(ABS(AE$39-AE$34))/5*(ROW(Y$34)-ROW(Y38))) -> 2.948 | AQ38: 14 | AR38: =IF(Berechnung!$E$6=Berechnung!$E$9,HLOOKUP(Berechnung!$N$6,MatrixLuft!$AU$3:$CD$1114,FIXED(ROW(AQ38)-2,0),FALSE),"0") -> 0 | AS38: =IF(Berechnung!$E$6=Berechnung!$E$9,HLOOKUP($D$3,MatrixLuft!$AU$3:$CD$1114,FIXED(ROW(AQ38)-2,0),FALSE),"0") -> 0 | AT38: =IF(Berechnung!$E$6=Berechnung!$E$9,HLOOKUP($E$3,MatrixLuft!$AU$3:$CD$1114,FIXED(ROW(AQ38)-2,0),FALSE),"0") -> 0
A39: 15 | B39: =VLOOKUP(F2,Berechnung!$G$9:$H$62,2,FALSE)&"36" ->  | C39: =IF(Berechnung!$E$6=Berechnung!$E$9,Berechnung!$F$7*HLOOKUP(Berechnung!$N$6,MatrixLuft!$F$3:$AO$1114,FIXED(ROW(A39)-2,0),FALSE),"0") -> 5.205 | D39: =IF(Berechnung!$E$6=Berechnung!$E$9,Berechnung!$F$7*HLOOKUP($D$3,MatrixLuft!$F$3:$AO$1114,FIXED(ROW(A39)-2,0),FALSE),"0") -> 5.205 | E39: =IF(Berechnung!$E$6=Berechnung!$E$9,Berechnung!$F$7*HLOOKUP($E$3,MatrixLuft!$F$3:$AO$1114,FIXED(ROW(A39)-2,0),FALSE),"0") -> 2.99 | F39: 5.7725 | G39: 5.659 | H39: 5.5455 | I39: 5.432 | J39: 5.3185 | K39: 5.205 | L39: 5.0915 | M39: 4.978 | N39: 4.8645 | O39: 4.751 | P39: 4.6375 | Q39: 4.524 | R39: 4.4105 | S39: 4.297 | T39: 4.1835 | U39: 4.07 | V39: 3.962 | W39: 3.854 | X39: 3.746 | Y39: 3.638 | Z39: 3.53 | AA39: 3.422 | AB39: 3.314 | AC39: 3.206 | AD39: 3.098 | AE39: 2.99 | AQ39: 15 | AR39: =IF(Berechnung!$E$6=Berechnung!$E$9,HLOOKUP(Berechnung!$N$6,MatrixLuft!$AU$3:$CD$1114,FIXED(ROW(AQ39)-2,0),FALSE),"0") -> 0 | AS39: =IF(Berechnung!$E$6=Berechnung!$E$9,HLOOKUP($D$3,MatrixLuft!$AU$3:$CD$1114,FIXED(ROW(AQ39)-2,0),FALSE),"0") -> 0 | AT39: =IF(Berechnung!$E$6=Berechnung!$E$9,HLOOKUP($E$3,MatrixLuft!$AU$3:$CD$1114,FIXED(ROW(AQ39)-2,0),FALSE),"0") -> 0
A40: 16 | B40: =VLOOKUP(F2,Berechnung!$G$9:$H$62,2,FALSE)&"37" ->  | C40: =IF(Berechnung!$E$6=Berechnung!$E$9,Berechnung!$F$7*HLOOKUP(Berechnung!$N$6,MatrixLuft!$F$3:$AO$1114,FIXED(ROW(A40)-2,0),FALSE),"0") -> 5.252 | D40: =IF(Berechnung!$E$6=Berechnung!$E$9,Berechnung!$F$7*HLOOKUP($D$3,MatrixLuft!$F$3:$AO$1114,FIXED(ROW(A40)-2,0),FALSE),"0") -> 5.252 | E40: =IF(Berechnung!$E$6=Berechnung!$E$9,Berechnung!$F$7*HLOOKUP($E$3,MatrixLuft!$F$3:$AO$1114,FIXED(ROW(A40)-2,0),FALSE),"0") -> 3.032 | F40: =IF($F$39>$F$44,$F$39+(ABS($F$44-$F$39))/5*($A$39-$A40),$F$39-(ABS($F$44-$F$39))/5*($A$39-$A40)) -> 5.836 | G40: 5.7192 | H40: 5.6024 | I40: 5.4856 | J40: 5.3688 | K40: =IF(K$39>K$44,K$39+(ABS(K$44-K$39))/5*(ROW(A$39)-ROW(A40)),K$39-(ABS(K$44-K$39))/5*(ROW(A$39)-ROW(A40))) -> 5.252 | L40: 5.1352 | M40: 5.0184 | N40: 4.9016 | O40: 4.7848 | P40: =IF(P$39>P$44,P$39+(ABS(P$44-P$39))/5*(ROW(J$39)-ROW(J40)),P$39-(ABS(P$44-P$39))/5*(ROW(J$39)-ROW(J40))) -> 4.668 | Q40: 4.5512 | R40: 4.4344 | S40: 4.3176 | T40: 4.2008 | U40: =IF(U$39>U$44,U$39+(ABS(U$44-U$39))/5*(ROW(O$39)-ROW(O40)),U$39-(ABS(U$44-U$39))/5*(ROW(O$39)-ROW(O40))) -> 4.084 | V40: 3.9788 | W40: 3.8736 | X40: 3.7684 | Y40: 3.6632 | Z40: =IF(Z$39>Z$44,Z$39+(ABS(Z$44-Z$39))/5*(ROW(T$39)-ROW(T40)),Z$39-(ABS(Z$44-Z$39))/5*(ROW(T$39)-ROW(T40))) -> 3.558 | AA40: 3.4528 | AB40: 3.3476 | AC40: 3.2424 | AD40: 3.1372 | AE40: =IF(AE$39>AE$44,AE$39+(ABS(AE$44-AE$39))/5*(ROW(Y$39)-ROW(Y40)),AE$39-(ABS(AE$44-AE$39))/5*(ROW(Y$39)-ROW(Y40))) -> 3.032 | AQ40: 16 | AR40: =IF(Berechnung!$E$6=Berechnung!$E$9,HLOOKUP(Berechnung!$N$6,MatrixLuft!$AU$3:$CD$1114,FIXED(ROW(AQ40)-2,0),FALSE),"0") -> 0 | AS40: =IF(Berechnung!$E$6=Berechnung!$E$9,HLOOKUP($D$3,MatrixLuft!$AU$3:$CD$1114,FIXED(ROW(AQ40)-2,0),FALSE),"0") -> 0 | AT40: =IF(Berechnung!$E$6=Berechnung!$E$9,HLOOKUP($E$3,MatrixLuft!$AU$3:$CD$1114,FIXED(ROW(AQ40)-2,0),FALSE),"0") -> 0
A41: 17 | B41: =VLOOKUP(F2,Berechnung!$G$9:$H$62,2,FALSE)&"38" ->  | C41: =IF(Berechnung!$E$6=Berechnung!$E$9,Berechnung!$F$7*HLOOKUP(Berechnung!$N$6,MatrixLuft!$F$3:$AO$1114,FIXED(ROW(A41)-2,0),FALSE),"0") -> 5.299 | D41: =IF(Berechnung!$E$6=Berechnung!$E$9,Berechnung!$F$7*HLOOKUP($D$3,MatrixLuft!$F$3:$AO$1114,FIXED(ROW(A41)-2,0),FALSE),"0") -> 5.299 | E41: =IF(Berechnung!$E$6=Berechnung!$E$9,Berechnung!$F$7*HLOOKUP($E$3,MatrixLuft!$F$3:$AO$1114,FIXED(ROW(A41)-2,0),FALSE),"0") -> 3.074 | F41: =IF($F$39>$F$44,$F$39+(ABS($F$44-$F$39))/5*($A$39-A41),$F$39-(ABS($F$44-$F$39))/5*($A$39-A41)) -> 5.8995 | G41: 5.7794 | H41: 5.6593 | I41: 5.5392 | J41: 5.4191 | K41: =IF(K$39>K$44,K$39+(ABS(K$44-K$39))/5*(ROW(A$39)-ROW(A41)),K$39-(ABS(K$44-K$39))/5*(ROW(A$39)-ROW(A41))) -> 5.299 | L41: 5.1789 | M41: 5.0588 | N41: 4.9387 | O41: 4.8186 | P41: =IF(P$39>P$44,P$39+(ABS(P$44-P$39))/5*(ROW(J$39)-ROW(J41)),P$39-(ABS(P$44-P$39))/5*(ROW(J$39)-ROW(J41))) -> 4.6985 | Q41: 4.5784 | R41: 4.4583 | S41: 4.3382 | T41: 4.2181 | U41: =IF(U$39>U$44,U$39+(ABS(U$44-U$39))/5*(ROW(O$39)-ROW(O41)),U$39-(ABS(U$44-U$39))/5*(ROW(O$39)-ROW(O41))) -> 4.098 | V41: 3.9956 | W41: 3.8932 | X41: 3.7908 | Y41: 3.6884 | Z41: =IF(Z$39>Z$44,Z$39+(ABS(Z$44-Z$39))/5*(ROW(T$39)-ROW(T41)),Z$39-(ABS(Z$44-Z$39))/5*(ROW(T$39)-ROW(T41))) -> 3.586 | AA41: 3.4836 | AB41: 3.3812 | AC41: 3.2788 | AD41: 3.1764 | AE41: =IF(AE$39>AE$44,AE$39+(ABS(AE$44-AE$39))/5*(ROW(Y$39)-ROW(Y41)),AE$39-(ABS(AE$44-AE$39))/5*(ROW(Y$39)-ROW(Y41))) -> 3.074 | AQ41: 17 | AR41: =IF(Berechnung!$E$6=Berechnung!$E$9,HLOOKUP(Berechnung!$N$6,MatrixLuft!$AU$3:$CD$1114,FIXED(ROW(AQ41)-2,0),FALSE),"0") -> 0 | AS41: =IF(Berechnung!$E$6=Berechnung!$E$9,HLOOKUP($D$3,MatrixLuft!$AU$3:$CD$1114,FIXED(ROW(AQ41)-2,0),FALSE),"0") -> 0 | AT41: =IF(Berechnung!$E$6=Berechnung!$E$9,HLOOKUP($E$3,MatrixLuft!$AU$3:$CD$1114,FIXED(ROW(AQ41)-2,0),FALSE),"0") -> 0
A42: 18 | B42: =VLOOKUP(F2,Berechnung!$G$9:$H$62,2,FALSE)&"39" ->  | C42: =IF(Berechnung!$E$6=Berechnung!$E$9,Berechnung!$F$7*HLOOKUP(Berechnung!$N$6,MatrixLuft!$F$3:$AO$1114,FIXED(ROW(A42)-2,0),FALSE),"0") -> 5.346 | D42: =IF(Berechnung!$E$6=Berechnung!$E$9,Berechnung!$F$7*HLOOKUP($D$3,MatrixLuft!$F$3:$AO$1114,FIXED(ROW(A42)-2,0),FALSE),"0") -> 5.346 | E42: =IF(Berechnung!$E$6=Berechnung!$E$9,Berechnung!$F$7*HLOOKUP($E$3,MatrixLuft!$F$3:$AO$1114,FIXED(ROW(A42)-2,0),FALSE),"0") -> 3.116 | F42: =IF($F$39>$F$44,$F$39+(ABS($F$44-$F$39))/5*($A$39-A42),$F$39-(ABS($F$44-$F$39))/5*($A$39-A42)) -> 5.963 | G42: 5.8396 | H42: 5.7162 | I42: 5.5928 | J42: 5.4694 | K42: =IF(K$39>K$44,K$39+(ABS(K$44-K$39))/5*(ROW(A$39)-ROW(A42)),K$39-(ABS(K$44-K$39))/5*(ROW(A$39)-ROW(A42))) -> 5.346 | L42: 5.2226 | M42: 5.0992 | N42: 4.9758 | O42: 4.8524 | P42: =IF(P$39>P$44,P$39+(ABS(P$44-P$39))/5*(ROW(J$39)-ROW(J42)),P$39-(ABS(P$44-P$39))/5*(ROW(J$39)-ROW(J42))) -> 4.729 | Q42: 4.6056 | R42: 4.4822 | S42: 4.3588 | T42: 4.2354 | U42: =IF(U$39>U$44,U$39+(ABS(U$44-U$39))/5*(ROW(O$39)-ROW(O42)),U$39-(ABS(U$44-U$39))/5*(ROW(O$39)-ROW(O42))) -> 4.112 | V42: 4.0124 | W42: 3.9128 | X42: 3.8132 | Y42: 3.7136 | Z42: =IF(Z$39>Z$44,Z$39+(ABS(Z$44-Z$39))/5*(ROW(T$39)-ROW(T42)),Z$39-(ABS(Z$44-Z$39))/5*(ROW(T$39)-ROW(T42))) -> 3.614 | AA42: 3.5144 | AB42: 3.4148 | AC42: 3.3152 | AD42: 3.2156 | AE42: =IF(AE$39>AE$44,AE$39+(ABS(AE$44-AE$39))/5*(ROW(Y$39)-ROW(Y42)),AE$39-(ABS(AE$44-AE$39))/5*(ROW(Y$39)-ROW(Y42))) -> 3.116 | AQ42: 18 | AR42: =IF(Berechnung!$E$6=Berechnung!$E$9,HLOOKUP(Berechnung!$N$6,MatrixLuft!$AU$3:$CD$1114,FIXED(ROW(AQ42)-2,0),FALSE),"0") -> 0 | AS42: =IF(Berechnung!$E$6=Berechnung!$E$9,HLOOKUP($D$3,MatrixLuft!$AU$3:$CD$1114,FIXED(ROW(AQ42)-2,0),FALSE),"0") -> 0 | AT42: =IF(Berechnung!$E$6=Berechnung!$E$9,HLOOKUP($E$3,MatrixLuft!$AU$3:$CD$1114,FIXED(ROW(AQ42)-2,0),FALSE),"0") -> 0
A43: 19 | B43: =VLOOKUP(F2,Berechnung!$G$9:$H$62,2,FALSE)&"40" ->  | C43: =IF(Berechnung!$E$6=Berechnung!$E$9,Berechnung!$F$7*HLOOKUP(Berechnung!$N$6,MatrixLuft!$F$3:$AO$1114,FIXED(ROW(A43)-2,0),FALSE),"0") -> 5.393 | D43: =IF(Berechnung!$E$6=Berechnung!$E$9,Berechnung!$F$7*HLOOKUP($D$3,MatrixLuft!$F$3:$AO$1114,FIXED(ROW(A43)-2,0),FALSE),"0") -> 5.393 | E43: =IF(Berechnung!$E$6=Berechnung!$E$9,Berechnung!$F$7*HLOOKUP($E$3,MatrixLuft!$F$3:$AO$1114,FIXED(ROW(A43)-2,0),FALSE),"0") -> 3.158 | F43: =IF($F$39>$F$44,$F$39+(ABS($F$44-$F$39))/5*($A$39-A43),$F$39-(ABS($F$44-$F$39))/5*($A$39-A43)) -> 6.0265 | G43: 5.8998 | H43: 5.7731 | I43: 5.6464 | J43: 5.5197 | K43: =IF(K$39>K$44,K$39+(ABS(K$44-K$39))/5*(ROW(A$39)-ROW(A43)),K$39-(ABS(K$44-K$39))/5*(ROW(A$39)-ROW(A43))) -> 5.393 | L43: 5.2663 | M43: 5.1396 | N43: 5.0129 | O43: 4.8862 | P43: =IF(P$39>P$44,P$39+(ABS(P$44-P$39))/5*(ROW(J$39)-ROW(J43)),P$39-(ABS(P$44-P$39))/5*(ROW(J$39)-ROW(J43))) -> 4.7595 | Q43: 4.6328 | R43: 4.5061 | S43: 4.3794 | T43: 4.2527 | U43: =IF(U$39>U$44,U$39+(ABS(U$44-U$39))/5*(ROW(O$39)-ROW(O43)),U$39-(ABS(U$44-U$39))/5*(ROW(O$39)-ROW(O43))) -> 4.126 | V43: 4.0292 | W43: 3.9324 | X43: 3.8356 | Y43: 3.7388 | Z43: =IF(Z$39>Z$44,Z$39+(ABS(Z$44-Z$39))/5*(ROW(T$39)-ROW(T43)),Z$39-(ABS(Z$44-Z$39))/5*(ROW(T$39)-ROW(T43))) -> 3.642 | AA43: 3.5452 | AB43: 3.4484 | AC43: 3.3516 | AD43: 3.2548 | AE43: =IF(AE$39>AE$44,AE$39+(ABS(AE$44-AE$39))/5*(ROW(Y$39)-ROW(Y43)),AE$39-(ABS(AE$44-AE$39))/5*(ROW(Y$39)-ROW(Y43))) -> 3.158 | AQ43: 19 | AR43: =IF(Berechnung!$E$6=Berechnung!$E$9,HLOOKUP(Berechnung!$N$6,MatrixLuft!$AU$3:$CD$1114,FIXED(ROW(AQ43)-2,0),FALSE),"0") -> 0 | AS43: =IF(Berechnung!$E$6=Berechnung!$E$9,HLOOKUP($D$3,MatrixLuft!$AU$3:$CD$1114,FIXED(ROW(AQ43)-2,0),FALSE),"0") -> 0 | AT43: =IF(Berechnung!$E$6=Berechnung!$E$9,HLOOKUP($E$3,MatrixLuft!$AU$3:$CD$1114,FIXED(ROW(AQ43)-2,0),FALSE),"0") -> 0
A44: 20 | B44: =VLOOKUP(F2,Berechnung!$G$9:$H$62,2,FALSE)&"41" ->  | C44: =IF(Berechnung!$E$6=Berechnung!$E$9,Berechnung!$F$7*HLOOKUP(Berechnung!$N$6,MatrixLuft!$F$3:$AO$1114,FIXED(ROW(A44)-2,0),FALSE),"0") -> 5.44 | D44: =IF(Berechnung!$E$6=Berechnung!$E$9,Berechnung!$F$7*HLOOKUP($D$3,MatrixLuft!$F$3:$AO$1114,FIXED(ROW(A44)-2,0),FALSE),"0") -> 5.44 | E44: =IF(Berechnung!$E$6=Berechnung!$E$9,Berechnung!$F$7*HLOOKUP($E$3,MatrixLuft!$F$3:$AO$1114,FIXED(ROW(A44)-2,0),FALSE),"0") -> 3.2 | F44: 6.09 | G44: 5.96 | H44: 5.83 | I44: 5.7 | J44: 5.57 | K44: 5.44 | L44: 5.31 | M44: 5.18 | N44: 5.05 | O44: 4.92 | P44: 4.79 | Q44: 4.66 | R44: 4.53 | S44: 4.4 | T44: 4.27 | U44: 4.14 | V44: 4.046 | W44: 3.952 | X44: 3.858 | Y44: 3.764 | Z44: 3.67 | AA44: 3.576 | AB44: 3.482 | AC44: 3.388 | AD44: 3.294 | AE44: 3.2 | AQ44: 20 | AR44: =IF(Berechnung!$E$6=Berechnung!$E$9,HLOOKUP(Berechnung!$N$6,MatrixLuft!$AU$3:$CD$1114,FIXED(ROW(AQ44)-2,0),FALSE),"0") -> 0 | AS44: =IF(Berechnung!$E$6=Berechnung!$E$9,HLOOKUP($D$3,MatrixLuft!$AU$3:$CD$1114,FIXED(ROW(AQ44)-2,0),FALSE),"0") -> 0 | AT44: =IF(Berechnung!$E$6=Berechnung!$E$9,HLOOKUP($E$3,MatrixLuft!$AU$3:$CD$1114,FIXED(ROW(AQ44)-2,0),FALSE),"0") -> 0
A45: 21 | B45: =VLOOKUP(F2,Berechnung!$G$9:$H$62,2,FALSE)&"42" ->  | C45: =IF(Berechnung!$E$6=Berechnung!$E$9,Berechnung!$F$7*HLOOKUP(Berechnung!$N$6,MatrixLuft!$F$3:$AO$1114,FIXED(ROW(A45)-2,0),FALSE),"0") -> 5.487 | D45: =IF(Berechnung!$E$6=Berechnung!$E$9,Berechnung!$F$7*HLOOKUP($D$3,MatrixLuft!$F$3:$AO$1114,FIXED(ROW(A45)-2,0),FALSE),"0") -> 5.487 | E45: =IF(Berechnung!$E$6=Berechnung!$E$9,Berechnung!$F$7*HLOOKUP($E$3,MatrixLuft!$F$3:$AO$1114,FIXED(ROW(A45)-2,0),FALSE),"0") -> 3.242 | F45: =IF($F$44>$F$49,$F$44+(ABS($F$49-$F$44))/5*($A$44-$A45),$F$44-(ABS($F$49-$F$44))/5*($A$44-$A45)) -> 6.1535 | G45: 6.0202 | H45: 5.8869 | I45: 5.7536 | J45: 5.6203 | K45: =IF(K$44>K$49,K$44+(ABS(K$49-K$44))/5*(ROW(A$44)-ROW(A45)),K$44-(ABS(K$49-K$44))/5*(ROW(A$44)-ROW(A45))) -> 5.487 | L45: 5.3537 | M45: 5.2204 | N45: 5.0871 | O45: 4.9538 | P45: =IF(P$44>P$49,P$44+(ABS(P$49-P$44))/5*(ROW(J$44)-ROW(J45)),P$44-(ABS(P$49-P$44))/5*(ROW(J$44)-ROW(J45))) -> 4.8205 | Q45: 4.6872 | R45: 4.5539 | S45: 4.4206 | T45: 4.2873 | U45: =IF(U$44>U$49,U$44+(ABS(U$49-U$44))/5*(ROW(O$44)-ROW(O45)),U$44-(ABS(U$49-U$44))/5*(ROW(O$44)-ROW(O45))) -> 4.154 | V45: 4.0628 | W45: 3.9716 | X45: 3.8804 | Y45: 3.7892 | Z45: =IF(Z$44>Z$49,Z$44+(ABS(Z$49-Z$44))/5*(ROW(T$44)-ROW(T45)),Z$44-(ABS(Z$49-Z$44))/5*(ROW(T$44)-ROW(T45))) -> 3.698 | AA45: 3.6068 | AB45: 3.5156 | AC45: 3.4244 | AD45: 3.3332 | AE45: =IF(AE$44>AE$49,AE$44+(ABS(AE$49-AE$44))/5*(ROW(Y$44)-ROW(Y45)),AE$44-(ABS(AE$49-AE$44))/5*(ROW(Y$44)-ROW(Y45))) -> 3.242 | AQ45: 21 | AR45: =IF(Berechnung!$E$6=Berechnung!$E$9,HLOOKUP(Berechnung!$N$6,MatrixLuft!$AU$3:$CD$1114,FIXED(ROW(AQ45)-2,0),FALSE),"0") -> 0 | AS45: =IF(Berechnung!$E$6=Berechnung!$E$9,HLOOKUP($D$3,MatrixLuft!$AU$3:$CD$1114,FIXED(ROW(AQ45)-2,0),FALSE),"0") -> 0 | AT45: =IF(Berechnung!$E$6=Berechnung!$E$9,HLOOKUP($E$3,MatrixLuft!$AU$3:$CD$1114,FIXED(ROW(AQ45)-2,0),FALSE),"0") -> 0
A46: 22 | B46: =VLOOKUP(F2,Berechnung!$G$9:$H$62,2,FALSE)&"43" ->  | C46: =IF(Berechnung!$E$6=Berechnung!$E$9,Berechnung!$F$7*HLOOKUP(Berechnung!$N$6,MatrixLuft!$F$3:$AO$1114,FIXED(ROW(A46)-2,0),FALSE),"0") -> 5.534 | D46: =IF(Berechnung!$E$6=Berechnung!$E$9,Berechnung!$F$7*HLOOKUP($D$3,MatrixLuft!$F$3:$AO$1114,FIXED(ROW(A46)-2,0),FALSE),"0") -> 5.534 | E46: =IF(Berechnung!$E$6=Berechnung!$E$9,Berechnung!$F$7*HLOOKUP($E$3,MatrixLuft!$F$3:$AO$1114,FIXED(ROW(A46)-2,0),FALSE),"0") -> 3.284 | F46: =IF($F$44>$F$49,$F$44+(ABS($F$49-$F$44))/5*($A$44-A46),$F$44-(ABS($F$49-$F$44))/5*($A$44-A46)) -> 6.217 | G46: 6.0804 | H46: 5.9438 | I46: 5.8072 | J46: 5.6706 | K46: =IF(K$44>K$49,K$44+(ABS(K$49-K$44))/5*(ROW(A$44)-ROW(A46)),K$44-(ABS(K$49-K$44))/5*(ROW(A$44)-ROW(A46))) -> 5.534 | L46: 5.3974 | M46: 5.2608 | N46: 5.1242 | O46: 4.9876 | P46: =IF(P$44>P$49,P$44+(ABS(P$49-P$44))/5*(ROW(J$44)-ROW(J46)),P$44-(ABS(P$49-P$44))/5*(ROW(J$44)-ROW(J46))) -> 4.851 | Q46: 4.7144 | R46: 4.5778 | S46: 4.4412 | T46: 4.3046 | U46: =IF(U$44>U$49,U$44+(ABS(U$49-U$44))/5*(ROW(O$44)-ROW(O46)),U$44-(ABS(U$49-U$44))/5*(ROW(O$44)-ROW(O46))) -> 4.168 | V46: 4.0796 | W46: 3.9912 | X46: 3.9028 | Y46: 3.8144 | Z46: =IF(Z$44>Z$49,Z$44+(ABS(Z$49-Z$44))/5*(ROW(T$44)-ROW(T46)),Z$44-(ABS(Z$49-Z$44))/5*(ROW(T$44)-ROW(T46))) -> 3.726 | AA46: 3.6376 | AB46: 3.5492 | AC46: 3.4608 | AD46: 3.3724 | AE46: =IF(AE$44>AE$49,AE$44+(ABS(AE$49-AE$44))/5*(ROW(Y$44)-ROW(Y46)),AE$44-(ABS(AE$49-AE$44))/5*(ROW(Y$44)-ROW(Y46))) -> 3.284 | AQ46: 22 | AR46: =IF(Berechnung!$E$6=Berechnung!$E$9,HLOOKUP(Berechnung!$N$6,MatrixLuft!$AU$3:$CD$1114,FIXED(ROW(AQ46)-2,0),FALSE),"0") -> 0 | AS46: =IF(Berechnung!$E$6=Berechnung!$E$9,HLOOKUP($D$3,MatrixLuft!$AU$3:$CD$1114,FIXED(ROW(AQ46)-2,0),FALSE),"0") -> 0 | AT46: =IF(Berechnung!$E$6=Berechnung!$E$9,HLOOKUP($E$3,MatrixLuft!$AU$3:$CD$1114,FIXED(ROW(AQ46)-2,0),FALSE),"0") -> 0
A47: 23 | B47: =VLOOKUP(F2,Berechnung!$G$9:$H$62,2,FALSE)&"44" ->  | C47: =IF(Berechnung!$E$6=Berechnung!$E$9,Berechnung!$F$7*HLOOKUP(Berechnung!$N$6,MatrixLuft!$F$3:$AO$1114,FIXED(ROW(A47)-2,0),FALSE),"0") -> 5.581 | D47: =IF(Berechnung!$E$6=Berechnung!$E$9,Berechnung!$F$7*HLOOKUP($D$3,MatrixLuft!$F$3:$AO$1114,FIXED(ROW(A47)-2,0),FALSE),"0") -> 5.581 | E47: =IF(Berechnung!$E$6=Berechnung!$E$9,Berechnung!$F$7*HLOOKUP($E$3,MatrixLuft!$F$3:$AO$1114,FIXED(ROW(A47)-2,0),FALSE),"0") -> 3.326 | F47: =IF($F$44>$F$49,$F$44+(ABS($F$49-$F$44))/5*($A$44-A47),$F$44-(ABS($F$49-$F$44))/5*($A$44-A47)) -> 6.2805 | G47: 6.1406 | H47: 6.0007 | I47: 5.8608 | J47: 5.7209 | K47: =IF(K$44>K$49,K$44+(ABS(K$49-K$44))/5*(ROW(A$44)-ROW(A47)),K$44-(ABS(K$49-K$44))/5*(ROW(A$44)-ROW(A47))) -> 5.581 | L47: 5.4411 | M47: 5.3012 | N47: 5.1613 | O47: 5.0214 | P47: =IF(P$44>P$49,P$44+(ABS(P$49-P$44))/5*(ROW(J$44)-ROW(J47)),P$44-(ABS(P$49-P$44))/5*(ROW(J$44)-ROW(J47))) -> 4.8815 | Q47: 4.7416 | R47: 4.6017 | S47: 4.4618 | T47: 4.3219 | U47: =IF(U$44>U$49,U$44+(ABS(U$49-U$44))/5*(ROW(O$44)-ROW(O47)),U$44-(ABS(U$49-U$44))/5*(ROW(O$44)-ROW(O47))) -> 4.182 | V47: 4.0964 | W47: 4.0108 | X47: 3.9252 | Y47: 3.8396 | Z47: =IF(Z$44>Z$49,Z$44+(ABS(Z$49-Z$44))/5*(ROW(T$44)-ROW(T47)),Z$44-(ABS(Z$49-Z$44))/5*(ROW(T$44)-ROW(T47))) -> 3.754 | AA47: 3.6684 | AB47: 3.5828 | AC47: 3.4972 | AD47: 3.4116 | AE47: =IF(AE$44>AE$49,AE$44+(ABS(AE$49-AE$44))/5*(ROW(Y$44)-ROW(Y47)),AE$44-(ABS(AE$49-AE$44))/5*(ROW(Y$44)-ROW(Y47))) -> 3.326 | AQ47: 23 | AR47: =IF(Berechnung!$E$6=Berechnung!$E$9,HLOOKUP(Berechnung!$N$6,MatrixLuft!$AU$3:$CD$1114,FIXED(ROW(AQ47)-2,0),FALSE),"0") -> 0 | AS47: =IF(Berechnung!$E$6=Berechnung!$E$9,HLOOKUP($D$3,MatrixLuft!$AU$3:$CD$1114,FIXED(ROW(AQ47)-2,0),FALSE),"0") -> 0 | AT47: =IF(Berechnung!$E$6=Berechnung!$E$9,HLOOKUP($E$3,MatrixLuft!$AU$3:$CD$1114,FIXED(ROW(AQ47)-2,0),FALSE),"0") -> 0
A48: 24 | B48: =VLOOKUP(F2,Berechnung!$G$9:$H$62,2,FALSE)&"45" ->  | C48: =IF(Berechnung!$E$6=Berechnung!$E$9,Berechnung!$F$7*HLOOKUP(Berechnung!$N$6,MatrixLuft!$F$3:$AO$1114,FIXED(ROW(A48)-2,0),FALSE),"0") -> 5.628 | D48: =IF(Berechnung!$E$6=Berechnung!$E$9,Berechnung!$F$7*HLOOKUP($D$3,MatrixLuft!$F$3:$AO$1114,FIXED(ROW(A48)-2,0),FALSE),"0") -> 5.628 | E48: =IF(Berechnung!$E$6=Berechnung!$E$9,Berechnung!$F$7*HLOOKUP($E$3,MatrixLuft!$F$3:$AO$1114,FIXED(ROW(A48)-2,0),FALSE),"0") -> 3.368 | F48: =IF($F$44>$F$49,$F$44+(ABS($F$49-$F$44))/5*($A$44-A48),$F$44-(ABS($F$49-$F$44))/5*($A$44-A48)) -> 6.344 | G48: 6.2008 | H48: 6.0576 | I48: 5.9144 | J48: 5.7712 | K48: =IF(K$44>K$49,K$44+(ABS(K$49-K$44))/5*(ROW(A$44)-ROW(A48)),K$44-(ABS(K$49-K$44))/5*(ROW(A$44)-ROW(A48))) -> 5.628 | L48: 5.4848 | M48: 5.3416 | N48: 5.1984 | O48: 5.0552 | P48: =IF(P$44>P$49,P$44+(ABS(P$49-P$44))/5*(ROW(J$44)-ROW(J48)),P$44-(ABS(P$49-P$44))/5*(ROW(J$44)-ROW(J48))) -> 4.912 | Q48: 4.7688 | R48: 4.6256 | S48: 4.4824 | T48: 4.3392 | U48: =IF(U$44>U$49,U$44+(ABS(U$49-U$44))/5*(ROW(O$44)-ROW(O48)),U$44-(ABS(U$49-U$44))/5*(ROW(O$44)-ROW(O48))) -> 4.196 | V48: 4.1132 | W48: 4.0304 | X48: 3.9476 | Y48: 3.8648 | Z48: =IF(Z$44>Z$49,Z$44+(ABS(Z$49-Z$44))/5*(ROW(T$44)-ROW(T48)),Z$44-(ABS(Z$49-Z$44))/5*(ROW(T$44)-ROW(T48))) -> 3.782 | AA48: 3.6992 | AB48: 3.6164 | AC48: 3.5336 | AD48: 3.4508 | AE48: =IF(AE$44>AE$49,AE$44+(ABS(AE$49-AE$44))/5*(ROW(Y$44)-ROW(Y48)),AE$44-(ABS(AE$49-AE$44))/5*(ROW(Y$44)-ROW(Y48))) -> 3.368 | AQ48: 24 | AR48: =IF(Berechnung!$E$6=Berechnung!$E$9,HLOOKUP(Berechnung!$N$6,MatrixLuft!$AU$3:$CD$1114,FIXED(ROW(AQ48)-2,0),FALSE),"0") -> 0 | AS48: =IF(Berechnung!$E$6=Berechnung!$E$9,HLOOKUP($D$3,MatrixLuft!$AU$3:$CD$1114,FIXED(ROW(AQ48)-2,0),FALSE),"0") -> 0 | AT48: =IF(Berechnung!$E$6=Berechnung!$E$9,HLOOKUP($E$3,MatrixLuft!$AU$3:$CD$1114,FIXED(ROW(AQ48)-2,0),FALSE),"0") -> 0
A49: 25 | B49: =VLOOKUP(F2,Berechnung!$G$9:$H$62,2,FALSE)&"46" ->  | C49: =IF(Berechnung!$E$6=Berechnung!$E$9,Berechnung!$F$7*HLOOKUP(Berechnung!$N$6,MatrixLuft!$F$3:$AO$1114,FIXED(ROW(A49)-2,0),FALSE),"0") -> 5.675 | D49: =IF(Berechnung!$E$6=Berechnung!$E$9,Berechnung!$F$7*HLOOKUP($D$3,MatrixLuft!$F$3:$AO$1114,FIXED(ROW(A49)-2,0),FALSE),"0") -> 5.675 | E49: =IF(Berechnung!$E$6=Berechnung!$E$9,Berechnung!$F$7*HLOOKUP($E$3,MatrixLuft!$F$3:$AO$1114,FIXED(ROW(A49)-2,0),FALSE),"0") -> 3.41 | F49: 6.4075 | G49: 6.261 | H49: 6.1145 | I49: 5.968 | J49: 5.8215 | K49: 5.675 | L49: 5.5285 | M49: 5.382 | N49: 5.2355 | O49: 5.089 | P49: 4.9425 | Q49: 4.796 | R49: 4.6495 | S49: 4.503 | T49: 4.3565 | U49: 4.21 | V49: 4.13 | W49: 4.05 | X49: 3.97 | Y49: 3.89 | Z49: 3.81 | AA49: 3.73 | AB49: 3.65 | AC49: 3.57 | AD49: 3.49 | AE49: 3.41 | AQ49: 25 | AR49: =IF(Berechnung!$E$6=Berechnung!$E$9,HLOOKUP(Berechnung!$N$6,MatrixLuft!$AU$3:$CD$1114,FIXED(ROW(AQ49)-2,0),FALSE),"0") -> 0 | AS49: =IF(Berechnung!$E$6=Berechnung!$E$9,HLOOKUP($D$3,MatrixLuft!$AU$3:$CD$1114,FIXED(ROW(AQ49)-2,0),FALSE),"0") -> 0 | AT49: =IF(Berechnung!$E$6=Berechnung!$E$9,HLOOKUP($E$3,MatrixLuft!$AU$3:$CD$1114,FIXED(ROW(AQ49)-2,0),FALSE),"0") -> 0
A50: 26 | B50: =VLOOKUP(F2,Berechnung!$G$9:$H$62,2,FALSE)&"47" ->  | C50: =IF(Berechnung!$E$6=Berechnung!$E$9,Berechnung!$F$7*HLOOKUP(Berechnung!$N$6,MatrixLuft!$F$3:$AO$1114,FIXED(ROW(A50)-2,0),FALSE),"0") -> 5.722 | D50: =IF(Berechnung!$E$6=Berechnung!$E$9,Berechnung!$F$7*HLOOKUP($D$3,MatrixLuft!$F$3:$AO$1114,FIXED(ROW(A50)-2,0),FALSE),"0") -> 5.722 | E50: =IF(Berechnung!$E$6=Berechnung!$E$9,Berechnung!$F$7*HLOOKUP($E$3,MatrixLuft!$F$3:$AO$1114,FIXED(ROW(A50)-2,0),FALSE),"0") -> 3.452 | F50: =IF($F$49>$F$54,$F$49+(ABS($F$54-$F$49))/5*($A$49-$A50),$F$49-(ABS($F$54-$F$49))/5*($A$49-$A50)) -> 6.471 | G50: 6.3212 | H50: 6.1714 | I50: 6.0216 | J50: 5.8718 | K50: =IF(K$49>K$54,K$49+(ABS(K$54-K$49))/5*(ROW(A$49)-ROW(A50)),K$49-(ABS(K$54-K$49))/5*(ROW(A$49)-ROW(A50))) -> 5.722 | L50: 5.5722 | M50: 5.4224 | N50: 5.2726 | O50: 5.1228 | P50: =IF(P$49>P$54,P$49+(ABS(P$54-P$49))/5*(ROW(J$49)-ROW(J50)),P$49-(ABS(P$54-P$49))/5*(ROW(J$49)-ROW(J50))) -> 4.973 | Q50: 4.8232 | R50: 4.6734 | S50: 4.5236 | T50: 4.3738 | U50: =IF(U$49>U$54,U$49+(ABS(U$54-U$49))/5*(ROW(O$49)-ROW(O50)),U$49-(ABS(U$54-U$49))/5*(ROW(O$49)-ROW(O50))) -> 4.224 | V50: 4.1468 | W50: 4.0696 | X50: 3.9924 | Y50: 3.9152 | Z50: =IF(Z$49>Z$54,Z$49+(ABS(Z$54-Z$49))/5*(ROW(T$49)-ROW(T50)),Z$49-(ABS(Z$54-Z$49))/5*(ROW(T$49)-ROW(T50))) -> 3.838 | AA50: 3.7608 | AB50: 3.6836 | AC50: 3.6064 | AD50: 3.5292 | AE50: =IF(AE$49>AE$54,AE$49+(ABS(AE$54-AE$49))/5*(ROW(Y$49)-ROW(Y50)),AE$49-(ABS(AE$54-AE$49))/5*(ROW(Y$49)-ROW(Y50))) -> 3.452 | AQ50: 26 | AR50: =IF(Berechnung!$E$6=Berechnung!$E$9,HLOOKUP(Berechnung!$N$6,MatrixLuft!$AU$3:$CD$1114,FIXED(ROW(AQ50)-2,0),FALSE),"0") -> 0 | AS50: =IF(Berechnung!$E$6=Berechnung!$E$9,HLOOKUP($D$3,MatrixLuft!$AU$3:$CD$1114,FIXED(ROW(AQ50)-2,0),FALSE),"0") -> 0 | AT50: =IF(Berechnung!$E$6=Berechnung!$E$9,HLOOKUP($E$3,MatrixLuft!$AU$3:$CD$1114,FIXED(ROW(AQ50)-2,0),FALSE),"0") -> 0
A51: 27 | B51: =VLOOKUP(F2,Berechnung!$G$9:$H$62,2,FALSE)&"48" ->  | C51: =IF(Berechnung!$E$6=Berechnung!$E$9,Berechnung!$F$7*HLOOKUP(Berechnung!$N$6,MatrixLuft!$F$3:$AO$1114,FIXED(ROW(A51)-2,0),FALSE),"0") -> 5.769 | D51: =IF(Berechnung!$E$6=Berechnung!$E$9,Berechnung!$F$7*HLOOKUP($D$3,MatrixLuft!$F$3:$AO$1114,FIXED(ROW(A51)-2,0),FALSE),"0") -> 5.769 | E51: =IF(Berechnung!$E$6=Berechnung!$E$9,Berechnung!$F$7*HLOOKUP($E$3,MatrixLuft!$F$3:$AO$1114,FIXED(ROW(A51)-2,0),FALSE),"0") -> 3.494 | F51: =IF($F$49>$F$54,$F$49+(ABS($F$54-$F$49))/5*($A$49-A51),$F$49-(ABS($F$54-$F$49))/5*($A$49-A51)) -> 6.5345 | G51: 6.3814 | H51: 6.2283 | I51: 6.0752 | J51: 5.9221 | K51: =IF(K$49>K$54,K$49+(ABS(K$54-K$49))/5*(ROW(A$49)-ROW(A51)),K$49-(ABS(K$54-K$49))/5*(ROW(A$49)-ROW(A51))) -> 5.769 | L51: 5.6159 | M51: 5.4628 | N51: 5.3097 | O51: 5.1566 | P51: =IF(P$49>P$54,P$49+(ABS(P$54-P$49))/5*(ROW(J$49)-ROW(J51)),P$49-(ABS(P$54-P$49))/5*(ROW(J$49)-ROW(J51))) -> 5.0035 | Q51: 4.8504 | R51: 4.6973 | S51: 4.5442 | T51: 4.3911 | U51: =IF(U$49>U$54,U$49+(ABS(U$54-U$49))/5*(ROW(O$49)-ROW(O51)),U$49-(ABS(U$54-U$49))/5*(ROW(O$49)-ROW(O51))) -> 4.238 | V51: 4.1636 | W51: 4.0892 | X51: 4.0148 | Y51: 3.9404 | Z51: =IF(Z$49>Z$54,Z$49+(ABS(Z$54-Z$49))/5*(ROW(T$49)-ROW(T51)),Z$49-(ABS(Z$54-Z$49))/5*(ROW(T$49)-ROW(T51))) -> 3.866 | AA51: 3.7916 | AB51: 3.7172 | AC51: 3.6428 | AD51: 3.5684 | AE51: =IF(AE$49>AE$54,AE$49+(ABS(AE$54-AE$49))/5*(ROW(Y$49)-ROW(Y51)),AE$49-(ABS(AE$54-AE$49))/5*(ROW(Y$49)-ROW(Y51))) -> 3.494 | AQ51: 27 | AR51: =IF(Berechnung!$E$6=Berechnung!$E$9,HLOOKUP(Berechnung!$N$6,MatrixLuft!$AU$3:$CD$1114,FIXED(ROW(AQ51)-2,0),FALSE),"0") -> 0 | AS51: =IF(Berechnung!$E$6=Berechnung!$E$9,HLOOKUP($D$3,MatrixLuft!$AU$3:$CD$1114,FIXED(ROW(AQ51)-2,0),FALSE),"0") -> 0 | AT51: =IF(Berechnung!$E$6=Berechnung!$E$9,HLOOKUP($E$3,MatrixLuft!$AU$3:$CD$1114,FIXED(ROW(AQ51)-2,0),FALSE),"0") -> 0
A52: 28 | B52: =VLOOKUP(F2,Berechnung!$G$9:$H$62,2,FALSE)&"49" ->  | C52: =IF(Berechnung!$E$6=Berechnung!$E$9,Berechnung!$F$7*HLOOKUP(Berechnung!$N$6,MatrixLuft!$F$3:$AO$1114,FIXED(ROW(A52)-2,0),FALSE),"0") -> 5.816 | D52: =IF(Berechnung!$E$6=Berechnung!$E$9,Berechnung!$F$7*HLOOKUP($D$3,MatrixLuft!$F$3:$AO$1114,FIXED(ROW(A52)-2,0),FALSE),"0") -> 5.816 | E52: =IF(Berechnung!$E$6=Berechnung!$E$9,Berechnung!$F$7*HLOOKUP($E$3,MatrixLuft!$F$3:$AO$1114,FIXED(ROW(A52)-2,0),FALSE),"0") -> 3.536 | F52: =IF($F$49>$F$54,$F$49+(ABS($F$54-$F$49))/5*($A$49-A52),$F$49-(ABS($F$54-$F$49))/5*($A$49-A52)) -> 6.598 | G52: 6.4416 | H52: 6.2852 | I52: 6.1288 | J52: 5.9724 | K52: =IF(K$49>K$54,K$49+(ABS(K$54-K$49))/5*(ROW(A$49)-ROW(A52)),K$49-(ABS(K$54-K$49))/5*(ROW(A$49)-ROW(A52))) -> 5.816 | L52: 5.6596 | M52: 5.5032 | N52: 5.3468 | O52: 5.1904 | P52: =IF(P$49>P$54,P$49+(ABS(P$54-P$49))/5*(ROW(J$49)-ROW(J52)),P$49-(ABS(P$54-P$49))/5*(ROW(J$49)-ROW(J52))) -> 5.034 | Q52: 4.8776 | R52: 4.7212 | S52: 4.5648 | T52: 4.4084 | U52: =IF(U$49>U$54,U$49+(ABS(U$54-U$49))/5*(ROW(O$49)-ROW(O52)),U$49-(ABS(U$54-U$49))/5*(ROW(O$49)-ROW(O52))) -> 4.252 | V52: 4.1804 | W52: 4.1088 | X52: 4.0372 | Y52: 3.9656 | Z52: =IF(Z$49>Z$54,Z$49+(ABS(Z$54-Z$49))/5*(ROW(T$49)-ROW(T52)),Z$49-(ABS(Z$54-Z$49))/5*(ROW(T$49)-ROW(T52))) -> 3.894 | AA52: 3.8224 | AB52: 3.7508 | AC52: 3.6792 | AD52: 3.6076 | AE52: =IF(AE$49>AE$54,AE$49+(ABS(AE$54-AE$49))/5*(ROW(Y$49)-ROW(Y52)),AE$49-(ABS(AE$54-AE$49))/5*(ROW(Y$49)-ROW(Y52))) -> 3.536 | AQ52: 28 | AR52: =IF(Berechnung!$E$6=Berechnung!$E$9,HLOOKUP(Berechnung!$N$6,MatrixLuft!$AU$3:$CD$1114,FIXED(ROW(AQ52)-2,0),FALSE),"0") -> 0 | AS52: =IF(Berechnung!$E$6=Berechnung!$E$9,HLOOKUP($D$3,MatrixLuft!$AU$3:$CD$1114,FIXED(ROW(AQ52)-2,0),FALSE),"0") -> 0 | AT52: =IF(Berechnung!$E$6=Berechnung!$E$9,HLOOKUP($E$3,MatrixLuft!$AU$3:$CD$1114,FIXED(ROW(AQ52)-2,0),FALSE),"0") -> 0
A53: 29 | B53: =VLOOKUP(F2,Berechnung!$G$9:$H$62,2,FALSE)&"50" ->  | C53: =IF(Berechnung!$E$6=Berechnung!$E$9,Berechnung!$F$7*HLOOKUP(Berechnung!$N$6,MatrixLuft!$F$3:$AO$1114,FIXED(ROW(A53)-2,0),FALSE),"0") -> 5.863 | D53: =IF(Berechnung!$E$6=Berechnung!$E$9,Berechnung!$F$7*HLOOKUP($D$3,MatrixLuft!$F$3:$AO$1114,FIXED(ROW(A53)-2,0),FALSE),"0") -> 5.863 | E53: =IF(Berechnung!$E$6=Berechnung!$E$9,Berechnung!$F$7*HLOOKUP($E$3,MatrixLuft!$F$3:$AO$1114,FIXED(ROW(A53)-2,0),FALSE),"0") -> 3.578 | F53: =IF($F$49>$F$54,$F$49+(ABS($F$54-$F$49))/5*($A$49-A53),$F$49-(ABS($F$54-$F$49))/5*($A$49-A53)) -> 6.6615 | G53: 6.5018 | H53: 6.3421 | I53: 6.1824 | J53: 6.0227 | K53: =IF(K$49>K$54,K$49+(ABS(K$54-K$49))/5*(ROW(A$49)-ROW(A53)),K$49-(ABS(K$54-K$49))/5*(ROW(A$49)-ROW(A53))) -> 5.863 | L53: 5.7033 | M53: 5.5436 | N53: 5.3839 | O53: 5.2242 | P53: =IF(P$49>P$54,P$49+(ABS(P$54-P$49))/5*(ROW(J$49)-ROW(J53)),P$49-(ABS(P$54-P$49))/5*(ROW(J$49)-ROW(J53))) -> 5.0645 | Q53: 4.9048 | R53: 4.7451 | S53: 4.5854 | T53: 4.4257 | U53: =IF(U$49>U$54,U$49+(ABS(U$54-U$49))/5*(ROW(O$49)-ROW(O53)),U$49-(ABS(U$54-U$49))/5*(ROW(O$49)-ROW(O53))) -> 4.266 | V53: 4.1972 | W53: 4.1284 | X53: 4.0596 | Y53: 3.9908 | Z53: =IF(Z$49>Z$54,Z$49+(ABS(Z$54-Z$49))/5*(ROW(T$49)-ROW(T53)),Z$49-(ABS(Z$54-Z$49))/5*(ROW(T$49)-ROW(T53))) -> 3.922 | AA53: 3.8532 | AB53: 3.7844 | AC53: 3.7156 | AD53: 3.6468 | AE53: =IF(AE$49>AE$54,AE$49+(ABS(AE$54-AE$49))/5*(ROW(Y$49)-ROW(Y53)),AE$49-(ABS(AE$54-AE$49))/5*(ROW(Y$49)-ROW(Y53))) -> 3.578 | AQ53: 29 | AR53: =IF(Berechnung!$E$6=Berechnung!$E$9,HLOOKUP(Berechnung!$N$6,MatrixLuft!$AU$3:$CD$1114,FIXED(ROW(AQ53)-2,0),FALSE),"0") -> 0 | AS53: =IF(Berechnung!$E$6=Berechnung!$E$9,HLOOKUP($D$3,MatrixLuft!$AU$3:$CD$1114,FIXED(ROW(AQ53)-2,0),FALSE),"0") -> 0 | AT53: =IF(Berechnung!$E$6=Berechnung!$E$9,HLOOKUP($E$3,MatrixLuft!$AU$3:$CD$1114,FIXED(ROW(AQ53)-2,0),FALSE),"0") -> 0
A54: 30 | B54: =VLOOKUP(F2,Berechnung!$G$9:$H$62,2,FALSE)&"51" ->  | C54: =IF(Berechnung!$E$6=Berechnung!$E$9,Berechnung!$F$7*HLOOKUP(Berechnung!$N$6,MatrixLuft!$F$3:$AO$1114,FIXED(ROW(A54)-2,0),FALSE),"0") -> 5.91 | D54: =IF(Berechnung!$E$6=Berechnung!$E$9,Berechnung!$F$7*HLOOKUP($D$3,MatrixLuft!$F$3:$AO$1114,FIXED(ROW(A54)-2,0),FALSE),"0") -> 5.91 | E54: =IF(Berechnung!$E$6=Berechnung!$E$9,Berechnung!$F$7*HLOOKUP($E$3,MatrixLuft!$F$3:$AO$1114,FIXED(ROW(A54)-2,0),FALSE),"0") -> 3.62 | F54: 6.725 | G54: 6.562 | H54: 6.399 | I54: 6.236 | J54: 6.073 | K54: 5.91 | L54: 5.747 | M54: 5.584 | N54: 5.421 | O54: 5.258 | P54: 5.095 | Q54: 4.932 | R54: 4.769 | S54: 4.606 | T54: 4.443 | U54: 4.28 | V54: 4.214 | W54: 4.148 | X54: 4.082 | Y54: 4.016 | Z54: 3.95 | AA54: 3.884 | AB54: 3.818 | AC54: 3.752 | AD54: 3.686 | AE54: 3.62 | AQ54: 30 | AR54: =IF(Berechnung!$E$6=Berechnung!$E$9,HLOOKUP(Berechnung!$N$6,MatrixLuft!$AU$3:$CD$1114,FIXED(ROW(AQ54)-2,0),FALSE),"0") -> 0 | AS54: =IF(Berechnung!$E$6=Berechnung!$E$9,HLOOKUP($D$3,MatrixLuft!$AU$3:$CD$1114,FIXED(ROW(AQ54)-2,0),FALSE),"0") -> 0 | AT54: =IF(Berechnung!$E$6=Berechnung!$E$9,HLOOKUP($E$3,MatrixLuft!$AU$3:$CD$1114,FIXED(ROW(AQ54)-2,0),FALSE),"0") -> 0
A55: =F55 -> WPL 10 AC | B55: Index | C55: Temp gewählt | F55: WPL 10 AC | AQ55: =AU55 -> WPL 10 AC | AU55: WPL 10 AC
A56: Außentemp | C56: =Berechnung!$N$6 -> 35 | D56: =Berechnung!$T$106 -> 35 | E56: =Berechnung!$T$107 -> 55 | F56: 30 | G56: 31 | H56: 32 | I56: 33 | J56: 34 | K56: 35 | L56: 36 | M56: 37 | N56: 38 | O56: 39 | P56: 40 | Q56: 41 | R56: 42 | S56: 43 | T56: 44 | U56: 45 | V56: 46 | W56: 47 | X56: 48 | Y56: 49 | Z56: 50 | AA56: 51 | AB56: 52 | AC56: 53 | AD56: 54 | AE56: 55 | AF56: 56 | AG56: 57 | AH56: 58 | AI56: 59 | AJ56: 60 | AK56: 61 | AL56: 62 | AM56: 63 | AN56: 64 | AO56: 65 | AQ56: Außentemp | AU56: 30 | AV56: 31 | AW56: 32 | AX56: 33 | AY56: 34 | AZ56: 35 | BA56: 36 | BB56: 37 | BC56: 38 | BD56: 39 | BE56: 40 | BF56: 41 | BG56: 42 | BH56: 43 | BI56: 44 | BJ56: 45 | BK56: 46 | BL56: 47 | BM56: 48 | BN56: 49 | BO56: 50 | BP56: 51 | BQ56: 52 | BR56: 53 | BS56: 54 | BT56: 55 | BU56: 56 | BV56: 57 | BW56: 58 | BX56: 59 | BY56: 60 | BZ56: 61 | CA56: 62 | CB56: 63 | CC56: 64 | CD56: 65
A57: -20 | B57: =VLOOKUP(F55,Berechnung!$G$9:$H$62,2,FALSE)&"01" -> 101 | C57: =IF(Berechnung!$E$6=Berechnung!$E$9,Berechnung!$F$7*HLOOKUP(Berechnung!$N$6,MatrixLuft!$F$3:$AO$1114,FIXED(ROW(A57)-2,0),FALSE),"0") -> 2.4 | D57: =IF(Berechnung!$E$6=Berechnung!$E$9,Berechnung!$F$7*HLOOKUP($D$3,MatrixLuft!$F$3:$AO$1114,FIXED(ROW(A57)-2,0),FALSE),"0") -> 2.4 | E57: =IF(Berechnung!$E$6=Berechnung!$E$9,Berechnung!$F$7*HLOOKUP($E$3,MatrixLuft!$F$3:$AO$1114,FIXED(ROW(A57)-2,0),FALSE),"0") -> 0.7 | F57: =K57+(K57-P57) -> 3.05 | G57: =IF($F57>$K57,$F57-((ABS($F57-$K57)/5)*(COLUMN(G56)-COLUMN($F56))),$F57+((ABS($F57-$K57)/5)*(COLUMN(G56)-COLUMN($F56)))) -> 2.92 | H57: =IF($F57>$K57,$F57-((ABS($F57-$K57)/5)*(COLUMN(H56)-COLUMN($F56))),$F57+((ABS($F57-$K57)/5)*(COLUMN(H56)-COLUMN($F56)))) -> 2.79 | I57: =IF($F57>$K57,$F57-((ABS($F57-$K57)/5)*(COLUMN(I56)-COLUMN($F56))),$F57+((ABS($F57-$K57)/5)*(COLUMN(I56)-COLUMN($F56)))) -> 2.66 | J57: =IF($F57>$K57,$F57-((ABS($F57-$K57)/5)*(COLUMN(J56)-COLUMN($F56))),$F57+((ABS($F57-$K57)/5)*(COLUMN(J56)-COLUMN($F56)))) -> 2.53 | K57: 2.4 | L57: =IF($K57>$P57,$K57-((ABS($K57-$P57)/5)*(COLUMN(L56)-COLUMN($K56))),$K57+((ABS($K57-$P57)/5)*(COLUMN(L56)-COLUMN($K56)))) -> 2.27 | M57: =IF($K57>$P57,$K57-((ABS($K57-$P57)/5)*(COLUMN(M56)-COLUMN($K56))),$K57+((ABS($K57-$P57)/5)*(COLUMN(M56)-COLUMN($K56)))) -> 2.14 | N57: =IF($K57>$P57,$K57-((ABS($K57-$P57)/5)*(COLUMN(N56)-COLUMN($K56))),$K57+((ABS($K57-$P57)/5)*(COLUMN(N56)-COLUMN($K56)))) -> 2.01 | O57: =IF($K57>$P57,$K57-((ABS($K57-$P57)/5)*(COLUMN(O56)-COLUMN($K56))),$K57+((ABS($K57-$P57)/5)*(COLUMN(O56)-COLUMN($K56)))) -> 1.88 | P57: =AVERAGE(K57,U57) -> 1.75 | Q57: =IF($P57>$U57,$P57-((ABS($P57-$U57)/5)*(COLUMN(Q56)-COLUMN($P56))),$P57+((ABS($P57-$U57)/5)*(COLUMN(Q56)-COLUMN($P56)))) -> 1.62 | R57: =IF($P57>$U57,$P57-((ABS($P57-$U57)/5)*(COLUMN(R56)-COLUMN($P56))),$P57+((ABS($P57-$U57)/5)*(COLUMN(R56)-COLUMN($P56)))) -> 1.49 | S57: =IF($P57>$U57,$P57-((ABS($P57-$U57)/5)*(COLUMN(S56)-COLUMN($P56))),$P57+((ABS($P57-$U57)/5)*(COLUMN(S56)-COLUMN($P56)))) -> 1.36 | T57: =IF($P57>$U57,$P57-((ABS($P57-$U57)/5)*(COLUMN(T56)-COLUMN($P56))),$P57+((ABS($P57-$U57)/5)*(COLUMN(T56)-COLUMN($P56)))) -> 1.23 | U57: 1.1 | V57: =IF($U57>$Z57,$U57-((ABS($U57-$Z57)/5)*(COLUMN(V56)-COLUMN($U56))),$U57+((ABS($U57-$Z57)/5)*(COLUMN(V56)-COLUMN($U56)))) -> 1.06 | W57: =IF($U57>$Z57,$U57-((ABS($U57-$Z57)/5)*(COLUMN(W56)-COLUMN($U56))),$U57+((ABS($U57-$Z57)/5)*(COLUMN(W56)-COLUMN($U56)))) -> 1.02 | X57: =IF($U57>$Z57,$U57-((ABS($U57-$Z57)/5)*(COLUMN(X56)-COLUMN($U56))),$U57+((ABS($U57-$Z57)/5)*(COLUMN(X56)-COLUMN($U56)))) -> 0.98 | Y57: =IF($U57>$Z57,$U57-((ABS($U57-$Z57)/5)*(COLUMN(Y56)-COLUMN($U56))),$U57+((ABS($U57-$Z57)/5)*(COLUMN(Y56)-COLUMN($U56)))) -> 0.94 | Z57: =AVERAGE(U57,AE57) -> 0.9 | AA57: =IF($Z57>$AE57,$Z57-((ABS($Z57-$AE57)/5)*(COLUMN(AA56)-COLUMN($Z56))),$Z57+((ABS($Z57-$AE57)/5)*(COLUMN(AA56)-COLUMN($Z56)))) -> 0.86 | AB57: =IF($Z57>$AE57,$Z57-((ABS($Z57-$AE57)/5)*(COLUMN(AB56)-COLUMN($Z56))),$Z57+((ABS($Z57-$AE57)/5)*(COLUMN(AB56)-COLUMN($Z56)))) -> 0.82 | AC57: =IF($Z57>$AE57,$Z57-((ABS($Z57-$AE57)/5)*(COLUMN(AC56)-COLUMN($Z56))),$Z57+((ABS($Z57-$AE57)/5)*(COLUMN(AC56)-COLUMN($Z56)))) -> 0.78 | AD57: =IF($Z57>$AE57,$Z57-((ABS($Z57-$AE57)/5)*(COLUMN(AD56)-COLUMN($Z56))),$Z57+((ABS($Z57-$AE57)/5)*(COLUMN(AD56)-COLUMN($Z56)))) -> 0.74 | AE57: 0.7 | AQ57: -20 | AR57: =IF(Berechnung!$E$6=Berechnung!$E$9,HLOOKUP(Berechnung!$N$6,MatrixLuft!$AU$3:$CD$1114,FIXED(ROW(AQ57)-2,0),FALSE),"0") -> 2.4 | AS57: =IF(Berechnung!$E$6=Berechnung!$E$9,HLOOKUP($D$3,MatrixLuft!$AU$3:$CD$1114,FIXED(ROW(AQ57)-2,0),FALSE),"0") -> 2.4 | AT57: =IF(Berechnung!$E$6=Berechnung!$E$9,HLOOKUP($E$3,MatrixLuft!$AU$3:$CD$1114,FIXED(ROW(AQ57)-2,0),FALSE),"0") -> 1.3 | AU57: =IF(AV57<AW57,AV57-(AV57-AW57),AV57+(AV57-AW57)) -> 2.65 | AV57: =IF(AW57<AX57,AW57-(AW57-AX57),AW57+(AW57-AX57)) -> 2.6 | AW57: =IF(AX57<AY57,AX57-(AX57-AY57),AX57+(AX57-AY57)) -> 2.55 | AX57: =IF(AY57<AZ57,AY57-(AY57-AZ57),AY57+(AY57-AZ57)) -> 2.5 | AY57: =IF(AZ57<BA57,AZ57-(AZ57-BA57),AZ57+(AZ57-BA57)) -> 2.45 | AZ57: 2.4 | BA57: =IF(AZ57<BJ57,AZ57+(AZ57-BJ57)/10*1,AZ57-(AZ57-BJ57)/10*1) -> 2.35 | BB57: =IF(AZ57<BJ57,AZ57+(AZ57-BJ57)/10*2,AZ57-(AZ57-BJ57)/10*2) -> 2.3 | BC57: =IF(AZ57<BJ57,AZ57+(AZ57-BJ57)/10*3,AZ57-(AZ57-BJ57)/10*3) -> 2.25 | BD57: =IF(AZ57<BJ57,AZ57+(AZ57-BJ57)/10*4,AZ57-(AZ57-BJ57)/10*4) -> 2.2 | BE57: =IF(AZ57<BJ57,AZ57+(AZ57-BJ57)/10*5,AZ57-(AZ57-BJ57)/10*5) -> 2.15 | BF57: =IF(AZ57<BJ57,AZ57+(AZ57-BJ57)/10*6,AZ57-(AZ57-BJ57)/10*6) -> 2.1 | BG57: =IF(AZ57<BJ57,AZ57+(AZ57-BJ57)/10*7,AZ57-(AZ57-BJ57)/10*7) -> 2.05 | BH57: =IF(AZ57<BJ57,AZ57+(AZ57-BJ57)/10*8,AZ57-(AZ57-BJ57)/10*8) -> 2 | BI57: =IF(AZ57<BJ57,AZ57+(AZ57-BJ57)/10*9,AZ57-(AZ57-BJ57)/10*9) -> 1.95 | BJ57: 1.9 | BK57: =IF(BJ57<BT57,BJ57+(BJ57-BT57)/10*1,BJ57-(BJ57-BT57)/10*1) -> 1.84 | BL57: =IF(BJ57<BT57,BJ57+(BJ57-BT57)/10*2,BJ57-(BJ57-BT57)/10*2) -> 1.78 | BM57: =IF(BJ57<BT57,BJ57+(BJ57-BT57)/10*3,BJ57-(BJ57-BT57)/10*3) -> 1.72 | BN57: =IF(BJ57<BT57,BJ57+(BJ57-BT57)/10*4,BJ57-(BJ57-BT57)/10*4) -> 1.66 | BO57: =IF(BJ57<BT57,BJ57+(BJ57-BT57)/10*5,BJ57-(BJ57-BT57)/10*5) -> 1.6 | BP57: =IF(BJ57<BT57,BJ57+(BJ57-BT57)/10*6,BJ57-(BJ57-BT57)/10*6) -> 1.54 | BQ57: =IF(BJ57<BT57,BJ57+(BJ57-BT57)/10*7,BJ57-(BJ57-BT57)/10*7) -> 1.48 | BR57: =IF(BJ57<BT57,BJ57+(BJ57-BT57)/10*8,BJ57-(BJ57-BT57)/10*8) -> 1.42 | BS57: =IF(BJ57<BT57,BJ57+(BJ57-BT57)/10*9,BJ57-(BJ57-BT57)/10*9) -> 1.36 | BT57: 1.3 | BU57: =IF(BT57<BY57,BT57+(BT57-BY57)/5*1,BT57-(BT57-BY57)/5*1) -> 1.28 | BV57: =IF(BT57<BY57,BT57+(BT57-BY57)/5*2,BT57-(BT57-BY57)/5*2) -> 1.26 | BW57: =IF(BT57<BY57,BT57+(BT57-BY57)/5*3,BT57-(BT57-BY57)/5*3) -> 1.24 | BX57: =IF(BT57<BY57,BT57+(BT57-BY57)/5*4,BT57-(BT57-BY57)/5*4) -> 1.22 | BY57: 1.2 | BZ57: =IF(BX57>BY57,BY57+(BY57-BX57),BY57-(BY57-BX57)) -> 1.18 | CA57: =IF(BY57>BZ57,BZ57+(BZ57-BY57),BZ57-(BZ57-BY57)) -> 1.16 | CB57: =IF(BZ57>CA57,CA57+(CA57-BZ57),CA57-(CA57-BZ57)) -> 1.14 | CC57: =IF(CA57>CB57,CB57+(CB57-CA57),CB57-(CB57-CA57)) -> 1.12 | CD57: =IF(CB57>CC57,CC57+(CC57-CB57),CC57-(CC57-CB57)) -> 1.1
A58: -19 | B58: =VLOOKUP(F55,Berechnung!$G$9:$H$62,2,FALSE)&"02" -> 102 | C58: =IF(Berechnung!$E$6=Berechnung!$E$9,Berechnung!$F$7*HLOOKUP(Berechnung!$N$6,MatrixLuft!$F$3:$AO$1114,FIXED(ROW(A58)-2,0),FALSE),"0") -> 2.62 | D58: =IF(Berechnung!$E$6=Berechnung!$E$9,Berechnung!$F$7*HLOOKUP($D$3,MatrixLuft!$F$3:$AO$1114,FIXED(ROW(A58)-2,0),FALSE),"0") -> 2.62 | E58: =IF(Berechnung!$E$6=Berechnung!$E$9,Berechnung!$F$7*HLOOKUP($E$3,MatrixLuft!$F$3:$AO$1114,FIXED(ROW(A58)-2,0),FALSE),"0") -> 0.92 | F58: =IF(F57>F62,F57-(ABS(F62-F57))/5*1,F57+ABS(F62-F57)/5*1) -> 3.27 | G58: =IF($F58>$K58,$F58-((ABS($F58-$K58)/5)*(COLUMN(G57)-COLUMN($F57))),$F58+((ABS($F58-$K58)/5)*(COLUMN(G57)-COLUMN($F57)))) -> 3.14 | H58: 3.01 | I58: 2.88 | J58: 2.75 | K58: =IF(K$57>K$62,K$57-(ABS(K$62-K$57))/5*1,K$57+ABS(K$62-K$57)/5*1) -> 2.62 | L58: =IF($K58>$P58,$K58-((ABS($K58-$P58)/5)*(COLUMN(L57)-COLUMN($K57))),$K58+((ABS($K58-$P58)/5)*(COLUMN(L57)-COLUMN($K57)))) -> 2.49 | M58: 2.36 | N58: 2.23 | O58: 2.1 | P58: =IF(P$57>P$62,P$57-(ABS(P$62-P$57))/5*1,P$57+ABS(P$62-P$57)/5*1) -> 1.97 | Q58: =IF($P58>$U58,$P58-((ABS($P58-$U58)/5)*(COLUMN(Q57)-COLUMN($P57))),$P58+((ABS($P58-$U58)/5)*(COLUMN(Q57)-COLUMN($P57)))) -> 1.84 | R58: 1.71 | S58: 1.58 | T58: 1.45 | U58: =IF(U$57>U$62,U$57-(ABS(U$62-U$57))/5*1,U$57+ABS(U$62-U$57)/5*1) -> 1.32 | V58: =IF($U58>$Z58,$U58-((ABS($U58-$Z58)/5)*(COLUMN(V57)-COLUMN($U57))),$U58+((ABS($U58-$Z58)/5)*(COLUMN(V57)-COLUMN($U57)))) -> 1.28 | W58: 1.24 | X58: 1.2 | Y58: 1.16 | Z58: =IF(Z$57>Z$62,Z$57-(ABS(Z$62-Z$57))/5*1,Z$57+ABS(Z$62-Z$57)/5*1) -> 1.12 | AA58: =IF($Z58>$AE58,$Z58-((ABS($Z58-$AE58)/5)*(COLUMN(AA57)-COLUMN($Z57))),$Z58+((ABS($Z58-$AE58)/5)*(COLUMN(AA57)-COLUMN($Z57)))) -> 1.08 | AB58: 1.04 | AC58: 1 | AD58: 0.96 | AE58: =IF(AE$57>AE$62,AE$57-(ABS(AE$62-AE$57))/5*1,AE$57+ABS(AE$62-AE$57)/5*1) -> 0.92 | AQ58: -19 | AR58: =IF(Berechnung!$E$6=Berechnung!$E$9,HLOOKUP(Berechnung!$N$6,MatrixLuft!$AU$3:$CD$1114,FIXED(ROW(AQ58)-2,0),FALSE),"0") -> 2.48 | AS58: =IF(Berechnung!$E$6=Berechnung!$E$9,HLOOKUP($D$3,MatrixLuft!$AU$3:$CD$1114,FIXED(ROW(AQ58)-2,0),FALSE),"0") -> 2.48 | AT58: =IF(Berechnung!$E$6=Berechnung!$E$9,HLOOKUP($E$3,MatrixLuft!$AU$3:$CD$1114,FIXED(ROW(AQ58)-2,0),FALSE),"0") -> 1.36 | AU58: =IF(AV58<AW58,AV58-(AV58-AW58),AV58+(AV58-AW58)) -> 2.76 | AV58: =IF(AW58<AX58,AW58-(AW58-AX58),AW58+(AW58-AX58)) -> 2.704 | AW58: =IF(AX58<AY58,AX58-(AX58-AY58),AX58+(AX58-AY58)) -> 2.648 | AX58: =IF(AY58<AZ58,AY58-(AY58-AZ58),AY58+(AY58-AZ58)) -> 2.592 | AY58: 2.536 | AZ58: =IF(AZ57>AZ62,AZ57-(ABS(AZ62-AZ57))/5*1,AZ57+ABS(AZ62-AZ57)/5*1) -> 2.48 | BA58: =IF(AZ58<BJ58,AZ58+(AZ58-BJ58)/10*1,AZ58-(AZ58-BJ58)/10*1) -> 2.424 | BB58: =IF(AZ58<BJ58,AZ58+(AZ58-BJ58)/10*2,AZ58-(AZ58-BJ58)/10*2) -> 2.368 | BC58: =IF(AZ58<BJ58,AZ58+(AZ58-BJ58)/10*3,AZ58-(AZ58-BJ58)/10*3) -> 2.312 | BD58: =IF(AZ58<BJ58,AZ58+(AZ58-BJ58)/10*4,AZ58-(AZ58-BJ58)/10*4) -> 2.256 | BE58: =IF(AZ58<BJ58,AZ58+(AZ58-BJ58)/10*5,AZ58-(AZ58-BJ58)/10*5) -> 2.2 | BF58: =IF(AZ58<BJ58,AZ58+(AZ58-BJ58)/10*6,AZ58-(AZ58-BJ58)/10*6) -> 2.144 | BG58: =IF(AZ58<BJ58,AZ58+(AZ58-BJ58)/10*7,AZ58-(AZ58-BJ58)/10*7) -> 2.088 | BH58: =IF(AZ58<BJ58,AZ58+(AZ58-BJ58)/10*8,AZ58-(AZ58-BJ58)/10*8) -> 2.032 | BI58: =IF(AZ58<BJ58,AZ58+(AZ58-BJ58)/10*9,AZ58-(AZ58-BJ58)/10*9) -> 1.976 | BJ58: =IF(BJ57>BJ62,BJ57-(ABS(BJ62-BJ57))/5*1,BJ57+ABS(BJ62-BJ57)/5*1) -> 1.92 | BK58: =IF(BJ58<BT58,BJ58+(BJ58-BT58)/10*1,BJ58-(BJ58-BT58)/10*1) -> 1.864 | BL58: =IF(BJ58<BT58,BJ58+(BJ58-BT58)/10*2,BJ58-(BJ58-BT58)/10*2) -> 1.808 | BM58: =IF(BJ58<BT58,BJ58+(BJ58-BT58)/10*3,BJ58-(BJ58-BT58)/10*3) -> 1.752 | BN58: =IF(BJ58<BT58,BJ58+(BJ58-BT58)/10*4,BJ58-(BJ58-BT58)/10*4) -> 1.696 | BO58: =IF(BJ58<BT58,BJ58+(BJ58-BT58)/10*5,BJ58-(BJ58-BT58)/10*5) -> 1.64 | BP58: =IF(BJ58<BT58,BJ58+(BJ58-BT58)/10*6,BJ58-(BJ58-BT58)/10*6) -> 1.584 | BQ58: =IF(BJ58<BT58,BJ58+(BJ58-BT58)/10*7,BJ58-(BJ58-BT58)/10*7) -> 1.528 | BR58: =IF(BJ58<BT58,BJ58+(BJ58-BT58)/10*8,BJ58-(BJ58-BT58)/10*8) -> 1.472 | BS58: =IF(BJ58<BT58,BJ58+(BJ58-BT58)/10*9,BJ58-(BJ58-BT58)/10*9) -> 1.416 | BT58: =IF(BT57>BT62,BT57-(ABS(BT62-BT57))/5*1,BT57+ABS(BT62-BT57)/5*1) -> 1.36 | BU58: =IF(BT58<BY58,BT58+(BT58-BY58)/5*1,BT58-(BT58-BY58)/5*1) -> 1.34 | BV58: =IF(BT58<BY58,BT58+(BT58-BY58)/5*2,BT58-(BT58-BY58)/5*2) -> 1.32 | BW58: =IF(BT58<BY58,BT58+(BT58-BY58)/5*3,BT58-(BT58-BY58)/5*3) -> 1.3 | BX58: =IF(BT58<BY58,BT58+(BT58-BY58)/5*4,BT58-(BT58-BY58)/5*4) -> 1.28 | BY58: =IF(BY57>BY62,BY57-(ABS(BY62-BY57))/5*1,BY57+ABS(BY62-BY57)/5*1) -> 1.26 | BZ58: =IF(BX58>BY58,BY58+(BY58-BX58),BY58-(BY58-BX58)) -> 1.24 | CA58: =IF(BY58>BZ58,BZ58+(BZ58-BY58),BZ58-(BZ58-BY58)) -> 1.22 | CB58: =IF(BZ58>CA58,CA58+(CA58-BZ58),CA58-(CA58-BZ58)) -> 1.2 | CC58: =IF(CA58>CB58,CB58+(CB58-CA58),CB58-(CB58-CA58)) -> 1.18 | CD58: =IF(CB58>CC58,CC58+(CC58-CB58),CC58-(CC58-CB58)) -> 1.16
A59: -18 | B59: =VLOOKUP(F55,Berechnung!$G$9:$H$62,2,FALSE)&"03" -> 103 | C59: =IF(Berechnung!$E$6=Berechnung!$E$9,Berechnung!$F$7*HLOOKUP(Berechnung!$N$6,MatrixLuft!$F$3:$AO$1114,FIXED(ROW(A59)-2,0),FALSE),"0") -> 2.84 | D59: =IF(Berechnung!$E$6=Berechnung!$E$9,Berechnung!$F$7*HLOOKUP($D$3,MatrixLuft!$F$3:$AO$1114,FIXED(ROW(A59)-2,0),FALSE),"0") -> 2.84 | E59: =IF(Berechnung!$E$6=Berechnung!$E$9,Berechnung!$F$7*HLOOKUP($E$3,MatrixLuft!$F$3:$AO$1114,FIXED(ROW(A59)-2,0),FALSE),"0") -> 1.14 | F59: =IF(F57>F62,F57-(ABS(F62-F57))/5*2,F57+ABS(F62-F57)/5*2) -> 3.49 | G59: =IF($F59>$K59,$F59-((ABS($F59-$K59)/5)*(COLUMN(G58)-COLUMN($F58))),$F59+((ABS($F59-$K59)/5)*(COLUMN(G58)-COLUMN($F58)))) -> 3.36 | H59: 3.23 | I59: 3.1 | J59: 2.97 | K59: =IF(K$57>K$62,K$57-(ABS(K$62-K$57))/5*2,K$57+ABS(K$62-K$57)/5*2) -> 2.84 | L59: =IF($K59>$P59,$K59-((ABS($K59-$P59)/5)*(COLUMN(L58)-COLUMN($K58))),$K59+((ABS($K59-$P59)/5)*(COLUMN(L58)-COLUMN($K58)))) -> 2.71 | M59: 2.58 | N59: 2.45 | O59: 2.32 | P59: =IF(P$57>P$62,P$57-(ABS(P$62-P$57))/5*2,P$57+ABS(P$62-P$57)/5*2) -> 2.19 | Q59: 2.06 | R59: 1.93 | S59: 1.8 | T59: 1.67 | U59: =IF(U$57>U$62,U$57-(ABS(U$62-U$57))/5*2,U$57+ABS(U$62-U$57)/5*2) -> 1.54 | V59: 1.5 | W59: 1.46 | X59: 1.42 | Y59: 1.38 | Z59: =IF(Z$57>Z$62,Z$57-(ABS(Z$62-Z$57))/5*2,Z$57+ABS(Z$62-Z$57)/5*2) -> 1.34 | AA59: 1.3 | AB59: 1.26 | AC59: 1.22 | AD59: 1.18 | AE59: =IF(AE$57>AE$62,AE$57-(ABS(AE$62-AE$57))/5*2,AE$57+ABS(AE$62-AE$57)/5*2) -> 1.14 | AQ59: -18 | AR59: =IF(Berechnung!$E$6=Berechnung!$E$9,HLOOKUP(Berechnung!$N$6,MatrixLuft!$AU$3:$CD$1114,FIXED(ROW(AQ59)-2,0),FALSE),"0") -> 2.56 | AS59: =IF(Berechnung!$E$6=Berechnung!$E$9,HLOOKUP($D$3,MatrixLuft!$AU$3:$CD$1114,FIXED(ROW(AQ59)-2,0),FALSE),"0") -> 2.56 | AT59: =IF(Berechnung!$E$6=Berechnung!$E$9,HLOOKUP($E$3,MatrixLuft!$AU$3:$CD$1114,FIXED(ROW(AQ59)-2,0),FALSE),"0") -> 1.42 | AU59: 2.87 | AV59: 2.808 | AW59: 2.746 | AX59: 2.684 | AY59: =IF(AZ59<BA59,AZ59-(AZ59-BA59),AZ59+(AZ59-BA59)) -> 2.622 | AZ59: =IF(AZ57>AZ62,AZ57-(ABS(AZ62-AZ57))/5*2,AZ57+ABS(AZ62-AZ57)/5*2) -> 2.56 | BA59: 2.498 | BB59: 2.436 | BC59: 2.374 | BD59: 2.312 | BE59: 2.25 | BF59: 2.188 | BG59: 2.126 | BH59: 2.064 | BI59: 2.002 | BJ59: =IF(BJ57>BJ62,BJ57-(ABS(BJ62-BJ57))/5*2,BJ57+ABS(BJ62-BJ57)/5*2) -> 1.94 | BK59: 1.888 | BL59: 1.836 | BM59: 1.784 | BN59: 1.732 | BO59: 1.68 | BP59: 1.628 | BQ59: 1.576 | BR59: 1.524 | BS59: 1.472 | BT59: =IF(BT57>BT62,BT57-(ABS(BT62-BT57))/5*2,BT57+ABS(BT62-BT57)/5*2) -> 1.42 | BU59: 1.4 | BV59: 1.38 | BW59: 1.36 | BX59: 1.34 | BY59: =IF(BY57>BY62,BY57-(ABS(BY62-BY57))/5*2,BY57+ABS(BY62-BY57)/5*2) -> 1.32 | BZ59: 1.3 | CA59: 1.28 | CB59: 1.26 | CC59: 1.24 | CD59: 1.22
A60: -17 | B60: =VLOOKUP(F55,Berechnung!$G$9:$H$62,2,FALSE)&"04" -> 104 | C60: =IF(Berechnung!$E$6=Berechnung!$E$9,Berechnung!$F$7*HLOOKUP(Berechnung!$N$6,MatrixLuft!$F$3:$AO$1114,FIXED(ROW(A60)-2,0),FALSE),"0") -> 3.06 | D60: =IF(Berechnung!$E$6=Berechnung!$E$9,Berechnung!$F$7*HLOOKUP($D$3,MatrixLuft!$F$3:$AO$1114,FIXED(ROW(A60)-2,0),FALSE),"0") -> 3.06 | E60: =IF(Berechnung!$E$6=Berechnung!$E$9,Berechnung!$F$7*HLOOKUP($E$3,MatrixLuft!$F$3:$AO$1114,FIXED(ROW(A60)-2,0),FALSE),"0") -> 1.36 | F60: =IF(F57>F62,F57-(ABS(F62-F57))/5*3,F57+ABS(F62-F57)/5*3) -> 3.71 | G60: 3.58 | H60: 3.45 | I60: 3.32 | J60: 3.19 | K60: =IF(K$57>K$62,K$57-(ABS(K$62-K$57))/5*3,K$57+ABS(K$62-K$57)/5*3) -> 3.06 | L60: 2.93 | M60: 2.8 | N60: 2.67 | O60: 2.54 | P60: =IF(P$57>P$62,P$57-(ABS(P$62-P$57))/5*3,P$57+ABS(P$62-P$57)/5*3) -> 2.41 | Q60: 2.28 | R60: 2.15 | S60: 2.02 | T60: 1.89 | U60: =IF(U$57>U$62,U$57-(ABS(U$62-U$57))/5*3,U$57+ABS(U$62-U$57)/5*3) -> 1.76 | V60: 1.72 | W60: 1.68 | X60: 1.64 | Y60: 1.6 | Z60: =IF(Z$57>Z$62,Z$57-(ABS(Z$62-Z$57))/5*3,Z$57+ABS(Z$62-Z$57)/5*3) -> 1.56 | AA60: 1.52 | AB60: 1.48 | AC60: 1.44 | AD60: 1.4 | AE60: =IF(AE$57>AE$62,AE$57-(ABS(AE$62-AE$57))/5*3,AE$57+ABS(AE$62-AE$57)/5*3) -> 1.36 | AQ60: -17 | AR60: =IF(Berechnung!$E$6=Berechnung!$E$9,HLOOKUP(Berechnung!$N$6,MatrixLuft!$AU$3:$CD$1114,FIXED(ROW(AQ60)-2,0),FALSE),"0") -> 2.64 | AS60: =IF(Berechnung!$E$6=Berechnung!$E$9,HLOOKUP($D$3,MatrixLuft!$AU$3:$CD$1114,FIXED(ROW(AQ60)-2,0),FALSE),"0") -> 2.64 | AT60: =IF(Berechnung!$E$6=Berechnung!$E$9,HLOOKUP($E$3,MatrixLuft!$AU$3:$CD$1114,FIXED(ROW(AQ60)-2,0),FALSE),"0") -> 1.48 | AU60: 2.98 | AV60: 2.912 | AW60: 2.844 | AX60: 2.776 | AY60: 2.708 | AZ60: =IF(AZ57>AZ62,AZ57-(ABS(AZ62-AZ57))/5*3,AZ57+ABS(AZ62-AZ57)/5*3) -> 2.64 | BA60: 2.572 | BB60: 2.504 | BC60: 2.436 | BD60: 2.368 | BE60: 2.3 | BF60: 2.232 | BG60: 2.164 | BH60: 2.096 | BI60: 2.028 | BJ60: =IF(BJ57>BJ62,BJ57-(ABS(BJ62-BJ57))/5*3,BJ57+ABS(BJ62-BJ57)/5*3) -> 1.96 | BK60: 1.912 | BL60: 1.864 | BM60: 1.816 | BN60: 1.768 | BO60: 1.72 | BP60: 1.672 | BQ60: 1.624 | BR60: 1.576 | BS60: 1.528 | BT60: =IF(BT57>BT62,BT57-(ABS(BT62-BT57))/5*3,BT57+ABS(BT62-BT57)/5*3) -> 1.48 | BU60: 1.46 | BV60: 1.44 | BW60: 1.42 | BX60: 1.4 | BY60: =IF(BY57>BY62,BY57-(ABS(BY62-BY57))/5*3,BY57+ABS(BY62-BY57)/5*3) -> 1.38 | BZ60: 1.36 | CA60: 1.34 | CB60: 1.32 | CC60: 1.3 | CD60: 1.28
A61: -16 | B61: =VLOOKUP(F55,Berechnung!$G$9:$H$62,2,FALSE)&"05" -> 105 | C61: =IF(Berechnung!$E$6=Berechnung!$E$9,Berechnung!$F$7*HLOOKUP(Berechnung!$N$6,MatrixLuft!$F$3:$AO$1114,FIXED(ROW(A61)-2,0),FALSE),"0") -> 3.28 | D61: =IF(Berechnung!$E$6=Berechnung!$E$9,Berechnung!$F$7*HLOOKUP($D$3,MatrixLuft!$F$3:$AO$1114,FIXED(ROW(A61)-2,0),FALSE),"0") -> 3.28 | E61: =IF(Berechnung!$E$6=Berechnung!$E$9,Berechnung!$F$7*HLOOKUP($E$3,MatrixLuft!$F$3:$AO$1114,FIXED(ROW(A61)-2,0),FALSE),"0") -> 1.58 | F61: =IF(F57>F62,F57-(ABS(F62-F57))/5*4,F57+ABS(F62-F57)/5*4) -> 3.93 | G61: 3.8 | H61: 3.67 | I61: 3.54 | J61: 3.41 | K61: =IF(K$57>K$62,K$57-(ABS(K$62-K$57))/5*4,K$57+ABS(K$62-K$57)/5*4) -> 3.28 | L61: 3.15 | M61: 3.02 | N61: 2.89 | O61: 2.76 | P61: =IF(P$57>P$62,P$57-(ABS(P$62-P$57))/5*4,P$57+ABS(P$62-P$57)/5*4) -> 2.63 | Q61: 2.5 | R61: 2.37 | S61: 2.24 | T61: 2.11 | U61: =IF(U$57>U$62,U$57-(ABS(U$62-U$57))/5*4,U$57+ABS(U$62-U$57)/5*4) -> 1.98 | V61: 1.94 | W61: 1.9 | X61: 1.86 | Y61: 1.82 | Z61: =IF(Z$57>Z$62,Z$57-(ABS(Z$62-Z$57))/5*4,Z$57+ABS(Z$62-Z$57)/5*4) -> 1.78 | AA61: 1.74 | AB61: 1.7 | AC61: 1.66 | AD61: 1.62 | AE61: =IF(AE$57>AE$62,AE$57-(ABS(AE$62-AE$57))/5*4,AE$57+ABS(AE$62-AE$57)/5*4) -> 1.58 | AQ61: -16 | AR61: =IF(Berechnung!$E$6=Berechnung!$E$9,HLOOKUP(Berechnung!$N$6,MatrixLuft!$AU$3:$CD$1114,FIXED(ROW(AQ61)-2,0),FALSE),"0") -> 2.72 | AS61: =IF(Berechnung!$E$6=Berechnung!$E$9,HLOOKUP($D$3,MatrixLuft!$AU$3:$CD$1114,FIXED(ROW(AQ61)-2,0),FALSE),"0") -> 2.72 | AT61: =IF(Berechnung!$E$6=Berechnung!$E$9,HLOOKUP($E$3,MatrixLuft!$AU$3:$CD$1114,FIXED(ROW(AQ61)-2,0),FALSE),"0") -> 1.54 | AU61: 3.09 | AV61: 3.016 | AW61: 2.942 | AX61: 2.868 | AY61: 2.794 | AZ61: =IF(AZ57>AZ62,AZ57-(ABS(AZ62-AZ57))/5*4,AZ57+ABS(AZ62-AZ57)/5*4) -> 2.72 | BA61: 2.646 | BB61: 2.572 | BC61: 2.498 | BD61: 2.424 | BE61: 2.35 | BF61: 2.276 | BG61: 2.202 | BH61: 2.128 | BI61: 2.054 | BJ61: =IF(BJ57>BJ62,BJ57-(ABS(BJ62-BJ57))/5*4,BJ57+ABS(BJ62-BJ57)/5*4) -> 1.98 | BK61: 1.936 | BL61: 1.892 | BM61: 1.848 | BN61: 1.804 | BO61: 1.76 | BP61: 1.716 | BQ61: 1.672 | BR61: 1.628 | BS61: 1.584 | BT61: =IF(BT57>BT62,BT57-(ABS(BT62-BT57))/5*4,BT57+ABS(BT62-BT57)/5*4) -> 1.54 | BU61: 1.52 | BV61: 1.5 | BW61: 1.48 | BX61: 1.46 | BY61: =IF(BY57>BY62,BY57-(ABS(BY62-BY57))/5*4,BY57+ABS(BY62-BY57)/5*4) -> 1.44 | BZ61: 1.42 | CA61: 1.4 | CB61: 1.38 | CC61: 1.36 | CD61: 1.34
A62: -15 | B62: =VLOOKUP(F55,Berechnung!$G$9:$H$62,2,FALSE)&"06" -> 106 | C62: =IF(Berechnung!$E$6=Berechnung!$E$9,Berechnung!$F$7*HLOOKUP(Berechnung!$N$6,MatrixLuft!$F$3:$AO$1114,FIXED(ROW(A62)-2,0),FALSE),"0") -> 3.5 | D62: =IF(Berechnung!$E$6=Berechnung!$E$9,Berechnung!$F$7*HLOOKUP($D$3,MatrixLuft!$F$3:$AO$1114,FIXED(ROW(A62)-2,0),FALSE),"0") -> 3.5 | E62: =IF(Berechnung!$E$6=Berechnung!$E$9,Berechnung!$F$7*HLOOKUP($E$3,MatrixLuft!$F$3:$AO$1114,FIXED(ROW(A62)-2,0),FALSE),"0") -> 1.8 | F62: =K62+(K62-P62) -> 4.15 | G62: 4.02 | H62: 3.89 | I62: 3.76 | J62: 3.63 | K62: 3.5 | L62: 3.37 | M62: 3.24 | N62: 3.11 | O62: 2.98 | P62: =AVERAGE(K62,U62) -> 2.85 | Q62: 2.72 | R62: 2.59 | S62: 2.46 | T62: 2.33 | U62: 2.2 | V62: 2.16 | W62: 2.12 | X62: 2.08 | Y62: 2.04 | Z62: =AVERAGE(U62,AE62) -> 2 | AA62: 1.96 | AB62: 1.92 | AC62: 1.88 | AD62: 1.84 | AE62: 1.8 | AQ62: -15 | AR62: =IF(Berechnung!$E$6=Berechnung!$E$9,HLOOKUP(Berechnung!$N$6,MatrixLuft!$AU$3:$CD$1114,FIXED(ROW(AQ62)-2,0),FALSE),"0") -> 2.8 | AS62: =IF(Berechnung!$E$6=Berechnung!$E$9,HLOOKUP($D$3,MatrixLuft!$AU$3:$CD$1114,FIXED(ROW(AQ62)-2,0),FALSE),"0") -> 2.8 | AT62: =IF(Berechnung!$E$6=Berechnung!$E$9,HLOOKUP($E$3,MatrixLuft!$AU$3:$CD$1114,FIXED(ROW(AQ62)-2,0),FALSE),"0") -> 1.6 | AU62: 3.2 | AV62: 3.12 | AW62: 3.04 | AX62: 2.96 | AY62: 2.88 | AZ62: 2.8 | BA62: 2.72 | BB62: 2.64 | BC62: 2.56 | BD62: 2.48 | BE62: 2.4 | BF62: 2.32 | BG62: 2.24 | BH62: 2.16 | BI62: 2.08 | BJ62: 2 | BK62: 1.96 | BL62: 1.92 | BM62: 1.88 | BN62: 1.84 | BO62: 1.8 | BP62: 1.76 | BQ62: 1.72 | BR62: 1.68 | BS62: 1.64 | BT62: 1.6 | BU62: 1.58 | BV62: 1.56 | BW62: 1.54 | BX62: 1.52 | BY62: 1.5 | BZ62: 1.48 | CA62: 1.46 | CB62: 1.44 | CC62: 1.42 | CD62: 1.4
A63: -14 | B63: =VLOOKUP(F55,Berechnung!$G$9:$H$62,2,FALSE)&"07" -> 107 | C63: =IF(Berechnung!$E$6=Berechnung!$E$9,Berechnung!$F$7*HLOOKUP(Berechnung!$N$6,MatrixLuft!$F$3:$AO$1114,FIXED(ROW(A63)-2,0),FALSE),"0") -> 3.66 | D63: =IF(Berechnung!$E$6=Berechnung!$E$9,Berechnung!$F$7*HLOOKUP($D$3,MatrixLuft!$F$3:$AO$1114,FIXED(ROW(A63)-2,0),FALSE),"0") -> 3.66 | E63: =IF(Berechnung!$E$6=Berechnung!$E$9,Berechnung!$F$7*HLOOKUP($E$3,MatrixLuft!$F$3:$AO$1114,FIXED(ROW(A63)-2,0),FALSE),"0") -> 1.97 | F63: =IF(F62>F67,F62-(ABS(F67-F62))/5*1,F62+ABS(F67-F62)/5*1) -> 4.305 | G63: 4.176 | H63: 4.047 | I63: 3.918 | J63: 3.789 | K63: =IF(K62>K67,K62-(ABS(K67-K62))/5*1,K62+ABS(K67-K62)/5*1) -> 3.66 | L63: 3.531 | M63: 3.402 | N63: 3.273 | O63: 3.144 | P63: =IF(P62>P67,P62-(ABS(P67-P62))/5*1,P62+ABS(P67-P62)/5*1) -> 3.015 | Q63: 2.886 | R63: 2.757 | S63: 2.628 | T63: 2.499 | U63: =IF(U62>U67,U62-(ABS(U67-U62))/5*1,U62+ABS(U67-U62)/5*1) -> 2.37 | V63: 2.33 | W63: 2.29 | X63: 2.25 | Y63: 2.21 | Z63: =IF(Z62>Z67,Z62-(ABS(Z67-Z62))/5*1,Z62+ABS(Z67-Z62)/5*1) -> 2.17 | AA63: 2.13 | AB63: 2.09 | AC63: 2.05 | AD63: 2.01 | AE63: =IF(AE62>AE67,AE62-(ABS(AE67-AE62))/5*1,AE62+ABS(AE67-AE62)/5*1) -> 1.97 | AQ63: -14 | AR63: =IF(Berechnung!$E$6=Berechnung!$E$9,HLOOKUP(Berechnung!$N$6,MatrixLuft!$AU$3:$CD$1114,FIXED(ROW(AQ63)-2,0),FALSE),"0") -> 2.8375 | AS63: =IF(Berechnung!$E$6=Berechnung!$E$9,HLOOKUP($D$3,MatrixLuft!$AU$3:$CD$1114,FIXED(ROW(AQ63)-2,0),FALSE),"0") -> 2.8375 | AT63: =IF(Berechnung!$E$6=Berechnung!$E$9,HLOOKUP($E$3,MatrixLuft!$AU$3:$CD$1114,FIXED(ROW(AQ63)-2,0),FALSE),"0") -> 1.6625 | AU63: 3.24375 | AV63: 3.1625 | AW63: 3.08125 | AX63: 3 | AY63: 2.91875 | AZ63: =IF(AZ62>AZ70,AZ62-(ABS(AZ70-AZ62))/8*1,AZ62+ABS(AZ70-AZ62)/8*1) -> 2.8375 | BA63: 2.75625 | BB63: 2.675 | BC63: 2.59375 | BD63: 2.5125 | BE63: 2.43125 | BF63: 2.35 | BG63: 2.26875 | BH63: 2.1875 | BI63: 2.10625 | BJ63: =IF(BJ62>BJ70,BJ62-(ABS(BJ70-BJ62))/8*1,BJ62+ABS(BJ70-BJ62)/8*1) -> 2.025 | BK63: 1.98875 | BL63: 1.9525 | BM63: 1.91625 | BN63: 1.88 | BO63: 1.84375 | BP63: 1.8075 | BQ63: 1.77125 | BR63: 1.735 | BS63: 1.69875 | BT63: =IF(BT62>BT70,BT62-(ABS(BT70-BT62))/8*1,BT62+ABS(BT70-BT62)/8*1) -> 1.6625 | BU63: 1.64 | BV63: 1.6175 | BW63: 1.595 | BX63: 1.5725 | BY63: =IF(BY62>BY70,BY62-(ABS(BY70-BY62))/8*1,BY62+ABS(BY70-BY62)/8*1) -> 1.55 | BZ63: 1.5275 | CA63: 1.505 | CB63: 1.4825 | CC63: 1.46 | CD63: 1.4375
A64: -13 | B64: =VLOOKUP(F55,Berechnung!$G$9:$H$62,2,FALSE)&"08" -> 108 | C64: =IF(Berechnung!$E$6=Berechnung!$E$9,Berechnung!$F$7*HLOOKUP(Berechnung!$N$6,MatrixLuft!$F$3:$AO$1114,FIXED(ROW(A64)-2,0),FALSE),"0") -> 3.82 | D64: =IF(Berechnung!$E$6=Berechnung!$E$9,Berechnung!$F$7*HLOOKUP($D$3,MatrixLuft!$F$3:$AO$1114,FIXED(ROW(A64)-2,0),FALSE),"0") -> 3.82 | E64: =IF(Berechnung!$E$6=Berechnung!$E$9,Berechnung!$F$7*HLOOKUP($E$3,MatrixLuft!$F$3:$AO$1114,FIXED(ROW(A64)-2,0),FALSE),"0") -> 2.14 | F64: =IF(F62>F67,F62-(ABS(F67-F62))/5*2,F62+ABS(F67-F62)/5*2) -> 4.46 | G64: 4.332 | H64: 4.204 | I64: 4.076 | J64: 3.948 | K64: =IF(K62>K67,K62-(ABS(K67-K62))/5*2,K62+ABS(K67-K62)/5*2) -> 3.82 | L64: 3.692 | M64: 3.564 | N64: 3.436 | O64: 3.308 | P64: =IF(P62>P67,P62-(ABS(P67-P62))/5*2,P62+ABS(P67-P62)/5*2) -> 3.18 | Q64: 3.052 | R64: 2.924 | S64: 2.796 | T64: 2.668 | U64: =IF(U62>U67,U62-(ABS(U67-U62))/5*2,U62+ABS(U67-U62)/5*2) -> 2.54 | V64: 2.5 | W64: 2.46 | X64: 2.42 | Y64: 2.38 | Z64: =IF(Z62>Z67,Z62-(ABS(Z67-Z62))/5*2,Z62+ABS(Z67-Z62)/5*2) -> 2.34 | AA64: 2.3 | AB64: 2.26 | AC64: 2.22 | AD64: 2.18 | AE64: =IF(AE62>AE67,AE62-(ABS(AE67-AE62))/5*2,AE62+ABS(AE67-AE62)/5*2) -> 2.14 | AQ64: -13 | AR64: =IF(Berechnung!$E$6=Berechnung!$E$9,HLOOKUP(Berechnung!$N$6,MatrixLuft!$AU$3:$CD$1114,FIXED(ROW(AQ64)-2,0),FALSE),"0") -> 2.875 | AS64: =IF(Berechnung!$E$6=Berechnung!$E$9,HLOOKUP($D$3,MatrixLuft!$AU$3:$CD$1114,FIXED(ROW(AQ64)-2,0),FALSE),"0") -> 2.875 | AT64: =IF(Berechnung!$E$6=Berechnung!$E$9,HLOOKUP($E$3,MatrixLuft!$AU$3:$CD$1114,FIXED(ROW(AQ64)-2,0),FALSE),"0") -> 1.725 | AU64: 3.2875 | AV64: 3.205 | AW64: 3.1225 | AX64: 3.04 | AY64: 2.9575 | AZ64: =IF(AZ62>AZ70,AZ62-(ABS(AZ70-AZ62))/8*2,AZ62+ABS(AZ70-AZ62)/8*2) -> 2.875 | BA64: 2.7925 | BB64: 2.71 | BC64: 2.6275 | BD64: 2.545 | BE64: 2.4625 | BF64: 2.38 | BG64: 2.2975 | BH64: 2.215 | BI64: 2.1325 | BJ64: =IF(BJ62>BJ70,BJ62-(ABS(BJ70-BJ62))/8*2,BJ62+ABS(BJ70-BJ62)/8*2) -> 2.05 | BK64: 2.0175 | BL64: 1.985 | BM64: 1.9525 | BN64: 1.92 | BO64: 1.8875 | BP64: 1.855 | BQ64: 1.8225 | BR64: 1.79 | BS64: 1.7575 | BT64: =IF(BT62>BT70,BT62-(ABS(BT70-BT62))/8*2,BT62+ABS(BT70-BT62)/8*2) -> 1.725 | BU64: 1.7 | BV64: 1.675 | BW64: 1.65 | BX64: 1.625 | BY64: =IF(BY62>BY70,BY62-(ABS(BY70-BY62))/8*2,BY62+ABS(BY70-BY62)/8*2) -> 1.6 | BZ64: 1.575 | CA64: 1.55 | CB64: 1.525 | CC64: 1.5 | CD64: 1.475
A65: -12 | B65: =VLOOKUP(F55,Berechnung!$G$9:$H$62,2,FALSE)&"09" -> 109 | C65: =IF(Berechnung!$E$6=Berechnung!$E$9,Berechnung!$F$7*HLOOKUP(Berechnung!$N$6,MatrixLuft!$F$3:$AO$1114,FIXED(ROW(A65)-2,0),FALSE),"0") -> 3.98 | D65: =IF(Berechnung!$E$6=Berechnung!$E$9,Berechnung!$F$7*HLOOKUP($D$3,MatrixLuft!$F$3:$AO$1114,FIXED(ROW(A65)-2,0),FALSE),"0") -> 3.98 | E65: =IF(Berechnung!$E$6=Berechnung!$E$9,Berechnung!$F$7*HLOOKUP($E$3,MatrixLuft!$F$3:$AO$1114,FIXED(ROW(A65)-2,0),FALSE),"0") -> 2.31 | F65: =IF(F62>F67,F62-(ABS(F67-F62))/5*3,F62+ABS(F67-F62)/5*3) -> 4.615 | G65: 4.488 | H65: 4.361 | I65: 4.234 | J65: 4.107 | K65: =IF(K62>K67,K62-(ABS(K67-K62))/5*3,K62+ABS(K67-K62)/5*3) -> 3.98 | L65: 3.853 | M65: 3.726 | N65: 3.599 | O65: 3.472 | P65: =IF(P62>P67,P62-(ABS(P67-P62))/5*3,P62+ABS(P67-P62)/5*3) -> 3.345 | Q65: 3.218 | R65: 3.091 | S65: 2.964 | T65: 2.837 | U65: =IF(U62>U67,U62-(ABS(U67-U62))/5*3,U62+ABS(U67-U62)/5*3) -> 2.71 | V65: 2.67 | W65: 2.63 | X65: 2.59 | Y65: 2.55 | Z65: =IF(Z62>Z67,Z62-(ABS(Z67-Z62))/5*3,Z62+ABS(Z67-Z62)/5*3) -> 2.51 | AA65: 2.47 | AB65: 2.43 | AC65: 2.39 | AD65: 2.35 | AE65: =IF(AE62>AE67,AE62-(ABS(AE67-AE62))/5*3,AE62+ABS(AE67-AE62)/5*3) -> 2.31 | AQ65: -12 | AR65: =IF(Berechnung!$E$6=Berechnung!$E$9,HLOOKUP(Berechnung!$N$6,MatrixLuft!$AU$3:$CD$1114,FIXED(ROW(AQ65)-2,0),FALSE),"0") -> 2.9125 | AS65: =IF(Berechnung!$E$6=Berechnung!$E$9,HLOOKUP($D$3,MatrixLuft!$AU$3:$CD$1114,FIXED(ROW(AQ65)-2,0),FALSE),"0") -> 2.9125 | AT65: =IF(Berechnung!$E$6=Berechnung!$E$9,HLOOKUP($E$3,MatrixLuft!$AU$3:$CD$1114,FIXED(ROW(AQ65)-2,0),FALSE),"0") -> 1.7875 | AU65: 3.33125 | AV65: 3.2475 | AW65: 3.16375 | AX65: 3.08 | AY65: 2.99625 | AZ65: =IF(AZ62>AZ70,AZ62-(ABS(AZ70-AZ62))/8*3,AZ62+ABS(AZ70-AZ62)/8*3) -> 2.9125 | BA65: 2.82875 | BB65: 2.745 | BC65: 2.66125 | BD65: 2.5775 | BE65: 2.49375 | BF65: 2.41 | BG65: 2.32625 | BH65: 2.2425 | BI65: 2.15875 | BJ65: =IF(BJ62>BJ70,BJ62-(ABS(BJ70-BJ62))/8*3,BJ62+ABS(BJ70-BJ62)/8*3) -> 2.075 | BK65: 2.04625 | BL65: 2.0175 | BM65: 1.98875 | BN65: 1.96 | BO65: 1.93125 | BP65: 1.9025 | BQ65: 1.87375 | BR65: 1.845 | BS65: 1.81625 | BT65: =IF(BT62>BT70,BT62-(ABS(BT70-BT62))/8*3,BT62+ABS(BT70-BT62)/8*3) -> 1.7875 | BU65: 1.76 | BV65: 1.7325 | BW65: 1.705 | BX65: 1.6775 | BY65: =IF(BY62>BY70,BY62-(ABS(BY70-BY62))/8*3,BY62+ABS(BY70-BY62)/8*3) -> 1.65 | BZ65: 1.6225 | CA65: 1.595 | CB65: 1.5675 | CC65: 1.54 | CD65: 1.5125
A66: -11 | B66: =VLOOKUP(F55,Berechnung!$G$9:$H$62,2,FALSE)&"10" -> 110 | C66: =IF(Berechnung!$E$6=Berechnung!$E$9,Berechnung!$F$7*HLOOKUP(Berechnung!$N$6,MatrixLuft!$F$3:$AO$1114,FIXED(ROW(A66)-2,0),FALSE),"0") -> 4.14 | D66: =IF(Berechnung!$E$6=Berechnung!$E$9,Berechnung!$F$7*HLOOKUP($D$3,MatrixLuft!$F$3:$AO$1114,FIXED(ROW(A66)-2,0),FALSE),"0") -> 4.14 | E66: =IF(Berechnung!$E$6=Berechnung!$E$9,Berechnung!$F$7*HLOOKUP($E$3,MatrixLuft!$F$3:$AO$1114,FIXED(ROW(A66)-2,0),FALSE),"0") -> 2.48 | F66: =IF(F62>F67,F62-(ABS(F67-F62))/5*4,F62+ABS(F67-F62)/5*4) -> 4.77 | G66: 4.644 | H66: 4.518 | I66: 4.392 | J66: 4.266 | K66: =IF(K62>K67,K62-(ABS(K67-K62))/5*4,K62+ABS(K67-K62)/5*4) -> 4.14 | L66: 4.014 | M66: 3.888 | N66: 3.762 | O66: 3.636 | P66: =IF(P62>P67,P62-(ABS(P67-P62))/5*4,P62+ABS(P67-P62)/5*4) -> 3.51 | Q66: 3.384 | R66: 3.258 | S66: 3.132 | T66: 3.006 | U66: =IF(U62>U67,U62-(ABS(U67-U62))/5*4,U62+ABS(U67-U62)/5*4) -> 2.88 | V66: 2.84 | W66: 2.8 | X66: 2.76 | Y66: 2.72 | Z66: =IF(Z62>Z67,Z62-(ABS(Z67-Z62))/5*4,Z62+ABS(Z67-Z62)/5*4) -> 2.68 | AA66: 2.64 | AB66: 2.6 | AC66: 2.56 | AD66: 2.52 | AE66: =IF(AE62>AE67,AE62-(ABS(AE67-AE62))/5*4,AE62+ABS(AE67-AE62)/5*4) -> 2.48 | AQ66: -11 | AR66: =IF(Berechnung!$E$6=Berechnung!$E$9,HLOOKUP(Berechnung!$N$6,MatrixLuft!$AU$3:$CD$1114,FIXED(ROW(AQ66)-2,0),FALSE),"0") -> 2.95 | AS66: =IF(Berechnung!$E$6=Berechnung!$E$9,HLOOKUP($D$3,MatrixLuft!$AU$3:$CD$1114,FIXED(ROW(AQ66)-2,0),FALSE),"0") -> 2.95 | AT66: =IF(Berechnung!$E$6=Berechnung!$E$9,HLOOKUP($E$3,MatrixLuft!$AU$3:$CD$1114,FIXED(ROW(AQ66)-2,0),FALSE),"0") -> 1.85 | AU66: 3.375 | AV66: 3.29 | AW66: 3.205 | AX66: 3.12 | AY66: 3.035 | AZ66: =IF(AZ62>AZ70,AZ62-(ABS(AZ70-AZ62))/8*4,AZ62+ABS(AZ70-AZ62)/8*4) -> 2.95 | BA66: 2.865 | BB66: 2.78 | BC66: 2.695 | BD66: 2.61 | BE66: 2.525 | BF66: 2.44 | BG66: 2.355 | BH66: 2.27 | BI66: 2.185 | BJ66: =IF(BJ62>BJ70,BJ62-(ABS(BJ70-BJ62))/8*4,BJ62+ABS(BJ70-BJ62)/8*4) -> 2.1 | BK66: 2.075 | BL66: 2.05 | BM66: 2.025 | BN66: 2 | BO66: 1.975 | BP66: 1.95 | BQ66: 1.925 | BR66: 1.9 | BS66: 1.875 | BT66: =IF(BT62>BT70,BT62-(ABS(BT70-BT62))/8*4,BT62+ABS(BT70-BT62)/8*4) -> 1.85 | BU66: 1.82 | BV66: 1.79 | BW66: 1.76 | BX66: 1.73 | BY66: =IF(BY62>BY70,BY62-(ABS(BY70-BY62))/8*4,BY62+ABS(BY70-BY62)/8*4) -> 1.7 | BZ66: 1.67 | CA66: 1.64 | CB66: 1.61 | CC66: 1.58 | CD66: 1.55
A67: -10 | B67: =VLOOKUP(F55,Berechnung!$G$9:$H$62,2,FALSE)&"11" -> 111 | C67: =IF(Berechnung!$E$6=Berechnung!$E$9,Berechnung!$F$7*HLOOKUP(Berechnung!$N$6,MatrixLuft!$F$3:$AO$1114,FIXED(ROW(A67)-2,0),FALSE),"0") -> 4.3 | D67: =IF(Berechnung!$E$6=Berechnung!$E$9,Berechnung!$F$7*HLOOKUP($D$3,MatrixLuft!$F$3:$AO$1114,FIXED(ROW(A67)-2,0),FALSE),"0") -> 4.3 | E67: =IF(Berechnung!$E$6=Berechnung!$E$9,Berechnung!$F$7*HLOOKUP($E$3,MatrixLuft!$F$3:$AO$1114,FIXED(ROW(A67)-2,0),FALSE),"0") -> 2.65 | F67: =K67+(K67-P67) -> 4.925 | G67: 4.8 | H67: 4.675 | I67: 4.55 | J67: 4.425 | K67: 4.3 | L67: 4.175 | M67: 4.05 | N67: 3.925 | O67: 3.8 | P67: =AVERAGE(K67,U67) -> 3.675 | Q67: 3.55 | R67: 3.425 | S67: 3.3 | T67: 3.175 | U67: 3.05 | V67: 3.01 | W67: 2.97 | X67: 2.93 | Y67: 2.89 | Z67: =AVERAGE(U67,AE67) -> 2.85 | AA67: 2.81 | AB67: 2.77 | AC67: 2.73 | AD67: 2.69 | AE67: 2.65 | AQ67: -10 | AR67: =IF(Berechnung!$E$6=Berechnung!$E$9,HLOOKUP(Berechnung!$N$6,MatrixLuft!$AU$3:$CD$1114,FIXED(ROW(AQ67)-2,0),FALSE),"0") -> 2.9875 | AS67: =IF(Berechnung!$E$6=Berechnung!$E$9,HLOOKUP($D$3,MatrixLuft!$AU$3:$CD$1114,FIXED(ROW(AQ67)-2,0),FALSE),"0") -> 2.9875 | AT67: =IF(Berechnung!$E$6=Berechnung!$E$9,HLOOKUP($E$3,MatrixLuft!$AU$3:$CD$1114,FIXED(ROW(AQ67)-2,0),FALSE),"0") -> 1.9125 | AU67: 3.41875 | AV67: 3.3325 | AW67: 3.24625 | AX67: 3.16 | AY67: 3.07375 | AZ67: =IF(AZ62>AZ70,AZ62-(ABS(AZ70-AZ62))/8*5,AZ62+ABS(AZ70-AZ62)/8*5) -> 2.9875 | BA67: 2.90125 | BB67: 2.815 | BC67: 2.72875 | BD67: 2.6425 | BE67: 2.55625 | BF67: 2.47 | BG67: 2.38375 | BH67: 2.2975 | BI67: 2.21125 | BJ67: =IF(BJ62>BJ70,BJ62-(ABS(BJ70-BJ62))/8*5,BJ62+ABS(BJ70-BJ62)/8*5) -> 2.125 | BK67: 2.10375 | BL67: 2.0825 | BM67: 2.06125 | BN67: 2.04 | BO67: 2.01875 | BP67: 1.9975 | BQ67: 1.97625 | BR67: 1.955 | BS67: 1.93375 | BT67: =IF(BT62>BT70,BT62-(ABS(BT70-BT62))/8*5,BT62+ABS(BT70-BT62)/8*5) -> 1.9125 | BU67: 1.88 | BV67: 1.8475 | BW67: 1.815 | BX67: 1.7825 | BY67: =IF(BY62>BY70,BY62-(ABS(BY70-BY62))/8*5,BY62+ABS(BY70-BY62)/8*5) -> 1.75 | BZ67: 1.7175 | CA67: 1.685 | CB67: 1.6525 | CC67: 1.62 | CD67: 1.5875
A68: -9 | B68: =VLOOKUP(F55,Berechnung!$G$9:$H$62,2,FALSE)&"12" -> 112 | C68: =IF(Berechnung!$E$6=Berechnung!$E$9,Berechnung!$F$7*HLOOKUP(Berechnung!$N$6,MatrixLuft!$F$3:$AO$1114,FIXED(ROW(A68)-2,0),FALSE),"0") -> 4.44 | D68: =IF(Berechnung!$E$6=Berechnung!$E$9,Berechnung!$F$7*HLOOKUP($D$3,MatrixLuft!$F$3:$AO$1114,FIXED(ROW(A68)-2,0),FALSE),"0") -> 4.44 | E68: =IF(Berechnung!$E$6=Berechnung!$E$9,Berechnung!$F$7*HLOOKUP($E$3,MatrixLuft!$F$3:$AO$1114,FIXED(ROW(A68)-2,0),FALSE),"0") -> 2.84 | F68: =IF(F67>F72,F67-(ABS(F72-F67))/5*1,F67+ABS(F72-F67)/5*1) -> 5.04 | G68: 4.92 | H68: 4.8 | I68: 4.68 | J68: 4.56 | K68: =IF(K67>K72,K67-(ABS(K72-K67))/5*1,K67+ABS(K72-K67)/5*1) -> 4.44 | L68: 4.32 | M68: 4.2 | N68: 4.08 | O68: 3.96 | P68: =IF(P67>P72,P67-(ABS(P72-P67))/5*1,P67+ABS(P72-P67)/5*1) -> 3.84 | Q68: 3.72 | R68: 3.6 | S68: 3.48 | T68: 3.36 | U68: =IF(U67>U72,U67-(ABS(U72-U67))/5*1,U67+ABS(U72-U67)/5*1) -> 3.24 | V68: 3.2 | W68: 3.16 | X68: 3.12 | Y68: 3.08 | Z68: =IF(Z67>Z72,Z67-(ABS(Z72-Z67))/5*1,Z67+ABS(Z72-Z67)/5*1) -> 3.04 | AA68: 3 | AB68: 2.96 | AC68: 2.92 | AD68: 2.88 | AE68: =IF(AE67>AE72,AE67-(ABS(AE72-AE67))/5*1,AE67+ABS(AE72-AE67)/5*1) -> 2.84 | AQ68: -9 | AR68: =IF(Berechnung!$E$6=Berechnung!$E$9,HLOOKUP(Berechnung!$N$6,MatrixLuft!$AU$3:$CD$1114,FIXED(ROW(AQ68)-2,0),FALSE),"0") -> 3.025 | AS68: =IF(Berechnung!$E$6=Berechnung!$E$9,HLOOKUP($D$3,MatrixLuft!$AU$3:$CD$1114,FIXED(ROW(AQ68)-2,0),FALSE),"0") -> 3.025 | AT68: =IF(Berechnung!$E$6=Berechnung!$E$9,HLOOKUP($E$3,MatrixLuft!$AU$3:$CD$1114,FIXED(ROW(AQ68)-2,0),FALSE),"0") -> 1.975 | AU68: 3.4625 | AV68: 3.375 | AW68: 3.2875 | AX68: 3.2 | AY68: 3.1125 | AZ68: =IF(AZ62>AZ70,AZ62-(ABS(AZ70-AZ62))/8*6,AZ62+ABS(AZ70-AZ62)/8*6) -> 3.025 | BA68: 2.9375 | BB68: 2.85 | BC68: 2.7625 | BD68: 2.675 | BE68: 2.5875 | BF68: 2.5 | BG68: 2.4125 | BH68: 2.325 | BI68: 2.2375 | BJ68: =IF(BJ62>BJ70,BJ62-(ABS(BJ70-BJ62))/8*6,BJ62+ABS(BJ70-BJ62)/8*6) -> 2.15 | BK68: 2.1325 | BL68: 2.115 | BM68: 2.0975 | BN68: 2.08 | BO68: 2.0625 | BP68: 2.045 | BQ68: 2.0275 | BR68: 2.01 | BS68: 1.9925 | BT68: =IF(BT62>BT70,BT62-(ABS(BT70-BT62))/8*6,BT62+ABS(BT70-BT62)/8*6) -> 1.975 | BU68: 1.94 | BV68: 1.905 | BW68: 1.87 | BX68: 1.835 | BY68: =IF(BY62>BY70,BY62-(ABS(BY70-BY62))/8*6,BY62+ABS(BY70-BY62)/8*6) -> 1.8 | BZ68: 1.765 | CA68: 1.73 | CB68: 1.695 | CC68: 1.66 | CD68: 1.625
A69: -8 | B69: =VLOOKUP(F55,Berechnung!$G$9:$H$62,2,FALSE)&"13" -> 113 | C69: =IF(Berechnung!$E$6=Berechnung!$E$9,Berechnung!$F$7*HLOOKUP(Berechnung!$N$6,MatrixLuft!$F$3:$AO$1114,FIXED(ROW(A69)-2,0),FALSE),"0") -> 4.58 | D69: =IF(Berechnung!$E$6=Berechnung!$E$9,Berechnung!$F$7*HLOOKUP($D$3,MatrixLuft!$F$3:$AO$1114,FIXED(ROW(A69)-2,0),FALSE),"0") -> 4.58 | E69: =IF(Berechnung!$E$6=Berechnung!$E$9,Berechnung!$F$7*HLOOKUP($E$3,MatrixLuft!$F$3:$AO$1114,FIXED(ROW(A69)-2,0),FALSE),"0") -> 3.03 | F69: =IF(F67>F72,F67-(ABS(F72-F67))/5*2,F67+ABS(F72-F67)/5*2) -> 5.155 | G69: 5.04 | H69: 4.925 | I69: 4.81 | J69: 4.695 | K69: =IF(K67>K72,K67-(ABS(K72-K67))/5*2,K67+ABS(K72-K67)/5*2) -> 4.58 | L69: 4.465 | M69: 4.35 | N69: 4.235 | O69: 4.12 | P69: =IF(P67>P72,P67-(ABS(P72-P67))/5*2,P67+ABS(P72-P67)/5*2) -> 4.005 | Q69: 3.89 | R69: 3.775 | S69: 3.66 | T69: 3.545 | U69: =IF(U67>U72,U67-(ABS(U72-U67))/5*2,U67+ABS(U72-U67)/5*2) -> 3.43 | V69: 3.39 | W69: 3.35 | X69: 3.31 | Y69: 3.27 | Z69: =IF(Z67>Z72,Z67-(ABS(Z72-Z67))/5*2,Z67+ABS(Z72-Z67)/5*2) -> 3.23 | AA69: 3.19 | AB69: 3.15 | AC69: 3.11 | AD69: 3.07 | AE69: =IF(AE67>AE72,AE67-(ABS(AE72-AE67))/5*2,AE67+ABS(AE72-AE67)/5*2) -> 3.03 | AQ69: -8 | AR69: =IF(Berechnung!$E$6=Berechnung!$E$9,HLOOKUP(Berechnung!$N$6,MatrixLuft!$AU$3:$CD$1114,FIXED(ROW(AQ69)-2,0),FALSE),"0") -> 3.0625 | AS69: =IF(Berechnung!$E$6=Berechnung!$E$9,HLOOKUP($D$3,MatrixLuft!$AU$3:$CD$1114,FIXED(ROW(AQ69)-2,0),FALSE),"0") -> 3.0625 | AT69: =IF(Berechnung!$E$6=Berechnung!$E$9,HLOOKUP($E$3,MatrixLuft!$AU$3:$CD$1114,FIXED(ROW(AQ69)-2,0),FALSE),"0") -> 2.0375 | AU69: 3.50625 | AV69: 3.4175 | AW69: 3.32875 | AX69: 3.24 | AY69: 3.15125 | AZ69: =IF(AZ62>AZ70,AZ62-(ABS(AZ70-AZ62))/8*7,AZ62+ABS(AZ70-AZ62)/8*7) -> 3.0625 | BA69: 2.97375 | BB69: 2.885 | BC69: 2.79625 | BD69: 2.7075 | BE69: 2.61875 | BF69: 2.53 | BG69: 2.44125 | BH69: 2.3525 | BI69: 2.26375 | BJ69: =IF(BJ62>BJ70,BJ62-(ABS(BJ70-BJ62))/8*7,BJ62+ABS(BJ70-BJ62)/8*7) -> 2.175 | BK69: 2.16125 | BL69: 2.1475 | BM69: 2.13375 | BN69: 2.12 | BO69: 2.10625 | BP69: 2.0925 | BQ69: 2.07875 | BR69: 2.065 | BS69: 2.05125 | BT69: =IF(BT62>BT70,BT62-(ABS(BT70-BT62))/8*7,BT62+ABS(BT70-BT62)/8*7) -> 2.0375 | BU69: 2 | BV69: 1.9625 | BW69: 1.925 | BX69: 1.8875 | BY69: =IF(BY62>BY70,BY62-(ABS(BY70-BY62))/8*7,BY62+ABS(BY70-BY62)/8*7) -> 1.85 | BZ69: 1.8125 | CA69: 1.775 | CB69: 1.7375 | CC69: 1.7 | CD69: 1.6625
A70: -7 | B70: =VLOOKUP(F55,Berechnung!$G$9:$H$62,2,FALSE)&"14" -> 114 | C70: =IF(Berechnung!$E$6=Berechnung!$E$9,Berechnung!$F$7*HLOOKUP(Berechnung!$N$6,MatrixLuft!$F$3:$AO$1114,FIXED(ROW(A70)-2,0),FALSE),"0") -> 4.72 | D70: =IF(Berechnung!$E$6=Berechnung!$E$9,Berechnung!$F$7*HLOOKUP($D$3,MatrixLuft!$F$3:$AO$1114,FIXED(ROW(A70)-2,0),FALSE),"0") -> 4.72 | E70: =IF(Berechnung!$E$6=Berechnung!$E$9,Berechnung!$F$7*HLOOKUP($E$3,MatrixLuft!$F$3:$AO$1114,FIXED(ROW(A70)-2,0),FALSE),"0") -> 3.22 | F70: =IF(F67>F72,F67-(ABS(F72-F67))/5*3,F67+ABS(F72-F67)/5*3) -> 5.27 | G70: 5.16 | H70: 5.05 | I70: 4.94 | J70: 4.83 | K70: =IF(K67>K72,K67-(ABS(K72-K67))/5*3,K67+ABS(K72-K67)/5*3) -> 4.72 | L70: 4.61 | M70: 4.5 | N70: 4.39 | O70: 4.28 | P70: =IF(P67>P72,P67-(ABS(P72-P67))/5*3,P67+ABS(P72-P67)/5*3) -> 4.17 | Q70: 4.06 | R70: 3.95 | S70: 3.84 | T70: 3.73 | U70: =IF(U67>U72,U67-(ABS(U72-U67))/5*3,U67+ABS(U72-U67)/5*3) -> 3.62 | V70: 3.58 | W70: 3.54 | X70: 3.5 | Y70: 3.46 | Z70: =IF(Z67>Z72,Z67-(ABS(Z72-Z67))/5*3,Z67+ABS(Z72-Z67)/5*3) -> 3.42 | AA70: 3.38 | AB70: 3.34 | AC70: 3.3 | AD70: 3.26 | AE70: =IF(AE67>AE72,AE67-(ABS(AE72-AE67))/5*3,AE67+ABS(AE72-AE67)/5*3) -> 3.22 | AQ70: -7 | AR70: =IF(Berechnung!$E$6=Berechnung!$E$9,HLOOKUP(Berechnung!$N$6,MatrixLuft!$AU$3:$CD$1114,FIXED(ROW(AQ70)-2,0),FALSE),"0") -> 3.1 | AS70: =IF(Berechnung!$E$6=Berechnung!$E$9,HLOOKUP($D$3,MatrixLuft!$AU$3:$CD$1114,FIXED(ROW(AQ70)-2,0),FALSE),"0") -> 3.1 | AT70: =IF(Berechnung!$E$6=Berechnung!$E$9,HLOOKUP($E$3,MatrixLuft!$AU$3:$CD$1114,FIXED(ROW(AQ70)-2,0),FALSE),"0") -> 2.1 | AU70: 3.55 | AV70: 3.46 | AW70: 3.37 | AX70: 3.28 | AY70: 3.19 | AZ70: 3.1 | BA70: 3.01 | BB70: 2.92 | BC70: 2.83 | BD70: 2.74 | BE70: 2.65 | BF70: 2.56 | BG70: 2.47 | BH70: 2.38 | BI70: 2.29 | BJ70: 2.2 | BK70: 2.19 | BL70: 2.18 | BM70: 2.17 | BN70: 2.16 | BO70: 2.15 | BP70: 2.14 | BQ70: 2.13 | BR70: 2.12 | BS70: 2.11 | BT70: 2.1 | BU70: 2.06 | BV70: 2.02 | BW70: 1.98 | BX70: 1.94 | BY70: 1.9 | BZ70: 1.86 | CA70: 1.82 | CB70: 1.78 | CC70: 1.74 | CD70: 1.7
A71: -6 | B71: =VLOOKUP(F55,Berechnung!$G$9:$H$62,2,FALSE)&"15" -> 115 | C71: =IF(Berechnung!$E$6=Berechnung!$E$9,Berechnung!$F$7*HLOOKUP(Berechnung!$N$6,MatrixLuft!$F$3:$AO$1114,FIXED(ROW(A71)-2,0),FALSE),"0") -> 4.86 | D71: =IF(Berechnung!$E$6=Berechnung!$E$9,Berechnung!$F$7*HLOOKUP($D$3,MatrixLuft!$F$3:$AO$1114,FIXED(ROW(A71)-2,0),FALSE),"0") -> 4.86 | E71: =IF(Berechnung!$E$6=Berechnung!$E$9,Berechnung!$F$7*HLOOKUP($E$3,MatrixLuft!$F$3:$AO$1114,FIXED(ROW(A71)-2,0),FALSE),"0") -> 3.41 | F71: =IF(F67>F72,F67-(ABS(F72-F67))/5*4,F67+ABS(F72-F67)/5*4) -> 5.385 | G71: 5.28 | H71: 5.175 | I71: 5.07 | J71: 4.965 | K71: =IF(K67>K72,K67-(ABS(K72-K67))/5*4,K67+ABS(K72-K67)/5*4) -> 4.86 | L71: 4.755 | M71: 4.65 | N71: 4.545 | O71: 4.44 | P71: =IF(P67>P72,P67-(ABS(P72-P67))/5*4,P67+ABS(P72-P67)/5*4) -> 4.335 | Q71: 4.23 | R71: 4.125 | S71: 4.02 | T71: 3.915 | U71: =IF(U67>U72,U67-(ABS(U72-U67))/5*4,U67+ABS(U72-U67)/5*4) -> 3.81 | V71: 3.77 | W71: 3.73 | X71: 3.69 | Y71: 3.65 | Z71: =IF(Z67>Z72,Z67-(ABS(Z72-Z67))/5*4,Z67+ABS(Z72-Z67)/5*4) -> 3.61 | AA71: 3.57 | AB71: 3.53 | AC71: 3.49 | AD71: 3.45 | AE71: =IF(AE67>AE72,AE67-(ABS(AE72-AE67))/5*4,AE67+ABS(AE72-AE67)/5*4) -> 3.41 | AQ71: -6 | AR71: =IF(Berechnung!$E$6=Berechnung!$E$9,HLOOKUP(Berechnung!$N$6,MatrixLuft!$AU$3:$CD$1114,FIXED(ROW(AQ71)-2,0),FALSE),"0") -> 3.144444444 | AS71: =IF(Berechnung!$E$6=Berechnung!$E$9,HLOOKUP($D$3,MatrixLuft!$AU$3:$CD$1114,FIXED(ROW(AQ71)-2,0),FALSE),"0") -> 3.144444444 | AT71: =IF(Berechnung!$E$6=Berechnung!$E$9,HLOOKUP($E$3,MatrixLuft!$AU$3:$CD$1114,FIXED(ROW(AQ71)-2,0),FALSE),"0") -> 2.133333333 | AU71: 3.605555556 | AV71: 3.513333333 | AW71: 3.421111111 | AX71: 3.328888889 | AY71: 3.236666667 | AZ71: =IF(AZ70>AZ79,AZ70-(ABS(AZ79-AZ70))/9*1,AZ70+ABS(AZ79-AZ70)/9*1) -> 3.144444444 | BA71: 3.052222222 | BB71: 2.96 | BC71: 2.867777778 | BD71: 2.775555556 | BE71: 2.683333333 | BF71: 2.591111111 | BG71: 2.498888889 | BH71: 2.406666667 | BI71: 2.314444444 | BJ71: =IF(BJ70>BJ79,BJ70-(ABS(BJ79-BJ70))/9*1,BJ70+ABS(BJ79-BJ70)/9*1) -> 2.222222222 | BK71: 2.213333333 | BL71: 2.204444444 | BM71: 2.195555556 | BN71: 2.186666667 | BO71: 2.177777778 | BP71: 2.168888889 | BQ71: 2.16 | BR71: 2.151111111 | BS71: 2.142222222 | BT71: =IF(BT70>BT79,BT70-(ABS(BT79-BT70))/9*1,BT70+ABS(BT79-BT70)/9*1) -> 2.133333333 | BU71: 2.095555556 | BV71: 2.057777778 | BW71: 2.02 | BX71: 1.982222222 | BY71: =IF(BY70>BY79,BY70-(ABS(BY79-BY70))/9*1,BY70+ABS(BY79-BY70)/9*1) -> 1.944444444 | BZ71: 1.906666667 | CA71: 1.868888889 | CB71: 1.831111111 | CC71: 1.793333333 | CD71: 1.755555556
A72: -5 | B72: =VLOOKUP(F55,Berechnung!$G$9:$H$62,2,FALSE)&"16" -> 116 | C72: =IF(Berechnung!$E$6=Berechnung!$E$9,Berechnung!$F$7*HLOOKUP(Berechnung!$N$6,MatrixLuft!$F$3:$AO$1114,FIXED(ROW(A72)-2,0),FALSE),"0") -> 5 | D72: =IF(Berechnung!$E$6=Berechnung!$E$9,Berechnung!$F$7*HLOOKUP($D$3,MatrixLuft!$F$3:$AO$1114,FIXED(ROW(A72)-2,0),FALSE),"0") -> 5 | E72: =IF(Berechnung!$E$6=Berechnung!$E$9,Berechnung!$F$7*HLOOKUP($E$3,MatrixLuft!$F$3:$AO$1114,FIXED(ROW(A72)-2,0),FALSE),"0") -> 3.6 | F72: =K72+(K72-P72) -> 5.5 | G72: 5.4 | H72: 5.3 | I72: 5.2 | J72: 5.1 | K72: 5 | L72: 4.9 | M72: 4.8 | N72: 4.7 | O72: 4.6 | P72: =AVERAGE(K72,U72) -> 4.5 | Q72: 4.4 | R72: 4.3 | S72: 4.2 | T72: 4.1 | U72: 4 | V72: 3.96 | W72: 3.92 | X72: 3.88 | Y72: 3.84 | Z72: =AVERAGE(U72,AE72) -> 3.8 | AA72: 3.76 | AB72: 3.72 | AC72: 3.68 | AD72: 3.64 | AE72: 3.6 | AQ72: -5 | AR72: =IF(Berechnung!$E$6=Berechnung!$E$9,HLOOKUP(Berechnung!$N$6,MatrixLuft!$AU$3:$CD$1114,FIXED(ROW(AQ72)-2,0),FALSE),"0") -> 3.188888889 | AS72: =IF(Berechnung!$E$6=Berechnung!$E$9,HLOOKUP($D$3,MatrixLuft!$AU$3:$CD$1114,FIXED(ROW(AQ72)-2,0),FALSE),"0") -> 3.188888889 | AT72: =IF(Berechnung!$E$6=Berechnung!$E$9,HLOOKUP($E$3,MatrixLuft!$AU$3:$CD$1114,FIXED(ROW(AQ72)-2,0),FALSE),"0") -> 2.166666667 | AU72: 3.661111111 | AV72: 3.566666667 | AW72: 3.472222222 | AX72: 3.377777778 | AY72: 3.283333333 | AZ72: =IF(AZ70>AZ79,AZ70-(ABS(AZ79-AZ70))/9*2,AZ70+ABS(AZ79-AZ70)/9*2) -> 3.188888889 | BA72: 3.094444444 | BB72: 3 | BC72: 2.905555556 | BD72: 2.811111111 | BE72: 2.716666667 | BF72: 2.622222222 | BG72: 2.527777778 | BH72: 2.433333333 | BI72: 2.338888889 | BJ72: =IF(BJ70>BJ79,BJ70-(ABS(BJ79-BJ70))/9*2,BJ70+ABS(BJ79-BJ70)/9*2) -> 2.244444444 | BK72: 2.236666667 | BL72: 2.228888889 | BM72: 2.221111111 | BN72: 2.213333333 | BO72: 2.205555556 | BP72: 2.197777778 | BQ72: 2.19 | BR72: 2.182222222 | BS72: 2.174444444 | BT72: =IF(BT70>BT79,BT70-(ABS(BT79-BT70))/9*2,BT70+ABS(BT79-BT70)/9*2) -> 2.166666667 | BU72: 2.131111111 | BV72: 2.095555556 | BW72: 2.06 | BX72: 2.024444444 | BY72: =IF(BY70>BY79,BY70-(ABS(BY79-BY70))/9*2,BY70+ABS(BY79-BY70)/9*2) -> 1.988888889 | BZ72: 1.953333333 | CA72: 1.917777778 | CB72: 1.882222222 | CC72: 1.846666667 | CD72: 1.811111111
A73: -4 | B73: =VLOOKUP(F55,Berechnung!$G$9:$H$62,2,FALSE)&"17" -> 117 | C73: =IF(Berechnung!$E$6=Berechnung!$E$9,Berechnung!$F$7*HLOOKUP(Berechnung!$N$6,MatrixLuft!$F$3:$AO$1114,FIXED(ROW(A73)-2,0),FALSE),"0") -> 5.19 | D73: =IF(Berechnung!$E$6=Berechnung!$E$9,Berechnung!$F$7*HLOOKUP($D$3,MatrixLuft!$F$3:$AO$1114,FIXED(ROW(A73)-2,0),FALSE),"0") -> 5.19 | E73: =IF(Berechnung!$E$6=Berechnung!$E$9,Berechnung!$F$7*HLOOKUP($E$3,MatrixLuft!$F$3:$AO$1114,FIXED(ROW(A73)-2,0),FALSE),"0") -> 3.8 | F73: =IF(F72>F77,F72-(ABS(F77-F72))/5*1,F72+ABS(F77-F72)/5*1) -> 5.685 | G73: 5.586 | H73: 5.487 | I73: 5.388 | J73: 5.289 | K73: =IF(K72>K77,K72-(ABS(K77-K72))/5*1,K72+ABS(K77-K72)/5*1) -> 5.19 | L73: 5.091 | M73: 4.992 | N73: 4.893 | O73: 4.794 | P73: =IF(P72>P77,P72-(ABS(P77-P72))/5*1,P72+ABS(P77-P72)/5*1) -> 4.695 | Q73: 4.596 | R73: 4.497 | S73: 4.398 | T73: 4.299 | U73: =IF(U72>U77,U72-(ABS(U77-U72))/5*1,U72+ABS(U77-U72)/5*1) -> 4.2 | V73: 4.16 | W73: 4.12 | X73: 4.08 | Y73: 4.04 | Z73: =IF(Z72>Z77,Z72-(ABS(Z77-Z72))/5*1,Z72+ABS(Z77-Z72)/5*1) -> 4 | AA73: 3.96 | AB73: 3.92 | AC73: 3.88 | AD73: 3.84 | AE73: =IF(AE72>AE77,AE72-(ABS(AE77-AE72))/5*1,AE72+ABS(AE77-AE72)/5*1) -> 3.8 | AQ73: -4 | AR73: =IF(Berechnung!$E$6=Berechnung!$E$9,HLOOKUP(Berechnung!$N$6,MatrixLuft!$AU$3:$CD$1114,FIXED(ROW(AQ73)-2,0),FALSE),"0") -> 3.233333333 | AS73: =IF(Berechnung!$E$6=Berechnung!$E$9,HLOOKUP($D$3,MatrixLuft!$AU$3:$CD$1114,FIXED(ROW(AQ73)-2,0),FALSE),"0") -> 3.233333333 | AT73: =IF(Berechnung!$E$6=Berechnung!$E$9,HLOOKUP($E$3,MatrixLuft!$AU$3:$CD$1114,FIXED(ROW(AQ73)-2,0),FALSE),"0") -> 2.2 | AU73: 3.716666667 | AV73: 3.62 | AW73: 3.523333333 | AX73: 3.426666667 | AY73: 3.33 | AZ73: =IF(AZ70>AZ79,AZ70-(ABS(AZ79-AZ70))/9*3,AZ70+ABS(AZ79-AZ70)/9*3) -> 3.233333333 | BA73: 3.136666667 | BB73: 3.04 | BC73: 2.943333333 | BD73: 2.846666667 | BE73: 2.75 | BF73: 2.653333333 | BG73: 2.556666667 | BH73: 2.46 | BI73: 2.363333333 | BJ73: =IF(BJ70>BJ79,BJ70-(ABS(BJ79-BJ70))/9*3,BJ70+ABS(BJ79-BJ70)/9*3) -> 2.266666667 | BK73: 2.26 | BL73: 2.253333333 | BM73: 2.246666667 | BN73: 2.24 | BO73: 2.233333333 | BP73: 2.226666667 | BQ73: 2.22 | BR73: 2.213333333 | BS73: 2.206666667 | BT73: =IF(BT70>BT79,BT70-(ABS(BT79-BT70))/9*3,BT70+ABS(BT79-BT70)/9*3) -> 2.2 | BU73: 2.166666667 | BV73: 2.133333333 | BW73: 2.1 | BX73: 2.066666667 | BY73: =IF(BY70>BY79,BY70-(ABS(BY79-BY70))/9*3,BY70+ABS(BY79-BY70)/9*3) -> 2.033333333 | BZ73: 2 | CA73: 1.966666667 | CB73: 1.933333333 | CC73: 1.9 | CD73: 1.866666667
A74: -3 | B74: =VLOOKUP(F55,Berechnung!$G$9:$H$62,2,FALSE)&"18" -> 118 | C74: =IF(Berechnung!$E$6=Berechnung!$E$9,Berechnung!$F$7*HLOOKUP(Berechnung!$N$6,MatrixLuft!$F$3:$AO$1114,FIXED(ROW(A74)-2,0),FALSE),"0") -> 5.38 | D74: =IF(Berechnung!$E$6=Berechnung!$E$9,Berechnung!$F$7*HLOOKUP($D$3,MatrixLuft!$F$3:$AO$1114,FIXED(ROW(A74)-2,0),FALSE),"0") -> 5.38 | E74: =IF(Berechnung!$E$6=Berechnung!$E$9,Berechnung!$F$7*HLOOKUP($E$3,MatrixLuft!$F$3:$AO$1114,FIXED(ROW(A74)-2,0),FALSE),"0") -> 4 | F74: =IF(F72>F77,F72-(ABS(F77-F72))/5*2,F72+ABS(F77-F72)/5*2) -> 5.87 | G74: 5.772 | H74: 5.674 | I74: 5.576 | J74: 5.478 | K74: =IF(K72>K77,K72-(ABS(K77-K72))/5*2,K72+ABS(K77-K72)/5*2) -> 5.38 | L74: 5.282 | M74: 5.184 | N74: 5.086 | O74: 4.988 | P74: =IF(P72>P77,P72-(ABS(P77-P72))/5*2,P72+ABS(P77-P72)/5*2) -> 4.89 | Q74: 4.792 | R74: 4.694 | S74: 4.596 | T74: 4.498 | U74: =IF(U72>U77,U72-(ABS(U77-U72))/5*2,U72+ABS(U77-U72)/5*2) -> 4.4 | V74: 4.36 | W74: 4.32 | X74: 4.28 | Y74: 4.24 | Z74: =IF(Z72>Z77,Z72-(ABS(Z77-Z72))/5*2,Z72+ABS(Z77-Z72)/5*2) -> 4.2 | AA74: 4.16 | AB74: 4.12 | AC74: 4.08 | AD74: 4.04 | AE74: =IF(AE72>AE77,AE72-(ABS(AE77-AE72))/5*2,AE72+ABS(AE77-AE72)/5*2) -> 4 | AQ74: -3 | AR74: =IF(Berechnung!$E$6=Berechnung!$E$9,HLOOKUP(Berechnung!$N$6,MatrixLuft!$AU$3:$CD$1114,FIXED(ROW(AQ74)-2,0),FALSE),"0") -> 3.277777778 | AS74: =IF(Berechnung!$E$6=Berechnung!$E$9,HLOOKUP($D$3,MatrixLuft!$AU$3:$CD$1114,FIXED(ROW(AQ74)-2,0),FALSE),"0") -> 3.277777778 | AT74: =IF(Berechnung!$E$6=Berechnung!$E$9,HLOOKUP($E$3,MatrixLuft!$AU$3:$CD$1114,FIXED(ROW(AQ74)-2,0),FALSE),"0") -> 2.233333333 | AU74: 3.772222222 | AV74: 3.673333333 | AW74: 3.574444444 | AX74: =IF(AY74<AZ74,AY74-(AY74-AZ74),AY74+(AY74-AZ74)) -> 3.475555556 | AY74: 3.376666667 | AZ74: =IF(AZ70>AZ79,AZ70-(ABS(AZ79-AZ70))/9*4,AZ70+ABS(AZ79-AZ70)/9*4) -> 3.277777778 | BA74: 3.178888889 | BB74: 3.08 | BC74: 2.981111111 | BD74: 2.882222222 | BE74: 2.783333333 | BF74: 2.684444444 | BG74: 2.585555556 | BH74: 2.486666667 | BI74: 2.387777778 | BJ74: =IF(BJ70>BJ79,BJ70-(ABS(BJ79-BJ70))/9*4,BJ70+ABS(BJ79-BJ70)/9*4) -> 2.288888889 | BK74: 2.283333333 | BL74: 2.277777778 | BM74: 2.272222222 | BN74: 2.266666667 | BO74: 2.261111111 | BP74: 2.255555556 | BQ74: 2.25 | BR74: 2.244444444 | BS74: 2.238888889 | BT74: =IF(BT70>BT79,BT70-(ABS(BT79-BT70))/9*4,BT70+ABS(BT79-BT70)/9*4) -> 2.233333333 | BU74: 2.202222222 | BV74: 2.171111111 | BW74: 2.14 | BX74: 2.108888889 | BY74: =IF(BY70>BY79,BY70-(ABS(BY79-BY70))/9*4,BY70+ABS(BY79-BY70)/9*4) -> 2.077777778 | BZ74: 2.046666667 | CA74: 2.015555556 | CB74: 1.984444444 | CC74: 1.953333333 | CD74: 1.922222222
A75: -2 | B75: =VLOOKUP(F55,Berechnung!$G$9:$H$62,2,FALSE)&"19" -> 119 | C75: =IF(Berechnung!$E$6=Berechnung!$E$9,Berechnung!$F$7*HLOOKUP(Berechnung!$N$6,MatrixLuft!$F$3:$AO$1114,FIXED(ROW(A75)-2,0),FALSE),"0") -> 5.57 | D75: =IF(Berechnung!$E$6=Berechnung!$E$9,Berechnung!$F$7*HLOOKUP($D$3,MatrixLuft!$F$3:$AO$1114,FIXED(ROW(A75)-2,0),FALSE),"0") -> 5.57 | E75: =IF(Berechnung!$E$6=Berechnung!$E$9,Berechnung!$F$7*HLOOKUP($E$3,MatrixLuft!$F$3:$AO$1114,FIXED(ROW(A75)-2,0),FALSE),"0") -> 4.2 | F75: =IF(F72>F77,F72-(ABS(F77-F72))/5*3,F72+ABS(F77-F72)/5*3) -> 6.055 | G75: 5.958 | H75: 5.861 | I75: 5.764 | J75: 5.667 | K75: =IF(K72>K77,K72-(ABS(K77-K72))/5*3,K72+ABS(K77-K72)/5*3) -> 5.57 | L75: 5.473 | M75: 5.376 | N75: 5.279 | O75: 5.182 | P75: =IF(P72>P77,P72-(ABS(P77-P72))/5*3,P72+ABS(P77-P72)/5*3) -> 5.085 | Q75: 4.988 | R75: 4.891 | S75: 4.794 | T75: 4.697 | U75: =IF(U72>U77,U72-(ABS(U77-U72))/5*3,U72+ABS(U77-U72)/5*3) -> 4.6 | V75: 4.56 | W75: 4.52 | X75: 4.48 | Y75: 4.44 | Z75: =IF(Z72>Z77,Z72-(ABS(Z77-Z72))/5*3,Z72+ABS(Z77-Z72)/5*3) -> 4.4 | AA75: 4.36 | AB75: 4.32 | AC75: 4.28 | AD75: 4.24 | AE75: =IF(AE72>AE77,AE72-(ABS(AE77-AE72))/5*3,AE72+ABS(AE77-AE72)/5*3) -> 4.2 | AQ75: -2 | AR75: =IF(Berechnung!$E$6=Berechnung!$E$9,HLOOKUP(Berechnung!$N$6,MatrixLuft!$AU$3:$CD$1114,FIXED(ROW(AQ75)-2,0),FALSE),"0") -> 3.322222222 | AS75: =IF(Berechnung!$E$6=Berechnung!$E$9,HLOOKUP($D$3,MatrixLuft!$AU$3:$CD$1114,FIXED(ROW(AQ75)-2,0),FALSE),"0") -> 3.322222222 | AT75: =IF(Berechnung!$E$6=Berechnung!$E$9,HLOOKUP($E$3,MatrixLuft!$AU$3:$CD$1114,FIXED(ROW(AQ75)-2,0),FALSE),"0") -> 2.266666667 | AU75: 3.827777778 | AV75: 3.726666667 | AW75: 3.625555556 | AX75: 3.524444444 | AY75: 3.423333333 | AZ75: =IF(AZ70>AZ79,AZ70-(ABS(AZ79-AZ70))/9*5,AZ70+ABS(AZ79-AZ70)/9*5) -> 3.322222222 | BA75: 3.221111111 | BB75: 3.12 | BC75: 3.018888889 | BD75: 2.917777778 | BE75: 2.816666667 | BF75: 2.715555556 | BG75: 2.614444444 | BH75: 2.513333333 | BI75: 2.412222222 | BJ75: =IF(BJ70>BJ79,BJ70-(ABS(BJ79-BJ70))/9*5,BJ70+ABS(BJ79-BJ70)/9*5) -> 2.311111111 | BK75: 2.306666667 | BL75: 2.302222222 | BM75: 2.297777778 | BN75: 2.293333333 | BO75: 2.288888889 | BP75: 2.284444444 | BQ75: 2.28 | BR75: 2.275555556 | BS75: 2.271111111 | BT75: =IF(BT70>BT79,BT70-(ABS(BT79-BT70))/9*5,BT70+ABS(BT79-BT70)/9*5) -> 2.266666667 | BU75: 2.237777778 | BV75: 2.208888889 | BW75: 2.18 | BX75: 2.151111111 | BY75: =IF(BY70>BY79,BY70-(ABS(BY79-BY70))/9*5,BY70+ABS(BY79-BY70)/9*5) -> 2.122222222 | BZ75: 2.093333333 | CA75: 2.064444444 | CB75: 2.035555556 | CC75: 2.006666667 | CD75: 1.977777778
A76: -1 | B76: =VLOOKUP(F55,Berechnung!$G$9:$H$62,2,FALSE)&"20" -> 120 | C76: =IF(Berechnung!$E$6=Berechnung!$E$9,Berechnung!$F$7*HLOOKUP(Berechnung!$N$6,MatrixLuft!$F$3:$AO$1114,FIXED(ROW(A76)-2,0),FALSE),"0") -> 5.76 | D76: =IF(Berechnung!$E$6=Berechnung!$E$9,Berechnung!$F$7*HLOOKUP($D$3,MatrixLuft!$F$3:$AO$1114,FIXED(ROW(A76)-2,0),FALSE),"0") -> 5.76 | E76: =IF(Berechnung!$E$6=Berechnung!$E$9,Berechnung!$F$7*HLOOKUP($E$3,MatrixLuft!$F$3:$AO$1114,FIXED(ROW(A76)-2,0),FALSE),"0") -> 4.4 | F76: =IF(F72>F77,F72-(ABS(F77-F72))/5*4,F72+ABS(F77-F72)/5*4) -> 6.24 | G76: 6.144 | H76: 6.048 | I76: 5.952 | J76: 5.856 | K76: =IF(K72>K77,K72-(ABS(K77-K72))/5*4,K72+ABS(K77-K72)/5*4) -> 5.76 | L76: 5.664 | M76: 5.568 | N76: 5.472 | O76: 5.376 | P76: =IF(P72>P77,P72-(ABS(P77-P72))/5*4,P72+ABS(P77-P72)/5*4) -> 5.28 | Q76: 5.184 | R76: 5.088 | S76: 4.992 | T76: 4.896 | U76: =IF(U72>U77,U72-(ABS(U77-U72))/5*4,U72+ABS(U77-U72)/5*4) -> 4.8 | V76: 4.76 | W76: 4.72 | X76: 4.68 | Y76: 4.64 | Z76: =IF(Z72>Z77,Z72-(ABS(Z77-Z72))/5*4,Z72+ABS(Z77-Z72)/5*4) -> 4.6 | AA76: 4.56 | AB76: 4.52 | AC76: 4.48 | AD76: 4.44 | AE76: =IF(AE72>AE77,AE72-(ABS(AE77-AE72))/5*4,AE72+ABS(AE77-AE72)/5*4) -> 4.4 | AQ76: -1 | AR76: =IF(Berechnung!$E$6=Berechnung!$E$9,HLOOKUP(Berechnung!$N$6,MatrixLuft!$AU$3:$CD$1114,FIXED(ROW(AQ76)-2,0),FALSE),"0") -> 3.366666667 | AS76: =IF(Berechnung!$E$6=Berechnung!$E$9,HLOOKUP($D$3,MatrixLuft!$AU$3:$CD$1114,FIXED(ROW(AQ76)-2,0),FALSE),"0") -> 3.366666667 | AT76: =IF(Berechnung!$E$6=Berechnung!$E$9,HLOOKUP($E$3,MatrixLuft!$AU$3:$CD$1114,FIXED(ROW(AQ76)-2,0),FALSE),"0") -> 2.3 | AU76: 3.883333333 | AV76: 3.78 | AW76: 3.676666667 | AX76: 3.573333333 | AY76: 3.47 | AZ76: =IF(AZ70>AZ79,AZ70-(ABS(AZ79-AZ70))/9*6,AZ70+ABS(AZ79-AZ70)/9*6) -> 3.366666667 | BA76: 3.263333333 | BB76: 3.16 | BC76: 3.056666667 | BD76: 2.953333333 | BE76: 2.85 | BF76: 2.746666667 | BG76: 2.643333333 | BH76: 2.54 | BI76: 2.436666667 | BJ76: =IF(BJ70>BJ79,BJ70-(ABS(BJ79-BJ70))/9*6,BJ70+ABS(BJ79-BJ70)/9*6) -> 2.333333333 | BK76: 2.33 | BL76: 2.326666667 | BM76: 2.323333333 | BN76: 2.32 | BO76: 2.316666667 | BP76: 2.313333333 | BQ76: 2.31 | BR76: 2.306666667 | BS76: 2.303333333 | BT76: =IF(BT70>BT79,BT70-(ABS(BT79-BT70))/9*6,BT70+ABS(BT79-BT70)/9*6) -> 2.3 | BU76: 2.273333333 | BV76: 2.246666667 | BW76: 2.22 | BX76: 2.193333333 | BY76: =IF(BY70>BY79,BY70-(ABS(BY79-BY70))/9*6,BY70+ABS(BY79-BY70)/9*6) -> 2.166666667 | BZ76: 2.14 | CA76: 2.113333333 | CB76: 2.086666667 | CC76: 2.06 | CD76: 2.033333333
A77: 0 | B77: =VLOOKUP(F55,Berechnung!$G$9:$H$62,2,FALSE)&"21" -> 121 | C77: =IF(Berechnung!$E$6=Berechnung!$E$9,Berechnung!$F$7*HLOOKUP(Berechnung!$N$6,MatrixLuft!$F$3:$AO$1114,FIXED(ROW(A77)-2,0),FALSE),"0") -> 5.95 | D77: =IF(Berechnung!$E$6=Berechnung!$E$9,Berechnung!$F$7*HLOOKUP($D$3,MatrixLuft!$F$3:$AO$1114,FIXED(ROW(A77)-2,0),FALSE),"0") -> 5.95 | E77: =IF(Berechnung!$E$6=Berechnung!$E$9,Berechnung!$F$7*HLOOKUP($E$3,MatrixLuft!$F$3:$AO$1114,FIXED(ROW(A77)-2,0),FALSE),"0") -> 4.6 | F77: =K77+(K77-P77) -> 6.425 | G77: 6.33 | H77: 6.235 | I77: 6.14 | J77: 6.045 | K77: 5.95 | L77: 5.855 | M77: 5.76 | N77: 5.665 | O77: 5.57 | P77: =AVERAGE(K77,U77) -> 5.475 | Q77: 5.38 | R77: 5.285 | S77: 5.19 | T77: 5.095 | U77: 5 | V77: 4.96 | W77: 4.92 | X77: 4.88 | Y77: 4.84 | Z77: =AVERAGE(U77,AE77) -> 4.8 | AA77: 4.76 | AB77: 4.72 | AC77: 4.68 | AD77: 4.64 | AE77: 4.6 | AQ77: 0 | AR77: =IF(Berechnung!$E$6=Berechnung!$E$9,HLOOKUP(Berechnung!$N$6,MatrixLuft!$AU$3:$CD$1114,FIXED(ROW(AQ77)-2,0),FALSE),"0") -> 3.411111111 | AS77: =IF(Berechnung!$E$6=Berechnung!$E$9,HLOOKUP($D$3,MatrixLuft!$AU$3:$CD$1114,FIXED(ROW(AQ77)-2,0),FALSE),"0") -> 3.411111111 | AT77: =IF(Berechnung!$E$6=Berechnung!$E$9,HLOOKUP($E$3,MatrixLuft!$AU$3:$CD$1114,FIXED(ROW(AQ77)-2,0),FALSE),"0") -> 2.333333333 | AU77: 3.938888889 | AV77: 3.833333333 | AW77: 3.727777778 | AX77: 3.622222222 | AY77: 3.516666667 | AZ77: =IF(AZ70>AZ79,AZ70-(ABS(AZ79-AZ70))/9*7,AZ70+ABS(AZ79-AZ70)/9*7) -> 3.411111111 | BA77: 3.305555556 | BB77: 3.2 | BC77: 3.094444444 | BD77: 2.988888889 | BE77: 2.883333333 | BF77: 2.777777778 | BG77: 2.672222222 | BH77: 2.566666667 | BI77: 2.461111111 | BJ77: =IF(BJ70>BJ79,BJ70-(ABS(BJ79-BJ70))/9*7,BJ70+ABS(BJ79-BJ70)/9*7) -> 2.355555556 | BK77: 2.353333333 | BL77: 2.351111111 | BM77: 2.348888889 | BN77: 2.346666667 | BO77: 2.344444444 | BP77: 2.342222222 | BQ77: 2.34 | BR77: 2.337777778 | BS77: 2.335555556 | BT77: =IF(BT70>BT79,BT70-(ABS(BT79-BT70))/9*7,BT70+ABS(BT79-BT70)/9*7) -> 2.333333333 | BU77: 2.308888889 | BV77: 2.284444444 | BW77: 2.26 | BX77: 2.235555556 | BY77: =IF(BY70>BY79,BY70-(ABS(BY79-BY70))/9*7,BY70+ABS(BY79-BY70)/9*7) -> 2.211111111 | BZ77: 2.186666667 | CA77: 2.162222222 | CB77: 2.137777778 | CC77: 2.113333333 | CD77: 2.088888889
A78: 1 | B78: =VLOOKUP(F55,Berechnung!$G$9:$H$62,2,FALSE)&"22" -> 122 | C78: =IF(Berechnung!$E$6=Berechnung!$E$9,Berechnung!$F$7*HLOOKUP(Berechnung!$N$6,MatrixLuft!$F$3:$AO$1114,FIXED(ROW(A78)-2,0),FALSE),"0") -> 6.18 | D78: =IF(Berechnung!$E$6=Berechnung!$E$9,Berechnung!$F$7*HLOOKUP($D$3,MatrixLuft!$F$3:$AO$1114,FIXED(ROW(A78)-2,0),FALSE),"0") -> 6.18 | E78: =IF(Berechnung!$E$6=Berechnung!$E$9,Berechnung!$F$7*HLOOKUP($E$3,MatrixLuft!$F$3:$AO$1114,FIXED(ROW(A78)-2,0),FALSE),"0") -> 4.8 | F78: =IF(F77>F82,F77-(ABS(F82-F77))/5*1,F77+ABS(F82-F77)/5*1) -> 6.67 | G78: 6.572 | H78: 6.474 | I78: 6.376 | J78: 6.278 | K78: =IF(K77>K82,K77-(ABS(K82-K77))/5*1,K77+ABS(K82-K77)/5*1) -> 6.18 | L78: 6.082 | M78: 5.984 | N78: 5.886 | O78: 5.788 | P78: =IF(P77>P82,P77-(ABS(P82-P77))/5*1,P77+ABS(P82-P77)/5*1) -> 5.69 | Q78: 5.592 | R78: 5.494 | S78: 5.396 | T78: 5.298 | U78: =IF(U77>U82,U77-(ABS(U82-U77))/5*1,U77+ABS(U82-U77)/5*1) -> 5.2 | V78: 5.16 | W78: 5.12 | X78: 5.08 | Y78: 5.04 | Z78: =IF(Z77>Z82,Z77-(ABS(Z82-Z77))/5*1,Z77+ABS(Z82-Z77)/5*1) -> 5 | AA78: 4.96 | AB78: 4.92 | AC78: 4.88 | AD78: 4.84 | AE78: =IF(AE77>AE82,AE77-(ABS(AE82-AE77))/5*1,AE77+ABS(AE82-AE77)/5*1) -> 4.8 | AQ78: 1 | AR78: =IF(Berechnung!$E$6=Berechnung!$E$9,HLOOKUP(Berechnung!$N$6,MatrixLuft!$AU$3:$CD$1114,FIXED(ROW(AQ78)-2,0),FALSE),"0") -> 3.455555556 | AS78: =IF(Berechnung!$E$6=Berechnung!$E$9,HLOOKUP($D$3,MatrixLuft!$AU$3:$CD$1114,FIXED(ROW(AQ78)-2,0),FALSE),"0") -> 3.455555556 | AT78: =IF(Berechnung!$E$6=Berechnung!$E$9,HLOOKUP($E$3,MatrixLuft!$AU$3:$CD$1114,FIXED(ROW(AQ78)-2,0),FALSE),"0") -> 2.366666667 | AU78: 3.994444444 | AV78: 3.886666667 | AW78: 3.778888889 | AX78: 3.671111111 | AY78: 3.563333333 | AZ78: =IF(AZ70>AZ79,AZ70-(ABS(AZ79-AZ70))/9*8,AZ70+ABS(AZ79-AZ70)/9*8) -> 3.455555556 | BA78: 3.347777778 | BB78: 3.24 | BC78: 3.132222222 | BD78: 3.024444444 | BE78: 2.916666667 | BF78: 2.808888889 | BG78: 2.701111111 | BH78: 2.593333333 | BI78: 2.485555556 | BJ78: =IF(BJ70>BJ79,BJ70-(ABS(BJ79-BJ70))/9*8,BJ70+ABS(BJ79-BJ70)/9*8) -> 2.377777778 | BK78: 2.376666667 | BL78: 2.375555556 | BM78: 2.374444444 | BN78: 2.373333333 | BO78: 2.372222222 | BP78: 2.371111111 | BQ78: 2.37 | BR78: 2.368888889 | BS78: 2.367777778 | BT78: =IF(BT70>BT79,BT70-(ABS(BT79-BT70))/9*8,BT70+ABS(BT79-BT70)/9*8) -> 2.366666667 | BU78: 2.344444444 | BV78: 2.322222222 | BW78: 2.3 | BX78: 2.277777778 | BY78: =IF(BY70>BY79,BY70-(ABS(BY79-BY70))/9*8,BY70+ABS(BY79-BY70)/9*8) -> 2.255555556 | BZ78: 2.233333333 | CA78: 2.211111111 | CB78: 2.188888889 | CC78: 2.166666667 | CD78: 2.144444444
A79: 2 | B79: =VLOOKUP(F55,Berechnung!$G$9:$H$62,2,FALSE)&"23" -> 123 | C79: =IF(Berechnung!$E$6=Berechnung!$E$9,Berechnung!$F$7*HLOOKUP(Berechnung!$N$6,MatrixLuft!$F$3:$AO$1114,FIXED(ROW(A79)-2,0),FALSE),"0") -> 6.41 | D79: =IF(Berechnung!$E$6=Berechnung!$E$9,Berechnung!$F$7*HLOOKUP($D$3,MatrixLuft!$F$3:$AO$1114,FIXED(ROW(A79)-2,0),FALSE),"0") -> 6.41 | E79: =IF(Berechnung!$E$6=Berechnung!$E$9,Berechnung!$F$7*HLOOKUP($E$3,MatrixLuft!$F$3:$AO$1114,FIXED(ROW(A79)-2,0),FALSE),"0") -> 5 | F79: =IF(F77>F82,F77-(ABS(F82-F77))/5*2,F77+ABS(F82-F77)/5*2) -> 6.915 | G79: 6.814 | H79: 6.713 | I79: 6.612 | J79: 6.511 | K79: =IF(K77>K82,K77-(ABS(K82-K77))/5*2,K77+ABS(K82-K77)/5*2) -> 6.41 | L79: 6.309 | M79: 6.208 | N79: 6.107 | O79: 6.006 | P79: =IF(P77>P82,P77-(ABS(P82-P77))/5*2,P77+ABS(P82-P77)/5*2) -> 5.905 | Q79: 5.804 | R79: 5.703 | S79: 5.602 | T79: 5.501 | U79: =IF(U77>U82,U77-(ABS(U82-U77))/5*2,U77+ABS(U82-U77)/5*2) -> 5.4 | V79: 5.36 | W79: 5.32 | X79: 5.28 | Y79: 5.24 | Z79: =IF(Z77>Z82,Z77-(ABS(Z82-Z77))/5*2,Z77+ABS(Z82-Z77)/5*2) -> 5.2 | AA79: 5.16 | AB79: 5.12 | AC79: 5.08 | AD79: 5.04 | AE79: =IF(AE77>AE82,AE77-(ABS(AE82-AE77))/5*2,AE77+ABS(AE82-AE77)/5*2) -> 5 | AQ79: 2 | AR79: =IF(Berechnung!$E$6=Berechnung!$E$9,HLOOKUP(Berechnung!$N$6,MatrixLuft!$AU$3:$CD$1114,FIXED(ROW(AQ79)-2,0),FALSE),"0") -> 3.5 | AS79: =IF(Berechnung!$E$6=Berechnung!$E$9,HLOOKUP($D$3,MatrixLuft!$AU$3:$CD$1114,FIXED(ROW(AQ79)-2,0),FALSE),"0") -> 3.5 | AT79: =IF(Berechnung!$E$6=Berechnung!$E$9,HLOOKUP($E$3,MatrixLuft!$AU$3:$CD$1114,FIXED(ROW(AQ79)-2,0),FALSE),"0") -> 2.4 | AU79: 4.05 | AV79: 3.94 | AW79: 3.83 | AX79: 3.72 | AY79: 3.61 | AZ79: 3.5 | BA79: 3.39 | BB79: 3.28 | BC79: 3.17 | BD79: 3.06 | BE79: 2.95 | BF79: 2.84 | BG79: 2.73 | BH79: 2.62 | BI79: 2.51 | BJ79: 2.4 | BK79: 2.4 | BL79: 2.4 | BM79: 2.4 | BN79: 2.4 | BO79: 2.4 | BP79: 2.4 | BQ79: 2.4 | BR79: 2.4 | BS79: 2.4 | BT79: 2.4 | BU79: 2.38 | BV79: 2.36 | BW79: 2.34 | BX79: 2.32 | BY79: 2.3 | BZ79: 2.28 | CA79: 2.26 | CB79: 2.24 | CC79: 2.22 | CD79: 2.2
A80: 3 | B80: =VLOOKUP(F55,Berechnung!$G$9:$H$62,2,FALSE)&"24" -> 124 | C80: =IF(Berechnung!$E$6=Berechnung!$E$9,Berechnung!$F$7*HLOOKUP(Berechnung!$N$6,MatrixLuft!$F$3:$AO$1114,FIXED(ROW(A80)-2,0),FALSE),"0") -> 6.64 | D80: =IF(Berechnung!$E$6=Berechnung!$E$9,Berechnung!$F$7*HLOOKUP($D$3,MatrixLuft!$F$3:$AO$1114,FIXED(ROW(A80)-2,0),FALSE),"0") -> 6.64 | E80: =IF(Berechnung!$E$6=Berechnung!$E$9,Berechnung!$F$7*HLOOKUP($E$3,MatrixLuft!$F$3:$AO$1114,FIXED(ROW(A80)-2,0),FALSE),"0") -> 5.2 | F80: =IF(F77>F82,F77-(ABS(F82-F77))/5*3,F77+ABS(F82-F77)/5*3) -> 7.16 | G80: 7.056 | H80: 6.952 | I80: 6.848 | J80: 6.744 | K80: =IF(K77>K82,K77-(ABS(K82-K77))/5*3,K77+ABS(K82-K77)/5*3) -> 6.64 | L80: 6.536 | M80: 6.432 | N80: 6.328 | O80: 6.224 | P80: =IF(P77>P82,P77-(ABS(P82-P77))/5*3,P77+ABS(P82-P77)/5*3) -> 6.12 | Q80: 6.016 | R80: 5.912 | S80: 5.808 | T80: 5.704 | U80: =IF(U77>U82,U77-(ABS(U82-U77))/5*3,U77+ABS(U82-U77)/5*3) -> 5.6 | V80: 5.56 | W80: 5.52 | X80: 5.48 | Y80: 5.44 | Z80: =IF(Z77>Z82,Z77-(ABS(Z82-Z77))/5*3,Z77+ABS(Z82-Z77)/5*3) -> 5.4 | AA80: 5.36 | AB80: 5.32 | AC80: 5.28 | AD80: 5.24 | AE80: =IF(AE77>AE82,AE77-(ABS(AE82-AE77))/5*3,AE77+ABS(AE82-AE77)/5*3) -> 5.2 | AQ80: 3 | AR80: =IF(Berechnung!$E$6=Berechnung!$E$9,HLOOKUP(Berechnung!$N$6,MatrixLuft!$AU$3:$CD$1114,FIXED(ROW(AQ80)-2,0),FALSE),"0") -> 3.5875 | AS80: =IF(Berechnung!$E$6=Berechnung!$E$9,HLOOKUP($D$3,MatrixLuft!$AU$3:$CD$1114,FIXED(ROW(AQ80)-2,0),FALSE),"0") -> 3.5875 | AT80: =IF(Berechnung!$E$6=Berechnung!$E$9,HLOOKUP($E$3,MatrixLuft!$AU$3:$CD$1114,FIXED(ROW(AQ80)-2,0),FALSE),"0") -> 2.45 | AU80: 4.13125 | AV80: 4.0225 | AW80: 3.91375 | AX80: 3.805 | AY80: 3.69625 | AZ80: =IF(AZ79>AZ87,AZ79-(ABS(AZ87-AZ79))/8*1,AZ79+ABS(AZ87-AZ79)/8*1) -> 3.5875 | BA80: 3.47875 | BB80: 3.37 | BC80: 3.26125 | BD80: 3.1525 | BE80: 3.04375 | BF80: 2.935 | BG80: 2.82625 | BH80: 2.7175 | BI80: 2.60875 | BJ80: =IF(BJ79>BJ87,BJ79-(ABS(BJ87-BJ79))/8*1,BJ79+ABS(BJ87-BJ79)/8*1) -> 2.5 | BK80: 2.495 | BL80: 2.49 | BM80: 2.485 | BN80: 2.48 | BO80: 2.475 | BP80: 2.47 | BQ80: 2.465 | BR80: 2.46 | BS80: 2.455 | BT80: =IF(BT79>BT87,BT79-(ABS(BT87-BT79))/8*1,BT79+ABS(BT87-BT79)/8*1) -> 2.45 | BU80: 2.43 | BV80: 2.41 | BW80: 2.39 | BX80: 2.37 | BY80: =IF(BY79>BY87,BY79-(ABS(BY87-BY79))/8*1,BY79+ABS(BY87-BY79)/8*1) -> 2.35 | BZ80: 2.33 | CA80: 2.31 | CB80: 2.29 | CC80: 2.27 | CD80: 2.25
A81: 4 | B81: =VLOOKUP(F55,Berechnung!$G$9:$H$62,2,FALSE)&"25" -> 125 | C81: =IF(Berechnung!$E$6=Berechnung!$E$9,Berechnung!$F$7*HLOOKUP(Berechnung!$N$6,MatrixLuft!$F$3:$AO$1114,FIXED(ROW(A81)-2,0),FALSE),"0") -> 6.87 | D81: =IF(Berechnung!$E$6=Berechnung!$E$9,Berechnung!$F$7*HLOOKUP($D$3,MatrixLuft!$F$3:$AO$1114,FIXED(ROW(A81)-2,0),FALSE),"0") -> 6.87 | E81: =IF(Berechnung!$E$6=Berechnung!$E$9,Berechnung!$F$7*HLOOKUP($E$3,MatrixLuft!$F$3:$AO$1114,FIXED(ROW(A81)-2,0),FALSE),"0") -> 5.4 | F81: =IF(F77>F82,F77-(ABS(F82-F77))/5*4,F77+ABS(F82-F77)/5*4) -> 7.405 | G81: 7.298 | H81: 7.191 | I81: 7.084 | J81: 6.977 | K81: =IF(K77>K82,K77-(ABS(K82-K77))/5*4,K77+ABS(K82-K77)/5*4) -> 6.87 | L81: 6.763 | M81: 6.656 | N81: 6.549 | O81: 6.442 | P81: =IF(P77>P82,P77-(ABS(P82-P77))/5*4,P77+ABS(P82-P77)/5*4) -> 6.335 | Q81: 6.228 | R81: 6.121 | S81: 6.014 | T81: 5.907 | U81: =IF(U77>U82,U77-(ABS(U82-U77))/5*4,U77+ABS(U82-U77)/5*4) -> 5.8 | V81: 5.76 | W81: 5.72 | X81: 5.68 | Y81: 5.64 | Z81: =IF(Z77>Z82,Z77-(ABS(Z82-Z77))/5*4,Z77+ABS(Z82-Z77)/5*4) -> 5.6 | AA81: 5.56 | AB81: 5.52 | AC81: 5.48 | AD81: 5.44 | AE81: =IF(AE77>AE82,AE77-(ABS(AE82-AE77))/5*4,AE77+ABS(AE82-AE77)/5*4) -> 5.4 | AQ81: 4 | AR81: =IF(Berechnung!$E$6=Berechnung!$E$9,HLOOKUP(Berechnung!$N$6,MatrixLuft!$AU$3:$CD$1114,FIXED(ROW(AQ81)-2,0),FALSE),"0") -> 3.675 | AS81: =IF(Berechnung!$E$6=Berechnung!$E$9,HLOOKUP($D$3,MatrixLuft!$AU$3:$CD$1114,FIXED(ROW(AQ81)-2,0),FALSE),"0") -> 3.675 | AT81: =IF(Berechnung!$E$6=Berechnung!$E$9,HLOOKUP($E$3,MatrixLuft!$AU$3:$CD$1114,FIXED(ROW(AQ81)-2,0),FALSE),"0") -> 2.5 | AU81: 4.2125 | AV81: 4.105 | AW81: 3.9975 | AX81: 3.89 | AY81: 3.7825 | AZ81: =IF(AZ79>AZ87,AZ79-(ABS(AZ87-AZ79))/8*2,AZ79+ABS(AZ87-AZ79)/8*2) -> 3.675 | BA81: 3.5675 | BB81: 3.46 | BC81: 3.3525 | BD81: 3.245 | BE81: 3.1375 | BF81: 3.03 | BG81: 2.9225 | BH81: 2.815 | BI81: 2.7075 | BJ81: =IF(BJ79>BJ87,BJ79-(ABS(BJ87-BJ79))/8*2,BJ79+ABS(BJ87-BJ79)/8*2) -> 2.6 | BK81: 2.59 | BL81: 2.58 | BM81: 2.57 | BN81: 2.56 | BO81: 2.55 | BP81: 2.54 | BQ81: 2.53 | BR81: 2.52 | BS81: 2.51 | BT81: =IF(BT79>BT87,BT79-(ABS(BT87-BT79))/8*2,BT79+ABS(BT87-BT79)/8*2) -> 2.5 | BU81: 2.48 | BV81: 2.46 | BW81: 2.44 | BX81: 2.42 | BY81: =IF(BY79>BY87,BY79-(ABS(BY87-BY79))/8*2,BY79+ABS(BY87-BY79)/8*2) -> 2.4 | BZ81: 2.38 | CA81: 2.36 | CB81: 2.34 | CC81: 2.32 | CD81: 2.3
A82: 5 | B82: =VLOOKUP(F55,Berechnung!$G$9:$H$62,2,FALSE)&"26" -> 126 | C82: =IF(Berechnung!$E$6=Berechnung!$E$9,Berechnung!$F$7*HLOOKUP(Berechnung!$N$6,MatrixLuft!$F$3:$AO$1114,FIXED(ROW(A82)-2,0),FALSE),"0") -> 7.1 | D82: =IF(Berechnung!$E$6=Berechnung!$E$9,Berechnung!$F$7*HLOOKUP($D$3,MatrixLuft!$F$3:$AO$1114,FIXED(ROW(A82)-2,0),FALSE),"0") -> 7.1 | E82: =IF(Berechnung!$E$6=Berechnung!$E$9,Berechnung!$F$7*HLOOKUP($E$3,MatrixLuft!$F$3:$AO$1114,FIXED(ROW(A82)-2,0),FALSE),"0") -> 5.6 | F82: =K82+(K82-P82) -> 7.65 | G82: 7.54 | H82: 7.43 | I82: 7.32 | J82: 7.21 | K82: 7.1 | L82: 6.99 | M82: 6.88 | N82: 6.77 | O82: 6.66 | P82: =AVERAGE(K82,U82) -> 6.55 | Q82: 6.44 | R82: 6.33 | S82: 6.22 | T82: 6.11 | U82: 6 | V82: 5.96 | W82: 5.92 | X82: 5.88 | Y82: 5.84 | Z82: =AVERAGE(U82,AE82) -> 5.8 | AA82: 5.76 | AB82: 5.72 | AC82: 5.68 | AD82: 5.64 | AE82: 5.6 | AQ82: 5 | AR82: =IF(Berechnung!$E$6=Berechnung!$E$9,HLOOKUP(Berechnung!$N$6,MatrixLuft!$AU$3:$CD$1114,FIXED(ROW(AQ82)-2,0),FALSE),"0") -> 3.7625 | AS82: =IF(Berechnung!$E$6=Berechnung!$E$9,HLOOKUP($D$3,MatrixLuft!$AU$3:$CD$1114,FIXED(ROW(AQ82)-2,0),FALSE),"0") -> 3.7625 | AT82: =IF(Berechnung!$E$6=Berechnung!$E$9,HLOOKUP($E$3,MatrixLuft!$AU$3:$CD$1114,FIXED(ROW(AQ82)-2,0),FALSE),"0") -> 2.55 | AU82: 4.29375 | AV82: 4.1875 | AW82: 4.08125 | AX82: 3.975 | AY82: 3.86875 | AZ82: =IF(AZ79>AZ87,AZ79-(ABS(AZ87-AZ79))/8*3,AZ79+ABS(AZ87-AZ79)/8*3) -> 3.7625 | BA82: 3.65625 | BB82: 3.55 | BC82: 3.44375 | BD82: 3.3375 | BE82: 3.23125 | BF82: 3.125 | BG82: 3.01875 | BH82: 2.9125 | BI82: 2.80625 | BJ82: =IF(BJ79>BJ87,BJ79-(ABS(BJ87-BJ79))/8*3,BJ79+ABS(BJ87-BJ79)/8*3) -> 2.7 | BK82: 2.685 | BL82: 2.67 | BM82: 2.655 | BN82: 2.64 | BO82: 2.625 | BP82: 2.61 | BQ82: 2.595 | BR82: 2.58 | BS82: 2.565 | BT82: =IF(BT79>BT87,BT79-(ABS(BT87-BT79))/8*3,BT79+ABS(BT87-BT79)/8*3) -> 2.55 | BU82: 2.53 | BV82: 2.51 | BW82: 2.49 | BX82: 2.47 | BY82: =IF(BY79>BY87,BY79-(ABS(BY87-BY79))/8*3,BY79+ABS(BY87-BY79)/8*3) -> 2.45 | BZ82: 2.43 | CA82: 2.41 | CB82: 2.39 | CC82: 2.37 | CD82: 2.35
A83: 6 | B83: =VLOOKUP(F55,Berechnung!$G$9:$H$62,2,FALSE)&"27" -> 127 | C83: =IF(Berechnung!$E$6=Berechnung!$E$9,Berechnung!$F$7*HLOOKUP(Berechnung!$N$6,MatrixLuft!$F$3:$AO$1114,FIXED(ROW(A83)-2,0),FALSE),"0") -> 7.34 | D83: =IF(Berechnung!$E$6=Berechnung!$E$9,Berechnung!$F$7*HLOOKUP($D$3,MatrixLuft!$F$3:$AO$1114,FIXED(ROW(A83)-2,0),FALSE),"0") -> 7.34 | E83: =IF(Berechnung!$E$6=Berechnung!$E$9,Berechnung!$F$7*HLOOKUP($E$3,MatrixLuft!$F$3:$AO$1114,FIXED(ROW(A83)-2,0),FALSE),"0") -> 5.92 | F83: =IF(F82>F87,F82-(ABS(F87-F82))/5*1,F82+ABS(F87-F82)/5*1) -> 7.85 | G83: 7.748 | H83: 7.646 | I83: 7.544 | J83: 7.442 | K83: =IF(K82>K87,K82-(ABS(K87-K82))/5*1,K82+ABS(K87-K82)/5*1) -> 7.34 | L83: 7.238 | M83: 7.136 | N83: 7.034 | O83: 6.932 | P83: =IF(P82>P87,P82-(ABS(P87-P82))/5*1,P82+ABS(P87-P82)/5*1) -> 6.83 | Q83: 6.728 | R83: 6.626 | S83: 6.524 | T83: 6.422 | U83: =IF(U82>U87,U82-(ABS(U87-U82))/5*1,U82+ABS(U87-U82)/5*1) -> 6.32 | V83: 6.28 | W83: 6.24 | X83: 6.2 | Y83: 6.16 | Z83: =IF(Z82>Z87,Z82-(ABS(Z87-Z82))/5*1,Z82+ABS(Z87-Z82)/5*1) -> 6.12 | AA83: 6.08 | AB83: 6.04 | AC83: 6 | AD83: 5.96 | AE83: =IF(AE82>AE87,AE82-(ABS(AE87-AE82))/5*1,AE82+ABS(AE87-AE82)/5*1) -> 5.92 | AQ83: 6 | AR83: =IF(Berechnung!$E$6=Berechnung!$E$9,HLOOKUP(Berechnung!$N$6,MatrixLuft!$AU$3:$CD$1114,FIXED(ROW(AQ83)-2,0),FALSE),"0") -> 3.85 | AS83: =IF(Berechnung!$E$6=Berechnung!$E$9,HLOOKUP($D$3,MatrixLuft!$AU$3:$CD$1114,FIXED(ROW(AQ83)-2,0),FALSE),"0") -> 3.85 | AT83: =IF(Berechnung!$E$6=Berechnung!$E$9,HLOOKUP($E$3,MatrixLuft!$AU$3:$CD$1114,FIXED(ROW(AQ83)-2,0),FALSE),"0") -> 2.6 | AU83: 4.375 | AV83: 4.27 | AW83: 4.165 | AX83: 4.06 | AY83: 3.955 | AZ83: =IF(AZ79>AZ87,AZ79-(ABS(AZ87-AZ79))/8*4,AZ79+ABS(AZ87-AZ79)/8*4) -> 3.85 | BA83: 3.745 | BB83: 3.64 | BC83: 3.535 | BD83: 3.43 | BE83: 3.325 | BF83: 3.22 | BG83: 3.115 | BH83: 3.01 | BI83: 2.905 | BJ83: =IF(BJ79>BJ87,BJ79-(ABS(BJ87-BJ79))/8*4,BJ79+ABS(BJ87-BJ79)/8*4) -> 2.8 | BK83: 2.78 | BL83: 2.76 | BM83: 2.74 | BN83: 2.72 | BO83: 2.7 | BP83: 2.68 | BQ83: 2.66 | BR83: 2.64 | BS83: 2.62 | BT83: =IF(BT79>BT87,BT79-(ABS(BT87-BT79))/8*4,BT79+ABS(BT87-BT79)/8*4) -> 2.6 | BU83: 2.58 | BV83: 2.56 | BW83: 2.54 | BX83: 2.52 | BY83: =IF(BY79>BY87,BY79-(ABS(BY87-BY79))/8*4,BY79+ABS(BY87-BY79)/8*4) -> 2.5 | BZ83: 2.48 | CA83: 2.46 | CB83: 2.44 | CC83: 2.42 | CD83: 2.4
A84: 7 | B84: =VLOOKUP(F55,Berechnung!$G$9:$H$62,2,FALSE)&"28" -> 128 | C84: =IF(Berechnung!$E$6=Berechnung!$E$9,Berechnung!$F$7*HLOOKUP(Berechnung!$N$6,MatrixLuft!$F$3:$AO$1114,FIXED(ROW(A84)-2,0),FALSE),"0") -> 7.58 | D84: =IF(Berechnung!$E$6=Berechnung!$E$9,Berechnung!$F$7*HLOOKUP($D$3,MatrixLuft!$F$3:$AO$1114,FIXED(ROW(A84)-2,0),FALSE),"0") -> 7.58 | E84: =IF(Berechnung!$E$6=Berechnung!$E$9,Berechnung!$F$7*HLOOKUP($E$3,MatrixLuft!$F$3:$AO$1114,FIXED(ROW(A84)-2,0),FALSE),"0") -> 6.24 | F84: =IF(F82>F87,F82-(ABS(F87-F82))/5*2,F82+ABS(F87-F82)/5*2) -> 8.05 | G84: 7.956 | H84: 7.862 | I84: 7.768 | J84: 7.674 | K84: =IF(K82>K87,K82-(ABS(K87-K82))/5*2,K82+ABS(K87-K82)/5*2) -> 7.58 | L84: 7.486 | M84: 7.392 | N84: 7.298 | O84: 7.204 | P84: =IF(P82>P87,P82-(ABS(P87-P82))/5*2,P82+ABS(P87-P82)/5*2) -> 7.11 | Q84: 7.016 | R84: 6.922 | S84: 6.828 | T84: 6.734 | U84: =IF(U82>U87,U82-(ABS(U87-U82))/5*2,U82+ABS(U87-U82)/5*2) -> 6.64 | V84: 6.6 | W84: 6.56 | X84: 6.52 | Y84: 6.48 | Z84: =IF(Z82>Z87,Z82-(ABS(Z87-Z82))/5*2,Z82+ABS(Z87-Z82)/5*2) -> 6.44 | AA84: 6.4 | AB84: 6.36 | AC84: 6.32 | AD84: 6.28 | AE84: =IF(AE82>AE87,AE82-(ABS(AE87-AE82))/5*2,AE82+ABS(AE87-AE82)/5*2) -> 6.24 | AQ84: 7 | AR84: =IF(Berechnung!$E$6=Berechnung!$E$9,HLOOKUP(Berechnung!$N$6,MatrixLuft!$AU$3:$CD$1114,FIXED(ROW(AQ84)-2,0),FALSE),"0") -> 3.9375 | AS84: =IF(Berechnung!$E$6=Berechnung!$E$9,HLOOKUP($D$3,MatrixLuft!$AU$3:$CD$1114,FIXED(ROW(AQ84)-2,0),FALSE),"0") -> 3.9375 | AT84: =IF(Berechnung!$E$6=Berechnung!$E$9,HLOOKUP($E$3,MatrixLuft!$AU$3:$CD$1114,FIXED(ROW(AQ84)-2,0),FALSE),"0") -> 2.65 | AU84: 4.45625 | AV84: 4.3525 | AW84: 4.24875 | AX84: 4.145 | AY84: 4.04125 | AZ84: =IF(AZ79>AZ87,AZ79-(ABS(AZ87-AZ79))/8*5,AZ79+ABS(AZ87-AZ79)/8*5) -> 3.9375 | BA84: 3.83375 | BB84: 3.73 | BC84: 3.62625 | BD84: 3.5225 | BE84: 3.41875 | BF84: 3.315 | BG84: 3.21125 | BH84: 3.1075 | BI84: 3.00375 | BJ84: =IF(BJ79>BJ87,BJ79-(ABS(BJ87-BJ79))/8*5,BJ79+ABS(BJ87-BJ79)/8*5) -> 2.9 | BK84: 2.875 | BL84: 2.85 | BM84: 2.825 | BN84: 2.8 | BO84: 2.775 | BP84: 2.75 | BQ84: 2.725 | BR84: 2.7 | BS84: 2.675 | BT84: =IF(BT79>BT87,BT79-(ABS(BT87-BT79))/8*5,BT79+ABS(BT87-BT79)/8*5) -> 2.65 | BU84: 2.63 | BV84: 2.61 | BW84: 2.59 | BX84: 2.57 | BY84: =IF(BY79>BY87,BY79-(ABS(BY87-BY79))/8*5,BY79+ABS(BY87-BY79)/8*5) -> 2.55 | BZ84: 2.53 | CA84: 2.51 | CB84: 2.49 | CC84: 2.47 | CD84: 2.45
A85: 8 | B85: =VLOOKUP(F55,Berechnung!$G$9:$H$62,2,FALSE)&"29" -> 129 | C85: =IF(Berechnung!$E$6=Berechnung!$E$9,Berechnung!$F$7*HLOOKUP(Berechnung!$N$6,MatrixLuft!$F$3:$AO$1114,FIXED(ROW(A85)-2,0),FALSE),"0") -> 7.82 | D85: =IF(Berechnung!$E$6=Berechnung!$E$9,Berechnung!$F$7*HLOOKUP($D$3,MatrixLuft!$F$3:$AO$1114,FIXED(ROW(A85)-2,0),FALSE),"0") -> 7.82 | E85: =IF(Berechnung!$E$6=Berechnung!$E$9,Berechnung!$F$7*HLOOKUP($E$3,MatrixLuft!$F$3:$AO$1114,FIXED(ROW(A85)-2,0),FALSE),"0") -> 6.56 | F85: =IF(F82>F87,F82-(ABS(F87-F82))/5*3,F82+ABS(F87-F82)/5*3) -> 8.25 | G85: 8.164 | H85: 8.078 | I85: 7.992 | J85: 7.906 | K85: =IF(K82>K87,K82-(ABS(K87-K82))/5*3,K82+ABS(K87-K82)/5*3) -> 7.82 | L85: 7.734 | M85: 7.648 | N85: 7.562 | O85: 7.476 | P85: =IF(P82>P87,P82-(ABS(P87-P82))/5*3,P82+ABS(P87-P82)/5*3) -> 7.39 | Q85: 7.304 | R85: 7.218 | S85: 7.132 | T85: 7.046 | U85: =IF(U82>U87,U82-(ABS(U87-U82))/5*3,U82+ABS(U87-U82)/5*3) -> 6.96 | V85: 6.92 | W85: 6.88 | X85: 6.84 | Y85: 6.8 | Z85: =IF(Z82>Z87,Z82-(ABS(Z87-Z82))/5*3,Z82+ABS(Z87-Z82)/5*3) -> 6.76 | AA85: 6.72 | AB85: 6.68 | AC85: 6.64 | AD85: 6.6 | AE85: =IF(AE82>AE87,AE82-(ABS(AE87-AE82))/5*3,AE82+ABS(AE87-AE82)/5*3) -> 6.56 | AQ85: 8 | AR85: =IF(Berechnung!$E$6=Berechnung!$E$9,HLOOKUP(Berechnung!$N$6,MatrixLuft!$AU$3:$CD$1114,FIXED(ROW(AQ85)-2,0),FALSE),"0") -> 4.025 | AS85: =IF(Berechnung!$E$6=Berechnung!$E$9,HLOOKUP($D$3,MatrixLuft!$AU$3:$CD$1114,FIXED(ROW(AQ85)-2,0),FALSE),"0") -> 4.025 | AT85: =IF(Berechnung!$E$6=Berechnung!$E$9,HLOOKUP($E$3,MatrixLuft!$AU$3:$CD$1114,FIXED(ROW(AQ85)-2,0),FALSE),"0") -> 2.7 | AU85: 4.5375 | AV85: 4.435 | AW85: 4.3325 | AX85: 4.23 | AY85: 4.1275 | AZ85: =IF(AZ79>AZ87,AZ79-(ABS(AZ87-AZ79))/8*6,AZ79+ABS(AZ87-AZ79)/8*6) -> 4.025 | BA85: 3.9225 | BB85: 3.82 | BC85: 3.7175 | BD85: 3.615 | BE85: 3.5125 | BF85: 3.41 | BG85: 3.3075 | BH85: 3.205 | BI85: 3.1025 | BJ85: =IF(BJ79>BJ87,BJ79-(ABS(BJ87-BJ79))/8*6,BJ79+ABS(BJ87-BJ79)/8*6) -> 3 | BK85: 2.97 | BL85: 2.94 | BM85: 2.91 | BN85: 2.88 | BO85: 2.85 | BP85: 2.82 | BQ85: 2.79 | BR85: 2.76 | BS85: 2.73 | BT85: =IF(BT79>BT87,BT79-(ABS(BT87-BT79))/8*6,BT79+ABS(BT87-BT79)/8*6) -> 2.7 | BU85: 2.68 | BV85: 2.66 | BW85: 2.64 | BX85: 2.62 | BY85: =IF(BY79>BY87,BY79-(ABS(BY87-BY79))/8*6,BY79+ABS(BY87-BY79)/8*6) -> 2.6 | BZ85: 2.58 | CA85: 2.56 | CB85: 2.54 | CC85: 2.52 | CD85: 2.5
A86: 9 | B86: =VLOOKUP(F55,Berechnung!$G$9:$H$62,2,FALSE)&"30" -> 130 | C86: =IF(Berechnung!$E$6=Berechnung!$E$9,Berechnung!$F$7*HLOOKUP(Berechnung!$N$6,MatrixLuft!$F$3:$AO$1114,FIXED(ROW(A86)-2,0),FALSE),"0") -> 8.06 | D86: =IF(Berechnung!$E$6=Berechnung!$E$9,Berechnung!$F$7*HLOOKUP($D$3,MatrixLuft!$F$3:$AO$1114,FIXED(ROW(A86)-2,0),FALSE),"0") -> 8.06 | E86: =IF(Berechnung!$E$6=Berechnung!$E$9,Berechnung!$F$7*HLOOKUP($E$3,MatrixLuft!$F$3:$AO$1114,FIXED(ROW(A86)-2,0),FALSE),"0") -> 6.88 | F86: =IF(F82>F87,F82-(ABS(F87-F82))/5*4,F82+ABS(F87-F82)/5*4) -> 8.45 | G86: 8.372 | H86: 8.294 | I86: 8.216 | J86: 8.138 | K86: =IF(K82>K87,K82-(ABS(K87-K82))/5*4,K82+ABS(K87-K82)/5*4) -> 8.06 | L86: 7.982 | M86: 7.904 | N86: 7.826 | O86: 7.748 | P86: =IF(P82>P87,P82-(ABS(P87-P82))/5*4,P82+ABS(P87-P82)/5*4) -> 7.67 | Q86: 7.592 | R86: 7.514 | S86: 7.436 | T86: 7.358 | U86: =IF(U82>U87,U82-(ABS(U87-U82))/5*4,U82+ABS(U87-U82)/5*4) -> 7.28 | V86: 7.24 | W86: 7.2 | X86: 7.16 | Y86: 7.12 | Z86: =IF(Z82>Z87,Z82-(ABS(Z87-Z82))/5*4,Z82+ABS(Z87-Z82)/5*4) -> 7.08 | AA86: 7.04 | AB86: 7 | AC86: 6.96 | AD86: 6.92 | AE86: =IF(AE82>AE87,AE82-(ABS(AE87-AE82))/5*4,AE82+ABS(AE87-AE82)/5*4) -> 6.88 | AQ86: 9 | AR86: =IF(Berechnung!$E$6=Berechnung!$E$9,HLOOKUP(Berechnung!$N$6,MatrixLuft!$AU$3:$CD$1114,FIXED(ROW(AQ86)-2,0),FALSE),"0") -> 4.1125 | AS86: =IF(Berechnung!$E$6=Berechnung!$E$9,HLOOKUP($D$3,MatrixLuft!$AU$3:$CD$1114,FIXED(ROW(AQ86)-2,0),FALSE),"0") -> 4.1125 | AT86: =IF(Berechnung!$E$6=Berechnung!$E$9,HLOOKUP($E$3,MatrixLuft!$AU$3:$CD$1114,FIXED(ROW(AQ86)-2,0),FALSE),"0") -> 2.75 | AU86: 4.61875 | AV86: 4.5175 | AW86: 4.41625 | AX86: 4.315 | AY86: 4.21375 | AZ86: =IF(AZ79>AZ87,AZ79-(ABS(AZ87-AZ79))/8*7,AZ79+ABS(AZ87-AZ79)/8*7) -> 4.1125 | BA86: 4.01125 | BB86: 3.91 | BC86: 3.80875 | BD86: 3.7075 | BE86: 3.60625 | BF86: 3.505 | BG86: 3.40375 | BH86: 3.3025 | BI86: 3.20125 | BJ86: =IF(BJ79>BJ87,BJ79-(ABS(BJ87-BJ79))/8*7,BJ79+ABS(BJ87-BJ79)/8*7) -> 3.1 | BK86: 3.065 | BL86: 3.03 | BM86: 2.995 | BN86: 2.96 | BO86: 2.925 | BP86: 2.89 | BQ86: 2.855 | BR86: 2.82 | BS86: 2.785 | BT86: =IF(BT79>BT87,BT79-(ABS(BT87-BT79))/8*7,BT79+ABS(BT87-BT79)/8*7) -> 2.75 | BU86: 2.73 | BV86: 2.71 | BW86: 2.69 | BX86: 2.67 | BY86: =IF(BY79>BY87,BY79-(ABS(BY87-BY79))/8*7,BY79+ABS(BY87-BY79)/8*7) -> 2.65 | BZ86: 2.63 | CA86: 2.61 | CB86: 2.59 | CC86: 2.57 | CD86: 2.55
A87: 10 | B87: =VLOOKUP(F55,Berechnung!$G$9:$H$62,2,FALSE)&"31" -> 131 | C87: =IF(Berechnung!$E$6=Berechnung!$E$9,Berechnung!$F$7*HLOOKUP(Berechnung!$N$6,MatrixLuft!$F$3:$AO$1114,FIXED(ROW(A87)-2,0),FALSE),"0") -> 8.3 | D87: =IF(Berechnung!$E$6=Berechnung!$E$9,Berechnung!$F$7*HLOOKUP($D$3,MatrixLuft!$F$3:$AO$1114,FIXED(ROW(A87)-2,0),FALSE),"0") -> 8.3 | E87: =IF(Berechnung!$E$6=Berechnung!$E$9,Berechnung!$F$7*HLOOKUP($E$3,MatrixLuft!$F$3:$AO$1114,FIXED(ROW(A87)-2,0),FALSE),"0") -> 7.2 | F87: =K87+(K87-P87) -> 8.65 | G87: 8.58 | H87: 8.51 | I87: 8.44 | J87: 8.37 | K87: 8.3 | L87: 8.23 | M87: 8.16 | N87: 8.09 | O87: 8.02 | P87: =AVERAGE(K87,U87) -> 7.95 | Q87: 7.88 | R87: 7.81 | S87: 7.74 | T87: 7.67 | U87: 7.6 | V87: 7.56 | W87: 7.52 | X87: 7.48 | Y87: 7.44 | Z87: =AVERAGE(U87,AE87) -> 7.4 | AA87: 7.36 | AB87: 7.32 | AC87: 7.28 | AD87: 7.24 | AE87: 7.2 | AQ87: 10 | AR87: =IF(Berechnung!$E$6=Berechnung!$E$9,HLOOKUP(Berechnung!$N$6,MatrixLuft!$AU$3:$CD$1114,FIXED(ROW(AQ87)-2,0),FALSE),"0") -> 4.2 | AS87: =IF(Berechnung!$E$6=Berechnung!$E$9,HLOOKUP($D$3,MatrixLuft!$AU$3:$CD$1114,FIXED(ROW(AQ87)-2,0),FALSE),"0") -> 4.2 | AT87: =IF(Berechnung!$E$6=Berechnung!$E$9,HLOOKUP($E$3,MatrixLuft!$AU$3:$CD$1114,FIXED(ROW(AQ87)-2,0),FALSE),"0") -> 2.8 | AU87: 4.7 | AV87: 4.6 | AW87: 4.5 | AX87: 4.4 | AY87: 4.3 | AZ87: 4.2 | BA87: 4.1 | BB87: 4 | BC87: 3.9 | BD87: 3.8 | BE87: 3.7 | BF87: 3.6 | BG87: 3.5 | BH87: 3.4 | BI87: 3.3 | BJ87: 3.2 | BK87: 3.16 | BL87: 3.12 | BM87: 3.08 | BN87: 3.04 | BO87: 3 | BP87: 2.96 | BQ87: 2.92 | BR87: 2.88 | BS87: 2.84 | BT87: 2.8 | BU87: 2.78 | BV87: 2.76 | BW87: 2.74 | BX87: 2.72 | BY87: 2.7 | BZ87: 2.68 | CA87: 2.66 | CB87: 2.64 | CC87: 2.62 | CD87: 2.6
A88: 11 | B88: =VLOOKUP(F55,Berechnung!$G$9:$H$62,2,FALSE)&"32" -> 132 | C88: =IF(Berechnung!$E$6=Berechnung!$E$9,Berechnung!$F$7*HLOOKUP(Berechnung!$N$6,MatrixLuft!$F$3:$AO$1114,FIXED(ROW(A88)-2,0),FALSE),"0") -> 8.525 | D88: =IF(Berechnung!$E$6=Berechnung!$E$9,Berechnung!$F$7*HLOOKUP($D$3,MatrixLuft!$F$3:$AO$1114,FIXED(ROW(A88)-2,0),FALSE),"0") -> 8.525 | E88: =IF(Berechnung!$E$6=Berechnung!$E$9,Berechnung!$F$7*HLOOKUP($E$3,MatrixLuft!$F$3:$AO$1114,FIXED(ROW(A88)-2,0),FALSE),"0") -> 7.35 | F88: =IF(F87>F92,F87-(ABS(F92-F87))/5*1,F87+ABS(F92-F87)/5*1) -> 8.9125 | G88: 8.835 | H88: 8.7575 | I88: 8.68 | J88: 8.6025 | K88: =IF(K87>K92,K87-(ABS(K92-K87))/5*1,K87+ABS(K92-K87)/5*1) -> 8.525 | L88: 8.4475 | M88: 8.37 | N88: 8.2925 | O88: 8.215 | P88: =IF(P87>P92,P87-(ABS(P92-P87))/5*1,P87+ABS(P92-P87)/5*1) -> 8.1375 | Q88: 8.06 | R88: 7.9825 | S88: 7.905 | T88: 7.8275 | U88: =IF(U87>U92,U87-(ABS(U92-U87))/5*1,U87+ABS(U92-U87)/5*1) -> 7.75 | V88: 7.71 | W88: 7.67 | X88: 7.63 | Y88: 7.59 | Z88: =IF(Z87>Z92,Z87-(ABS(Z92-Z87))/5*1,Z87+ABS(Z92-Z87)/5*1) -> 7.55 | AA88: 7.51 | AB88: 7.47 | AC88: 7.43 | AD88: 7.39 | AE88: =IF(AE87>AE92,AE87-(ABS(AE92-AE87))/5*1,AE87+ABS(AE92-AE87)/5*1) -> 7.35 | AQ88: 11 | AR88: =IF(Berechnung!$E$6=Berechnung!$E$9,HLOOKUP(Berechnung!$N$6,MatrixLuft!$AU$3:$CD$1114,FIXED(ROW(AQ88)-2,0),FALSE),"0") -> 4.25 | AS88: =IF(Berechnung!$E$6=Berechnung!$E$9,HLOOKUP($D$3,MatrixLuft!$AU$3:$CD$1114,FIXED(ROW(AQ88)-2,0),FALSE),"0") -> 4.25 | AT88: =IF(Berechnung!$E$6=Berechnung!$E$9,HLOOKUP($E$3,MatrixLuft!$AU$3:$CD$1114,FIXED(ROW(AQ88)-2,0),FALSE),"0") -> 2.82 | AU88: 4.735 | AV88: 4.638 | AW88: 4.541 | AX88: 4.444 | AY88: 4.347 | AZ88: =IF(AZ87>AZ97,AZ87-(ABS(AZ97-AZ87))/10*1,AZ87+ABS(AZ97-AZ87)/10*1) -> 4.25 | BA88: 4.153 | BB88: 4.056 | BC88: 3.959 | BD88: 3.862 | BE88: 3.765 | BF88: 3.668 | BG88: 3.571 | BH88: 3.474 | BI88: 3.377 | BJ88: =IF(BJ87>BJ97,BJ87-(ABS(BJ97-BJ87))/10*1,BJ87+ABS(BJ97-BJ87)/10*1) -> 3.28 | BK88: 3.234 | BL88: 3.188 | BM88: 3.142 | BN88: 3.096 | BO88: 3.05 | BP88: 3.004 | BQ88: 2.958 | BR88: 2.912 | BS88: 2.866 | BT88: =IF(BT87>BT97,BT87-(ABS(BT97-BT87))/10*1,BT87+ABS(BT97-BT87)/10*1) -> 2.82 | BU88: 2.798 | BV88: 2.776 | BW88: 2.754 | BX88: 2.732 | BY88: =IF(BY87>BY97,BY87-(ABS(BY97-BY87))/10*1,BY87+ABS(BY97-BY87)/10*1) -> 2.71 | BZ88: 2.688 | CA88: 2.666 | CB88: 2.644 | CC88: 2.622 | CD88: 2.6
A89: 12 | B89: =VLOOKUP(F55,Berechnung!$G$9:$H$62,2,FALSE)&"33" -> 133 | C89: =IF(Berechnung!$E$6=Berechnung!$E$9,Berechnung!$F$7*HLOOKUP(Berechnung!$N$6,MatrixLuft!$F$3:$AO$1114,FIXED(ROW(A89)-2,0),FALSE),"0") -> 8.75 | D89: =IF(Berechnung!$E$6=Berechnung!$E$9,Berechnung!$F$7*HLOOKUP($D$3,MatrixLuft!$F$3:$AO$1114,FIXED(ROW(A89)-2,0),FALSE),"0") -> 8.75 | E89: =IF(Berechnung!$E$6=Berechnung!$E$9,Berechnung!$F$7*HLOOKUP($E$3,MatrixLuft!$F$3:$AO$1114,FIXED(ROW(A89)-2,0),FALSE),"0") -> 7.5 | F89: =IF(F87>F92,F87-(ABS(F92-F87))/5*2,F87+ABS(F92-F87)/5*2) -> 9.175 | G89: 9.09 | H89: 9.005 | I89: 8.92 | J89: 8.835 | K89: =IF(K87>K92,K87-(ABS(K92-K87))/5*2,K87+ABS(K92-K87)/5*2) -> 8.75 | L89: 8.665 | M89: 8.58 | N89: 8.495 | O89: 8.41 | P89: =IF(P87>P92,P87-(ABS(P92-P87))/5*2,P87+ABS(P92-P87)/5*2) -> 8.325 | Q89: 8.24 | R89: 8.155 | S89: 8.07 | T89: 7.985 | U89: =IF(U87>U92,U87-(ABS(U92-U87))/5*2,U87+ABS(U92-U87)/5*2) -> 7.9 | V89: 7.86 | W89: 7.82 | X89: 7.78 | Y89: 7.74 | Z89: =IF(Z87>Z92,Z87-(ABS(Z92-Z87))/5*2,Z87+ABS(Z92-Z87)/5*2) -> 7.7 | AA89: 7.66 | AB89: 7.62 | AC89: 7.58 | AD89: 7.54 | AE89: =IF(AE87>AE92,AE87-(ABS(AE92-AE87))/5*2,AE87+ABS(AE92-AE87)/5*2) -> 7.5 | AQ89: 12 | AR89: =IF(Berechnung!$E$6=Berechnung!$E$9,HLOOKUP(Berechnung!$N$6,MatrixLuft!$AU$3:$CD$1114,FIXED(ROW(AQ89)-2,0),FALSE),"0") -> 4.3 | AS89: =IF(Berechnung!$E$6=Berechnung!$E$9,HLOOKUP($D$3,MatrixLuft!$AU$3:$CD$1114,FIXED(ROW(AQ89)-2,0),FALSE),"0") -> 4.3 | AT89: =IF(Berechnung!$E$6=Berechnung!$E$9,HLOOKUP($E$3,MatrixLuft!$AU$3:$CD$1114,FIXED(ROW(AQ89)-2,0),FALSE),"0") -> 2.84 | AU89: 4.77 | AV89: 4.676 | AW89: 4.582 | AX89: 4.488 | AY89: 4.394 | AZ89: =IF(AZ87>AZ97,AZ87-(ABS(AZ97-AZ87))/10*2,AZ87+ABS(AZ97-AZ87)/10*2) -> 4.3 | BA89: 4.206 | BB89: 4.112 | BC89: 4.018 | BD89: 3.924 | BE89: 3.83 | BF89: 3.736 | BG89: 3.642 | BH89: 3.548 | BI89: 3.454 | BJ89: =IF(BJ87>BJ97,BJ87-(ABS(BJ97-BJ87))/10*2,BJ87+ABS(BJ97-BJ87)/10*2) -> 3.36 | BK89: 3.308 | BL89: 3.256 | BM89: 3.204 | BN89: 3.152 | BO89: 3.1 | BP89: 3.048 | BQ89: 2.996 | BR89: 2.944 | BS89: 2.892 | BT89: =IF(BT87>BT97,BT87-(ABS(BT97-BT87))/10*2,BT87+ABS(BT97-BT87)/10*2) -> 2.84 | BU89: 2.816 | BV89: 2.792 | BW89: 2.768 | BX89: 2.744 | BY89: =IF(BY87>BY97,BY87-(ABS(BY97-BY87))/10*2,BY87+ABS(BY97-BY87)/10*2) -> 2.72 | BZ89: 2.696 | CA89: 2.672 | CB89: 2.648 | CC89: 2.624 | CD89: 2.6
A90: 13 | B90: =VLOOKUP(F55,Berechnung!$G$9:$H$62,2,FALSE)&"34" -> 134 | C90: =IF(Berechnung!$E$6=Berechnung!$E$9,Berechnung!$F$7*HLOOKUP(Berechnung!$N$6,MatrixLuft!$F$3:$AO$1114,FIXED(ROW(A90)-2,0),FALSE),"0") -> 8.975 | D90: =IF(Berechnung!$E$6=Berechnung!$E$9,Berechnung!$F$7*HLOOKUP($D$3,MatrixLuft!$F$3:$AO$1114,FIXED(ROW(A90)-2,0),FALSE),"0") -> 8.975 | E90: =IF(Berechnung!$E$6=Berechnung!$E$9,Berechnung!$F$7*HLOOKUP($E$3,MatrixLuft!$F$3:$AO$1114,FIXED(ROW(A90)-2,0),FALSE),"0") -> 7.65 | F90: =IF(F87>F92,F87-(ABS(F92-F87))/5*3,F87+ABS(F92-F87)/5*3) -> 9.4375 | G90: 9.345 | H90: 9.2525 | I90: 9.16 | J90: 9.0675 | K90: =IF(K87>K92,K87-(ABS(K92-K87))/5*3,K87+ABS(K92-K87)/5*3) -> 8.975 | L90: 8.8825 | M90: 8.79 | N90: 8.6975 | O90: 8.605 | P90: =IF(P87>P92,P87-(ABS(P92-P87))/5*3,P87+ABS(P92-P87)/5*3) -> 8.5125 | Q90: 8.42 | R90: 8.3275 | S90: 8.235 | T90: 8.1425 | U90: =IF(U87>U92,U87-(ABS(U92-U87))/5*3,U87+ABS(U92-U87)/5*3) -> 8.05 | V90: 8.01 | W90: 7.97 | X90: 7.93 | Y90: 7.89 | Z90: =IF(Z87>Z92,Z87-(ABS(Z92-Z87))/5*3,Z87+ABS(Z92-Z87)/5*3) -> 7.85 | AA90: 7.81 | AB90: 7.77 | AC90: 7.73 | AD90: 7.69 | AE90: =IF(AE87>AE92,AE87-(ABS(AE92-AE87))/5*3,AE87+ABS(AE92-AE87)/5*3) -> 7.65 | AQ90: 13 | AR90: =IF(Berechnung!$E$6=Berechnung!$E$9,HLOOKUP(Berechnung!$N$6,MatrixLuft!$AU$3:$CD$1114,FIXED(ROW(AQ90)-2,0),FALSE),"0") -> 4.35 | AS90: =IF(Berechnung!$E$6=Berechnung!$E$9,HLOOKUP($D$3,MatrixLuft!$AU$3:$CD$1114,FIXED(ROW(AQ90)-2,0),FALSE),"0") -> 4.35 | AT90: =IF(Berechnung!$E$6=Berechnung!$E$9,HLOOKUP($E$3,MatrixLuft!$AU$3:$CD$1114,FIXED(ROW(AQ90)-2,0),FALSE),"0") -> 2.86 | AU90: 4.805 | AV90: 4.714 | AW90: 4.623 | AX90: 4.532 | AY90: 4.441 | AZ90: =IF(AZ87>AZ97,AZ87-(ABS(AZ97-AZ87))/10*3,AZ87+ABS(AZ97-AZ87)/10*3) -> 4.35 | BA90: 4.259 | BB90: 4.168 | BC90: 4.077 | BD90: 3.986 | BE90: 3.895 | BF90: 3.804 | BG90: 3.713 | BH90: 3.622 | BI90: 3.531 | BJ90: =IF(BJ87>BJ97,BJ87-(ABS(BJ97-BJ87))/10*3,BJ87+ABS(BJ97-BJ87)/10*3) -> 3.44 | BK90: 3.382 | BL90: 3.324 | BM90: 3.266 | BN90: 3.208 | BO90: 3.15 | BP90: 3.092 | BQ90: 3.034 | BR90: 2.976 | BS90: 2.918 | BT90: =IF(BT87>BT97,BT87-(ABS(BT97-BT87))/10*3,BT87+ABS(BT97-BT87)/10*3) -> 2.86 | BU90: 2.834 | BV90: 2.808 | BW90: 2.782 | BX90: 2.756 | BY90: =IF(BY87>BY97,BY87-(ABS(BY97-BY87))/10*3,BY87+ABS(BY97-BY87)/10*3) -> 2.73 | BZ90: 2.704 | CA90: 2.678 | CB90: 2.652 | CC90: 2.626 | CD90: 2.6
A91: 14 | B91: =VLOOKUP(F55,Berechnung!$G$9:$H$62,2,FALSE)&"35" -> 135 | C91: =IF(Berechnung!$E$6=Berechnung!$E$9,Berechnung!$F$7*HLOOKUP(Berechnung!$N$6,MatrixLuft!$F$3:$AO$1114,FIXED(ROW(A91)-2,0),FALSE),"0") -> 9.2 | D91: =IF(Berechnung!$E$6=Berechnung!$E$9,Berechnung!$F$7*HLOOKUP($D$3,MatrixLuft!$F$3:$AO$1114,FIXED(ROW(A91)-2,0),FALSE),"0") -> 9.2 | E91: =IF(Berechnung!$E$6=Berechnung!$E$9,Berechnung!$F$7*HLOOKUP($E$3,MatrixLuft!$F$3:$AO$1114,FIXED(ROW(A91)-2,0),FALSE),"0") -> 7.8 | F91: =IF(F87>F92,F87-(ABS(F92-F87))/5*4,F87+ABS(F92-F87)/5*4) -> 9.7 | G91: 9.6 | H91: 9.5 | I91: 9.4 | J91: 9.3 | K91: =IF(K87>K92,K87-(ABS(K92-K87))/5*4,K87+ABS(K92-K87)/5*4) -> 9.2 | L91: 9.1 | M91: 9 | N91: 8.9 | O91: 8.8 | P91: =IF(P87>P92,P87-(ABS(P92-P87))/5*4,P87+ABS(P92-P87)/5*4) -> 8.7 | Q91: 8.6 | R91: 8.5 | S91: 8.4 | T91: 8.3 | U91: =IF(U87>U92,U87-(ABS(U92-U87))/5*4,U87+ABS(U92-U87)/5*4) -> 8.2 | V91: 8.16 | W91: 8.12 | X91: 8.08 | Y91: 8.04 | Z91: =IF(Z87>Z92,Z87-(ABS(Z92-Z87))/5*4,Z87+ABS(Z92-Z87)/5*4) -> 8 | AA91: 7.96 | AB91: 7.92 | AC91: 7.88 | AD91: 7.84 | AE91: =IF(AE87>AE92,AE87-(ABS(AE92-AE87))/5*4,AE87+ABS(AE92-AE87)/5*4) -> 7.8 | AQ91: 14 | AR91: =IF(Berechnung!$E$6=Berechnung!$E$9,HLOOKUP(Berechnung!$N$6,MatrixLuft!$AU$3:$CD$1114,FIXED(ROW(AQ91)-2,0),FALSE),"0") -> 4.4 | AS91: =IF(Berechnung!$E$6=Berechnung!$E$9,HLOOKUP($D$3,MatrixLuft!$AU$3:$CD$1114,FIXED(ROW(AQ91)-2,0),FALSE),"0") -> 4.4 | AT91: =IF(Berechnung!$E$6=Berechnung!$E$9,HLOOKUP($E$3,MatrixLuft!$AU$3:$CD$1114,FIXED(ROW(AQ91)-2,0),FALSE),"0") -> 2.88 | AU91: 4.84 | AV91: 4.752 | AW91: 4.664 | AX91: 4.576 | AY91: 4.488 | AZ91: =IF(AZ87>AZ97,AZ87-(ABS(AZ97-AZ87))/10*4,AZ87+ABS(AZ97-AZ87)/10*4) -> 4.4 | BA91: 4.312 | BB91: 4.224 | BC91: 4.136 | BD91: 4.048 | BE91: 3.96 | BF91: 3.872 | BG91: 3.784 | BH91: 3.696 | BI91: 3.608 | BJ91: =IF(BJ87>BJ97,BJ87-(ABS(BJ97-BJ87))/10*4,BJ87+ABS(BJ97-BJ87)/10*4) -> 3.52 | BK91: 3.456 | BL91: 3.392 | BM91: 3.328 | BN91: 3.264 | BO91: 3.2 | BP91: 3.136 | BQ91: 3.072 | BR91: 3.008 | BS91: 2.944 | BT91: =IF(BT87>BT97,BT87-(ABS(BT97-BT87))/10*4,BT87+ABS(BT97-BT87)/10*4) -> 2.88 | BU91: 2.852 | BV91: 2.824 | BW91: 2.796 | BX91: 2.768 | BY91: =IF(BY87>BY97,BY87-(ABS(BY97-BY87))/10*4,BY87+ABS(BY97-BY87)/10*4) -> 2.74 | BZ91: 2.712 | CA91: 2.684 | CB91: 2.656 | CC91: 2.628 | CD91: 2.6
A92: 15 | B92: =VLOOKUP(F55,Berechnung!$G$9:$H$62,2,FALSE)&"36" -> 136 | C92: =IF(Berechnung!$E$6=Berechnung!$E$9,Berechnung!$F$7*HLOOKUP(Berechnung!$N$6,MatrixLuft!$F$3:$AO$1114,FIXED(ROW(A92)-2,0),FALSE),"0") -> 9.425 | D92: =IF(Berechnung!$E$6=Berechnung!$E$9,Berechnung!$F$7*HLOOKUP($D$3,MatrixLuft!$F$3:$AO$1114,FIXED(ROW(A92)-2,0),FALSE),"0") -> 9.425 | E92: =IF(Berechnung!$E$6=Berechnung!$E$9,Berechnung!$F$7*HLOOKUP($E$3,MatrixLuft!$F$3:$AO$1114,FIXED(ROW(A92)-2,0),FALSE),"0") -> 7.95 | F92: =K92+(K92-P92) -> 9.9625 | G92: 9.855 | H92: 9.7475 | I92: 9.64 | J92: 9.5325 | K92: 9.425 | L92: 9.3175 | M92: 9.21 | N92: 9.1025 | O92: 8.995 | P92: =AVERAGE(K92,U92) -> 8.8875 | Q92: 8.78 | R92: 8.6725 | S92: 8.565 | T92: 8.4575 | U92: 8.35 | V92: 8.31 | W92: 8.27 | X92: 8.23 | Y92: 8.19 | Z92: =AVERAGE(U92,AE92) -> 8.15 | AA92: 8.11 | AB92: 8.07 | AC92: 8.03 | AD92: 7.99 | AE92: 7.95 | AQ92: 15 | AR92: =IF(Berechnung!$E$6=Berechnung!$E$9,HLOOKUP(Berechnung!$N$6,MatrixLuft!$AU$3:$CD$1114,FIXED(ROW(AQ92)-2,0),FALSE),"0") -> 4.45 | AS92: =IF(Berechnung!$E$6=Berechnung!$E$9,HLOOKUP($D$3,MatrixLuft!$AU$3:$CD$1114,FIXED(ROW(AQ92)-2,0),FALSE),"0") -> 4.45 | AT92: =IF(Berechnung!$E$6=Berechnung!$E$9,HLOOKUP($E$3,MatrixLuft!$AU$3:$CD$1114,FIXED(ROW(AQ92)-2,0),FALSE),"0") -> 2.9 | AU92: 4.875 | AV92: 4.79 | AW92: 4.705 | AX92: 4.62 | AY92: 4.535 | AZ92: =IF(AZ87>AZ97,AZ87-(ABS(AZ97-AZ87))/10*5,AZ87+ABS(AZ97-AZ87)/10*5) -> 4.45 | BA92: 4.365 | BB92: 4.28 | BC92: 4.195 | BD92: 4.11 | BE92: 4.025 | BF92: 3.94 | BG92: 3.855 | BH92: 3.77 | BI92: 3.685 | BJ92: =IF(BJ87>BJ97,BJ87-(ABS(BJ97-BJ87))/10*5,BJ87+ABS(BJ97-BJ87)/10*5) -> 3.6 | BK92: 3.53 | BL92: 3.46 | BM92: 3.39 | BN92: 3.32 | BO92: 3.25 | BP92: 3.18 | BQ92: 3.11 | BR92: 3.04 | BS92: 2.97 | BT92: =IF(BT87>BT97,BT87-(ABS(BT97-BT87))/10*5,BT87+ABS(BT97-BT87)/10*5) -> 2.9 | BU92: 2.87 | BV92: 2.84 | BW92: 2.81 | BX92: 2.78 | BY92: =IF(BY87>BY97,BY87-(ABS(BY97-BY87))/10*5,BY87+ABS(BY97-BY87)/10*5) -> 2.75 | BZ92: 2.72 | CA92: 2.69 | CB92: 2.66 | CC92: 2.63 | CD92: 2.6
A93: 16 | B93: =VLOOKUP(F55,Berechnung!$G$9:$H$62,2,FALSE)&"37" -> 137 | C93: =IF(Berechnung!$E$6=Berechnung!$E$9,Berechnung!$F$7*HLOOKUP(Berechnung!$N$6,MatrixLuft!$F$3:$AO$1114,FIXED(ROW(A93)-2,0),FALSE),"0") -> 9.65 | D93: =IF(Berechnung!$E$6=Berechnung!$E$9,Berechnung!$F$7*HLOOKUP($D$3,MatrixLuft!$F$3:$AO$1114,FIXED(ROW(A93)-2,0),FALSE),"0") -> 9.65 | E93: =IF(Berechnung!$E$6=Berechnung!$E$9,Berechnung!$F$7*HLOOKUP($E$3,MatrixLuft!$F$3:$AO$1114,FIXED(ROW(A93)-2,0),FALSE),"0") -> 8.13 | F93: =IF(F92>F97,F92-(ABS(F97-F92))/5*1,F92+ABS(F97-F92)/5*1) -> 10.21 | G93: 10.098 | H93: 9.986 | I93: 9.874 | J93: 9.762 | K93: =IF(K92>K97,K92-(ABS(K97-K92))/5*1,K92+ABS(K97-K92)/5*1) -> 9.65 | L93: 9.538 | M93: 9.426 | N93: 9.314 | O93: 9.202 | P93: =IF(P92>P97,P92-(ABS(P97-P92))/5*1,P92+ABS(P97-P92)/5*1) -> 9.09 | Q93: 8.978 | R93: 8.866 | S93: 8.754 | T93: 8.642 | U93: =IF(U92>U97,U92-(ABS(U97-U92))/5*1,U92+ABS(U97-U92)/5*1) -> 8.53 | V93: 8.49 | W93: 8.45 | X93: 8.41 | Y93: 8.37 | Z93: =IF(Z92>Z97,Z92-(ABS(Z97-Z92))/5*1,Z92+ABS(Z97-Z92)/5*1) -> 8.33 | AA93: 8.29 | AB93: 8.25 | AC93: 8.21 | AD93: 8.17 | AE93: =IF(AE92>AE97,AE92-(ABS(AE97-AE92))/5*1,AE92+ABS(AE97-AE92)/5*1) -> 8.13 | AQ93: 16 | AR93: =IF(Berechnung!$E$6=Berechnung!$E$9,HLOOKUP(Berechnung!$N$6,MatrixLuft!$AU$3:$CD$1114,FIXED(ROW(AQ93)-2,0),FALSE),"0") -> 4.5 | AS93: =IF(Berechnung!$E$6=Berechnung!$E$9,HLOOKUP($D$3,MatrixLuft!$AU$3:$CD$1114,FIXED(ROW(AQ93)-2,0),FALSE),"0") -> 4.5 | AT93: =IF(Berechnung!$E$6=Berechnung!$E$9,HLOOKUP($E$3,MatrixLuft!$AU$3:$CD$1114,FIXED(ROW(AQ93)-2,0),FALSE),"0") -> 2.92 | AU93: 4.91 | AV93: 4.828 | AW93: 4.746 | AX93: 4.664 | AY93: 4.582 | AZ93: =IF(AZ87>AZ97,AZ87-(ABS(AZ97-AZ87))/10*6,AZ87+ABS(AZ97-AZ87)/10*6) -> 4.5 | BA93: 4.418 | BB93: 4.336 | BC93: 4.254 | BD93: 4.172 | BE93: 4.09 | BF93: 4.008 | BG93: 3.926 | BH93: 3.844 | BI93: 3.762 | BJ93: =IF(BJ87>BJ97,BJ87-(ABS(BJ97-BJ87))/10*6,BJ87+ABS(BJ97-BJ87)/10*6) -> 3.68 | BK93: 3.604 | BL93: 3.528 | BM93: 3.452 | BN93: 3.376 | BO93: 3.3 | BP93: 3.224 | BQ93: 3.148 | BR93: 3.072 | BS93: 2.996 | BT93: =IF(BT87>BT97,BT87-(ABS(BT97-BT87))/10*6,BT87+ABS(BT97-BT87)/10*6) -> 2.92 | BU93: 2.888 | BV93: 2.856 | BW93: 2.824 | BX93: 2.792 | BY93: =IF(BY87>BY97,BY87-(ABS(BY97-BY87))/10*6,BY87+ABS(BY97-BY87)/10*6) -> 2.76 | BZ93: 2.728 | CA93: 2.696 | CB93: 2.664 | CC93: 2.632 | CD93: 2.6
A94: 17 | B94: =VLOOKUP(F55,Berechnung!$G$9:$H$62,2,FALSE)&"38" -> 138 | C94: =IF(Berechnung!$E$6=Berechnung!$E$9,Berechnung!$F$7*HLOOKUP(Berechnung!$N$6,MatrixLuft!$F$3:$AO$1114,FIXED(ROW(A94)-2,0),FALSE),"0") -> 9.875 | D94: =IF(Berechnung!$E$6=Berechnung!$E$9,Berechnung!$F$7*HLOOKUP($D$3,MatrixLuft!$F$3:$AO$1114,FIXED(ROW(A94)-2,0),FALSE),"0") -> 9.875 | E94: =IF(Berechnung!$E$6=Berechnung!$E$9,Berechnung!$F$7*HLOOKUP($E$3,MatrixLuft!$F$3:$AO$1114,FIXED(ROW(A94)-2,0),FALSE),"0") -> 8.31 | F94: =IF(F92>F97,F92-(ABS(F97-F92))/5*2,F92+ABS(F97-F92)/5*2) -> 10.4575 | G94: 10.341 | H94: 10.2245 | I94: 10.108 | J94: 9.9915 | K94: =IF(K92>K97,K92-(ABS(K97-K92))/5*2,K92+ABS(K97-K92)/5*2) -> 9.875 | L94: 9.7585 | M94: 9.642 | N94: 9.5255 | O94: 9.409 | P94: =IF(P92>P97,P92-(ABS(P97-P92))/5*2,P92+ABS(P97-P92)/5*2) -> 9.2925 | Q94: 9.176 | R94: 9.0595 | S94: 8.943 | T94: 8.8265 | U94: =IF(U92>U97,U92-(ABS(U97-U92))/5*2,U92+ABS(U97-U92)/5*2) -> 8.71 | V94: 8.67 | W94: 8.63 | X94: 8.59 | Y94: 8.55 | Z94: =IF(Z92>Z97,Z92-(ABS(Z97-Z92))/5*2,Z92+ABS(Z97-Z92)/5*2) -> 8.51 | AA94: 8.47 | AB94: 8.43 | AC94: 8.39 | AD94: 8.35 | AE94: =IF(AE92>AE97,AE92-(ABS(AE97-AE92))/5*2,AE92+ABS(AE97-AE92)/5*2) -> 8.31 | AQ94: 17 | AR94: =IF(Berechnung!$E$6=Berechnung!$E$9,HLOOKUP(Berechnung!$N$6,MatrixLuft!$AU$3:$CD$1114,FIXED(ROW(AQ94)-2,0),FALSE),"0") -> 4.55 | AS94: =IF(Berechnung!$E$6=Berechnung!$E$9,HLOOKUP($D$3,MatrixLuft!$AU$3:$CD$1114,FIXED(ROW(AQ94)-2,0),FALSE),"0") -> 4.55 | AT94: =IF(Berechnung!$E$6=Berechnung!$E$9,HLOOKUP($E$3,MatrixLuft!$AU$3:$CD$1114,FIXED(ROW(AQ94)-2,0),FALSE),"0") -> 2.94 | AU94: 4.945 | AV94: 4.866 | AW94: 4.787 | AX94: 4.708 | AY94: 4.629 | AZ94: =IF(AZ87>AZ97,AZ87-(ABS(AZ97-AZ87))/10*7,AZ87+ABS(AZ97-AZ87)/10*7) -> 4.55 | BA94: 4.471 | BB94: 4.392 | BC94: 4.313 | BD94: 4.234 | BE94: 4.155 | BF94: 4.076 | BG94: 3.997 | BH94: 3.918 | BI94: 3.839 | BJ94: =IF(BJ87>BJ97,BJ87-(ABS(BJ97-BJ87))/10*7,BJ87+ABS(BJ97-BJ87)/10*7) -> 3.76 | BK94: 3.678 | BL94: 3.596 | BM94: 3.514 | BN94: 3.432 | BO94: 3.35 | BP94: 3.268 | BQ94: 3.186 | BR94: 3.104 | BS94: 3.022 | BT94: =IF(BT87>BT97,BT87-(ABS(BT97-BT87))/10*7,BT87+ABS(BT97-BT87)/10*7) -> 2.94 | BU94: 2.906 | BV94: 2.872 | BW94: 2.838 | BX94: 2.804 | BY94: =IF(BY87>BY97,BY87-(ABS(BY97-BY87))/10*7,BY87+ABS(BY97-BY87)/10*7) -> 2.77 | BZ94: 2.736 | CA94: 2.702 | CB94: 2.668 | CC94: 2.634 | CD94: 2.6
A95: 18 | B95: =VLOOKUP(F55,Berechnung!$G$9:$H$62,2,FALSE)&"39" -> 139 | C95: =IF(Berechnung!$E$6=Berechnung!$E$9,Berechnung!$F$7*HLOOKUP(Berechnung!$N$6,MatrixLuft!$F$3:$AO$1114,FIXED(ROW(A95)-2,0),FALSE),"0") -> 10.1 | D95: =IF(Berechnung!$E$6=Berechnung!$E$9,Berechnung!$F$7*HLOOKUP($D$3,MatrixLuft!$F$3:$AO$1114,FIXED(ROW(A95)-2,0),FALSE),"0") -> 10.1 | E95: =IF(Berechnung!$E$6=Berechnung!$E$9,Berechnung!$F$7*HLOOKUP($E$3,MatrixLuft!$F$3:$AO$1114,FIXED(ROW(A95)-2,0),FALSE),"0") -> 8.49 | F95: =IF(F92>F97,F92-(ABS(F97-F92))/5*3,F92+ABS(F97-F92)/5*3) -> 10.705 | G95: 10.584 | H95: 10.463 | I95: 10.342 | J95: 10.221 | K95: =IF(K92>K97,K92-(ABS(K97-K92))/5*3,K92+ABS(K97-K92)/5*3) -> 10.1 | L95: 9.979 | M95: 9.858 | N95: 9.737 | O95: 9.616 | P95: =IF(P92>P97,P92-(ABS(P97-P92))/5*3,P92+ABS(P97-P92)/5*3) -> 9.495 | Q95: 9.374 | R95: 9.253 | S95: 9.132 | T95: 9.011 | U95: =IF(U92>U97,U92-(ABS(U97-U92))/5*3,U92+ABS(U97-U92)/5*3) -> 8.89 | V95: 8.85 | W95: 8.81 | X95: 8.77 | Y95: 8.73 | Z95: =IF(Z92>Z97,Z92-(ABS(Z97-Z92))/5*3,Z92+ABS(Z97-Z92)/5*3) -> 8.69 | AA95: 8.65 | AB95: 8.61 | AC95: 8.57 | AD95: 8.53 | AE95: =IF(AE92>AE97,AE92-(ABS(AE97-AE92))/5*3,AE92+ABS(AE97-AE92)/5*3) -> 8.49 | AQ95: 18 | AR95: =IF(Berechnung!$E$6=Berechnung!$E$9,HLOOKUP(Berechnung!$N$6,MatrixLuft!$AU$3:$CD$1114,FIXED(ROW(AQ95)-2,0),FALSE),"0") -> 4.6 | AS95: =IF(Berechnung!$E$6=Berechnung!$E$9,HLOOKUP($D$3,MatrixLuft!$AU$3:$CD$1114,FIXED(ROW(AQ95)-2,0),FALSE),"0") -> 4.6 | AT95: =IF(Berechnung!$E$6=Berechnung!$E$9,HLOOKUP($E$3,MatrixLuft!$AU$3:$CD$1114,FIXED(ROW(AQ95)-2,0),FALSE),"0") -> 2.96 | AU95: 4.98 | AV95: 4.904 | AW95: 4.828 | AX95: 4.752 | AY95: 4.676 | AZ95: =IF(AZ87>AZ97,AZ87-(ABS(AZ97-AZ87))/10*8,AZ87+ABS(AZ97-AZ87)/10*8) -> 4.6 | BA95: 4.524 | BB95: 4.448 | BC95: 4.372 | BD95: 4.296 | BE95: 4.22 | BF95: 4.144 | BG95: 4.068 | BH95: 3.992 | BI95: 3.916 | BJ95: =IF(BJ87>BJ97,BJ87-(ABS(BJ97-BJ87))/10*8,BJ87+ABS(BJ97-BJ87)/10*8) -> 3.84 | BK95: 3.752 | BL95: 3.664 | BM95: 3.576 | BN95: 3.488 | BO95: 3.4 | BP95: 3.312 | BQ95: 3.224 | BR95: 3.136 | BS95: 3.048 | BT95: =IF(BT87>BT97,BT87-(ABS(BT97-BT87))/10*8,BT87+ABS(BT97-BT87)/10*8) -> 2.96 | BU95: 2.924 | BV95: 2.888 | BW95: 2.852 | BX95: 2.816 | BY95: =IF(BY87>BY97,BY87-(ABS(BY97-BY87))/10*8,BY87+ABS(BY97-BY87)/10*8) -> 2.78 | BZ95: 2.744 | CA95: 2.708 | CB95: 2.672 | CC95: 2.636 | CD95: 2.6
A96: 19 | B96: =VLOOKUP(F55,Berechnung!$G$9:$H$62,2,FALSE)&"40" -> 140 | C96: =IF(Berechnung!$E$6=Berechnung!$E$9,Berechnung!$F$7*HLOOKUP(Berechnung!$N$6,MatrixLuft!$F$3:$AO$1114,FIXED(ROW(A96)-2,0),FALSE),"0") -> 10.325 | D96: =IF(Berechnung!$E$6=Berechnung!$E$9,Berechnung!$F$7*HLOOKUP($D$3,MatrixLuft!$F$3:$AO$1114,FIXED(ROW(A96)-2,0),FALSE),"0") -> 10.325 | E96: =IF(Berechnung!$E$6=Berechnung!$E$9,Berechnung!$F$7*HLOOKUP($E$3,MatrixLuft!$F$3:$AO$1114,FIXED(ROW(A96)-2,0),FALSE),"0") -> 8.67 | F96: =IF(F92>F97,F92-(ABS(F97-F92))/5*4,F92+ABS(F97-F92)/5*4) -> 10.9525 | G96: 10.827 | H96: 10.7015 | I96: 10.576 | J96: 10.4505 | K96: =IF(K92>K97,K92-(ABS(K97-K92))/5*4,K92+ABS(K97-K92)/5*4) -> 10.325 | L96: 10.1995 | M96: 10.074 | N96: 9.9485 | O96: 9.823 | P96: =IF(P92>P97,P92-(ABS(P97-P92))/5*4,P92+ABS(P97-P92)/5*4) -> 9.6975 | Q96: 9.572 | R96: 9.4465 | S96: 9.321 | T96: 9.1955 | U96: =IF(U92>U97,U92-(ABS(U97-U92))/5*4,U92+ABS(U97-U92)/5*4) -> 9.07 | V96: 9.03 | W96: 8.99 | X96: 8.95 | Y96: 8.91 | Z96: =IF(Z92>Z97,Z92-(ABS(Z97-Z92))/5*4,Z92+ABS(Z97-Z92)/5*4) -> 8.87 | AA96: 8.83 | AB96: 8.79 | AC96: 8.75 | AD96: 8.71 | AE96: =IF(AE92>AE97,AE92-(ABS(AE97-AE92))/5*4,AE92+ABS(AE97-AE92)/5*4) -> 8.67 | AQ96: 19 | AR96: =IF(Berechnung!$E$6=Berechnung!$E$9,HLOOKUP(Berechnung!$N$6,MatrixLuft!$AU$3:$CD$1114,FIXED(ROW(AQ96)-2,0),FALSE),"0") -> 4.65 | AS96: =IF(Berechnung!$E$6=Berechnung!$E$9,HLOOKUP($D$3,MatrixLuft!$AU$3:$CD$1114,FIXED(ROW(AQ96)-2,0),FALSE),"0") -> 4.65 | AT96: =IF(Berechnung!$E$6=Berechnung!$E$9,HLOOKUP($E$3,MatrixLuft!$AU$3:$CD$1114,FIXED(ROW(AQ96)-2,0),FALSE),"0") -> 2.98 | AU96: 5.015 | AV96: 4.942 | AW96: 4.869 | AX96: 4.796 | AY96: 4.723 | AZ96: =IF(AZ87>AZ97,AZ87-(ABS(AZ97-AZ87))/10*9,AZ87+ABS(AZ97-AZ87)/10*9) -> 4.65 | BA96: 4.577 | BB96: 4.504 | BC96: 4.431 | BD96: 4.358 | BE96: 4.285 | BF96: 4.212 | BG96: 4.139 | BH96: 4.066 | BI96: 3.993 | BJ96: =IF(BJ87>BJ97,BJ87-(ABS(BJ97-BJ87))/10*9,BJ87+ABS(BJ97-BJ87)/10*9) -> 3.92 | BK96: 3.826 | BL96: 3.732 | BM96: 3.638 | BN96: 3.544 | BO96: 3.45 | BP96: 3.356 | BQ96: 3.262 | BR96: 3.168 | BS96: 3.074 | BT96: =IF(BT87>BT97,BT87-(ABS(BT97-BT87))/10*9,BT87+ABS(BT97-BT87)/10*9) -> 2.98 | BU96: 2.942 | BV96: 2.904 | BW96: 2.866 | BX96: 2.828 | BY96: =IF(BY87>BY97,BY87-(ABS(BY97-BY87))/10*9,BY87+ABS(BY97-BY87)/10*9) -> 2.79 | BZ96: 2.752 | CA96: 2.714 | CB96: 2.676 | CC96: 2.638 | CD96: 2.6
A97: 20 | B97: =VLOOKUP(F55,Berechnung!$G$9:$H$62,2,FALSE)&"41" -> 141 | C97: =IF(Berechnung!$E$6=Berechnung!$E$9,Berechnung!$F$7*HLOOKUP(Berechnung!$N$6,MatrixLuft!$F$3:$AO$1114,FIXED(ROW(A97)-2,0),FALSE),"0") -> 10.55 | D97: =IF(Berechnung!$E$6=Berechnung!$E$9,Berechnung!$F$7*HLOOKUP($D$3,MatrixLuft!$F$3:$AO$1114,FIXED(ROW(A97)-2,0),FALSE),"0") -> 10.55 | E97: =IF(Berechnung!$E$6=Berechnung!$E$9,Berechnung!$F$7*HLOOKUP($E$3,MatrixLuft!$F$3:$AO$1114,FIXED(ROW(A97)-2,0),FALSE),"0") -> 8.85 | F97: =K97+(K97-P97) -> 11.2 | G97: 11.07 | H97: 10.94 | I97: 10.81 | J97: 10.68 | K97: 10.55 | L97: 10.42 | M97: 10.29 | N97: 10.16 | O97: 10.03 | P97: =AVERAGE(K97,U97) -> 9.9 | Q97: 9.77 | R97: 9.64 | S97: 9.51 | T97: 9.38 | U97: 9.25 | V97: 9.21 | W97: 9.17 | X97: 9.13 | Y97: 9.09 | Z97: =AVERAGE(U97,AE97) -> 9.05 | AA97: 9.01 | AB97: 8.97 | AC97: 8.93 | AD97: 8.89 | AE97: 8.85 | AQ97: 20 | AR97: =IF(Berechnung!$E$6=Berechnung!$E$9,HLOOKUP(Berechnung!$N$6,MatrixLuft!$AU$3:$CD$1114,FIXED(ROW(AQ97)-2,0),FALSE),"0") -> 4.7 | AS97: =IF(Berechnung!$E$6=Berechnung!$E$9,HLOOKUP($D$3,MatrixLuft!$AU$3:$CD$1114,FIXED(ROW(AQ97)-2,0),FALSE),"0") -> 4.7 | AT97: =IF(Berechnung!$E$6=Berechnung!$E$9,HLOOKUP($E$3,MatrixLuft!$AU$3:$CD$1114,FIXED(ROW(AQ97)-2,0),FALSE),"0") -> 3 | AU97: 5.05 | AV97: 4.98 | AW97: 4.91 | AX97: 4.84 | AY97: 4.77 | AZ97: 4.7 | BA97: 4.63 | BB97: 4.56 | BC97: 4.49 | BD97: 4.42 | BE97: 4.35 | BF97: 4.28 | BG97: 4.21 | BH97: 4.14 | BI97: 4.07 | BJ97: 4 | BK97: 3.9 | BL97: 3.8 | BM97: 3.7 | BN97: 3.6 | BO97: 3.5 | BP97: 3.4 | BQ97: 3.3 | BR97: 3.2 | BS97: 3.1 | BT97: 3 | BU97: 2.96 | BV97: 2.92 | BW97: 2.88 | BX97: 2.84 | BY97: 2.8 | BZ97: 2.76 | CA97: 2.72 | CB97: 2.68 | CC97: 2.64 | CD97: 2.6
A98: 21 | B98: =VLOOKUP(F55,Berechnung!$G$9:$H$62,2,FALSE)&"42" -> 142 | C98: =IF(Berechnung!$E$6=Berechnung!$E$9,Berechnung!$F$7*HLOOKUP(Berechnung!$N$6,MatrixLuft!$F$3:$AO$1114,FIXED(ROW(A98)-2,0),FALSE),"0") -> 10.775 | D98: =IF(Berechnung!$E$6=Berechnung!$E$9,Berechnung!$F$7*HLOOKUP($D$3,MatrixLuft!$F$3:$AO$1114,FIXED(ROW(A98)-2,0),FALSE),"0") -> 10.775 | E98: =IF(Berechnung!$E$6=Berechnung!$E$9,Berechnung!$F$7*HLOOKUP($E$3,MatrixLuft!$F$3:$AO$1114,FIXED(ROW(A98)-2,0),FALSE),"0") -> 9.075 | F98: =IF(F97>F102,F97-(ABS(F102-F97))/5*1,F97+ABS(F102-F97)/5*1) -> 11.425 | G98: 11.295 | H98: 11.165 | I98: 11.035 | J98: 10.905 | K98: =IF(K97>K102,K97-(ABS(K102-K97))/5*1,K97+ABS(K102-K97)/5*1) -> 10.775 | L98: 10.645 | M98: 10.515 | N98: 10.385 | O98: 10.255 | P98: =IF(P97>P102,P97-(ABS(P102-P97))/5*1,P97+ABS(P102-P97)/5*1) -> 10.125 | Q98: 9.995 | R98: 9.865 | S98: 9.735 | T98: 9.605 | U98: =IF(U97>U102,U97-(ABS(U102-U97))/5*1,U97+ABS(U102-U97)/5*1) -> 9.475 | V98: 9.435 | W98: 9.395 | X98: 9.355 | Y98: 9.315 | Z98: =IF(Z97>Z102,Z97-(ABS(Z102-Z97))/5*1,Z97+ABS(Z102-Z97)/5*1) -> 9.275 | AA98: 9.235 | AB98: 9.195 | AC98: 9.155 | AD98: 9.115 | AE98: =IF(AE97>AE102,AE97-(ABS(AE102-AE97))/5*1,AE97+ABS(AE102-AE97)/5*1) -> 9.075 | AQ98: 21 | AR98: =IF(Berechnung!$E$6=Berechnung!$E$9,HLOOKUP(Berechnung!$N$6,MatrixLuft!$AU$3:$CD$1114,FIXED(ROW(AQ98)-2,0),FALSE),"0") -> 4.75 | AS98: =IF(Berechnung!$E$6=Berechnung!$E$9,HLOOKUP($D$3,MatrixLuft!$AU$3:$CD$1114,FIXED(ROW(AQ98)-2,0),FALSE),"0") -> 4.75 | AT98: =IF(Berechnung!$E$6=Berechnung!$E$9,HLOOKUP($E$3,MatrixLuft!$AU$3:$CD$1114,FIXED(ROW(AQ98)-2,0),FALSE),"0") -> 3.06 | AU98: 5.105 | AV98: 5.034 | AW98: 4.963 | AX98: 4.892 | AY98: 4.821 | AZ98: =IF(AZ97>AZ107,AZ97-(ABS(AZ107-AZ97))/10*1,AZ97+ABS(AZ107-AZ97)/10*1) -> 4.75 | BA98: 4.679 | BB98: 4.608 | BC98: 4.537 | BD98: 4.466 | BE98: 4.395 | BF98: 4.324 | BG98: 4.253 | BH98: 4.182 | BI98: 4.111 | BJ98: =IF(BJ97>BJ107,BJ97-(ABS(BJ107-BJ97))/10*1,BJ97+ABS(BJ107-BJ97)/10*1) -> 4.04 | BK98: 3.942 | BL98: 3.844 | BM98: 3.746 | BN98: 3.648 | BO98: 3.55 | BP98: 3.452 | BQ98: 3.354 | BR98: 3.256 | BS98: 3.158 | BT98: =IF(BT97>BT107,BT97-(ABS(BT107-BT97))/10*1,BT97+ABS(BT107-BT97)/10*1) -> 3.06 | BU98: 3.016 | BV98: 2.972 | BW98: 2.928 | BX98: 2.884 | BY98: =IF(BY97>BY107,BY97-(ABS(BY107-BY97))/10*1,BY97+ABS(BY107-BY97)/10*1) -> 2.84 | BZ98: 2.796 | CA98: 2.752 | CB98: 2.708 | CC98: 2.664 | CD98: 2.62
A99: 22 | B99: =VLOOKUP(F55,Berechnung!$G$9:$H$62,2,FALSE)&"43" -> 143 | C99: =IF(Berechnung!$E$6=Berechnung!$E$9,Berechnung!$F$7*HLOOKUP(Berechnung!$N$6,MatrixLuft!$F$3:$AO$1114,FIXED(ROW(A99)-2,0),FALSE),"0") -> 11 | D99: =IF(Berechnung!$E$6=Berechnung!$E$9,Berechnung!$F$7*HLOOKUP($D$3,MatrixLuft!$F$3:$AO$1114,FIXED(ROW(A99)-2,0),FALSE),"0") -> 11 | E99: =IF(Berechnung!$E$6=Berechnung!$E$9,Berechnung!$F$7*HLOOKUP($E$3,MatrixLuft!$F$3:$AO$1114,FIXED(ROW(A99)-2,0),FALSE),"0") -> 9.3 | F99: =IF(F97>F102,F97-(ABS(F102-F97))/5*2,F97+ABS(F102-F97)/5*2) -> 11.65 | G99: 11.52 | H99: 11.39 | I99: 11.26 | J99: 11.13 | K99: =IF(K97>K102,K97-(ABS(K102-K97))/5*2,K97+ABS(K102-K97)/5*2) -> 11 | L99: 10.87 | M99: 10.74 | N99: 10.61 | O99: 10.48 | P99: =IF(P97>P102,P97-(ABS(P102-P97))/5*2,P97+ABS(P102-P97)/5*2) -> 10.35 | Q99: 10.22 | R99: 10.09 | S99: 9.96 | T99: 9.83 | U99: =IF(U97>U102,U97-(ABS(U102-U97))/5*2,U97+ABS(U102-U97)/5*2) -> 9.7 | V99: 9.66 | W99: 9.62 | X99: 9.58 | Y99: 9.54 | Z99: =IF(Z97>Z102,Z97-(ABS(Z102-Z97))/5*2,Z97+ABS(Z102-Z97)/5*2) -> 9.5 | AA99: 9.46 | AB99: 9.42 | AC99: 9.38 | AD99: 9.34 | AE99: =IF(AE97>AE102,AE97-(ABS(AE102-AE97))/5*2,AE97+ABS(AE102-AE97)/5*2) -> 9.3 | AQ99: 22 | AR99: =IF(Berechnung!$E$6=Berechnung!$E$9,HLOOKUP(Berechnung!$N$6,MatrixLuft!$AU$3:$CD$1114,FIXED(ROW(AQ99)-2,0),FALSE),"0") -> 4.8 | AS99: =IF(Berechnung!$E$6=Berechnung!$E$9,HLOOKUP($D$3,MatrixLuft!$AU$3:$CD$1114,FIXED(ROW(AQ99)-2,0),FALSE),"0") -> 4.8 | AT99: =IF(Berechnung!$E$6=Berechnung!$E$9,HLOOKUP($E$3,MatrixLuft!$AU$3:$CD$1114,FIXED(ROW(AQ99)-2,0),FALSE),"0") -> 3.12 | AU99: 5.16 | AV99: 5.088 | AW99: 5.016 | AX99: 4.944 | AY99: 4.872 | AZ99: =IF(AZ97>AZ107,AZ97-(ABS(AZ107-AZ97))/10*2,AZ97+ABS(AZ107-AZ97)/10*2) -> 4.8 | BA99: 4.728 | BB99: 4.656 | BC99: 4.584 | BD99: 4.512 | BE99: 4.44 | BF99: 4.368 | BG99: 4.296 | BH99: 4.224 | BI99: 4.152 | BJ99: =IF(BJ97>BJ107,BJ97-(ABS(BJ107-BJ97))/10*2,BJ97+ABS(BJ107-BJ97)/10*2) -> 4.08 | BK99: 3.984 | BL99: 3.888 | BM99: 3.792 | BN99: 3.696 | BO99: 3.6 | BP99: 3.504 | BQ99: 3.408 | BR99: 3.312 | BS99: 3.216 | BT99: =IF(BT97>BT107,BT97-(ABS(BT107-BT97))/10*2,BT97+ABS(BT107-BT97)/10*2) -> 3.12 | BU99: 3.072 | BV99: 3.024 | BW99: 2.976 | BX99: 2.928 | BY99: =IF(BY97>BY107,BY97-(ABS(BY107-BY97))/10*2,BY97+ABS(BY107-BY97)/10*2) -> 2.88 | BZ99: 2.832 | CA99: 2.784 | CB99: 2.736 | CC99: 2.688 | CD99: 2.64
A100: 23 | B100: =VLOOKUP(F55,Berechnung!$G$9:$H$62,2,FALSE)&"44" -> 144 | C100: =IF(Berechnung!$E$6=Berechnung!$E$9,Berechnung!$F$7*HLOOKUP(Berechnung!$N$6,MatrixLuft!$F$3:$AO$1114,FIXED(ROW(A100)-2,0),FALSE),"0") -> 11.225 | D100: =IF(Berechnung!$E$6=Berechnung!$E$9,Berechnung!$F$7*HLOOKUP($D$3,MatrixLuft!$F$3:$AO$1114,FIXED(ROW(A100)-2,0),FALSE),"0") -> 11.225 | E100: =IF(Berechnung!$E$6=Berechnung!$E$9,Berechnung!$F$7*HLOOKUP($E$3,MatrixLuft!$F$3:$AO$1114,FIXED(ROW(A100)-2,0),FALSE),"0") -> 9.525 | F100: =IF(F97>F102,F97-(ABS(F102-F97))/5*3,F97+ABS(F102-F97)/5*3) -> 11.875 | G100: 11.745 | H100: 11.615 | I100: 11.485 | J100: 11.355 | K100: =IF(K97>K102,K97-(ABS(K102-K97))/5*3,K97+ABS(K102-K97)/5*3) -> 11.225 | L100: 11.095 | M100: 10.965 | N100: 10.835 | O100: 10.705 | P100: =IF(P97>P102,P97-(ABS(P102-P97))/5*3,P97+ABS(P102-P97)/5*3) -> 10.575 | Q100: 10.445 | R100: 10.315 | S100: 10.185 | T100: 10.055 | U100: =IF(U97>U102,U97-(ABS(U102-U97))/5*3,U97+ABS(U102-U97)/5*3) -> 9.925 | V100: 9.885 | W100: 9.845 | X100: 9.805 | Y100: 9.765 | Z100: =IF(Z97>Z102,Z97-(ABS(Z102-Z97))/5*3,Z97+ABS(Z102-Z97)/5*3) -> 9.725 | AA100: 9.685 | AB100: 9.645 | AC100: 9.605 | AD100: 9.565 | AE100: =IF(AE97>AE102,AE97-(ABS(AE102-AE97))/5*3,AE97+ABS(AE102-AE97)/5*3) -> 9.525 | AQ100: 23 | AR100: =IF(Berechnung!$E$6=Berechnung!$E$9,HLOOKUP(Berechnung!$N$6,MatrixLuft!$AU$3:$CD$1114,FIXED(ROW(AQ100)-2,0),FALSE),"0") -> 4.85 | AS100: =IF(Berechnung!$E$6=Berechnung!$E$9,HLOOKUP($D$3,MatrixLuft!$AU$3:$CD$1114,FIXED(ROW(AQ100)-2,0),FALSE),"0") -> 4.85 | AT100: =IF(Berechnung!$E$6=Berechnung!$E$9,HLOOKUP($E$3,MatrixLuft!$AU$3:$CD$1114,FIXED(ROW(AQ100)-2,0),FALSE),"0") -> 3.18 | AU100: 5.215 | AV100: 5.142 | AW100: 5.069 | AX100: 4.996 | AY100: 4.923 | AZ100: =IF(AZ97>AZ107,AZ97-(ABS(AZ107-AZ97))/10*3,AZ97+ABS(AZ107-AZ97)/10*3) -> 4.85 | BA100: 4.777 | BB100: 4.704 | BC100: 4.631 | BD100: 4.558 | BE100: 4.485 | BF100: 4.412 | BG100: 4.339 | BH100: 4.266 | BI100: 4.193 | BJ100: =IF(BJ97>BJ107,BJ97-(ABS(BJ107-BJ97))/10*3,BJ97+ABS(BJ107-BJ97)/10*3) -> 4.12 | BK100: 4.026 | BL100: 3.932 | BM100: 3.838 | BN100: 3.744 | BO100: 3.65 | BP100: 3.556 | BQ100: 3.462 | BR100: 3.368 | BS100: 3.274 | BT100: =IF(BT97>BT107,BT97-(ABS(BT107-BT97))/10*3,BT97+ABS(BT107-BT97)/10*3) -> 3.18 | BU100: 3.128 | BV100: 3.076 | BW100: 3.024 | BX100: 2.972 | BY100: =IF(BY97>BY107,BY97-(ABS(BY107-BY97))/10*3,BY97+ABS(BY107-BY97)/10*3) -> 2.92 | BZ100: 2.868 | CA100: 2.816 | CB100: 2.764 | CC100: 2.712 | CD100: 2.66
A101: 24 | B101: =VLOOKUP(F55,Berechnung!$G$9:$H$62,2,FALSE)&"45" -> 145 | C101: =IF(Berechnung!$E$6=Berechnung!$E$9,Berechnung!$F$7*HLOOKUP(Berechnung!$N$6,MatrixLuft!$F$3:$AO$1114,FIXED(ROW(A101)-2,0),FALSE),"0") -> 11.45 | D101: =IF(Berechnung!$E$6=Berechnung!$E$9,Berechnung!$F$7*HLOOKUP($D$3,MatrixLuft!$F$3:$AO$1114,FIXED(ROW(A101)-2,0),FALSE),"0") -> 11.45 | E101: =IF(Berechnung!$E$6=Berechnung!$E$9,Berechnung!$F$7*HLOOKUP($E$3,MatrixLuft!$F$3:$AO$1114,FIXED(ROW(A101)-2,0),FALSE),"0") -> 9.75 | F101: =IF(F97>F102,F97-(ABS(F102-F97))/5*4,F97+ABS(F102-F97)/5*4) -> 12.1 | G101: 11.97 | H101: 11.84 | I101: 11.71 | J101: 11.58 | K101: =IF(K97>K102,K97-(ABS(K102-K97))/5*4,K97+ABS(K102-K97)/5*4) -> 11.45 | L101: 11.32 | M101: 11.19 | N101: 11.06 | O101: 10.93 | P101: =IF(P97>P102,P97-(ABS(P102-P97))/5*4,P97+ABS(P102-P97)/5*4) -> 10.8 | Q101: 10.67 | R101: 10.54 | S101: 10.41 | T101: 10.28 | U101: =IF(U97>U102,U97-(ABS(U102-U97))/5*4,U97+ABS(U102-U97)/5*4) -> 10.15 | V101: 10.11 | W101: 10.07 | X101: 10.03 | Y101: 9.99 | Z101: =IF(Z97>Z102,Z97-(ABS(Z102-Z97))/5*4,Z97+ABS(Z102-Z97)/5*4) -> 9.95 | AA101: 9.91 | AB101: 9.87 | AC101: 9.83 | AD101: 9.79 | AE101: =IF(AE97>AE102,AE97-(ABS(AE102-AE97))/5*4,AE97+ABS(AE102-AE97)/5*4) -> 9.75 | AQ101: 24 | AR101: =IF(Berechnung!$E$6=Berechnung!$E$9,HLOOKUP(Berechnung!$N$6,MatrixLuft!$AU$3:$CD$1114,FIXED(ROW(AQ101)-2,0),FALSE),"0") -> 4.9 | AS101: =IF(Berechnung!$E$6=Berechnung!$E$9,HLOOKUP($D$3,MatrixLuft!$AU$3:$CD$1114,FIXED(ROW(AQ101)-2,0),FALSE),"0") -> 4.9 | AT101: =IF(Berechnung!$E$6=Berechnung!$E$9,HLOOKUP($E$3,MatrixLuft!$AU$3:$CD$1114,FIXED(ROW(AQ101)-2,0),FALSE),"0") -> 3.24 | AU101: 5.27 | AV101: 5.196 | AW101: 5.122 | AX101: 5.048 | AY101: 4.974 | AZ101: =IF(AZ97>AZ107,AZ97-(ABS(AZ107-AZ97))/10*4,AZ97+ABS(AZ107-AZ97)/10*4) -> 4.9 | BA101: 4.826 | BB101: 4.752 | BC101: 4.678 | BD101: 4.604 | BE101: 4.53 | BF101: 4.456 | BG101: 4.382 | BH101: 4.308 | BI101: 4.234 | BJ101: =IF(BJ97>BJ107,BJ97-(ABS(BJ107-BJ97))/10*4,BJ97+ABS(BJ107-BJ97)/10*4) -> 4.16 | BK101: 4.068 | BL101: 3.976 | BM101: 3.884 | BN101: 3.792 | BO101: 3.7 | BP101: 3.608 | BQ101: 3.516 | BR101: 3.424 | BS101: 3.332 | BT101: =IF(BT97>BT107,BT97-(ABS(BT107-BT97))/10*4,BT97+ABS(BT107-BT97)/10*4) -> 3.24 | BU101: 3.184 | BV101: 3.128 | BW101: 3.072 | BX101: 3.016 | BY101: =IF(BY97>BY107,BY97-(ABS(BY107-BY97))/10*4,BY97+ABS(BY107-BY97)/10*4) -> 2.96 | BZ101: 2.904 | CA101: 2.848 | CB101: 2.792 | CC101: 2.736 | CD101: 2.68
A102: 25 | B102: =VLOOKUP(F55,Berechnung!$G$9:$H$62,2,FALSE)&"46" -> 146 | C102: =IF(Berechnung!$E$6=Berechnung!$E$9,Berechnung!$F$7*HLOOKUP(Berechnung!$N$6,MatrixLuft!$F$3:$AO$1114,FIXED(ROW(A102)-2,0),FALSE),"0") -> 11.675 | D102: =IF(Berechnung!$E$6=Berechnung!$E$9,Berechnung!$F$7*HLOOKUP($D$3,MatrixLuft!$F$3:$AO$1114,FIXED(ROW(A102)-2,0),FALSE),"0") -> 11.675 | E102: =IF(Berechnung!$E$6=Berechnung!$E$9,Berechnung!$F$7*HLOOKUP($E$3,MatrixLuft!$F$3:$AO$1114,FIXED(ROW(A102)-2,0),FALSE),"0") -> 9.975 | F102: =K102+(K102-P102) -> 12.325 | G102: 12.195 | H102: 12.065 | I102: 11.935 | J102: 11.805 | K102: 11.675 | L102: 11.545 | M102: 11.415 | N102: 11.285 | O102: 11.155 | P102: =AVERAGE(K102,U102) -> 11.025 | Q102: 10.895 | R102: 10.765 | S102: 10.635 | T102: 10.505 | U102: 10.375 | V102: 10.335 | W102: 10.295 | X102: 10.255 | Y102: 10.215 | Z102: =AVERAGE(U102,AE102) -> 10.175 | AA102: 10.135 | AB102: 10.095 | AC102: 10.055 | AD102: 10.015 | AE102: 9.975 | AQ102: 25 | AR102: =IF(Berechnung!$E$6=Berechnung!$E$9,HLOOKUP(Berechnung!$N$6,MatrixLuft!$AU$3:$CD$1114,FIXED(ROW(AQ102)-2,0),FALSE),"0") -> 4.95 | AS102: =IF(Berechnung!$E$6=Berechnung!$E$9,HLOOKUP($D$3,MatrixLuft!$AU$3:$CD$1114,FIXED(ROW(AQ102)-2,0),FALSE),"0") -> 4.95 | AT102: =IF(Berechnung!$E$6=Berechnung!$E$9,HLOOKUP($E$3,MatrixLuft!$AU$3:$CD$1114,FIXED(ROW(AQ102)-2,0),FALSE),"0") -> 3.3 | AU102: 5.325 | AV102: 5.25 | AW102: 5.175 | AX102: 5.1 | AY102: 5.025 | AZ102: =IF(AZ97>AZ107,AZ97-(ABS(AZ107-AZ97))/10*5,AZ97+ABS(AZ107-AZ97)/10*5) -> 4.95 | BA102: 4.875 | BB102: 4.8 | BC102: 4.725 | BD102: 4.65 | BE102: 4.575 | BF102: 4.5 | BG102: 4.425 | BH102: 4.35 | BI102: 4.275 | BJ102: =IF(BJ97>BJ107,BJ97-(ABS(BJ107-BJ97))/10*5,BJ97+ABS(BJ107-BJ97)/10*5) -> 4.2 | BK102: 4.11 | BL102: 4.02 | BM102: 3.93 | BN102: 3.84 | BO102: 3.75 | BP102: 3.66 | BQ102: 3.57 | BR102: 3.48 | BS102: 3.39 | BT102: =IF(BT97>BT107,BT97-(ABS(BT107-BT97))/10*5,BT97+ABS(BT107-BT97)/10*5) -> 3.3 | BU102: 3.24 | BV102: 3.18 | BW102: 3.12 | BX102: 3.06 | BY102: =IF(BY97>BY107,BY97-(ABS(BY107-BY97))/10*5,BY97+ABS(BY107-BY97)/10*5) -> 3 | BZ102: 2.94 | CA102: 2.88 | CB102: 2.82 | CC102: 2.76 | CD102: 2.7
A103: 26 | B103: =VLOOKUP(F55,Berechnung!$G$9:$H$62,2,FALSE)&"47" -> 147 | C103: =IF(Berechnung!$E$6=Berechnung!$E$9,Berechnung!$F$7*HLOOKUP(Berechnung!$N$6,MatrixLuft!$F$3:$AO$1114,FIXED(ROW(A103)-2,0),FALSE),"0") -> 11.9 | D103: =IF(Berechnung!$E$6=Berechnung!$E$9,Berechnung!$F$7*HLOOKUP($D$3,MatrixLuft!$F$3:$AO$1114,FIXED(ROW(A103)-2,0),FALSE),"0") -> 11.9 | E103: =IF(Berechnung!$E$6=Berechnung!$E$9,Berechnung!$F$7*HLOOKUP($E$3,MatrixLuft!$F$3:$AO$1114,FIXED(ROW(A103)-2,0),FALSE),"0") -> 10.2 | F103: =IF(F102>F107,F102-(ABS(F107-F102))/5*1,F102+ABS(F107-F102)/5*1) -> 12.55 | G103: 12.42 | H103: 12.29 | I103: 12.16 | J103: 12.03 | K103: =IF(K102>K107,K102-(ABS(K107-K102))/5*1,K102+ABS(K107-K102)/5*1) -> 11.9 | L103: 11.77 | M103: 11.64 | N103: 11.51 | O103: 11.38 | P103: =IF(P102>P107,P102-(ABS(P107-P102))/5*1,P102+ABS(P107-P102)/5*1) -> 11.25 | Q103: 11.12 | R103: 10.99 | S103: 10.86 | T103: 10.73 | U103: =IF(U102>U107,U102-(ABS(U107-U102))/5*1,U102+ABS(U107-U102)/5*1) -> 10.6 | V103: 10.56 | W103: 10.52 | X103: 10.48 | Y103: 10.44 | Z103: =IF(Z102>Z107,Z102-(ABS(Z107-Z102))/5*1,Z102+ABS(Z107-Z102)/5*1) -> 10.4 | AA103: 10.36 | AB103: 10.32 | AC103: 10.28 | AD103: 10.24 | AE103: =IF(AE102>AE107,AE102-(ABS(AE107-AE102))/5*1,AE102+ABS(AE107-AE102)/5*1) -> 10.2 | AQ103: 26 | AR103: =IF(Berechnung!$E$6=Berechnung!$E$9,HLOOKUP(Berechnung!$N$6,MatrixLuft!$AU$3:$CD$1114,FIXED(ROW(AQ103)-2,0),FALSE),"0") -> 5 | AS103: =IF(Berechnung!$E$6=Berechnung!$E$9,HLOOKUP($D$3,MatrixLuft!$AU$3:$CD$1114,FIXED(ROW(AQ103)-2,0),FALSE),"0") -> 5 | AT103: =IF(Berechnung!$E$6=Berechnung!$E$9,HLOOKUP($E$3,MatrixLuft!$AU$3:$CD$1114,FIXED(ROW(AQ103)-2,0),FALSE),"0") -> 3.36 | AU103: 5.38 | AV103: 5.304 | AW103: 5.228 | AX103: 5.152 | AY103: 5.076 | AZ103: =IF(AZ97>AZ107,AZ97-(ABS(AZ107-AZ97))/10*6,AZ97+ABS(AZ107-AZ97)/10*6) -> 5 | BA103: 4.924 | BB103: 4.848 | BC103: 4.772 | BD103: 4.696 | BE103: 4.62 | BF103: 4.544 | BG103: 4.468 | BH103: 4.392 | BI103: 4.316 | BJ103: =IF(BJ97>BJ107,BJ97-(ABS(BJ107-BJ97))/10*6,BJ97+ABS(BJ107-BJ97)/10*6) -> 4.24 | BK103: 4.152 | BL103: 4.064 | BM103: 3.976 | BN103: 3.888 | BO103: 3.8 | BP103: 3.712 | BQ103: 3.624 | BR103: 3.536 | BS103: 3.448 | BT103: =IF(BT97>BT107,BT97-(ABS(BT107-BT97))/10*6,BT97+ABS(BT107-BT97)/10*6) -> 3.36 | BU103: 3.296 | BV103: 3.232 | BW103: 3.168 | BX103: 3.104 | BY103: =IF(BY97>BY107,BY97-(ABS(BY107-BY97))/10*6,BY97+ABS(BY107-BY97)/10*6) -> 3.04 | BZ103: 2.976 | CA103: 2.912 | CB103: 2.848 | CC103: 2.784 | CD103: 2.72
A104: 27 | B104: =VLOOKUP(F55,Berechnung!$G$9:$H$62,2,FALSE)&"48" -> 148 | C104: =IF(Berechnung!$E$6=Berechnung!$E$9,Berechnung!$F$7*HLOOKUP(Berechnung!$N$6,MatrixLuft!$F$3:$AO$1114,FIXED(ROW(A104)-2,0),FALSE),"0") -> 12.125 | D104: =IF(Berechnung!$E$6=Berechnung!$E$9,Berechnung!$F$7*HLOOKUP($D$3,MatrixLuft!$F$3:$AO$1114,FIXED(ROW(A104)-2,0),FALSE),"0") -> 12.125 | E104: =IF(Berechnung!$E$6=Berechnung!$E$9,Berechnung!$F$7*HLOOKUP($E$3,MatrixLuft!$F$3:$AO$1114,FIXED(ROW(A104)-2,0),FALSE),"0") -> 10.425 | F104: =IF(F102>F107,F102-(ABS(F107-F102))/5*2,F102+ABS(F107-F102)/5*2) -> 12.775 | G104: 12.645 | H104: 12.515 | I104: 12.385 | J104: 12.255 | K104: =IF(K102>K107,K102-(ABS(K107-K102))/5*2,K102+ABS(K107-K102)/5*2) -> 12.125 | L104: 11.995 | M104: 11.865 | N104: 11.735 | O104: 11.605 | P104: =IF(P102>P107,P102-(ABS(P107-P102))/5*2,P102+ABS(P107-P102)/5*2) -> 11.475 | Q104: 11.345 | R104: 11.215 | S104: 11.085 | T104: 10.955 | U104: =IF(U102>U107,U102-(ABS(U107-U102))/5*2,U102+ABS(U107-U102)/5*2) -> 10.825 | V104: 10.785 | W104: 10.745 | X104: 10.705 | Y104: 10.665 | Z104: =IF(Z102>Z107,Z102-(ABS(Z107-Z102))/5*2,Z102+ABS(Z107-Z102)/5*2) -> 10.625 | AA104: 10.585 | AB104: 10.545 | AC104: 10.505 | AD104: 10.465 | AE104: =IF(AE102>AE107,AE102-(ABS(AE107-AE102))/5*2,AE102+ABS(AE107-AE102)/5*2) -> 10.425 | AQ104: 27 | AR104: =IF(Berechnung!$E$6=Berechnung!$E$9,HLOOKUP(Berechnung!$N$6,MatrixLuft!$AU$3:$CD$1114,FIXED(ROW(AQ104)-2,0),FALSE),"0") -> 5.05 | AS104: =IF(Berechnung!$E$6=Berechnung!$E$9,HLOOKUP($D$3,MatrixLuft!$AU$3:$CD$1114,FIXED(ROW(AQ104)-2,0),FALSE),"0") -> 5.05 | AT104: =IF(Berechnung!$E$6=Berechnung!$E$9,HLOOKUP($E$3,MatrixLuft!$AU$3:$CD$1114,FIXED(ROW(AQ104)-2,0),FALSE),"0") -> 3.42 | AU104: 5.435 | AV104: 5.358 | AW104: 5.281 | AX104: 5.204 | AY104: 5.127 | AZ104: =IF(AZ97>AZ107,AZ97-(ABS(AZ107-AZ97))/10*7,AZ97+ABS(AZ107-AZ97)/10*7) -> 5.05 | BA104: 4.973 | BB104: 4.896 | BC104: 4.819 | BD104: 4.742 | BE104: 4.665 | BF104: 4.588 | BG104: 4.511 | BH104: 4.434 | BI104: 4.357 | BJ104: =IF(BJ97>BJ107,BJ97-(ABS(BJ107-BJ97))/10*7,BJ97+ABS(BJ107-BJ97)/10*7) -> 4.28 | BK104: 4.194 | BL104: 4.108 | BM104: 4.022 | BN104: 3.936 | BO104: 3.85 | BP104: 3.764 | BQ104: 3.678 | BR104: 3.592 | BS104: 3.506 | BT104: =IF(BT97>BT107,BT97-(ABS(BT107-BT97))/10*7,BT97+ABS(BT107-BT97)/10*7) -> 3.42 | BU104: 3.352 | BV104: 3.284 | BW104: 3.216 | BX104: 3.148 | BY104: =IF(BY97>BY107,BY97-(ABS(BY107-BY97))/10*7,BY97+ABS(BY107-BY97)/10*7) -> 3.08 | BZ104: 3.012 | CA104: 2.944 | CB104: 2.876 | CC104: 2.808 | CD104: 2.74
A105: 28 | B105: =VLOOKUP(F55,Berechnung!$G$9:$H$62,2,FALSE)&"49" -> 149 | C105: =IF(Berechnung!$E$6=Berechnung!$E$9,Berechnung!$F$7*HLOOKUP(Berechnung!$N$6,MatrixLuft!$F$3:$AO$1114,FIXED(ROW(A105)-2,0),FALSE),"0") -> 12.35 | D105: =IF(Berechnung!$E$6=Berechnung!$E$9,Berechnung!$F$7*HLOOKUP($D$3,MatrixLuft!$F$3:$AO$1114,FIXED(ROW(A105)-2,0),FALSE),"0") -> 12.35 | E105: =IF(Berechnung!$E$6=Berechnung!$E$9,Berechnung!$F$7*HLOOKUP($E$3,MatrixLuft!$F$3:$AO$1114,FIXED(ROW(A105)-2,0),FALSE),"0") -> 10.65 | F105: =IF(F102>F107,F102-(ABS(F107-F102))/5*3,F102+ABS(F107-F102)/5*3) -> 13 | G105: 12.87 | H105: 12.74 | I105: 12.61 | J105: 12.48 | K105: =IF(K102>K107,K102-(ABS(K107-K102))/5*3,K102+ABS(K107-K102)/5*3) -> 12.35 | L105: 12.22 | M105: 12.09 | N105: 11.96 | O105: 11.83 | P105: =IF(P102>P107,P102-(ABS(P107-P102))/5*3,P102+ABS(P107-P102)/5*3) -> 11.7 | Q105: 11.57 | R105: 11.44 | S105: 11.31 | T105: 11.18 | U105: =IF(U102>U107,U102-(ABS(U107-U102))/5*3,U102+ABS(U107-U102)/5*3) -> 11.05 | V105: 11.01 | W105: 10.97 | X105: 10.93 | Y105: 10.89 | Z105: =IF(Z102>Z107,Z102-(ABS(Z107-Z102))/5*3,Z102+ABS(Z107-Z102)/5*3) -> 10.85 | AA105: 10.81 | AB105: 10.77 | AC105: 10.73 | AD105: 10.69 | AE105: =IF(AE102>AE107,AE102-(ABS(AE107-AE102))/5*3,AE102+ABS(AE107-AE102)/5*3) -> 10.65 | AQ105: 28 | AR105: =IF(Berechnung!$E$6=Berechnung!$E$9,HLOOKUP(Berechnung!$N$6,MatrixLuft!$AU$3:$CD$1114,FIXED(ROW(AQ105)-2,0),FALSE),"0") -> 5.1 | AS105: =IF(Berechnung!$E$6=Berechnung!$E$9,HLOOKUP($D$3,MatrixLuft!$AU$3:$CD$1114,FIXED(ROW(AQ105)-2,0),FALSE),"0") -> 5.1 | AT105: =IF(Berechnung!$E$6=Berechnung!$E$9,HLOOKUP($E$3,MatrixLuft!$AU$3:$CD$1114,FIXED(ROW(AQ105)-2,0),FALSE),"0") -> 3.48 | AU105: 5.49 | AV105: 5.412 | AW105: 5.334 | AX105: 5.256 | AY105: 5.178 | AZ105: =IF(AZ97>AZ107,AZ97-(ABS(AZ107-AZ97))/10*8,AZ97+ABS(AZ107-AZ97)/10*8) -> 5.1 | BA105: 5.022 | BB105: 4.944 | BC105: 4.866 | BD105: 4.788 | BE105: 4.71 | BF105: 4.632 | BG105: 4.554 | BH105: 4.476 | BI105: 4.398 | BJ105: =IF(BJ97>BJ107,BJ97-(ABS(BJ107-BJ97))/10*8,BJ97+ABS(BJ107-BJ97)/10*8) -> 4.32 | BK105: 4.236 | BL105: 4.152 | BM105: 4.068 | BN105: 3.984 | BO105: 3.9 | BP105: 3.816 | BQ105: 3.732 | BR105: 3.648 | BS105: 3.564 | BT105: =IF(BT97>BT107,BT97-(ABS(BT107-BT97))/10*8,BT97+ABS(BT107-BT97)/10*8) -> 3.48 | BU105: 3.408 | BV105: 3.336 | BW105: 3.264 | BX105: 3.192 | BY105: =IF(BY97>BY107,BY97-(ABS(BY107-BY97))/10*8,BY97+ABS(BY107-BY97)/10*8) -> 3.12 | BZ105: 3.048 | CA105: 2.976 | CB105: 2.904 | CC105: 2.832 | CD105: 2.76
A106: 29 | B106: =VLOOKUP(F55,Berechnung!$G$9:$H$62,2,FALSE)&"50" -> 150 | C106: =IF(Berechnung!$E$6=Berechnung!$E$9,Berechnung!$F$7*HLOOKUP(Berechnung!$N$6,MatrixLuft!$F$3:$AO$1114,FIXED(ROW(A106)-2,0),FALSE),"0") -> 12.575 | D106: =IF(Berechnung!$E$6=Berechnung!$E$9,Berechnung!$F$7*HLOOKUP($D$3,MatrixLuft!$F$3:$AO$1114,FIXED(ROW(A106)-2,0),FALSE),"0") -> 12.575 | E106: =IF(Berechnung!$E$6=Berechnung!$E$9,Berechnung!$F$7*HLOOKUP($E$3,MatrixLuft!$F$3:$AO$1114,FIXED(ROW(A106)-2,0),FALSE),"0") -> 10.875 | F106: =IF(F102>F107,F102-(ABS(F107-F102))/5*4,F102+ABS(F107-F102)/5*4) -> 13.225 | G106: 13.095 | H106: 12.965 | I106: 12.835 | J106: 12.705 | K106: =IF(K102>K107,K102-(ABS(K107-K102))/5*4,K102+ABS(K107-K102)/5*4) -> 12.575 | L106: 12.445 | M106: 12.315 | N106: 12.185 | O106: 12.055 | P106: =IF(P102>P107,P102-(ABS(P107-P102))/5*4,P102+ABS(P107-P102)/5*4) -> 11.925 | Q106: 11.795 | R106: 11.665 | S106: 11.535 | T106: 11.405 | U106: =IF(U102>U107,U102-(ABS(U107-U102))/5*4,U102+ABS(U107-U102)/5*4) -> 11.275 | V106: 11.235 | W106: 11.195 | X106: 11.155 | Y106: 11.115 | Z106: =IF(Z102>Z107,Z102-(ABS(Z107-Z102))/5*4,Z102+ABS(Z107-Z102)/5*4) -> 11.075 | AA106: 11.035 | AB106: 10.995 | AC106: 10.955 | AD106: 10.915 | AE106: =IF(AE102>AE107,AE102-(ABS(AE107-AE102))/5*4,AE102+ABS(AE107-AE102)/5*4) -> 10.875 | AQ106: 29 | AR106: =IF(Berechnung!$E$6=Berechnung!$E$9,HLOOKUP(Berechnung!$N$6,MatrixLuft!$AU$3:$CD$1114,FIXED(ROW(AQ106)-2,0),FALSE),"0") -> 5.15 | AS106: =IF(Berechnung!$E$6=Berechnung!$E$9,HLOOKUP($D$3,MatrixLuft!$AU$3:$CD$1114,FIXED(ROW(AQ106)-2,0),FALSE),"0") -> 5.15 | AT106: =IF(Berechnung!$E$6=Berechnung!$E$9,HLOOKUP($E$3,MatrixLuft!$AU$3:$CD$1114,FIXED(ROW(AQ106)-2,0),FALSE),"0") -> 3.54 | AU106: 5.545 | AV106: 5.466 | AW106: 5.387 | AX106: 5.308 | AY106: 5.229 | AZ106: =IF(AZ97>AZ107,AZ97-(ABS(AZ107-AZ97))/10*9,AZ97+ABS(AZ107-AZ97)/10*9) -> 5.15 | BA106: 5.071 | BB106: 4.992 | BC106: 4.913 | BD106: 4.834 | BE106: 4.755 | BF106: 4.676 | BG106: 4.597 | BH106: 4.518 | BI106: 4.439 | BJ106: =IF(BJ97>BJ107,BJ97-(ABS(BJ107-BJ97))/10*9,BJ97+ABS(BJ107-BJ97)/10*9) -> 4.36 | BK106: 4.278 | BL106: 4.196 | BM106: 4.114 | BN106: 4.032 | BO106: 3.95 | BP106: 3.868 | BQ106: 3.786 | BR106: 3.704 | BS106: 3.622 | BT106: =IF(BT97>BT107,BT97-(ABS(BT107-BT97))/10*9,BT97+ABS(BT107-BT97)/10*9) -> 3.54 | BU106: 3.464 | BV106: 3.388 | BW106: 3.312 | BX106: 3.236 | BY106: =IF(BY97>BY107,BY97-(ABS(BY107-BY97))/10*9,BY97+ABS(BY107-BY97)/10*9) -> 3.16 | BZ106: 3.084 | CA106: 3.008 | CB106: 2.932 | CC106: 2.856 | CD106: 2.78
A107: 30 | B107: =VLOOKUP(F55,Berechnung!$G$9:$H$62,2,FALSE)&"51" -> 151 | C107: =IF(Berechnung!$E$6=Berechnung!$E$9,Berechnung!$F$7*HLOOKUP(Berechnung!$N$6,MatrixLuft!$F$3:$AO$1114,FIXED(ROW(A107)-2,0),FALSE),"0") -> 12.8 | D107: =IF(Berechnung!$E$6=Berechnung!$E$9,Berechnung!$F$7*HLOOKUP($D$3,MatrixLuft!$F$3:$AO$1114,FIXED(ROW(A107)-2,0),FALSE),"0") -> 12.8 | E107: =IF(Berechnung!$E$6=Berechnung!$E$9,Berechnung!$F$7*HLOOKUP($E$3,MatrixLuft!$F$3:$AO$1114,FIXED(ROW(A107)-2,0),FALSE),"0") -> 11.1 | F107: =K107+(K107-P107) -> 13.45 | G107: 13.32 | H107: 13.19 | I107: 13.06 | J107: 12.93 | K107: 12.8 | L107: 12.67 | M107: 12.54 | N107: 12.41 | O107: 12.28 | P107: =AVERAGE(K107,U107) -> 12.15 | Q107: 12.02 | R107: 11.89 | S107: 11.76 | T107: 11.63 | U107: 11.5 | V107: 11.46 | W107: 11.42 | X107: 11.38 | Y107: 11.34 | Z107: =AVERAGE(U107,AE107) -> 11.3 | AA107: 11.26 | AB107: 11.22 | AC107: 11.18 | AD107: 11.14 | AE107: 11.1 | AQ107: 30 | AR107: =IF(Berechnung!$E$6=Berechnung!$E$9,HLOOKUP(Berechnung!$N$6,MatrixLuft!$AU$3:$CD$1114,FIXED(ROW(AQ107)-2,0),FALSE),"0") -> 5.2 | AS107: =IF(Berechnung!$E$6=Berechnung!$E$9,HLOOKUP($D$3,MatrixLuft!$AU$3:$CD$1114,FIXED(ROW(AQ107)-2,0),FALSE),"0") -> 5.2 | AT107: =IF(Berechnung!$E$6=Berechnung!$E$9,HLOOKUP($E$3,MatrixLuft!$AU$3:$CD$1114,FIXED(ROW(AQ107)-2,0),FALSE),"0") -> 3.6 | AU107: 5.6 | AV107: 5.52 | AW107: 5.44 | AX107: 5.36 | AY107: 5.28 | AZ107: 5.2 | BA107: 5.12 | BB107: 5.04 | BC107: 4.96 | BD107: 4.88 | BE107: 4.8 | BF107: 4.72 | BG107: 4.64 | BH107: 4.56 | BI107: 4.48 | BJ107: 4.4 | BK107: 4.32 | BL107: 4.24 | BM107: 4.16 | BN107: 4.08 | BO107: 4 | BP107: 3.92 | BQ107: 3.84 | BR107: 3.76 | BS107: 3.68 | BT107: 3.6 | BU107: 3.52 | BV107: 3.44 | BW107: 3.36 | BX107: 3.28 | BY107: 3.2 | BZ107: 3.12 | CA107: 3.04 | CB107: 2.96 | CC107: 2.88 | CD107: 2.8
A108: =F108 -> WPL 10 A/I/IK | B108: Index | C108: Temp gewählt | F108: WPL 10 A/I/IK | AQ108: =AU108 -> WPL 10 A/I/IK | AU108: WPL 10 A/I/IK
A109: Außentemp | C109: =Berechnung!$N$6 -> 35 | D109: =Berechnung!$T$106 -> 35 | E109: =Berechnung!$T$107 -> 55 | F109: 30 | G109: 31 | H109: 32 | I109: 33 | J109: 34 | K109: 35 | L109: 36 | M109: 37 | N109: 38 | O109: 39 | P109: 40 | Q109: 41 | R109: 42 | S109: 43 | T109: 44 | U109: 45 | V109: 46 | W109: 47 | X109: 48 | Y109: 49 | Z109: 50 | AA109: 51 | AB109: 52 | AC109: 53 | AD109: 54 | AE109: 55 | AF109: 56 | AG109: 57 | AH109: 58 | AI109: 59 | AJ109: 60 | AK109: 61 | AL109: 62 | AM109: 63 | AN109: 64 | AO109: 65 | AQ109: Außentemp | AU109: 30 | AV109: 31 | AW109: 32 | AX109: 33 | AY109: 34 | AZ109: 35 | BA109: 36 | BB109: 37 | BC109: 38 | BD109: 39 | BE109: 40 | BF109: 41 | BG109: 42 | BH109: 43 | BI109: 44 | BJ109: 45 | BK109: 46 | BL109: 47 | BM109: 48 | BN109: 49 | BO109: 50 | BP109: 51 | BQ109: 52 | BR109: 53 | BS109: 54 | BT109: 55 | BU109: 56 | BV109: 57 | BW109: 58 | BX109: 59 | BY109: 60 | BZ109: 61 | CA109: 62 | CB109: 63 | CC109: 64 | CD109: 65
A110: -20 | B110: =VLOOKUP(F108,Berechnung!$G$9:$H$62,2,FALSE)&"01" -> 201 | C110: =IF(Berechnung!$E$6=Berechnung!$E$9,Berechnung!$F$7*HLOOKUP(Berechnung!$N$6,MatrixLuft!$F$3:$AO$1114,FIXED(ROW(A110)-2,0),FALSE),"0") -> 3.1 | D110: =IF(Berechnung!$E$6=Berechnung!$E$9,Berechnung!$F$7*HLOOKUP($D$3,MatrixLuft!$F$3:$AO$1114,FIXED(ROW(A110)-2,0),FALSE),"0") -> 3.1 | E110: =IF(Berechnung!$E$6=Berechnung!$E$9,Berechnung!$F$7*HLOOKUP($E$3,MatrixLuft!$F$3:$AO$1114,FIXED(ROW(A110)-2,0),FALSE),"0") -> 2.05 | F110: 3.3625 | G110: =IF($F110>$K110,$F110-((ABS($F110-$K110)/5)*(COLUMN(G109)-COLUMN($F109))),$F110+((ABS($F110-$K110)/5)*(COLUMN(G109)-COLUMN($F109)))) -> 3.31 | H110: =IF($F110>$K110,$F110-((ABS($F110-$K110)/5)*(COLUMN(H109)-COLUMN($F109))),$F110+((ABS($F110-$K110)/5)*(COLUMN(H109)-COLUMN($F109)))) -> 3.2575 | I110: =IF($F110>$K110,$F110-((ABS($F110-$K110)/5)*(COLUMN(I109)-COLUMN($F109))),$F110+((ABS($F110-$K110)/5)*(COLUMN(I109)-COLUMN($F109)))) -> 3.205 | J110: =IF($F110>$K110,$F110-((ABS($F110-$K110)/5)*(COLUMN(J109)-COLUMN($F109))),$F110+((ABS($F110-$K110)/5)*(COLUMN(J109)-COLUMN($F109)))) -> 3.1525 | K110: 3.1 | L110: =IF($K110>$P110,$K110-((ABS($K110-$P110)/5)*(COLUMN(L109)-COLUMN($K109))),$K110+((ABS($K110-$P110)/5)*(COLUMN(L109)-COLUMN($K109)))) -> 3.0475 | M110: =IF($K110>$P110,$K110-((ABS($K110-$P110)/5)*(COLUMN(M109)-COLUMN($K109))),$K110+((ABS($K110-$P110)/5)*(COLUMN(M109)-COLUMN($K109)))) -> 2.995 | N110: =IF($K110>$P110,$K110-((ABS($K110-$P110)/5)*(COLUMN(N109)-COLUMN($K109))),$K110+((ABS($K110-$P110)/5)*(COLUMN(N109)-COLUMN($K109)))) -> 2.9425 | O110: =IF($K110>$P110,$K110-((ABS($K110-$P110)/5)*(COLUMN(O109)-COLUMN($K109))),$K110+((ABS($K110-$P110)/5)*(COLUMN(O109)-COLUMN($K109)))) -> 2.89 | P110: 2.8375 | Q110: =IF($P110>$U110,$P110-((ABS($P110-$U110)/5)*(COLUMN(Q109)-COLUMN($P109))),$P110+((ABS($P110-$U110)/5)*(COLUMN(Q109)-COLUMN($P109)))) -> 2.785 | R110: =IF($P110>$U110,$P110-((ABS($P110-$U110)/5)*(COLUMN(R109)-COLUMN($P109))),$P110+((ABS($P110-$U110)/5)*(COLUMN(R109)-COLUMN($P109)))) -> 2.7325 | S110: =IF($P110>$U110,$P110-((ABS($P110-$U110)/5)*(COLUMN(S109)-COLUMN($P109))),$P110+((ABS($P110-$U110)/5)*(COLUMN(S109)-COLUMN($P109)))) -> 2.68 | T110: =IF($P110>$U110,$P110-((ABS($P110-$U110)/5)*(COLUMN(T109)-COLUMN($P109))),$P110+((ABS($P110-$U110)/5)*(COLUMN(T109)-COLUMN($P109)))) -> 2.6275 | U110: 2.575 | V110: =IF($U110>$Z110,$U110-((ABS($U110-$Z110)/5)*(COLUMN(V109)-COLUMN($U109))),$U110+((ABS($U110-$Z110)/5)*(COLUMN(V109)-COLUMN($U109)))) -> 2.5225 | W110: =IF($U110>$Z110,$U110-((ABS($U110-$Z110)/5)*(COLUMN(W109)-COLUMN($U109))),$U110+((ABS($U110-$Z110)/5)*(COLUMN(W109)-COLUMN($U109)))) -> 2.47 | X110: =IF($U110>$Z110,$U110-((ABS($U110-$Z110)/5)*(COLUMN(X109)-COLUMN($U109))),$U110+((ABS($U110-$Z110)/5)*(COLUMN(X109)-COLUMN($U109)))) -> 2.4175 | Y110: =IF($U110>$Z110,$U110-((ABS($U110-$Z110)/5)*(COLUMN(Y109)-COLUMN($U109))),$U110+((ABS($U110-$Z110)/5)*(COLUMN(Y109)-COLUMN($U109)))) -> 2.365 | Z110: 2.3125 | AA110: =IF($Z110>$AE110,$Z110-((ABS($Z110-$AE110)/5)*(COLUMN(AA109)-COLUMN($Z109))),$Z110+((ABS($Z110-$AE110)/5)*(COLUMN(AA109)-COLUMN($Z109)))) -> 2.26 | AB110: =IF($Z110>$AE110,$Z110-((ABS($Z110-$AE110)/5)*(COLUMN(AB109)-COLUMN($Z109))),$Z110+((ABS($Z110-$AE110)/5)*(COLUMN(AB109)-COLUMN($Z109)))) -> 2.2075 | AC110: =IF($Z110>$AE110,$Z110-((ABS($Z110-$AE110)/5)*(COLUMN(AC109)-COLUMN($Z109))),$Z110+((ABS($Z110-$AE110)/5)*(COLUMN(AC109)-COLUMN($Z109)))) -> 2.155 | AD110: =IF($Z110>$AE110,$Z110-((ABS($Z110-$AE110)/5)*(COLUMN(AD109)-COLUMN($Z109))),$Z110+((ABS($Z110-$AE110)/5)*(COLUMN(AD109)-COLUMN($Z109)))) -> 2.1025 | AE110: 2.05 | AQ110: -20 | AR110: =IF(Berechnung!$E$6=Berechnung!$E$9,HLOOKUP(Berechnung!$N$6,MatrixLuft!$AU$3:$CD$1114,FIXED(ROW(AQ110)-2,0),FALSE),"0") -> 2.1 | AS110: =IF(Berechnung!$E$6=Berechnung!$E$9,HLOOKUP($D$3,MatrixLuft!$AU$3:$CD$1114,FIXED(ROW(AQ110)-2,0),FALSE),"0") -> 2.1 | AT110: =IF(Berechnung!$E$6=Berechnung!$E$9,HLOOKUP($E$3,MatrixLuft!$AU$3:$CD$1114,FIXED(ROW(AQ110)-2,0),FALSE),"0") -> 1.5 | AU110: =IF(AV110<AW110,AV110-(AV110-AW110),AV110+(AV110-AW110)) -> 2.25 | AV110: =IF(AW110<AX110,AW110-(AW110-AX110),AW110+(AW110-AX110)) -> 2.22 | AW110: =IF(AX110<AY110,AX110-(AX110-AY110),AX110+(AX110-AY110)) -> 2.19 | AX110: =IF(AY110<AZ110,AY110-(AY110-AZ110),AY110+(AY110-AZ110)) -> 2.16 | AY110: =IF(AZ110<BA110,AZ110-(AZ110-BA110),AZ110+(AZ110-BA110)) -> 2.13 | AZ110: 2.1 | BA110: =IF(AZ110<BT110,AZ110+(AZ110-BT110)/20*1,AZ110-(AZ110-BT110)/20*1) -> 2.07 | BB110: =IF(AZ110<BT110,AZ110+(AZ110-BT110)/20*2,AZ110-(AZ110-BT110)/20*2) -> 2.04 | BC110: =IF(AZ110<BT110,AZ110+(AZ110-BT110)/20*3,AZ110-(AZ110-BT110)/20*3) -> 2.01 | BD110: =IF(AZ110<BT110,AZ110+(AZ110-BT110)/20*4,AZ110-(AZ110-BT110)/20*4) -> 1.98 | BE110: =IF(AZ110<BT110,AZ110+(AZ110-BT110)/20*5,AZ110-(AZ110-BT110)/20*5) -> 1.95 | BF110: =IF(AZ110<BT110,AZ110+(AZ110-BT110)/20*6,AZ110-(AZ110-BT110)/20*6) -> 1.92 | BG110: =IF(AZ110<BT110,AZ110+(AZ110-BT110)/20*7,AZ110-(AZ110-BT110)/20*7) -> 1.89 | BH110: =IF(AZ110<BT110,AZ110+(AZ110-BT110)/20*8,AZ110-(AZ110-BT110)/20*8) -> 1.86 | BI110: =IF(AZ110<BT110,AZ110+(AZ110-BT110)/20*9,AZ110-(AZ110-BT110)/20*9) -> 1.83 | BJ110: =IF(AZ110<BT110,AZ110+(AZ110-BT110)/20*10,AZ110-(AZ110-BT110)/20*10) -> 1.8 | BK110: =IF(AZ110<BT110,AZ110+(AZ110-BT110)/20*11,AZ110-(AZ110-BT110)/20*11) -> 1.77 | BL110: =IF(AZ110<BT110,AZ110+(AZ110-BT110)/20*12,AZ110-(AZ110-BT110)/20*12) -> 1.74 | BM110: =IF(AZ110<BT110,AZ110+(AZ110-BT110)/20*13,AZ110-(AZ110-BT110)/20*13) -> 1.71 | BN110: =IF(AZ110<BT110,AZ110+(AZ110-BT110)/20*14,AZ110-(AZ110-BT110)/20*14) -> 1.68 | BO110: =IF(AZ110<BT110,AZ110+(AZ110-BT110)/20*15,AZ110-(AZ110-BT110)/20*15) -> 1.65 | BP110: =IF(AZ110<BT110,AZ110+(AZ110-BT110)/20*16,AZ110-(AZ110-BT110)/20*16) -> 1.62 | BQ110: =IF(AZ110<BT110,AZ110+(AZ110-BT110)/20*17,AZ110-(AZ110-BT110)/20*17) -> 1.59 | BR110: =IF(AZ110<BT110,AZ110+(AZ110-BT110)/20*18,AZ110-(AZ110-BT110)/20*18) -> 1.56 | BS110: =IF(AZ110<BT110,AZ110+(AZ110-BT110)/20*19,AZ110-(AZ110-BT110)/20*19) -> 1.53 | BT110: 1.5 | BU110: =IF(BT110<BY110,BT110+(BT110-BY110)/5*1,BT110-(BT110-BY110)/5*1) -> 1.48 | BV110: =IF(BT110<BY110,BT110+(BT110-BY110)/5*2,BT110-(BT110-BY110)/5*2) -> 1.46 | BW110: =IF(BT110<BY110,BT110+(BT110-BY110)/5*3,BT110-(BT110-BY110)/5*3) -> 1.44 | BX110: =IF(BT110<BY110,BT110+(BT110-BY110)/5*4,BT110-(BT110-BY110)/5*4) -> 1.42 | BY110: 1.4 | BZ110: =IF(BX110>BY110,BY110+(BY110-BX110),BY110-(BY110-BX110)) -> 1.38 | CA110: =IF(BY110>BZ110,BZ110+(BZ110-BY110),BZ110-(BZ110-BY110)) -> 1.36 | CB110: =IF(BZ110>CA110,CA110+(CA110-BZ110),CA110-(CA110-BZ110)) -> 1.34 | CC110: =IF(CA110>CB110,CB110+(CB110-CA110),CB110-(CB110-CA110)) -> 1.32 | CD110: =IF(CB110>CC110,CC110+(CC110-CB110),CC110-(CC110-CB110)) -> 1.3
A111: -19 | B111: =VLOOKUP(F108,Berechnung!$G$9:$H$62,2,FALSE)&"02" -> 202 | C111: =IF(Berechnung!$E$6=Berechnung!$E$9,Berechnung!$F$7*HLOOKUP(Berechnung!$N$6,MatrixLuft!$F$3:$AO$1114,FIXED(ROW(A111)-2,0),FALSE),"0") -> 3.28 | D111: =IF(Berechnung!$E$6=Berechnung!$E$9,Berechnung!$F$7*HLOOKUP($D$3,MatrixLuft!$F$3:$AO$1114,FIXED(ROW(A111)-2,0),FALSE),"0") -> 3.28 | E111: =IF(Berechnung!$E$6=Berechnung!$E$9,Berechnung!$F$7*HLOOKUP($E$3,MatrixLuft!$F$3:$AO$1114,FIXED(ROW(A111)-2,0),FALSE),"0") -> 2.2 | F111: =IF(F110>F115,F110-(ABS(F115-F110))/5*1,F110+ABS(F115-F110)/5*1) -> 3.55 | G111: =IF($F111>$K111,$F111-((ABS($F111-$K111)/5)*(COLUMN(G110)-COLUMN($F110))),$F111+((ABS($F111-$K111)/5)*(COLUMN(G110)-COLUMN($F110)))) -> 3.496 | H111: 3.442 | I111: 3.388 | J111: 3.334 | K111: =IF(K110>K115,K110-(ABS(K115-K110))/5*1,K110+ABS(K115-K110)/5*1) -> 3.28 | L111: =IF($K111>$P111,$K111-((ABS($K111-$P111)/5)*(COLUMN(L110)-COLUMN($K110))),$K111+((ABS($K111-$P111)/5)*(COLUMN(L110)-COLUMN($K110)))) -> 3.226 | M111: 3.172 | N111: 3.118 | O111: 3.064 | P111: =IF(P110>P115,P110-(ABS(P115-P110))/5*1,P110+ABS(P115-P110)/5*1) -> 3.01 | Q111: =IF($P111>$U111,$P111-((ABS($P111-$U111)/5)*(COLUMN(Q110)-COLUMN($P110))),$P111+((ABS($P111-$U111)/5)*(COLUMN(Q110)-COLUMN($P110)))) -> 2.956 | R111: 2.902 | S111: 2.848 | T111: 2.794 | U111: =IF(U110>U115,U110-(ABS(U115-U110))/5*1,U110+ABS(U115-U110)/5*1) -> 2.74 | V111: =IF($U111>$Z111,$U111-((ABS($U111-$Z111)/5)*(COLUMN(V110)-COLUMN($U110))),$U111+((ABS($U111-$Z111)/5)*(COLUMN(V110)-COLUMN($U110)))) -> 2.686 | W111: 2.632 | X111: 2.578 | Y111: 2.524 | Z111: =IF(Z110>Z115,Z110-(ABS(Z115-Z110))/5*1,Z110+ABS(Z115-Z110)/5*1) -> 2.47 | AA111: =IF($Z111>$AE111,$Z111-((ABS($Z111-$AE111)/5)*(COLUMN(AA110)-COLUMN($Z110))),$Z111+((ABS($Z111-$AE111)/5)*(COLUMN(AA110)-COLUMN($Z110)))) -> 2.416 | AB111: 2.362 | AC111: 2.308 | AD111: 2.254 | AE111: =IF(AE110>AE115,AE110-(ABS(AE115-AE110))/5*1,AE110+ABS(AE115-AE110)/5*1) -> 2.2 | AQ111: -19 | AR111: =IF(Berechnung!$E$6=Berechnung!$E$9,HLOOKUP(Berechnung!$N$6,MatrixLuft!$AU$3:$CD$1114,FIXED(ROW(AQ111)-2,0),FALSE),"0") -> 2.18 | AS111: =IF(Berechnung!$E$6=Berechnung!$E$9,HLOOKUP($D$3,MatrixLuft!$AU$3:$CD$1114,FIXED(ROW(AQ111)-2,0),FALSE),"0") -> 2.18 | AT111: =IF(Berechnung!$E$6=Berechnung!$E$9,HLOOKUP($E$3,MatrixLuft!$AU$3:$CD$1114,FIXED(ROW(AQ111)-2,0),FALSE),"0") -> 1.56 | AU111: 2.335 | AV111: 2.304 | AW111: 2.273 | AX111: 2.242 | AY111: =IF(AZ111<BA111,AZ111-(AZ111-BA111),AZ111+(AZ111-BA111)) -> 2.211 | AZ111: =IF(AZ110>AZ115,AZ110-(ABS(AZ115-AZ110))/5*1,AZ110+ABS(AZ115-AZ110)/5*1) -> 2.18 | BA111: =IF(AZ111<BT111,AZ111+(AZ111-BT111)/20*1,AZ111-(AZ111-BT111)/20*1) -> 2.149 | BB111: =IF(AZ111<BT111,AZ111+(AZ111-BT111)/20*2,AZ111-(AZ111-BT111)/20*2) -> 2.118 | BC111: =IF(AZ111<BT111,AZ111+(AZ111-BT111)/20*3,AZ111-(AZ111-BT111)/20*3) -> 2.087 | BD111: =IF(AZ111<BT111,AZ111+(AZ111-BT111)/20*4,AZ111-(AZ111-BT111)/20*4) -> 2.056 | BE111: =IF(AZ111<BT111,AZ111+(AZ111-BT111)/20*5,AZ111-(AZ111-BT111)/20*5) -> 2.025 | BF111: =IF(AZ111<BT111,AZ111+(AZ111-BT111)/20*6,AZ111-(AZ111-BT111)/20*6) -> 1.994 | BG111: =IF(AZ111<BT111,AZ111+(AZ111-BT111)/20*7,AZ111-(AZ111-BT111)/20*7) -> 1.963 | BH111: =IF(AZ111<BT111,AZ111+(AZ111-BT111)/20*8,AZ111-(AZ111-BT111)/20*8) -> 1.932 | BI111: =IF(AZ111<BT111,AZ111+(AZ111-BT111)/20*9,AZ111-(AZ111-BT111)/20*9) -> 1.901 | BJ111: =IF(AZ111<BT111,AZ111+(AZ111-BT111)/20*10,AZ111-(AZ111-BT111)/20*10) -> 1.87 | BK111: =IF(AZ111<BT111,AZ111+(AZ111-BT111)/20*11,AZ111-(AZ111-BT111)/20*11) -> 1.839 | BL111: =IF(AZ111<BT111,AZ111+(AZ111-BT111)/20*12,AZ111-(AZ111-BT111)/20*12) -> 1.808 | BM111: =IF(AZ111<BT111,AZ111+(AZ111-BT111)/20*13,AZ111-(AZ111-BT111)/20*13) -> 1.777 | BN111: =IF(AZ111<BT111,AZ111+(AZ111-BT111)/20*14,AZ111-(AZ111-BT111)/20*14) -> 1.746 | BO111: =IF(AZ111<BT111,AZ111+(AZ111-BT111)/20*15,AZ111-(AZ111-BT111)/20*15) -> 1.715 | BP111: =IF(AZ111<BT111,AZ111+(AZ111-BT111)/20*16,AZ111-(AZ111-BT111)/20*16) -> 1.684 | BQ111: =IF(AZ111<BT111,AZ111+(AZ111-BT111)/20*17,AZ111-(AZ111-BT111)/20*17) -> 1.653 | BR111: =IF(AZ111<BT111,AZ111+(AZ111-BT111)/20*18,AZ111-(AZ111-BT111)/20*18) -> 1.622 | BS111: =IF(AZ111<BT111,AZ111+(AZ111-BT111)/20*19,AZ111-(AZ111-BT111)/20*19) -> 1.591 | BT111: =IF(BT110>BT115,BT110-(ABS(BT115-BT110))/5*1,BT110+ABS(BT115-BT110)/5*1) -> 1.56 | BU111: =IF(BT111<BY111,BT111+(BT111-BY111)/5*1,BT111-(BT111-BY111)/5*1) -> 1.54 | BV111: =IF(BT111<BY111,BT111+(BT111-BY111)/5*2,BT111-(BT111-BY111)/5*2) -> 1.52 | BW111: =IF(BT111<BY111,BT111+(BT111-BY111)/5*3,BT111-(BT111-BY111)/5*3) -> 1.5 | BX111: =IF(BT111<BY111,BT111+(BT111-BY111)/5*4,BT111-(BT111-BY111)/5*4) -> 1.48 | BY111: =IF(BY110>BY115,BY110-(ABS(BY115-BY110))/5*1,BY110+ABS(BY115-BY110)/5*1) -> 1.46 | BZ111: =IF(BX111>BY111,BY111+(BY111-BX111),BY111-(BY111-BX111)) -> 1.44 | CA111: 1.42 | CB111: 1.4 | CC111: 1.38 | CD111: 1.36
A112: -18 | B112: =VLOOKUP(F108,Berechnung!$G$9:$H$62,2,FALSE)&"03" -> 203 | C112: =IF(Berechnung!$E$6=Berechnung!$E$9,Berechnung!$F$7*HLOOKUP(Berechnung!$N$6,MatrixLuft!$F$3:$AO$1114,FIXED(ROW(A112)-2,0),FALSE),"0") -> 3.46 | D112: =IF(Berechnung!$E$6=Berechnung!$E$9,Berechnung!$F$7*HLOOKUP($D$3,MatrixLuft!$F$3:$AO$1114,FIXED(ROW(A112)-2,0),FALSE),"0") -> 3.46 | E112: =IF(Berechnung!$E$6=Berechnung!$E$9,Berechnung!$F$7*HLOOKUP($E$3,MatrixLuft!$F$3:$AO$1114,FIXED(ROW(A112)-2,0),FALSE),"0") -> 2.35 | F112: =IF(F110>F115,F110-(ABS(F115-F110))/5*2,F110+ABS(F115-F110)/5*2) -> 3.7375 | G112: =IF($F112>$K112,$F112-((ABS($F112-$K112)/5)*(COLUMN(G111)-COLUMN($F111))),$F112+((ABS($F112-$K112)/5)*(COLUMN(G111)-COLUMN($F111)))) -> 3.682 | H112: 3.6265 | I112: 3.571 | J112: 3.5155 | K112: =IF(K110>K115,K110-(ABS(K115-K110))/5*2,K110+ABS(K115-K110)/5*2) -> 3.46 | L112: =IF($K112>$P112,$K112-((ABS($K112-$P112)/5)*(COLUMN(L111)-COLUMN($K111))),$K112+((ABS($K112-$P112)/5)*(COLUMN(L111)-COLUMN($K111)))) -> 3.4045 | M112: 3.349 | N112: 3.2935 | O112: 3.238 | P112: =IF(P110>P115,P110-(ABS(P115-P110))/5*2,P110+ABS(P115-P110)/5*2) -> 3.1825 | Q112: 3.127 | R112: 3.0715 | S112: 3.016 | T112: 2.9605 | U112: =IF(U110>U115,U110-(ABS(U115-U110))/5*2,U110+ABS(U115-U110)/5*2) -> 2.905 | V112: 2.8495 | W112: 2.794 | X112: 2.7385 | Y112: 2.683 | Z112: =IF(Z110>Z115,Z110-(ABS(Z115-Z110))/5*2,Z110+ABS(Z115-Z110)/5*2) -> 2.6275 | AA112: 2.572 | AB112: 2.5165 | AC112: 2.461 | AD112: 2.4055 | AE112: =IF(AE110>AE115,AE110-(ABS(AE115-AE110))/5*2,AE110+ABS(AE115-AE110)/5*2) -> 2.35 | AQ112: -18 | AR112: =IF(Berechnung!$E$6=Berechnung!$E$9,HLOOKUP(Berechnung!$N$6,MatrixLuft!$AU$3:$CD$1114,FIXED(ROW(AQ112)-2,0),FALSE),"0") -> 2.26 | AS112: =IF(Berechnung!$E$6=Berechnung!$E$9,HLOOKUP($D$3,MatrixLuft!$AU$3:$CD$1114,FIXED(ROW(AQ112)-2,0),FALSE),"0") -> 2.26 | AT112: =IF(Berechnung!$E$6=Berechnung!$E$9,HLOOKUP($E$3,MatrixLuft!$AU$3:$CD$1114,FIXED(ROW(AQ112)-2,0),FALSE),"0") -> 1.62 | AU112: 2.42 | AV112: 2.388 | AW112: 2.356 | AX112: 2.324 | AY112: 2.292 | AZ112: =IF(AZ110>AZ115,AZ110-(ABS(AZ115-AZ110))/5*2,AZ110+ABS(AZ115-AZ110)/5*2) -> 2.26 | BA112: 2.228 | BB112: 2.196 | BC112: 2.164 | BD112: 2.132 | BE112: 2.1 | BF112: 2.068 | BG112: 2.036 | BH112: 2.004 | BI112: 1.972 | BJ112: 1.94 | BK112: 1.908 | BL112: 1.876 | BM112: 1.844 | BN112: 1.812 | BO112: 1.78 | BP112: 1.748 | BQ112: 1.716 | BR112: 1.684 | BS112: 1.652 | BT112: =IF(BT110>BT115,BT110-(ABS(BT115-BT110))/5*2,BT110+ABS(BT115-BT110)/5*2) -> 1.62 | BU112: 1.6 | BV112: 1.58 | BW112: 1.56 | BX112: 1.54 | BY112: =IF(BY110>BY115,BY110-(ABS(BY115-BY110))/5*2,BY110+ABS(BY115-BY110)/5*2) -> 1.52 | BZ112: 1.5 | CA112: 1.48 | CB112: 1.46 | CC112: 1.44 | CD112: 1.42
A113: -17 | B113: =VLOOKUP(F108,Berechnung!$G$9:$H$62,2,FALSE)&"04" -> 204 | C113: =IF(Berechnung!$E$6=Berechnung!$E$9,Berechnung!$F$7*HLOOKUP(Berechnung!$N$6,MatrixLuft!$F$3:$AO$1114,FIXED(ROW(A113)-2,0),FALSE),"0") -> 3.64 | D113: =IF(Berechnung!$E$6=Berechnung!$E$9,Berechnung!$F$7*HLOOKUP($D$3,MatrixLuft!$F$3:$AO$1114,FIXED(ROW(A113)-2,0),FALSE),"0") -> 3.64 | E113: =IF(Berechnung!$E$6=Berechnung!$E$9,Berechnung!$F$7*HLOOKUP($E$3,MatrixLuft!$F$3:$AO$1114,FIXED(ROW(A113)-2,0),FALSE),"0") -> 2.5 | F113: =IF(F110>F115,F110-(ABS(F115-F110))/5*3,F110+ABS(F115-F110)/5*3) -> 3.925 | G113: 3.868 | H113: 3.811 | I113: 3.754 | J113: 3.697 | K113: =IF(K110>K115,K110-(ABS(K115-K110))/5*3,K110+ABS(K115-K110)/5*3) -> 3.64 | L113: 3.583 | M113: 3.526 | N113: 3.469 | O113: 3.412 | P113: =IF(P110>P115,P110-(ABS(P115-P110))/5*3,P110+ABS(P115-P110)/5*3) -> 3.355 | Q113: 3.298 | R113: 3.241 | S113: 3.184 | T113: 3.127 | U113: =IF(U110>U115,U110-(ABS(U115-U110))/5*3,U110+ABS(U115-U110)/5*3) -> 3.07 | V113: 3.013 | W113: 2.956 | X113: 2.899 | Y113: 2.842 | Z113: =IF(Z110>Z115,Z110-(ABS(Z115-Z110))/5*3,Z110+ABS(Z115-Z110)/5*3) -> 2.785 | AA113: 2.728 | AB113: 2.671 | AC113: 2.614 | AD113: 2.557 | AE113: =IF(AE110>AE115,AE110-(ABS(AE115-AE110))/5*3,AE110+ABS(AE115-AE110)/5*3) -> 2.5 | AQ113: -17 | AR113: =IF(Berechnung!$E$6=Berechnung!$E$9,HLOOKUP(Berechnung!$N$6,MatrixLuft!$AU$3:$CD$1114,FIXED(ROW(AQ113)-2,0),FALSE),"0") -> 2.34 | AS113: =IF(Berechnung!$E$6=Berechnung!$E$9,HLOOKUP($D$3,MatrixLuft!$AU$3:$CD$1114,FIXED(ROW(AQ113)-2,0),FALSE),"0") -> 2.34 | AT113: =IF(Berechnung!$E$6=Berechnung!$E$9,HLOOKUP($E$3,MatrixLuft!$AU$3:$CD$1114,FIXED(ROW(AQ113)-2,0),FALSE),"0") -> 1.68 | AU113: 2.505 | AV113: 2.472 | AW113: 2.439 | AX113: 2.406 | AY113: 2.373 | AZ113: =IF(AZ110>AZ115,AZ110-(ABS(AZ115-AZ110))/5*3,AZ110+ABS(AZ115-AZ110)/5*3) -> 2.34 | BA113: 2.307 | BB113: 2.274 | BC113: 2.241 | BD113: 2.208 | BE113: 2.175 | BF113: 2.142 | BG113: 2.109 | BH113: 2.076 | BI113: 2.043 | BJ113: 2.01 | BK113: 1.977 | BL113: 1.944 | BM113: 1.911 | BN113: 1.878 | BO113: 1.845 | BP113: 1.812 | BQ113: 1.779 | BR113: 1.746 | BS113: 1.713 | BT113: =IF(BT110>BT115,BT110-(ABS(BT115-BT110))/5*3,BT110+ABS(BT115-BT110)/5*3) -> 1.68 | BU113: 1.66 | BV113: 1.64 | BW113: 1.62 | BX113: 1.6 | BY113: =IF(BY110>BY115,BY110-(ABS(BY115-BY110))/5*3,BY110+ABS(BY115-BY110)/5*3) -> 1.58 | BZ113: 1.56 | CA113: 1.54 | CB113: 1.52 | CC113: 1.5 | CD113: 1.48
A114: -16 | B114: =VLOOKUP(F108,Berechnung!$G$9:$H$62,2,FALSE)&"05" -> 205 | C114: =IF(Berechnung!$E$6=Berechnung!$E$9,Berechnung!$F$7*HLOOKUP(Berechnung!$N$6,MatrixLuft!$F$3:$AO$1114,FIXED(ROW(A114)-2,0),FALSE),"0") -> 3.82 | D114: =IF(Berechnung!$E$6=Berechnung!$E$9,Berechnung!$F$7*HLOOKUP($D$3,MatrixLuft!$F$3:$AO$1114,FIXED(ROW(A114)-2,0),FALSE),"0") -> 3.82 | E114: =IF(Berechnung!$E$6=Berechnung!$E$9,Berechnung!$F$7*HLOOKUP($E$3,MatrixLuft!$F$3:$AO$1114,FIXED(ROW(A114)-2,0),FALSE),"0") -> 2.65 | F114: =IF(F110>F115,F110-(ABS(F115-F110))/5*4,F110+ABS(F115-F110)/5*4) -> 4.1125 | G114: 4.054 | H114: 3.9955 | I114: 3.937 | J114: 3.8785 | K114: =IF(K110>K115,K110-(ABS(K115-K110))/5*4,K110+ABS(K115-K110)/5*4) -> 3.82 | L114: 3.7615 | M114: 3.703 | N114: 3.6445 | O114: 3.586 | P114: =IF(P110>P115,P110-(ABS(P115-P110))/5*4,P110+ABS(P115-P110)/5*4) -> 3.5275 | Q114: 3.469 | R114: 3.4105 | S114: 3.352 | T114: 3.2935 | U114: =IF(U110>U115,U110-(ABS(U115-U110))/5*4,U110+ABS(U115-U110)/5*4) -> 3.235 | V114: 3.1765 | W114: 3.118 | X114: 3.0595 | Y114: 3.001 | Z114: =IF(Z110>Z115,Z110-(ABS(Z115-Z110))/5*4,Z110+ABS(Z115-Z110)/5*4) -> 2.9425 | AA114: 2.884 | AB114: 2.8255 | AC114: 2.767 | AD114: 2.7085 | AE114: =IF(AE110>AE115,AE110-(ABS(AE115-AE110))/5*4,AE110+ABS(AE115-AE110)/5*4) -> 2.65 | AQ114: -16 | AR114: =IF(Berechnung!$E$6=Berechnung!$E$9,HLOOKUP(Berechnung!$N$6,MatrixLuft!$AU$3:$CD$1114,FIXED(ROW(AQ114)-2,0),FALSE),"0") -> 2.42 | AS114: =IF(Berechnung!$E$6=Berechnung!$E$9,HLOOKUP($D$3,MatrixLuft!$AU$3:$CD$1114,FIXED(ROW(AQ114)-2,0),FALSE),"0") -> 2.42 | AT114: =IF(Berechnung!$E$6=Berechnung!$E$9,HLOOKUP($E$3,MatrixLuft!$AU$3:$CD$1114,FIXED(ROW(AQ114)-2,0),FALSE),"0") -> 1.74 | AU114: 2.59 | AV114: 2.556 | AW114: 2.522 | AX114: 2.488 | AY114: 2.454 | AZ114: =IF(AZ110>AZ115,AZ110-(ABS(AZ115-AZ110))/5*4,AZ110+ABS(AZ115-AZ110)/5*4) -> 2.42 | BA114: 2.386 | BB114: 2.352 | BC114: 2.318 | BD114: 2.284 | BE114: 2.25 | BF114: 2.216 | BG114: 2.182 | BH114: 2.148 | BI114: 2.114 | BJ114: 2.08 | BK114: 2.046 | BL114: 2.012 | BM114: 1.978 | BN114: 1.944 | BO114: 1.91 | BP114: 1.876 | BQ114: 1.842 | BR114: 1.808 | BS114: 1.774 | BT114: =IF(BT110>BT115,BT110-(ABS(BT115-BT110))/5*4,BT110+ABS(BT115-BT110)/5*4) -> 1.74 | BU114: 1.72 | BV114: 1.7 | BW114: 1.68 | BX114: 1.66 | BY114: =IF(BY110>BY115,BY110-(ABS(BY115-BY110))/5*4,BY110+ABS(BY115-BY110)/5*4) -> 1.64 | BZ114: 1.62 | CA114: 1.6 | CB114: 1.58 | CC114: 1.56 | CD114: 1.54
A115: -15 | B115: =VLOOKUP(F108,Berechnung!$G$9:$H$62,2,FALSE)&"06" -> 206 | C115: =IF(Berechnung!$E$6=Berechnung!$E$9,Berechnung!$F$7*HLOOKUP(Berechnung!$N$6,MatrixLuft!$F$3:$AO$1114,FIXED(ROW(A115)-2,0),FALSE),"0") -> 4 | D115: =IF(Berechnung!$E$6=Berechnung!$E$9,Berechnung!$F$7*HLOOKUP($D$3,MatrixLuft!$F$3:$AO$1114,FIXED(ROW(A115)-2,0),FALSE),"0") -> 4 | E115: =IF(Berechnung!$E$6=Berechnung!$E$9,Berechnung!$F$7*HLOOKUP($E$3,MatrixLuft!$F$3:$AO$1114,FIXED(ROW(A115)-2,0),FALSE),"0") -> 2.8 | F115: 4.3 | G115: 4.24 | H115: 4.18 | I115: 4.12 | J115: 4.06 | K115: 4 | L115: 3.94 | M115: 3.88 | N115: 3.82 | O115: 3.76 | P115: 3.7 | Q115: 3.64 | R115: 3.58 | S115: 3.52 | T115: 3.46 | U115: 3.4 | V115: 3.34 | W115: 3.28 | X115: 3.22 | Y115: 3.16 | Z115: 3.1 | AA115: 3.04 | AB115: 2.98 | AC115: 2.92 | AD115: 2.86 | AE115: 2.8 | AQ115: -15 | AR115: =IF(Berechnung!$E$6=Berechnung!$E$9,HLOOKUP(Berechnung!$N$6,MatrixLuft!$AU$3:$CD$1114,FIXED(ROW(AQ115)-2,0),FALSE),"0") -> 2.5 | AS115: =IF(Berechnung!$E$6=Berechnung!$E$9,HLOOKUP($D$3,MatrixLuft!$AU$3:$CD$1114,FIXED(ROW(AQ115)-2,0),FALSE),"0") -> 2.5 | AT115: =IF(Berechnung!$E$6=Berechnung!$E$9,HLOOKUP($E$3,MatrixLuft!$AU$3:$CD$1114,FIXED(ROW(AQ115)-2,0),FALSE),"0") -> 1.8 | AU115: 2.675 | AV115: 2.64 | AW115: 2.605 | AX115: 2.57 | AY115: 2.535 | AZ115: 2.5 | BA115: 2.465 | BB115: 2.43 | BC115: 2.395 | BD115: 2.36 | BE115: 2.325 | BF115: 2.29 | BG115: 2.255 | BH115: 2.22 | BI115: 2.185 | BJ115: 2.15 | BK115: 2.115 | BL115: 2.08 | BM115: 2.045 | BN115: 2.01 | BO115: 1.975 | BP115: 1.94 | BQ115: 1.905 | BR115: 1.87 | BS115: 1.835 | BT115: 1.8 | BU115: 1.78 | BV115: 1.76 | BW115: 1.74 | BX115: 1.72 | BY115: 1.7 | BZ115: 1.68 | CA115: 1.66 | CB115: 1.64 | CC115: 1.62 | CD115: 1.6
A116: -14 | B116: =VLOOKUP(F108,Berechnung!$G$9:$H$62,2,FALSE)&"07" -> 207 | C116: =IF(Berechnung!$E$6=Berechnung!$E$9,Berechnung!$F$7*HLOOKUP(Berechnung!$N$6,MatrixLuft!$F$3:$AO$1114,FIXED(ROW(A116)-2,0),FALSE),"0") -> 4.2 | D116: =IF(Berechnung!$E$6=Berechnung!$E$9,Berechnung!$F$7*HLOOKUP($D$3,MatrixLuft!$F$3:$AO$1114,FIXED(ROW(A116)-2,0),FALSE),"0") -> 4.2 | E116: =IF(Berechnung!$E$6=Berechnung!$E$9,Berechnung!$F$7*HLOOKUP($E$3,MatrixLuft!$F$3:$AO$1114,FIXED(ROW(A116)-2,0),FALSE),"0") -> 3.02 | F116: =IF(F115>F120,F115-(ABS(F120-F115))/5*1,F115+ABS(F120-F115)/5*1) -> 4.495 | G116: 4.436 | H116: 4.377 | I116: 4.318 | J116: 4.259 | K116: =IF(K115>K120,K115-(ABS(K120-K115))/5*1,K115+ABS(K120-K115)/5*1) -> 4.2 | L116: 4.141 | M116: 4.082 | N116: 4.023 | O116: 3.964 | P116: =IF(P115>P120,P115-(ABS(P120-P115))/5*1,P115+ABS(P120-P115)/5*1) -> 3.905 | Q116: 3.846 | R116: 3.787 | S116: 3.728 | T116: 3.669 | U116: =IF(U115>U120,U115-(ABS(U120-U115))/5*1,U115+ABS(U120-U115)/5*1) -> 3.61 | V116: 3.551 | W116: 3.492 | X116: 3.433 | Y116: 3.374 | Z116: =IF(Z115>Z120,Z115-(ABS(Z120-Z115))/5*1,Z115+ABS(Z120-Z115)/5*1) -> 3.315 | AA116: 3.256 | AB116: 3.197 | AC116: 3.138 | AD116: 3.079 | AE116: =IF(AE115>AE120,AE115-(ABS(AE120-AE115))/5*1,AE115+ABS(AE120-AE115)/5*1) -> 3.02 | AQ116: -14 | AR116: =IF(Berechnung!$E$6=Berechnung!$E$9,HLOOKUP(Berechnung!$N$6,MatrixLuft!$AU$3:$CD$1114,FIXED(ROW(AQ116)-2,0),FALSE),"0") -> 2.55 | AS116: =IF(Berechnung!$E$6=Berechnung!$E$9,HLOOKUP($D$3,MatrixLuft!$AU$3:$CD$1114,FIXED(ROW(AQ116)-2,0),FALSE),"0") -> 2.55 | AT116: =IF(Berechnung!$E$6=Berechnung!$E$9,HLOOKUP($E$3,MatrixLuft!$AU$3:$CD$1114,FIXED(ROW(AQ116)-2,0),FALSE),"0") -> 1.85 | AU116: 2.725 | AV116: 2.69 | AW116: 2.655 | AX116: 2.62 | AY116: 2.585 | AZ116: =IF(AZ115>AZ123,AZ115-(ABS(AZ123-AZ115))/8*1,AZ115+ABS(AZ123-AZ115)/8*1) -> 2.55 | BA116: 2.515 | BB116: 2.48 | BC116: 2.445 | BD116: 2.41 | BE116: 2.375 | BF116: 2.34 | BG116: 2.305 | BH116: 2.27 | BI116: 2.235 | BJ116: 2.2 | BK116: 2.165 | BL116: 2.13 | BM116: 2.095 | BN116: 2.06 | BO116: 2.025 | BP116: 1.99 | BQ116: 1.955 | BR116: 1.92 | BS116: 1.885 | BT116: =IF(BT115>BT123,BT115-(ABS(BT123-BT115))/8*1,BT115+ABS(BT123-BT115)/8*1) -> 1.85 | BU116: 1.83 | BV116: 1.81 | BW116: 1.79 | BX116: 1.77 | BY116: =IF(BY115>BY123,BY115-(ABS(BY123-BY115))/8*1,BY115+ABS(BY123-BY115)/8*1) -> 1.75 | BZ116: 1.73 | CA116: 1.71 | CB116: 1.69 | CC116: 1.67 | CD116: 1.65
A117: -13 | B117: =VLOOKUP(F108,Berechnung!$G$9:$H$62,2,FALSE)&"08" -> 208 | C117: =IF(Berechnung!$E$6=Berechnung!$E$9,Berechnung!$F$7*HLOOKUP(Berechnung!$N$6,MatrixLuft!$F$3:$AO$1114,FIXED(ROW(A117)-2,0),FALSE),"0") -> 4.4 | D117: =IF(Berechnung!$E$6=Berechnung!$E$9,Berechnung!$F$7*HLOOKUP($D$3,MatrixLuft!$F$3:$AO$1114,FIXED(ROW(A117)-2,0),FALSE),"0") -> 4.4 | E117: =IF(Berechnung!$E$6=Berechnung!$E$9,Berechnung!$F$7*HLOOKUP($E$3,MatrixLuft!$F$3:$AO$1114,FIXED(ROW(A117)-2,0),FALSE),"0") -> 3.24 | F117: =IF(F115>F120,F115-(ABS(F120-F115))/5*2,F115+ABS(F120-F115)/5*2) -> 4.69 | G117: 4.632 | H117: 4.574 | I117: 4.516 | J117: 4.458 | K117: =IF(K115>K120,K115-(ABS(K120-K115))/5*2,K115+ABS(K120-K115)/5*2) -> 4.4 | L117: 4.342 | M117: 4.284 | N117: 4.226 | O117: 4.168 | P117: =IF(P115>P120,P115-(ABS(P120-P115))/5*2,P115+ABS(P120-P115)/5*2) -> 4.11 | Q117: 4.052 | R117: 3.994 | S117: 3.936 | T117: 3.878 | U117: =IF(U115>U120,U115-(ABS(U120-U115))/5*2,U115+ABS(U120-U115)/5*2) -> 3.82 | V117: 3.762 | W117: 3.704 | X117: 3.646 | Y117: 3.588 | Z117: =IF(Z115>Z120,Z115-(ABS(Z120-Z115))/5*2,Z115+ABS(Z120-Z115)/5*2) -> 3.53 | AA117: 3.472 | AB117: 3.414 | AC117: 3.356 | AD117: 3.298 | AE117: =IF(AE115>AE120,AE115-(ABS(AE120-AE115))/5*2,AE115+ABS(AE120-AE115)/5*2) -> 3.24 | AQ117: -13 | AR117: =IF(Berechnung!$E$6=Berechnung!$E$9,HLOOKUP(Berechnung!$N$6,MatrixLuft!$AU$3:$CD$1114,FIXED(ROW(AQ117)-2,0),FALSE),"0") -> 2.6 | AS117: =IF(Berechnung!$E$6=Berechnung!$E$9,HLOOKUP($D$3,MatrixLuft!$AU$3:$CD$1114,FIXED(ROW(AQ117)-2,0),FALSE),"0") -> 2.6 | AT117: =IF(Berechnung!$E$6=Berechnung!$E$9,HLOOKUP($E$3,MatrixLuft!$AU$3:$CD$1114,FIXED(ROW(AQ117)-2,0),FALSE),"0") -> 1.9 | AU117: 2.775 | AV117: 2.74 | AW117: 2.705 | AX117: 2.67 | AY117: 2.635 | AZ117: =IF(AZ115>AZ123,AZ115-(ABS(AZ123-AZ115))/8*2,AZ115+ABS(AZ123-AZ115)/8*2) -> 2.6 | BA117: 2.565 | BB117: 2.53 | BC117: 2.495 | BD117: 2.46 | BE117: 2.425 | BF117: 2.39 | BG117: 2.355 | BH117: 2.32 | BI117: 2.285 | BJ117: 2.25 | BK117: 2.215 | BL117: 2.18 | BM117: 2.145 | BN117: 2.11 | BO117: 2.075 | BP117: 2.04 | BQ117: 2.005 | BR117: 1.97 | BS117: 1.935 | BT117: =IF(BT115>BT123,BT115-(ABS(BT123-BT115))/8*2,BT115+ABS(BT123-BT115)/8*2) -> 1.9 | BU117: 1.88 | BV117: 1.86 | BW117: 1.84 | BX117: 1.82 | BY117: =IF(BY115>BY123,BY115-(ABS(BY123-BY115))/8*2,BY115+ABS(BY123-BY115)/8*2) -> 1.8 | BZ117: 1.78 | CA117: 1.76 | CB117: 1.74 | CC117: 1.72 | CD117: 1.7
A118: -12 | B118: =VLOOKUP(F108,Berechnung!$G$9:$H$62,2,FALSE)&"09" -> 209 | C118: =IF(Berechnung!$E$6=Berechnung!$E$9,Berechnung!$F$7*HLOOKUP(Berechnung!$N$6,MatrixLuft!$F$3:$AO$1114,FIXED(ROW(A118)-2,0),FALSE),"0") -> 4.6 | D118: =IF(Berechnung!$E$6=Berechnung!$E$9,Berechnung!$F$7*HLOOKUP($D$3,MatrixLuft!$F$3:$AO$1114,FIXED(ROW(A118)-2,0),FALSE),"0") -> 4.6 | E118: =IF(Berechnung!$E$6=Berechnung!$E$9,Berechnung!$F$7*HLOOKUP($E$3,MatrixLuft!$F$3:$AO$1114,FIXED(ROW(A118)-2,0),FALSE),"0") -> 3.46 | F118: =IF(F115>F120,F115-(ABS(F120-F115))/5*3,F115+ABS(F120-F115)/5*3) -> 4.885 | G118: 4.828 | H118: 4.771 | I118: 4.714 | J118: 4.657 | K118: =IF(K115>K120,K115-(ABS(K120-K115))/5*3,K115+ABS(K120-K115)/5*3) -> 4.6 | L118: 4.543 | M118: 4.486 | N118: 4.429 | O118: 4.372 | P118: =IF(P115>P120,P115-(ABS(P120-P115))/5*3,P115+ABS(P120-P115)/5*3) -> 4.315 | Q118: 4.258 | R118: 4.201 | S118: 4.144 | T118: 4.087 | U118: =IF(U115>U120,U115-(ABS(U120-U115))/5*3,U115+ABS(U120-U115)/5*3) -> 4.03 | V118: 3.973 | W118: 3.916 | X118: 3.859 | Y118: 3.802 | Z118: =IF(Z115>Z120,Z115-(ABS(Z120-Z115))/5*3,Z115+ABS(Z120-Z115)/5*3) -> 3.745 | AA118: 3.688 | AB118: 3.631 | AC118: 3.574 | AD118: 3.517 | AE118: =IF(AE115>AE120,AE115-(ABS(AE120-AE115))/5*3,AE115+ABS(AE120-AE115)/5*3) -> 3.46 | AQ118: -12 | AR118: =IF(Berechnung!$E$6=Berechnung!$E$9,HLOOKUP(Berechnung!$N$6,MatrixLuft!$AU$3:$CD$1114,FIXED(ROW(AQ118)-2,0),FALSE),"0") -> 2.65 | AS118: =IF(Berechnung!$E$6=Berechnung!$E$9,HLOOKUP($D$3,MatrixLuft!$AU$3:$CD$1114,FIXED(ROW(AQ118)-2,0),FALSE),"0") -> 2.65 | AT118: =IF(Berechnung!$E$6=Berechnung!$E$9,HLOOKUP($E$3,MatrixLuft!$AU$3:$CD$1114,FIXED(ROW(AQ118)-2,0),FALSE),"0") -> 1.95 | AU118: 2.825 | AV118: 2.79 | AW118: 2.755 | AX118: 2.72 | AY118: 2.685 | AZ118: =IF(AZ115>AZ123,AZ115-(ABS(AZ123-AZ115))/8*3,AZ115+ABS(AZ123-AZ115)/8*3) -> 2.65 | BA118: 2.615 | BB118: 2.58 | BC118: 2.545 | BD118: 2.51 | BE118: 2.475 | BF118: 2.44 | BG118: 2.405 | BH118: 2.37 | BI118: 2.335 | BJ118: 2.3 | BK118: 2.265 | BL118: 2.23 | BM118: 2.195 | BN118: 2.16 | BO118: 2.125 | BP118: 2.09 | BQ118: 2.055 | BR118: 2.02 | BS118: 1.985 | BT118: =IF(BT115>BT123,BT115-(ABS(BT123-BT115))/8*3,BT115+ABS(BT123-BT115)/8*3) -> 1.95 | BU118: 1.93 | BV118: 1.91 | BW118: 1.89 | BX118: 1.87 | BY118: =IF(BY115>BY123,BY115-(ABS(BY123-BY115))/8*3,BY115+ABS(BY123-BY115)/8*3) -> 1.85 | BZ118: 1.83 | CA118: 1.81 | CB118: 1.79 | CC118: 1.77 | CD118: 1.75
A119: -11 | B119: =VLOOKUP(F108,Berechnung!$G$9:$H$62,2,FALSE)&"10" -> 210 | C119: =IF(Berechnung!$E$6=Berechnung!$E$9,Berechnung!$F$7*HLOOKUP(Berechnung!$N$6,MatrixLuft!$F$3:$AO$1114,FIXED(ROW(A119)-2,0),FALSE),"0") -> 4.8 | D119: =IF(Berechnung!$E$6=Berechnung!$E$9,Berechnung!$F$7*HLOOKUP($D$3,MatrixLuft!$F$3:$AO$1114,FIXED(ROW(A119)-2,0),FALSE),"0") -> 4.8 | E119: =IF(Berechnung!$E$6=Berechnung!$E$9,Berechnung!$F$7*HLOOKUP($E$3,MatrixLuft!$F$3:$AO$1114,FIXED(ROW(A119)-2,0),FALSE),"0") -> 3.68 | F119: =IF(F115>F120,F115-(ABS(F120-F115))/5*4,F115+ABS(F120-F115)/5*4) -> 5.08 | G119: 5.024 | H119: 4.968 | I119: 4.912 | J119: 4.856 | K119: =IF(K115>K120,K115-(ABS(K120-K115))/5*4,K115+ABS(K120-K115)/5*4) -> 4.8 | L119: 4.744 | M119: 4.688 | N119: 4.632 | O119: 4.576 | P119: =IF(P115>P120,P115-(ABS(P120-P115))/5*4,P115+ABS(P120-P115)/5*4) -> 4.52 | Q119: 4.464 | R119: 4.408 | S119: 4.352 | T119: 4.296 | U119: =IF(U115>U120,U115-(ABS(U120-U115))/5*4,U115+ABS(U120-U115)/5*4) -> 4.24 | V119: 4.184 | W119: 4.128 | X119: 4.072 | Y119: 4.016 | Z119: =IF(Z115>Z120,Z115-(ABS(Z120-Z115))/5*4,Z115+ABS(Z120-Z115)/5*4) -> 3.96 | AA119: 3.904 | AB119: 3.848 | AC119: 3.792 | AD119: 3.736 | AE119: =IF(AE115>AE120,AE115-(ABS(AE120-AE115))/5*4,AE115+ABS(AE120-AE115)/5*4) -> 3.68 | AQ119: -11 | AR119: =IF(Berechnung!$E$6=Berechnung!$E$9,HLOOKUP(Berechnung!$N$6,MatrixLuft!$AU$3:$CD$1114,FIXED(ROW(AQ119)-2,0),FALSE),"0") -> 2.7 | AS119: =IF(Berechnung!$E$6=Berechnung!$E$9,HLOOKUP($D$3,MatrixLuft!$AU$3:$CD$1114,FIXED(ROW(AQ119)-2,0),FALSE),"0") -> 2.7 | AT119: =IF(Berechnung!$E$6=Berechnung!$E$9,HLOOKUP($E$3,MatrixLuft!$AU$3:$CD$1114,FIXED(ROW(AQ119)-2,0),FALSE),"0") -> 2 | AU119: 2.875 | AV119: 2.84 | AW119: 2.805 | AX119: 2.77 | AY119: 2.735 | AZ119: =IF(AZ115>AZ123,AZ115-(ABS(AZ123-AZ115))/8*4,AZ115+ABS(AZ123-AZ115)/8*4) -> 2.7 | BA119: 2.665 | BB119: 2.63 | BC119: 2.595 | BD119: 2.56 | BE119: 2.525 | BF119: 2.49 | BG119: 2.455 | BH119: 2.42 | BI119: 2.385 | BJ119: 2.35 | BK119: 2.315 | BL119: 2.28 | BM119: 2.245 | BN119: 2.21 | BO119: 2.175 | BP119: 2.14 | BQ119: 2.105 | BR119: 2.07 | BS119: 2.035 | BT119: =IF(BT115>BT123,BT115-(ABS(BT123-BT115))/8*4,BT115+ABS(BT123-BT115)/8*4) -> 2 | BU119: 1.98 | BV119: 1.96 | BW119: 1.94 | BX119: 1.92 | BY119: =IF(BY115>BY123,BY115-(ABS(BY123-BY115))/8*4,BY115+ABS(BY123-BY115)/8*4) -> 1.9 | BZ119: 1.88 | CA119: 1.86 | CB119: 1.84 | CC119: 1.82 | CD119: 1.8
A120: -10 | B120: =VLOOKUP(F108,Berechnung!$G$9:$H$62,2,FALSE)&"11" -> 211 | C120: =IF(Berechnung!$E$6=Berechnung!$E$9,Berechnung!$F$7*HLOOKUP(Berechnung!$N$6,MatrixLuft!$F$3:$AO$1114,FIXED(ROW(A120)-2,0),FALSE),"0") -> 5 | D120: =IF(Berechnung!$E$6=Berechnung!$E$9,Berechnung!$F$7*HLOOKUP($D$3,MatrixLuft!$F$3:$AO$1114,FIXED(ROW(A120)-2,0),FALSE),"0") -> 5 | E120: =IF(Berechnung!$E$6=Berechnung!$E$9,Berechnung!$F$7*HLOOKUP($E$3,MatrixLuft!$F$3:$AO$1114,FIXED(ROW(A120)-2,0),FALSE),"0") -> 3.9 | F120: 5.275 | G120: 5.22 | H120: 5.165 | I120: 5.11 | J120: 5.055 | K120: 5 | L120: 4.945 | M120: 4.89 | N120: 4.835 | O120: 4.78 | P120: 4.725 | Q120: 4.67 | R120: 4.615 | S120: 4.56 | T120: 4.505 | U120: 4.45 | V120: 4.395 | W120: 4.34 | X120: 4.285 | Y120: 4.23 | Z120: 4.175 | AA120: 4.12 | AB120: 4.065 | AC120: 4.01 | AD120: 3.955 | AE120: 3.9 | AQ120: -10 | AR120: =IF(Berechnung!$E$6=Berechnung!$E$9,HLOOKUP(Berechnung!$N$6,MatrixLuft!$AU$3:$CD$1114,FIXED(ROW(AQ120)-2,0),FALSE),"0") -> 2.75 | AS120: =IF(Berechnung!$E$6=Berechnung!$E$9,HLOOKUP($D$3,MatrixLuft!$AU$3:$CD$1114,FIXED(ROW(AQ120)-2,0),FALSE),"0") -> 2.75 | AT120: =IF(Berechnung!$E$6=Berechnung!$E$9,HLOOKUP($E$3,MatrixLuft!$AU$3:$CD$1114,FIXED(ROW(AQ120)-2,0),FALSE),"0") -> 2.05 | AU120: 2.925 | AV120: 2.89 | AW120: 2.855 | AX120: 2.82 | AY120: 2.785 | AZ120: =IF(AZ115>AZ123,AZ115-(ABS(AZ123-AZ115))/8*5,AZ115+ABS(AZ123-AZ115)/8*5) -> 2.75 | BA120: 2.715 | BB120: 2.68 | BC120: 2.645 | BD120: 2.61 | BE120: 2.575 | BF120: 2.54 | BG120: 2.505 | BH120: 2.47 | BI120: 2.435 | BJ120: 2.4 | BK120: 2.365 | BL120: 2.33 | BM120: 2.295 | BN120: 2.26 | BO120: 2.225 | BP120: 2.19 | BQ120: 2.155 | BR120: 2.12 | BS120: 2.085 | BT120: =IF(BT115>BT123,BT115-(ABS(BT123-BT115))/8*5,BT115+ABS(BT123-BT115)/8*5) -> 2.05 | BU120: 2.03 | BV120: 2.01 | BW120: 1.99 | BX120: 1.97 | BY120: =IF(BY115>BY123,BY115-(ABS(BY123-BY115))/8*5,BY115+ABS(BY123-BY115)/8*5) -> 1.95 | BZ120: 1.93 | CA120: 1.91 | CB120: 1.89 | CC120: 1.87 | CD120: 1.85
A121: -9 | B121: =VLOOKUP(F108,Berechnung!$G$9:$H$62,2,FALSE)&"12" -> 212 | C121: =IF(Berechnung!$E$6=Berechnung!$E$9,Berechnung!$F$7*HLOOKUP(Berechnung!$N$6,MatrixLuft!$F$3:$AO$1114,FIXED(ROW(A121)-2,0),FALSE),"0") -> 5.16 | D121: =IF(Berechnung!$E$6=Berechnung!$E$9,Berechnung!$F$7*HLOOKUP($D$3,MatrixLuft!$F$3:$AO$1114,FIXED(ROW(A121)-2,0),FALSE),"0") -> 5.16 | E121: =IF(Berechnung!$E$6=Berechnung!$E$9,Berechnung!$F$7*HLOOKUP($E$3,MatrixLuft!$F$3:$AO$1114,FIXED(ROW(A121)-2,0),FALSE),"0") -> 4.08 | F121: =IF(F120>F125,F120-(ABS(F125-F120))/5*1,F120+ABS(F125-F120)/5*1) -> 5.43 | G121: 5.376 | H121: 5.322 | I121: 5.268 | J121: 5.214 | K121: =IF(K120>K125,K120-(ABS(K125-K120))/5*1,K120+ABS(K125-K120)/5*1) -> 5.16 | L121: 5.106 | M121: 5.052 | N121: 4.998 | O121: 4.944 | P121: =IF(P120>P125,P120-(ABS(P125-P120))/5*1,P120+ABS(P125-P120)/5*1) -> 4.89 | Q121: 4.836 | R121: 4.782 | S121: 4.728 | T121: 4.674 | U121: =IF(U120>U125,U120-(ABS(U125-U120))/5*1,U120+ABS(U125-U120)/5*1) -> 4.62 | V121: 4.566 | W121: 4.512 | X121: 4.458 | Y121: 4.404 | Z121: =IF(Z120>Z125,Z120-(ABS(Z125-Z120))/5*1,Z120+ABS(Z125-Z120)/5*1) -> 4.35 | AA121: 4.296 | AB121: 4.242 | AC121: 4.188 | AD121: 4.134 | AE121: =IF(AE120>AE125,AE120-(ABS(AE125-AE120))/5*1,AE120+ABS(AE125-AE120)/5*1) -> 4.08 | AQ121: -9 | AR121: =IF(Berechnung!$E$6=Berechnung!$E$9,HLOOKUP(Berechnung!$N$6,MatrixLuft!$AU$3:$CD$1114,FIXED(ROW(AQ121)-2,0),FALSE),"0") -> 2.8 | AS121: =IF(Berechnung!$E$6=Berechnung!$E$9,HLOOKUP($D$3,MatrixLuft!$AU$3:$CD$1114,FIXED(ROW(AQ121)-2,0),FALSE),"0") -> 2.8 | AT121: =IF(Berechnung!$E$6=Berechnung!$E$9,HLOOKUP($E$3,MatrixLuft!$AU$3:$CD$1114,FIXED(ROW(AQ121)-2,0),FALSE),"0") -> 2.1 | AU121: 2.975 | AV121: 2.94 | AW121: 2.905 | AX121: 2.87 | AY121: 2.835 | AZ121: =IF(AZ115>AZ123,AZ115-(ABS(AZ123-AZ115))/8*6,AZ115+ABS(AZ123-AZ115)/8*6) -> 2.8 | BA121: 2.765 | BB121: 2.73 | BC121: 2.695 | BD121: 2.66 | BE121: 2.625 | BF121: 2.59 | BG121: 2.555 | BH121: 2.52 | BI121: 2.485 | BJ121: 2.45 | BK121: 2.415 | BL121: 2.38 | BM121: 2.345 | BN121: 2.31 | BO121: 2.275 | BP121: 2.24 | BQ121: 2.205 | BR121: 2.17 | BS121: 2.135 | BT121: =IF(BT115>BT123,BT115-(ABS(BT123-BT115))/8*6,BT115+ABS(BT123-BT115)/8*6) -> 2.1 | BU121: 2.08 | BV121: 2.06 | BW121: 2.04 | BX121: 2.02 | BY121: =IF(BY115>BY123,BY115-(ABS(BY123-BY115))/8*6,BY115+ABS(BY123-BY115)/8*6) -> 2 | BZ121: 1.98 | CA121: 1.96 | CB121: 1.94 | CC121: 1.92 | CD121: 1.9
A122: -8 | B122: =VLOOKUP(F108,Berechnung!$G$9:$H$62,2,FALSE)&"13" -> 213 | C122: =IF(Berechnung!$E$6=Berechnung!$E$9,Berechnung!$F$7*HLOOKUP(Berechnung!$N$6,MatrixLuft!$F$3:$AO$1114,FIXED(ROW(A122)-2,0),FALSE),"0") -> 5.32 | D122: =IF(Berechnung!$E$6=Berechnung!$E$9,Berechnung!$F$7*HLOOKUP($D$3,MatrixLuft!$F$3:$AO$1114,FIXED(ROW(A122)-2,0),FALSE),"0") -> 5.32 | E122: =IF(Berechnung!$E$6=Berechnung!$E$9,Berechnung!$F$7*HLOOKUP($E$3,MatrixLuft!$F$3:$AO$1114,FIXED(ROW(A122)-2,0),FALSE),"0") -> 4.26 | F122: =IF(F120>F125,F120-(ABS(F125-F120))/5*2,F120+ABS(F125-F120)/5*2) -> 5.585 | G122: 5.532 | H122: 5.479 | I122: 5.426 | J122: 5.373 | K122: =IF(K120>K125,K120-(ABS(K125-K120))/5*2,K120+ABS(K125-K120)/5*2) -> 5.32 | L122: 5.267 | M122: 5.214 | N122: 5.161 | O122: 5.108 | P122: =IF(P120>P125,P120-(ABS(P125-P120))/5*2,P120+ABS(P125-P120)/5*2) -> 5.055 | Q122: 5.002 | R122: 4.949 | S122: 4.896 | T122: 4.843 | U122: =IF(U120>U125,U120-(ABS(U125-U120))/5*2,U120+ABS(U125-U120)/5*2) -> 4.79 | V122: 4.737 | W122: 4.684 | X122: 4.631 | Y122: 4.578 | Z122: =IF(Z120>Z125,Z120-(ABS(Z125-Z120))/5*2,Z120+ABS(Z125-Z120)/5*2) -> 4.525 | AA122: 4.472 | AB122: 4.419 | AC122: 4.366 | AD122: 4.313 | AE122: =IF(AE120>AE125,AE120-(ABS(AE125-AE120))/5*2,AE120+ABS(AE125-AE120)/5*2) -> 4.26 | AQ122: -8 | AR122: =IF(Berechnung!$E$6=Berechnung!$E$9,HLOOKUP(Berechnung!$N$6,MatrixLuft!$AU$3:$CD$1114,FIXED(ROW(AQ122)-2,0),FALSE),"0") -> 2.85 | AS122: =IF(Berechnung!$E$6=Berechnung!$E$9,HLOOKUP($D$3,MatrixLuft!$AU$3:$CD$1114,FIXED(ROW(AQ122)-2,0),FALSE),"0") -> 2.85 | AT122: =IF(Berechnung!$E$6=Berechnung!$E$9,HLOOKUP($E$3,MatrixLuft!$AU$3:$CD$1114,FIXED(ROW(AQ122)-2,0),FALSE),"0") -> 2.15 | AU122: 3.025 | AV122: 2.99 | AW122: 2.955 | AX122: 2.92 | AY122: 2.885 | AZ122: =IF(AZ115>AZ123,AZ115-(ABS(AZ123-AZ115))/8*7,AZ115+ABS(AZ123-AZ115)/8*7) -> 2.85 | BA122: 2.815 | BB122: 2.78 | BC122: 2.745 | BD122: 2.71 | BE122: 2.675 | BF122: 2.64 | BG122: 2.605 | BH122: 2.57 | BI122: 2.535 | BJ122: 2.5 | BK122: 2.465 | BL122: 2.43 | BM122: 2.395 | BN122: 2.36 | BO122: 2.325 | BP122: 2.29 | BQ122: 2.255 | BR122: 2.22 | BS122: 2.185 | BT122: =IF(BT115>BT123,BT115-(ABS(BT123-BT115))/8*7,BT115+ABS(BT123-BT115)/8*7) -> 2.15 | BU122: 2.13 | BV122: 2.11 | BW122: 2.09 | BX122: 2.07 | BY122: =IF(BY115>BY123,BY115-(ABS(BY123-BY115))/8*7,BY115+ABS(BY123-BY115)/8*7) -> 2.05 | BZ122: 2.03 | CA122: 2.01 | CB122: 1.99 | CC122: 1.97 | CD122: 1.95
A123: -7 | B123: =VLOOKUP(F108,Berechnung!$G$9:$H$62,2,FALSE)&"14" -> 214 | C123: =IF(Berechnung!$E$6=Berechnung!$E$9,Berechnung!$F$7*HLOOKUP(Berechnung!$N$6,MatrixLuft!$F$3:$AO$1114,FIXED(ROW(A123)-2,0),FALSE),"0") -> 5.48 | D123: =IF(Berechnung!$E$6=Berechnung!$E$9,Berechnung!$F$7*HLOOKUP($D$3,MatrixLuft!$F$3:$AO$1114,FIXED(ROW(A123)-2,0),FALSE),"0") -> 5.48 | E123: =IF(Berechnung!$E$6=Berechnung!$E$9,Berechnung!$F$7*HLOOKUP($E$3,MatrixLuft!$F$3:$AO$1114,FIXED(ROW(A123)-2,0),FALSE),"0") -> 4.44 | F123: =IF(F120>F125,F120-(ABS(F125-F120))/5*3,F120+ABS(F125-F120)/5*3) -> 5.74 | G123: 5.688 | H123: 5.636 | I123: 5.584 | J123: 5.532 | K123: =IF(K120>K125,K120-(ABS(K125-K120))/5*3,K120+ABS(K125-K120)/5*3) -> 5.48 | L123: 5.428 | M123: 5.376 | N123: 5.324 | O123: 5.272 | P123: =IF(P120>P125,P120-(ABS(P125-P120))/5*3,P120+ABS(P125-P120)/5*3) -> 5.22 | Q123: 5.168 | R123: 5.116 | S123: 5.064 | T123: 5.012 | U123: =IF(U120>U125,U120-(ABS(U125-U120))/5*3,U120+ABS(U125-U120)/5*3) -> 4.96 | V123: 4.908 | W123: 4.856 | X123: 4.804 | Y123: 4.752 | Z123: =IF(Z120>Z125,Z120-(ABS(Z125-Z120))/5*3,Z120+ABS(Z125-Z120)/5*3) -> 4.7 | AA123: 4.648 | AB123: 4.596 | AC123: 4.544 | AD123: 4.492 | AE123: =IF(AE120>AE125,AE120-(ABS(AE125-AE120))/5*3,AE120+ABS(AE125-AE120)/5*3) -> 4.44 | AQ123: -7 | AR123: =IF(Berechnung!$E$6=Berechnung!$E$9,HLOOKUP(Berechnung!$N$6,MatrixLuft!$AU$3:$CD$1114,FIXED(ROW(AQ123)-2,0),FALSE),"0") -> 2.9 | AS123: =IF(Berechnung!$E$6=Berechnung!$E$9,HLOOKUP($D$3,MatrixLuft!$AU$3:$CD$1114,FIXED(ROW(AQ123)-2,0),FALSE),"0") -> 2.9 | AT123: =IF(Berechnung!$E$6=Berechnung!$E$9,HLOOKUP($E$3,MatrixLuft!$AU$3:$CD$1114,FIXED(ROW(AQ123)-2,0),FALSE),"0") -> 2.2 | AU123: 3.075 | AV123: 3.04 | AW123: 3.005 | AX123: 2.97 | AY123: 2.935 | AZ123: 2.9 | BA123: 2.865 | BB123: 2.83 | BC123: 2.795 | BD123: 2.76 | BE123: 2.725 | BF123: 2.69 | BG123: 2.655 | BH123: 2.62 | BI123: 2.585 | BJ123: 2.55 | BK123: 2.515 | BL123: 2.48 | BM123: 2.445 | BN123: 2.41 | BO123: 2.375 | BP123: 2.34 | BQ123: 2.305 | BR123: 2.27 | BS123: 2.235 | BT123: 2.2 | BU123: 2.18 | BV123: 2.16 | BW123: 2.14 | BX123: 2.12 | BY123: 2.1 | BZ123: 2.08 | CA123: 2.06 | CB123: 2.04 | CC123: 2.02 | CD123: 2
A124: -6 | B124: =VLOOKUP(F108,Berechnung!$G$9:$H$62,2,FALSE)&"15" -> 215 | C124: =IF(Berechnung!$E$6=Berechnung!$E$9,Berechnung!$F$7*HLOOKUP(Berechnung!$N$6,MatrixLuft!$F$3:$AO$1114,FIXED(ROW(A124)-2,0),FALSE),"0") -> 5.64 | D124: =IF(Berechnung!$E$6=Berechnung!$E$9,Berechnung!$F$7*HLOOKUP($D$3,MatrixLuft!$F$3:$AO$1114,FIXED(ROW(A124)-2,0),FALSE),"0") -> 5.64 | E124: =IF(Berechnung!$E$6=Berechnung!$E$9,Berechnung!$F$7*HLOOKUP($E$3,MatrixLuft!$F$3:$AO$1114,FIXED(ROW(A124)-2,0),FALSE),"0") -> 4.62 | F124: =IF(F120>F125,F120-(ABS(F125-F120))/5*4,F120+ABS(F125-F120)/5*4) -> 5.895 | G124: 5.844 | H124: 5.793 | I124: 5.742 | J124: 5.691 | K124: =IF(K120>K125,K120-(ABS(K125-K120))/5*4,K120+ABS(K125-K120)/5*4) -> 5.64 | L124: 5.589 | M124: 5.538 | N124: 5.487 | O124: 5.436 | P124: =IF(P120>P125,P120-(ABS(P125-P120))/5*4,P120+ABS(P125-P120)/5*4) -> 5.385 | Q124: 5.334 | R124: 5.283 | S124: 5.232 | T124: 5.181 | U124: =IF(U120>U125,U120-(ABS(U125-U120))/5*4,U120+ABS(U125-U120)/5*4) -> 5.13 | V124: 5.079 | W124: 5.028 | X124: 4.977 | Y124: 4.926 | Z124: =IF(Z120>Z125,Z120-(ABS(Z125-Z120))/5*4,Z120+ABS(Z125-Z120)/5*4) -> 4.875 | AA124: 4.824 | AB124: 4.773 | AC124: 4.722 | AD124: 4.671 | AE124: =IF(AE120>AE125,AE120-(ABS(AE125-AE120))/5*4,AE120+ABS(AE125-AE120)/5*4) -> 4.62 | AQ124: -6 | AR124: =IF(Berechnung!$E$6=Berechnung!$E$9,HLOOKUP(Berechnung!$N$6,MatrixLuft!$AU$3:$CD$1114,FIXED(ROW(AQ124)-2,0),FALSE),"0") -> 2.933333333 | AS124: =IF(Berechnung!$E$6=Berechnung!$E$9,HLOOKUP($D$3,MatrixLuft!$AU$3:$CD$1114,FIXED(ROW(AQ124)-2,0),FALSE),"0") -> 2.933333333 | AT124: =IF(Berechnung!$E$6=Berechnung!$E$9,HLOOKUP($E$3,MatrixLuft!$AU$3:$CD$1114,FIXED(ROW(AQ124)-2,0),FALSE),"0") -> 2.233333333 | AU124: 3.108333333 | AV124: 3.073333333 | AW124: 3.038333333 | AX124: 3.003333333 | AY124: 2.968333333 | AZ124: =IF(AZ123>AZ132,AZ123-(ABS(AZ132-AZ123))/9*1,AZ123+ABS(AZ132-AZ123)/9*1) -> 2.933333333 | BA124: 2.898333333 | BB124: 2.863333333 | BC124: 2.828333333 | BD124: 2.793333333 | BE124: 2.758333333 | BF124: 2.723333333 | BG124: 2.688333333 | BH124: 2.653333333 | BI124: 2.618333333 | BJ124: 2.583333333 | BK124: 2.548333333 | BL124: 2.513333333 | BM124: 2.478333333 | BN124: 2.443333333 | BO124: 2.408333333 | BP124: 2.373333333 | BQ124: 2.338333333 | BR124: 2.303333333 | BS124: 2.268333333 | BT124: =IF(BT123>BT132,BT123-(ABS(BT132-BT123))/9*1,BT123+ABS(BT132-BT123)/9*1) -> 2.233333333 | BU124: 2.213333333 | BV124: 2.193333333 | BW124: 2.173333333 | BX124: 2.153333333 | BY124: =IF(BY123>BY132,BY123-(ABS(BY132-BY123))/9*1,BY123+ABS(BY132-BY123)/9*1) -> 2.133333333 | BZ124: 2.113333333 | CA124: 2.093333333 | CB124: 2.073333333 | CC124: 2.053333333 | CD124: 2.033333333
A125: -5 | B125: =VLOOKUP(F108,Berechnung!$G$9:$H$62,2,FALSE)&"16" -> 216 | C125: =IF(Berechnung!$E$6=Berechnung!$E$9,Berechnung!$F$7*HLOOKUP(Berechnung!$N$6,MatrixLuft!$F$3:$AO$1114,FIXED(ROW(A125)-2,0),FALSE),"0") -> 5.8 | D125: =IF(Berechnung!$E$6=Berechnung!$E$9,Berechnung!$F$7*HLOOKUP($D$3,MatrixLuft!$F$3:$AO$1114,FIXED(ROW(A125)-2,0),FALSE),"0") -> 5.8 | E125: =IF(Berechnung!$E$6=Berechnung!$E$9,Berechnung!$F$7*HLOOKUP($E$3,MatrixLuft!$F$3:$AO$1114,FIXED(ROW(A125)-2,0),FALSE),"0") -> 4.8 | F125: 6.05 | G125: 6 | H125: 5.95 | I125: 5.9 | J125: 5.85 | K125: 5.8 | L125: 5.75 | M125: 5.7 | N125: 5.65 | O125: 5.6 | P125: 5.55 | Q125: 5.5 | R125: 5.45 | S125: 5.4 | T125: 5.35 | U125: 5.3 | V125: 5.25 | W125: 5.2 | X125: 5.15 | Y125: 5.1 | Z125: 5.05 | AA125: 5 | AB125: 4.95 | AC125: 4.9 | AD125: 4.85 | AE125: 4.8 | AQ125: -5 | AR125: =IF(Berechnung!$E$6=Berechnung!$E$9,HLOOKUP(Berechnung!$N$6,MatrixLuft!$AU$3:$CD$1114,FIXED(ROW(AQ125)-2,0),FALSE),"0") -> 2.966666667 | AS125: =IF(Berechnung!$E$6=Berechnung!$E$9,HLOOKUP($D$3,MatrixLuft!$AU$3:$CD$1114,FIXED(ROW(AQ125)-2,0),FALSE),"0") -> 2.966666667 | AT125: =IF(Berechnung!$E$6=Berechnung!$E$9,HLOOKUP($E$3,MatrixLuft!$AU$3:$CD$1114,FIXED(ROW(AQ125)-2,0),FALSE),"0") -> 2.266666667 | AU125: 3.141666667 | AV125: 3.106666667 | AW125: 3.071666667 | AX125: 3.036666667 | AY125: 3.001666667 | AZ125: =IF(AZ123>AZ132,AZ123-(ABS(AZ132-AZ123))/9*2,AZ123+ABS(AZ132-AZ123)/9*2) -> 2.966666667 | BA125: 2.931666667 | BB125: 2.896666667 | BC125: 2.861666667 | BD125: 2.826666667 | BE125: 2.791666667 | BF125: 2.756666667 | BG125: 2.721666667 | BH125: 2.686666667 | BI125: 2.651666667 | BJ125: 2.616666667 | BK125: 2.581666667 | BL125: 2.546666667 | BM125: 2.511666667 | BN125: 2.476666667 | BO125: 2.441666667 | BP125: 2.406666667 | BQ125: 2.371666667 | BR125: 2.336666667 | BS125: 2.301666667 | BT125: =IF(BT123>BT132,BT123-(ABS(BT132-BT123))/9*2,BT123+ABS(BT132-BT123)/9*2) -> 2.266666667 | BU125: 2.246666667 | BV125: 2.226666667 | BW125: 2.206666667 | BX125: 2.186666667 | BY125: =IF(BY123>BY132,BY123-(ABS(BY132-BY123))/9*2,BY123+ABS(BY132-BY123)/9*2) -> 2.166666667 | BZ125: 2.146666667 | CA125: 2.126666667 | CB125: 2.106666667 | CC125: 2.086666667 | CD125: 2.066666667
A126: -4 | B126: =VLOOKUP(F108,Berechnung!$G$9:$H$62,2,FALSE)&"17" -> 217 | C126: =IF(Berechnung!$E$6=Berechnung!$E$9,Berechnung!$F$7*HLOOKUP(Berechnung!$N$6,MatrixLuft!$F$3:$AO$1114,FIXED(ROW(A126)-2,0),FALSE),"0") -> 5.92 | D126: =IF(Berechnung!$E$6=Berechnung!$E$9,Berechnung!$F$7*HLOOKUP($D$3,MatrixLuft!$F$3:$AO$1114,FIXED(ROW(A126)-2,0),FALSE),"0") -> 5.92 | E126: =IF(Berechnung!$E$6=Berechnung!$E$9,Berechnung!$F$7*HLOOKUP($E$3,MatrixLuft!$F$3:$AO$1114,FIXED(ROW(A126)-2,0),FALSE),"0") -> 4.96 | F126: =IF(F125>F130,F125-(ABS(F130-F125))/5*1,F125+ABS(F130-F125)/5*1) -> 6.16 | G126: 6.112 | H126: 6.064 | I126: 6.016 | J126: 5.968 | K126: =IF(K125>K130,K125-(ABS(K130-K125))/5*1,K125+ABS(K130-K125)/5*1) -> 5.92 | L126: 5.872 | M126: 5.824 | N126: 5.776 | O126: 5.728 | P126: =IF(P125>P130,P125-(ABS(P130-P125))/5*1,P125+ABS(P130-P125)/5*1) -> 5.68 | Q126: 5.632 | R126: 5.584 | S126: 5.536 | T126: 5.488 | U126: =IF(U125>U130,U125-(ABS(U130-U125))/5*1,U125+ABS(U130-U125)/5*1) -> 5.44 | V126: 5.392 | W126: 5.344 | X126: 5.296 | Y126: 5.248 | Z126: =IF(Z125>Z130,Z125-(ABS(Z130-Z125))/5*1,Z125+ABS(Z130-Z125)/5*1) -> 5.2 | AA126: 5.152 | AB126: 5.104 | AC126: 5.056 | AD126: 5.008 | AE126: =IF(AE125>AE130,AE125-(ABS(AE130-AE125))/5*1,AE125+ABS(AE130-AE125)/5*1) -> 4.96 | AQ126: -4 | AR126: =IF(Berechnung!$E$6=Berechnung!$E$9,HLOOKUP(Berechnung!$N$6,MatrixLuft!$AU$3:$CD$1114,FIXED(ROW(AQ126)-2,0),FALSE),"0") -> 3 | AS126: =IF(Berechnung!$E$6=Berechnung!$E$9,HLOOKUP($D$3,MatrixLuft!$AU$3:$CD$1114,FIXED(ROW(AQ126)-2,0),FALSE),"0") -> 3 | AT126: =IF(Berechnung!$E$6=Berechnung!$E$9,HLOOKUP($E$3,MatrixLuft!$AU$3:$CD$1114,FIXED(ROW(AQ126)-2,0),FALSE),"0") -> 2.3 | AU126: 3.175 | AV126: 3.14 | AW126: 3.105 | AX126: 3.07 | AY126: 3.035 | AZ126: =IF(AZ123>AZ132,AZ123-(ABS(AZ132-AZ123))/9*3,AZ123+ABS(AZ132-AZ123)/9*3) -> 3 | BA126: 2.965 | BB126: 2.93 | BC126: 2.895 | BD126: 2.86 | BE126: 2.825 | BF126: 2.79 | BG126: 2.755 | BH126: 2.72 | BI126: 2.685 | BJ126: 2.65 | BK126: 2.615 | BL126: 2.58 | BM126: 2.545 | BN126: 2.51 | BO126: 2.475 | BP126: 2.44 | BQ126: 2.405 | BR126: 2.37 | BS126: 2.335 | BT126: =IF(BT123>BT132,BT123-(ABS(BT132-BT123))/9*3,BT123+ABS(BT132-BT123)/9*3) -> 2.3 | BU126: 2.28 | BV126: 2.26 | BW126: 2.24 | BX126: 2.22 | BY126: =IF(BY123>BY132,BY123-(ABS(BY132-BY123))/9*3,BY123+ABS(BY132-BY123)/9*3) -> 2.2 | BZ126: 2.18 | CA126: 2.16 | CB126: 2.14 | CC126: 2.12 | CD126: 2.1
A127: -3 | B127: =VLOOKUP(F108,Berechnung!$G$9:$H$62,2,FALSE)&"18" -> 218 | C127: =IF(Berechnung!$E$6=Berechnung!$E$9,Berechnung!$F$7*HLOOKUP(Berechnung!$N$6,MatrixLuft!$F$3:$AO$1114,FIXED(ROW(A127)-2,0),FALSE),"0") -> 6.04 | D127: =IF(Berechnung!$E$6=Berechnung!$E$9,Berechnung!$F$7*HLOOKUP($D$3,MatrixLuft!$F$3:$AO$1114,FIXED(ROW(A127)-2,0),FALSE),"0") -> 6.04 | E127: =IF(Berechnung!$E$6=Berechnung!$E$9,Berechnung!$F$7*HLOOKUP($E$3,MatrixLuft!$F$3:$AO$1114,FIXED(ROW(A127)-2,0),FALSE),"0") -> 5.12 | F127: =IF(F125>F130,F125-(ABS(F130-F125))/5*2,F125+ABS(F130-F125)/5*2) -> 6.27 | G127: 6.224 | H127: 6.178 | I127: 6.132 | J127: 6.086 | K127: =IF(K125>K130,K125-(ABS(K130-K125))/5*2,K125+ABS(K130-K125)/5*2) -> 6.04 | L127: 5.994 | M127: 5.948 | N127: 5.902 | O127: 5.856 | P127: =IF(P125>P130,P125-(ABS(P130-P125))/5*2,P125+ABS(P130-P125)/5*2) -> 5.81 | Q127: 5.764 | R127: 5.718 | S127: 5.672 | T127: 5.626 | U127: =IF(U125>U130,U125-(ABS(U130-U125))/5*2,U125+ABS(U130-U125)/5*2) -> 5.58 | V127: 5.534 | W127: 5.488 | X127: 5.442 | Y127: 5.396 | Z127: =IF(Z125>Z130,Z125-(ABS(Z130-Z125))/5*2,Z125+ABS(Z130-Z125)/5*2) -> 5.35 | AA127: 5.304 | AB127: 5.258 | AC127: 5.212 | AD127: 5.166 | AE127: =IF(AE125>AE130,AE125-(ABS(AE130-AE125))/5*2,AE125+ABS(AE130-AE125)/5*2) -> 5.12 | AQ127: -3 | AR127: =IF(Berechnung!$E$6=Berechnung!$E$9,HLOOKUP(Berechnung!$N$6,MatrixLuft!$AU$3:$CD$1114,FIXED(ROW(AQ127)-2,0),FALSE),"0") -> 3.033333333 | AS127: =IF(Berechnung!$E$6=Berechnung!$E$9,HLOOKUP($D$3,MatrixLuft!$AU$3:$CD$1114,FIXED(ROW(AQ127)-2,0),FALSE),"0") -> 3.033333333 | AT127: =IF(Berechnung!$E$6=Berechnung!$E$9,HLOOKUP($E$3,MatrixLuft!$AU$3:$CD$1114,FIXED(ROW(AQ127)-2,0),FALSE),"0") -> 2.333333333 | AU127: 3.208333333 | AV127: 3.173333333 | AW127: 3.138333333 | AX127: 3.103333333 | AY127: 3.068333333 | AZ127: =IF(AZ123>AZ132,AZ123-(ABS(AZ132-AZ123))/9*4,AZ123+ABS(AZ132-AZ123)/9*4) -> 3.033333333 | BA127: 2.998333333 | BB127: 2.963333333 | BC127: 2.928333333 | BD127: 2.893333333 | BE127: 2.858333333 | BF127: 2.823333333 | BG127: 2.788333333 | BH127: 2.753333333 | BI127: 2.718333333 | BJ127: 2.683333333 | BK127: 2.648333333 | BL127: 2.613333333 | BM127: 2.578333333 | BN127: 2.543333333 | BO127: 2.508333333 | BP127: 2.473333333 | BQ127: 2.438333333 | BR127: 2.403333333 | BS127: 2.368333333 | BT127: =IF(BT123>BT132,BT123-(ABS(BT132-BT123))/9*4,BT123+ABS(BT132-BT123)/9*4) -> 2.333333333 | BU127: 2.313333333 | BV127: 2.293333333 | BW127: 2.273333333 | BX127: 2.253333333 | BY127: =IF(BY123>BY132,BY123-(ABS(BY132-BY123))/9*4,BY123+ABS(BY132-BY123)/9*4) -> 2.233333333 | BZ127: 2.213333333 | CA127: 2.193333333 | CB127: 2.173333333 | CC127: 2.153333333 | CD127: 2.133333333
A128: -2 | B128: =VLOOKUP(F108,Berechnung!$G$9:$H$62,2,FALSE)&"19" -> 219 | C128: =IF(Berechnung!$E$6=Berechnung!$E$9,Berechnung!$F$7*HLOOKUP(Berechnung!$N$6,MatrixLuft!$F$3:$AO$1114,FIXED(ROW(A128)-2,0),FALSE),"0") -> 6.16 | D128: =IF(Berechnung!$E$6=Berechnung!$E$9,Berechnung!$F$7*HLOOKUP($D$3,MatrixLuft!$F$3:$AO$1114,FIXED(ROW(A128)-2,0),FALSE),"0") -> 6.16 | E128: =IF(Berechnung!$E$6=Berechnung!$E$9,Berechnung!$F$7*HLOOKUP($E$3,MatrixLuft!$F$3:$AO$1114,FIXED(ROW(A128)-2,0),FALSE),"0") -> 5.28 | F128: =IF(F125>F130,F125-(ABS(F130-F125))/5*3,F125+ABS(F130-F125)/5*3) -> 6.38 | G128: 6.336 | H128: 6.292 | I128: 6.248 | J128: 6.204 | K128: =IF(K125>K130,K125-(ABS(K130-K125))/5*3,K125+ABS(K130-K125)/5*3) -> 6.16 | L128: 6.116 | M128: 6.072 | N128: 6.028 | O128: 5.984 | P128: =IF(P125>P130,P125-(ABS(P130-P125))/5*3,P125+ABS(P130-P125)/5*3) -> 5.94 | Q128: 5.896 | R128: 5.852 | S128: 5.808 | T128: 5.764 | U128: =IF(U125>U130,U125-(ABS(U130-U125))/5*3,U125+ABS(U130-U125)/5*3) -> 5.72 | V128: 5.676 | W128: 5.632 | X128: 5.588 | Y128: 5.544 | Z128: =IF(Z125>Z130,Z125-(ABS(Z130-Z125))/5*3,Z125+ABS(Z130-Z125)/5*3) -> 5.5 | AA128: 5.456 | AB128: 5.412 | AC128: 5.368 | AD128: 5.324 | AE128: =IF(AE125>AE130,AE125-(ABS(AE130-AE125))/5*3,AE125+ABS(AE130-AE125)/5*3) -> 5.28 | AQ128: -2 | AR128: =IF(Berechnung!$E$6=Berechnung!$E$9,HLOOKUP(Berechnung!$N$6,MatrixLuft!$AU$3:$CD$1114,FIXED(ROW(AQ128)-2,0),FALSE),"0") -> 3.066666667 | AS128: =IF(Berechnung!$E$6=Berechnung!$E$9,HLOOKUP($D$3,MatrixLuft!$AU$3:$CD$1114,FIXED(ROW(AQ128)-2,0),FALSE),"0") -> 3.066666667 | AT128: =IF(Berechnung!$E$6=Berechnung!$E$9,HLOOKUP($E$3,MatrixLuft!$AU$3:$CD$1114,FIXED(ROW(AQ128)-2,0),FALSE),"0") -> 2.366666667 | AU128: 3.241666667 | AV128: 3.206666667 | AW128: 3.171666667 | AX128: 3.136666667 | AY128: 3.101666667 | AZ128: =IF(AZ123>AZ132,AZ123-(ABS(AZ132-AZ123))/9*5,AZ123+ABS(AZ132-AZ123)/9*5) -> 3.066666667 | BA128: 3.031666667 | BB128: 2.996666667 | BC128: 2.961666667 | BD128: 2.926666667 | BE128: 2.891666667 | BF128: 2.856666667 | BG128: 2.821666667 | BH128: 2.786666667 | BI128: 2.751666667 | BJ128: 2.716666667 | BK128: 2.681666667 | BL128: 2.646666667 | BM128: 2.611666667 | BN128: 2.576666667 | BO128: 2.541666667 | BP128: 2.506666667 | BQ128: 2.471666667 | BR128: 2.436666667 | BS128: 2.401666667 | BT128: =IF(BT123>BT132,BT123-(ABS(BT132-BT123))/9*5,BT123+ABS(BT132-BT123)/9*5) -> 2.366666667 | BU128: 2.346666667 | BV128: 2.326666667 | BW128: 2.306666667 | BX128: 2.286666667 | BY128: =IF(BY123>BY132,BY123-(ABS(BY132-BY123))/9*5,BY123+ABS(BY132-BY123)/9*5) -> 2.266666667 | BZ128: 2.246666667 | CA128: 2.226666667 | CB128: 2.206666667 | CC128: 2.186666667 | CD128: 2.166666667
A129: -1 | B129: =VLOOKUP(F108,Berechnung!$G$9:$H$62,2,FALSE)&"20" -> 220 | C129: =IF(Berechnung!$E$6=Berechnung!$E$9,Berechnung!$F$7*HLOOKUP(Berechnung!$N$6,MatrixLuft!$F$3:$AO$1114,FIXED(ROW(A129)-2,0),FALSE),"0") -> 6.28 | D129: =IF(Berechnung!$E$6=Berechnung!$E$9,Berechnung!$F$7*HLOOKUP($D$3,MatrixLuft!$F$3:$AO$1114,FIXED(ROW(A129)-2,0),FALSE),"0") -> 6.28 | E129: =IF(Berechnung!$E$6=Berechnung!$E$9,Berechnung!$F$7*HLOOKUP($E$3,MatrixLuft!$F$3:$AO$1114,FIXED(ROW(A129)-2,0),FALSE),"0") -> 5.44 | F129: =IF(F125>F130,F125-(ABS(F130-F125))/5*4,F125+ABS(F130-F125)/5*4) -> 6.49 | G129: 6.448 | H129: 6.406 | I129: 6.364 | J129: 6.322 | K129: =IF(K125>K130,K125-(ABS(K130-K125))/5*4,K125+ABS(K130-K125)/5*4) -> 6.28 | L129: 6.238 | M129: 6.196 | N129: 6.154 | O129: 6.112 | P129: =IF(P125>P130,P125-(ABS(P130-P125))/5*4,P125+ABS(P130-P125)/5*4) -> 6.07 | Q129: 6.028 | R129: 5.986 | S129: 5.944 | T129: 5.902 | U129: =IF(U125>U130,U125-(ABS(U130-U125))/5*4,U125+ABS(U130-U125)/5*4) -> 5.86 | V129: 5.818 | W129: 5.776 | X129: 5.734 | Y129: 5.692 | Z129: =IF(Z125>Z130,Z125-(ABS(Z130-Z125))/5*4,Z125+ABS(Z130-Z125)/5*4) -> 5.65 | AA129: 5.608 | AB129: 5.566 | AC129: 5.524 | AD129: 5.482 | AE129: =IF(AE125>AE130,AE125-(ABS(AE130-AE125))/5*4,AE125+ABS(AE130-AE125)/5*4) -> 5.44 | AQ129: -1 | AR129: =IF(Berechnung!$E$6=Berechnung!$E$9,HLOOKUP(Berechnung!$N$6,MatrixLuft!$AU$3:$CD$1114,FIXED(ROW(AQ129)-2,0),FALSE),"0") -> 3.1 | AS129: =IF(Berechnung!$E$6=Berechnung!$E$9,HLOOKUP($D$3,MatrixLuft!$AU$3:$CD$1114,FIXED(ROW(AQ129)-2,0),FALSE),"0") -> 3.1 | AT129: =IF(Berechnung!$E$6=Berechnung!$E$9,HLOOKUP($E$3,MatrixLuft!$AU$3:$CD$1114,FIXED(ROW(AQ129)-2,0),FALSE),"0") -> 2.4 | AU129: 3.275 | AV129: 3.24 | AW129: 3.205 | AX129: 3.17 | AY129: 3.135 | AZ129: =IF(AZ123>AZ132,AZ123-(ABS(AZ132-AZ123))/9*6,AZ123+ABS(AZ132-AZ123)/9*6) -> 3.1 | BA129: 3.065 | BB129: 3.03 | BC129: 2.995 | BD129: 2.96 | BE129: 2.925 | BF129: 2.89 | BG129: 2.855 | BH129: 2.82 | BI129: 2.785 | BJ129: 2.75 | BK129: 2.715 | BL129: 2.68 | BM129: 2.645 | BN129: 2.61 | BO129: 2.575 | BP129: 2.54 | BQ129: 2.505 | BR129: 2.47 | BS129: 2.435 | BT129: =IF(BT123>BT132,BT123-(ABS(BT132-BT123))/9*6,BT123+ABS(BT132-BT123)/9*6) -> 2.4 | BU129: 2.38 | BV129: 2.36 | BW129: 2.34 | BX129: 2.32 | BY129: =IF(BY123>BY132,BY123-(ABS(BY132-BY123))/9*6,BY123+ABS(BY132-BY123)/9*6) -> 2.3 | BZ129: 2.28 | CA129: 2.26 | CB129: 2.24 | CC129: 2.22 | CD129: 2.2
A130: 0 | B130: =VLOOKUP(F108,Berechnung!$G$9:$H$62,2,FALSE)&"21" -> 221 | C130: =IF(Berechnung!$E$6=Berechnung!$E$9,Berechnung!$F$7*HLOOKUP(Berechnung!$N$6,MatrixLuft!$F$3:$AO$1114,FIXED(ROW(A130)-2,0),FALSE),"0") -> 6.4 | D130: =IF(Berechnung!$E$6=Berechnung!$E$9,Berechnung!$F$7*HLOOKUP($D$3,MatrixLuft!$F$3:$AO$1114,FIXED(ROW(A130)-2,0),FALSE),"0") -> 6.4 | E130: =IF(Berechnung!$E$6=Berechnung!$E$9,Berechnung!$F$7*HLOOKUP($E$3,MatrixLuft!$F$3:$AO$1114,FIXED(ROW(A130)-2,0),FALSE),"0") -> 5.6 | F130: 6.6 | G130: 6.56 | H130: 6.52 | I130: 6.48 | J130: 6.44 | K130: 6.4 | L130: 6.36 | M130: 6.32 | N130: 6.28 | O130: 6.24 | P130: 6.2 | Q130: 6.16 | R130: 6.12 | S130: 6.08 | T130: 6.04 | U130: 6 | V130: 5.96 | W130: 5.92 | X130: 5.88 | Y130: 5.84 | Z130: 5.8 | AA130: 5.76 | AB130: 5.72 | AC130: 5.68 | AD130: 5.64 | AE130: 5.6 | AQ130: 0 | AR130: =IF(Berechnung!$E$6=Berechnung!$E$9,HLOOKUP(Berechnung!$N$6,MatrixLuft!$AU$3:$CD$1114,FIXED(ROW(AQ130)-2,0),FALSE),"0") -> 3.133333333 | AS130: =IF(Berechnung!$E$6=Berechnung!$E$9,HLOOKUP($D$3,MatrixLuft!$AU$3:$CD$1114,FIXED(ROW(AQ130)-2,0),FALSE),"0") -> 3.133333333 | AT130: =IF(Berechnung!$E$6=Berechnung!$E$9,HLOOKUP($E$3,MatrixLuft!$AU$3:$CD$1114,FIXED(ROW(AQ130)-2,0),FALSE),"0") -> 2.433333333 | AU130: 3.308333333 | AV130: 3.273333333 | AW130: 3.238333333 | AX130: 3.203333333 | AY130: 3.168333333 | AZ130: =IF(AZ123>AZ132,AZ123-(ABS(AZ132-AZ123))/9*7,AZ123+ABS(AZ132-AZ123)/9*7) -> 3.133333333 | BA130: 3.098333333 | BB130: 3.063333333 | BC130: 3.028333333 | BD130: 2.993333333 | BE130: 2.958333333 | BF130: 2.923333333 | BG130: 2.888333333 | BH130: 2.853333333 | BI130: 2.818333333 | BJ130: 2.783333333 | BK130: 2.748333333 | BL130: 2.713333333 | BM130: 2.678333333 | BN130: 2.643333333 | BO130: 2.608333333 | BP130: 2.573333333 | BQ130: 2.538333333 | BR130: 2.503333333 | BS130: 2.468333333 | BT130: =IF(BT123>BT132,BT123-(ABS(BT132-BT123))/9*7,BT123+ABS(BT132-BT123)/9*7) -> 2.433333333 | BU130: 2.413333333 | BV130: 2.393333333 | BW130: 2.373333333 | BX130: 2.353333333 | BY130: =IF(BY123>BY132,BY123-(ABS(BY132-BY123))/9*7,BY123+ABS(BY132-BY123)/9*7) -> 2.333333333 | BZ130: 2.313333333 | CA130: 2.293333333 | CB130: 2.273333333 | CC130: 2.253333333 | CD130: 2.233333333
A131: 1 | B131: =VLOOKUP(F108,Berechnung!$G$9:$H$62,2,FALSE)&"22" -> 222 | C131: =IF(Berechnung!$E$6=Berechnung!$E$9,Berechnung!$F$7*HLOOKUP(Berechnung!$N$6,MatrixLuft!$F$3:$AO$1114,FIXED(ROW(A131)-2,0),FALSE),"0") -> 6.62 | D131: =IF(Berechnung!$E$6=Berechnung!$E$9,Berechnung!$F$7*HLOOKUP($D$3,MatrixLuft!$F$3:$AO$1114,FIXED(ROW(A131)-2,0),FALSE),"0") -> 6.62 | E131: =IF(Berechnung!$E$6=Berechnung!$E$9,Berechnung!$F$7*HLOOKUP($E$3,MatrixLuft!$F$3:$AO$1114,FIXED(ROW(A131)-2,0),FALSE),"0") -> 5.86 | F131: =IF(F130>F135,F130-(ABS(F135-F130))/5*1,F130+ABS(F135-F130)/5*1) -> 6.81 | G131: 6.772 | H131: 6.734 | I131: 6.696 | J131: 6.658 | K131: =IF(K130>K135,K130-(ABS(K135-K130))/5*1,K130+ABS(K135-K130)/5*1) -> 6.62 | L131: 6.582 | M131: 6.544 | N131: 6.506 | O131: 6.468 | P131: =IF(P130>P135,P130-(ABS(P135-P130))/5*1,P130+ABS(P135-P130)/5*1) -> 6.43 | Q131: 6.392 | R131: 6.354 | S131: 6.316 | T131: 6.278 | U131: =IF(U130>U135,U130-(ABS(U135-U130))/5*1,U130+ABS(U135-U130)/5*1) -> 6.24 | V131: 6.202 | W131: 6.164 | X131: 6.126 | Y131: 6.088 | Z131: =IF(Z130>Z135,Z130-(ABS(Z135-Z130))/5*1,Z130+ABS(Z135-Z130)/5*1) -> 6.05 | AA131: 6.012 | AB131: 5.974 | AC131: 5.936 | AD131: 5.898 | AE131: =IF(AE130>AE135,AE130-(ABS(AE135-AE130))/5*1,AE130+ABS(AE135-AE130)/5*1) -> 5.86 | AQ131: 1 | AR131: =IF(Berechnung!$E$6=Berechnung!$E$9,HLOOKUP(Berechnung!$N$6,MatrixLuft!$AU$3:$CD$1114,FIXED(ROW(AQ131)-2,0),FALSE),"0") -> 3.166666667 | AS131: =IF(Berechnung!$E$6=Berechnung!$E$9,HLOOKUP($D$3,MatrixLuft!$AU$3:$CD$1114,FIXED(ROW(AQ131)-2,0),FALSE),"0") -> 3.166666667 | AT131: =IF(Berechnung!$E$6=Berechnung!$E$9,HLOOKUP($E$3,MatrixLuft!$AU$3:$CD$1114,FIXED(ROW(AQ131)-2,0),FALSE),"0") -> 2.466666667 | AU131: 3.341666667 | AV131: 3.306666667 | AW131: 3.271666667 | AX131: 3.236666667 | AY131: 3.201666667 | AZ131: =IF(AZ123>AZ132,AZ123-(ABS(AZ132-AZ123))/9*8,AZ123+ABS(AZ132-AZ123)/9*8) -> 3.166666667 | BA131: 3.131666667 | BB131: 3.096666667 | BC131: 3.061666667 | BD131: 3.026666667 | BE131: 2.991666667 | BF131: 2.956666667 | BG131: 2.921666667 | BH131: 2.886666667 | BI131: 2.851666667 | BJ131: 2.816666667 | BK131: 2.781666667 | BL131: 2.746666667 | BM131: 2.711666667 | BN131: 2.676666667 | BO131: 2.641666667 | BP131: 2.606666667 | BQ131: 2.571666667 | BR131: 2.536666667 | BS131: 2.501666667 | BT131: =IF(BT123>BT132,BT123-(ABS(BT132-BT123))/9*8,BT123+ABS(BT132-BT123)/9*8) -> 2.466666667 | BU131: 2.446666667 | BV131: 2.426666667 | BW131: 2.406666667 | BX131: 2.386666667 | BY131: =IF(BY123>BY132,BY123-(ABS(BY132-BY123))/9*8,BY123+ABS(BY132-BY123)/9*8) -> 2.366666667 | BZ131: 2.346666667 | CA131: 2.326666667 | CB131: 2.306666667 | CC131: 2.286666667 | CD131: 2.266666667
